Workbook

Sheet Produktionsanlæg
A1: Produktionsanlæg | B1: Enhed | C1: Standard-levetid | D1: Samlet mængde per 31/12-2023 | E1: Samlet mængde per 31/12-2024 | F1: Samlet mængde per 31/12-2025 | G1: Afvigelse 2023-2024 | H1: Afvigelse 2024-2025 | I1: Bemærkninger | J1: Enhedspris 2024 | K1: Enhedspris 2025 | L1: Netvolumenbidrag 2024 | M1: Netvolumenbidrag 2025 | N1: Ejerandel 2024 (%) | O1: Ejerandel 2025 (%) | Q1: Postnr. | R1: Selskabsnavn | S1: CAPEX Netvolumenmål 2024 | T1: CAPEX Netvolumenmål 2025 | U1: Gennemsnitligt CAPEX Netvolumenmål
A2: Boringer | Q2: 9310 | R2: Aalborg Vand | S2: =SUMIFS(L:L,L:L,">0") + SUMIFS(Distributionsanlæg!L:L,Distributionsanlæg!L:L,">0") + SUMIFS(Fællesfunktionsanlæg!L:L,Fællesfunktionsanlæg!L:L,">0") -> 43318896.36 | T2: =SUMIFS(M:M,M:M,">0") + SUMIFS(Distributionsanlæg!M:M,Distributionsanlæg!M:M,">0") + SUMIFS(Fællesfunktionsanlæg!M:M,Fællesfunktionsanlæg!M:M,">0") -> 44245134.83 | U2: =AVERAGE(S2:T2) -> 43782015.6
A3: Boring (inkl. etablering, forerør, filter og prøvepumpning) | B3: dybdemeter | C3: =Genanskaffelsespriser!E5 -> 30 | D3: 3387 | E3: =3387+4978.61 -> 8365.61 | F3: =E3 -> 8365.61 | G3: =IF($D3="",IF($E3>0,"Ny data",IF($E3="","",0)),IF($D3=0,IF($E3=0,0,"Ny data"),($E3-$D3)/$D3)) -> 1.469917331 | H3: =IF($E3="",IF($F3>0,"Ny data",IF($F3="","",0)),IF($E3=0,IF($F3=0,0,"Ny data"),($F3-$E3)/$E3)) -> 0 | I3: Pejleboringsdybde er medtaget | J3: =Genanskaffelsespriser!$D5 -> 2538 | K3: =J3 -> 2538 | L3: =IF(ISNUMBER(E3),((J3*E3)/C3)*N3,"") -> 707730.606 | M3: =IF(ISNUMBER(F3),((K3*F3)/C3)*O3,"") -> 707730.606 | N3: 1 | O3: 1
A4: Råvandsstationer
A5: Råvandsstation komplet montering og boringshus/tørbrønd | B5: stk. | C5: =Genanskaffelsespriser!E7 -> 30 | D5: 57 | E5: 56 | F5: 56 | G5: =IF($D5="",IF($E5>0,"Ny data",IF($E5="","",0)),IF($D5=0,IF($E5=0,0,"Ny data"),($E5-$D5)/$D5)) -> -0.01754385965 | H5: =IF($E5="",IF($F5>0,"Ny data",IF($F5="","",0)),IF($E5=0,IF($F5=0,0,"Ny data"),($F5-$E5)/$E5)) -> 0 | J5: =Genanskaffelsespriser!$D7 -> 57810 | K5: =J5 -> 57810 | L5: =IF(ISNUMBER(E5),((J5*E5)/C5)*N5,"") -> 107912 | M5: =IF(ISNUMBER(F5),((K5*F5)/C5)*O5,"") -> 107912 | N5: 1 | O5: 1
A6: Instrumenter (flowmåler+tryk transducer+alarmer) | B6: stk. | C6: =Genanskaffelsespriser!E8 -> 10 | D6: 507 | E6: 507 | F6: 507 | G6: 0 | H6: 0 | J6: =Genanskaffelsespriser!$D8 -> 65241 | K6: =J6 -> 65241 | L6: 3307718.7 | M6: 3307718.7 | N6: 1 | O6: 1
A7: Pumpe inkl. stigrør og forerørsforsejlinger mv. 1 | B7: m³/h | C7: =Genanskaffelsespriser!E9 -> 15 | D7: 50 | E7: 50 | F7: 50 | G7: 0 | H7: 0 | J7: =IF(E7=0,"Variabel pris",IFERROR(((HLOOKUP(E7,'Variable priser'!$C$2:$H$4,2)+(E7-HLOOKUP(E7,'Variable priser'!$C$2:$H$4,1))*HLOOKUP(E7,'Variable priser'!$C$2:$H$4,3))/E7*(1+Genanskaffelsespriser!$D$203)),"Fejl")) -> 1884.430588 | K7: =IF(F7=0,"Variabel pris",IFERROR(((HLOOKUP(F7,'Variable priser'!$C$2:$H$4,2)+(F7-HLOOKUP(F7,'Variable priser'!$C$2:$H$4,1))*HLOOKUP(F7,'Variable priser'!$C$2:$H$4,3))/F7*(1+Genanskaffelsespriser!$D$203)),"Fejl")) -> 1884.430588 | L7: =IF(ISBLANK(E7),"",IF(E7=0,"",IF(ISNUMBER(E7),((J7*E7)/C7)*N7,""))) -> 6281.435294 | M7: =IF(ISBLANK(F7),"",IF(F7=0,"",IF(ISNUMBER(F7),((K7*F7)/C7)*N7,""))) -> 6281.435294 | N7: 1 | O7: 1
A8: Pumpe inkl. stigrør og forerørsforsejlinger mv. 2 | B8: m³/h | C8: =Genanskaffelsespriser!E9 -> 15 | D8: 50 | E8: 50 | F8: 50 | G8: 0 | H8: 0 | J8: =IF(E8=0,"Variabel pris",IFERROR(((HLOOKUP(E8,'Variable priser'!$C$2:$H$4,2)+(E8-HLOOKUP(E8,'Variable priser'!$C$2:$H$4,1))*HLOOKUP(E8,'Variable priser'!$C$2:$H$4,3))/E8*(1+Genanskaffelsespriser!$D$203)),"Fejl")) -> 1884.430588 | K8: =IF(F8=0,"Variabel pris",IFERROR(((HLOOKUP(F8,'Variable priser'!$C$2:$H$4,2)+(F8-HLOOKUP(F8,'Variable priser'!$C$2:$H$4,1))*HLOOKUP(F8,'Variable priser'!$C$2:$H$4,3))/F8*(1+Genanskaffelsespriser!$D$203)),"Fejl")) -> 1884.430588 | L8: =IF(ISBLANK(E8),"",IF(E8=0,"",IF(ISNUMBER(E8),((J8*E8)/C8)*N8,""))) -> 6281.435294 | M8: =IF(ISBLANK(F8),"",IF(F8=0,"",IF(ISNUMBER(F8),((K8*F8)/C8)*N8,""))) -> 6281.435294 | N8: 1 | O8: 1
A9: Pumpe inkl. stigrør og forerørsforsejlinger mv. 3 | B9: m³/h | C9: =Genanskaffelsespriser!E9 -> 15 | D9: 50 | E9: 50 | F9: 50 | G9: 0 | H9: 0 | J9: =IF(E9=0,"Variabel pris",IFERROR(((HLOOKUP(E9,'Variable priser'!$C$2:$H$4,2)+(E9-HLOOKUP(E9,'Variable priser'!$C$2:$H$4,1))*HLOOKUP(E9,'Variable priser'!$C$2:$H$4,3))/E9*(1+Genanskaffelsespriser!$D$203)),"Fejl")) -> 1884.430588 | K9: =IF(F9=0,"Variabel pris",IFERROR(((HLOOKUP(F9,'Variable priser'!$C$2:$H$4,2)+(F9-HLOOKUP(F9,'Variable priser'!$C$2:$H$4,1))*HLOOKUP(F9,'Variable priser'!$C$2:$H$4,3))/F9*(1+Genanskaffelsespriser!$D$203)),"Fejl")) -> 1884.430588 | L9: 6281.435294 | M9: 6281.435294 | N9: 1 | O9: 1
A10: Pumpe inkl. stigrør og forerørsforsejlinger mv. 4 | B10: m³/h | C10: =Genanskaffelsespriser!E9 -> 15 | D10: 50 | E10: 50 | F10: 50 | G10: 0 | H10: 0 | J10: =IF(E10=0,"Variabel pris",IFERROR(((HLOOKUP(E10,'Variable priser'!$C$2:$H$4,2)+(E10-HLOOKUP(E10,'Variable priser'!$C$2:$H$4,1))*HLOOKUP(E10,'Variable priser'!$C$2:$H$4,3))/E10*(1+Genanskaffelsespriser!$D$203)),"Fejl")) -> 1884.430588 | K10: =IF(F10=0,"Variabel pris",IFERROR(((HLOOKUP(F10,'Variable priser'!$C$2:$H$4,2)+(F10-HLOOKUP(F10,'Variable priser'!$C$2:$H$4,1))*HLOOKUP(F10,'Variable priser'!$C$2:$H$4,3))/F10*(1+Genanskaffelsespriser!$D$203)),"Fejl")) -> 1884.430588 | L10: 6281.435294 | M10: 6281.435294 | N10: 1 | O10: 1
A11: Pumpe inkl. stigrør og forerørsforsejlinger mv. 5 | B11: m³/h | C11: =Genanskaffelsespriser!E9 -> 15 | D11: 50 | E11: 50 | F11: 50 | G11: 0 | H11: 0 | J11: =IF(E11=0,"Variabel pris",IFERROR(((HLOOKUP(E11,'Variable priser'!$C$2:$H$4,2)+(E11-HLOOKUP(E11,'Variable priser'!$C$2:$H$4,1))*HLOOKUP(E11,'Variable priser'!$C$2:$H$4,3))/E11*(1+Genanskaffelsespriser!$D$203)),"Fejl")) -> 1884.430588 | K11: =IF(F11=0,"Variabel pris",IFERROR(((HLOOKUP(F11,'Variable priser'!$C$2:$H$4,2)+(F11-HLOOKUP(F11,'Variable priser'!$C$2:$H$4,1))*HLOOKUP(F11,'Variable priser'!$C$2:$H$4,3))/F11*(1+Genanskaffelsespriser!$D$203)),"Fejl")) -> 1884.430588 | L11: 6281.435294 | M11: 6281.435294 | N11: 1 | O11: 1
A12: Pumpe inkl. stigrør og forerørsforsejlinger mv. 6 | B12: m³/h | C12: =Genanskaffelsespriser!E9 -> 15 | D12: 50 | E12: 50 | F12: 50 | G12: 0 | H12: 0 | J12: =IF(E12=0,"Variabel pris",IFERROR(((HLOOKUP(E12,'Variable priser'!$C$2:$H$4,2)+(E12-HLOOKUP(E12,'Variable priser'!$C$2:$H$4,1))*HLOOKUP(E12,'Variable priser'!$C$2:$H$4,3))/E12*(1+Genanskaffelsespriser!$D$203)),"Fejl")) -> 1884.430588 | K12: =IF(F12=0,"Variabel pris",IFERROR(((HLOOKUP(F12,'Variable priser'!$C$2:$H$4,2)+(F12-HLOOKUP(F12,'Variable priser'!$C$2:$H$4,1))*HLOOKUP(F12,'Variable priser'!$C$2:$H$4,3))/F12*(1+Genanskaffelsespriser!$D$203)),"Fejl")) -> 1884.430588 | L12: 6281.435294 | M12: 6281.435294 | N12: 1 | O12: 1
A13: Pumpe inkl. stigrør og forerørsforsejlinger mv. 7 | B13: m³/h | C13: =Genanskaffelsespriser!E9 -> 15 | D13: 50 | E13: 50 | F13: 50 | G13: 0 | H13: 0 | J13: =IF(E13=0,"Variabel pris",IFERROR(((HLOOKUP(E13,'Variable priser'!$C$2:$H$4,2)+(E13-HLOOKUP(E13,'Variable priser'!$C$2:$H$4,1))*HLOOKUP(E13,'Variable priser'!$C$2:$H$4,3))/E13*(1+Genanskaffelsespriser!$D$203)),"Fejl")) -> 1884.430588 | K13: =IF(F13=0,"Variabel pris",IFERROR(((HLOOKUP(F13,'Variable priser'!$C$2:$H$4,2)+(F13-HLOOKUP(F13,'Variable priser'!$C$2:$H$4,1))*HLOOKUP(F13,'Variable priser'!$C$2:$H$4,3))/F13*(1+Genanskaffelsespriser!$D$203)),"Fejl")) -> 1884.430588 | L13: 6281.435294 | M13: 6281.435294 | N13: 1 | O13: 1
A14: Pumpe inkl. stigrør og forerørsforsejlinger mv. 8 | B14: m³/h | C14: =Genanskaffelsespriser!E9 -> 15 | D14: 50 | E14: 50 | F14: 50 | G14: 0 | H14: 0 | J14: =IF(E14=0,"Variabel pris",IFERROR(((HLOOKUP(E14,'Variable priser'!$C$2:$H$4,2)+(E14-HLOOKUP(E14,'Variable priser'!$C$2:$H$4,1))*HLOOKUP(E14,'Variable priser'!$C$2:$H$4,3))/E14*(1+Genanskaffelsespriser!$D$203)),"Fejl")) -> 1884.430588 | K14: =IF(F14=0,"Variabel pris",IFERROR(((HLOOKUP(F14,'Variable priser'!$C$2:$H$4,2)+(F14-HLOOKUP(F14,'Variable priser'!$C$2:$H$4,1))*HLOOKUP(F14,'Variable priser'!$C$2:$H$4,3))/F14*(1+Genanskaffelsespriser!$D$203)),"Fejl")) -> 1884.430588 | L14: 6281.435294 | M14: 6281.435294 | N14: 1 | O14: 1
A15: Pumpe inkl. stigrør og forerørsforsejlinger mv. 9 | B15: m³/h | C15: =Genanskaffelsespriser!E9 -> 15 | D15: 50 | E15: 50 | F15: 50 | G15: 0 | H15: 0 | J15: =IF(E15=0,"Variabel pris",IFERROR(((HLOOKUP(E15,'Variable priser'!$C$2:$H$4,2)+(E15-HLOOKUP(E15,'Variable priser'!$C$2:$H$4,1))*HLOOKUP(E15,'Variable priser'!$C$2:$H$4,3))/E15*(1+Genanskaffelsespriser!$D$203)),"Fejl")) -> 1884.430588 | K15: =IF(F15=0,"Variabel pris",IFERROR(((HLOOKUP(F15,'Variable priser'!$C$2:$H$4,2)+(F15-HLOOKUP(F15,'Variable priser'!$C$2:$H$4,1))*HLOOKUP(F15,'Variable priser'!$C$2:$H$4,3))/F15*(1+Genanskaffelsespriser!$D$203)),"Fejl")) -> 1884.430588 | L15: 6281.435294 | M15: 6281.435294 | N15: 1 | O15: 1
A16: Pumpe inkl. stigrør og forerørsforsejlinger mv. 10 | B16: m³/h | C16: 15 | D16: 50 | E16: 50 | F16: 50 | G16: 0 | H16: 0 | J16: =IF(E16=0,"Variabel pris",IFERROR(((HLOOKUP(E16,'Variable priser'!$C$2:$H$4,2)+(E16-HLOOKUP(E16,'Variable priser'!$C$2:$H$4,1))*HLOOKUP(E16,'Variable priser'!$C$2:$H$4,3))/E16*(1+Genanskaffelsespriser!$D$203)),"Fejl")) -> 1884.430588 | K16: =IF(F16=0,"Variabel pris",IFERROR(((HLOOKUP(F16,'Variable priser'!$C$2:$H$4,2)+(F16-HLOOKUP(F16,'Variable priser'!$C$2:$H$4,1))*HLOOKUP(F16,'Variable priser'!$C$2:$H$4,3))/F16*(1+Genanskaffelsespriser!$D$203)),"Fejl")) -> 1884.430588 | L16: 6281.435294 | M16: 6281.435294 | N16: 1 | O16: 1
A17: Pumpe inkl. stigrør og forerørsforsejlinger mv. 11 | B17: m³/h | C17: 15 | D17: 50 | E17: 50 | F17: 50 | G17: 0 | H17: 0 | J17: =IF(E17=0,"Variabel pris",IFERROR(((HLOOKUP(E17,'Variable priser'!$C$2:$H$4,2)+(E17-HLOOKUP(E17,'Variable priser'!$C$2:$H$4,1))*HLOOKUP(E17,'Variable priser'!$C$2:$H$4,3))/E17*(1+Genanskaffelsespriser!$D$203)),"Fejl")) -> 1884.430588 | K17: =IF(F17=0,"Variabel pris",IFERROR(((HLOOKUP(F17,'Variable priser'!$C$2:$H$4,2)+(F17-HLOOKUP(F17,'Variable priser'!$C$2:$H$4,1))*HLOOKUP(F17,'Variable priser'!$C$2:$H$4,3))/F17*(1+Genanskaffelsespriser!$D$203)),"Fejl")) -> 1884.430588 | L17: =IF(ISBLANK(E17),"",IF(E17=0,"",IF(ISNUMBER(E17),((J17*E17)/C17)*N17,""))) -> 6281.435294 | M17: =IF(ISBLANK(F17),"",IF(F17=0,"",IF(ISNUMBER(F17),((K17*F17)/C17)*N17,""))) -> 6281.435294 | N17: 1 | O17: 1
A18: Pumpe inkl. stigrør og forerørsforsejlinger mv. 12 | B18: m³/h | C18: 15 | D18: 50 | E18: 50 | F18: 50 | G18: 0 | H18: 0 | J18: =IF(E18=0,"Variabel pris",IFERROR(((HLOOKUP(E18,'Variable priser'!$C$2:$H$4,2)+(E18-HLOOKUP(E18,'Variable priser'!$C$2:$H$4,1))*HLOOKUP(E18,'Variable priser'!$C$2:$H$4,3))/E18*(1+Genanskaffelsespriser!$D$203)),"Fejl")) -> 1884.430588 | K18: =IF(F18=0,"Variabel pris",IFERROR(((HLOOKUP(F18,'Variable priser'!$C$2:$H$4,2)+(F18-HLOOKUP(F18,'Variable priser'!$C$2:$H$4,1))*HLOOKUP(F18,'Variable priser'!$C$2:$H$4,3))/F18*(1+Genanskaffelsespriser!$D$203)),"Fejl")) -> 1884.430588 | L18: 6281.435294 | M18: 6281.435294 | N18: 1 | O18: 1
A19: Pumpe inkl. stigrør og forerørsforsejlinger mv. 13 | B19: m³/h | C19: 15 | D19: 50 | E19: 50 | F19: 50 | G19: 0 | H19: 0 | J19: =IF(E19=0,"Variabel pris",IFERROR(((HLOOKUP(E19,'Variable priser'!$C$2:$H$4,2)+(E19-HLOOKUP(E19,'Variable priser'!$C$2:$H$4,1))*HLOOKUP(E19,'Variable priser'!$C$2:$H$4,3))/E19*(1+Genanskaffelsespriser!$D$203)),"Fejl")) -> 1884.430588 | K19: =IF(F19=0,"Variabel pris",IFERROR(((HLOOKUP(F19,'Variable priser'!$C$2:$H$4,2)+(F19-HLOOKUP(F19,'Variable priser'!$C$2:$H$4,1))*HLOOKUP(F19,'Variable priser'!$C$2:$H$4,3))/F19*(1+Genanskaffelsespriser!$D$203)),"Fejl")) -> 1884.430588 | L19: 6281.435294 | M19: 6281.435294 | N19: 1 | O19: 1
A20: Pumpe inkl. stigrør og forerørsforsejlinger mv. 14 | B20: m³/h | C20: 15 | D20: 30 | E20: 30 | F20: 30 | G20: 0 | H20: 0 | J20: =IF(E20=0,"Variabel pris",IFERROR(((HLOOKUP(E20,'Variable priser'!$C$2:$H$4,2)+(E20-HLOOKUP(E20,'Variable priser'!$C$2:$H$4,1))*HLOOKUP(E20,'Variable priser'!$C$2:$H$4,3))/E20*(1+Genanskaffelsespriser!$D$203)),"Fejl")) -> 2571.6024 | K20: =IF(F20=0,"Variabel pris",IFERROR(((HLOOKUP(F20,'Variable priser'!$C$2:$H$4,2)+(F20-HLOOKUP(F20,'Variable priser'!$C$2:$H$4,1))*HLOOKUP(F20,'Variable priser'!$C$2:$H$4,3))/F20*(1+Genanskaffelsespriser!$D$203)),"Fejl")) -> 2571.6024 | L20: 5143.2048 | M20: 5143.2048 | N20: 1 | O20: 1
A21: Pumpe inkl. stigrør og forerørsforsejlinger mv. 15 | B21: m³/h | C21: 15 | D21: 50 | E21: 50 | F21: 50 | G21: 0 | H21: 0 | J21: =IF(E21=0,"Variabel pris",IFERROR(((HLOOKUP(E21,'Variable priser'!$C$2:$H$4,2)+(E21-HLOOKUP(E21,'Variable priser'!$C$2:$H$4,1))*HLOOKUP(E21,'Variable priser'!$C$2:$H$4,3))/E21*(1+Genanskaffelsespriser!$D$203)),"Fejl")) -> 1884.430588 | K21: =IF(F21=0,"Variabel pris",IFERROR(((HLOOKUP(F21,'Variable priser'!$C$2:$H$4,2)+(F21-HLOOKUP(F21,'Variable priser'!$C$2:$H$4,1))*HLOOKUP(F21,'Variable priser'!$C$2:$H$4,3))/F21*(1+Genanskaffelsespriser!$D$203)),"Fejl")) -> 1884.430588 | L21: 6281.435294 | M21: 6281.435294 | N21: 1 | O21: 1
A22: Pumpe inkl. stigrør og forerørsforsejlinger mv. 16 | B22: m³/h | C22: 15 | D22: 50 | E22: 50 | F22: 50 | G22: 0 | H22: 0 | J22: =IF(E22=0,"Variabel pris",IFERROR(((HLOOKUP(E22,'Variable priser'!$C$2:$H$4,2)+(E22-HLOOKUP(E22,'Variable priser'!$C$2:$H$4,1))*HLOOKUP(E22,'Variable priser'!$C$2:$H$4,3))/E22*(1+Genanskaffelsespriser!$D$203)),"Fejl")) -> 1884.430588 | K22: =IF(F22=0,"Variabel pris",IFERROR(((HLOOKUP(F22,'Variable priser'!$C$2:$H$4,2)+(F22-HLOOKUP(F22,'Variable priser'!$C$2:$H$4,1))*HLOOKUP(F22,'Variable priser'!$C$2:$H$4,3))/F22*(1+Genanskaffelsespriser!$D$203)),"Fejl")) -> 1884.430588 | L22: 6281.435294 | M22: 6281.435294 | N22: 1 | O22: 1
A23: Pumpe inkl. stigrør og forerørsforsejlinger mv. 17 | B23: m³/h | C23: 15 | D23: 50 | E23: 50 | F23: 50 | G23: 0 | H23: 0 | J23: =IF(E23=0,"Variabel pris",IFERROR(((HLOOKUP(E23,'Variable priser'!$C$2:$H$4,2)+(E23-HLOOKUP(E23,'Variable priser'!$C$2:$H$4,1))*HLOOKUP(E23,'Variable priser'!$C$2:$H$4,3))/E23*(1+Genanskaffelsespriser!$D$203)),"Fejl")) -> 1884.430588 | K23: =IF(F23=0,"Variabel pris",IFERROR(((HLOOKUP(F23,'Variable priser'!$C$2:$H$4,2)+(F23-HLOOKUP(F23,'Variable priser'!$C$2:$H$4,1))*HLOOKUP(F23,'Variable priser'!$C$2:$H$4,3))/F23*(1+Genanskaffelsespriser!$D$203)),"Fejl")) -> 1884.430588 | L23: 6281.435294 | M23: 6281.435294 | N23: 1 | O23: 1
A24: Pumpe inkl. stigrør og forerørsforsejlinger mv. 18 | B24: m³/h | C24: 15 | D24: 50 | E24: 50 | F24: 50 | G24: 0 | H24: 0 | J24: =IF(E24=0,"Variabel pris",IFERROR(((HLOOKUP(E24,'Variable priser'!$C$2:$H$4,2)+(E24-HLOOKUP(E24,'Variable priser'!$C$2:$H$4,1))*HLOOKUP(E24,'Variable priser'!$C$2:$H$4,3))/E24*(1+Genanskaffelsespriser!$D$203)),"Fejl")) -> 1884.430588 | K24: =IF(F24=0,"Variabel pris",IFERROR(((HLOOKUP(F24,'Variable priser'!$C$2:$H$4,2)+(F24-HLOOKUP(F24,'Variable priser'!$C$2:$H$4,1))*HLOOKUP(F24,'Variable priser'!$C$2:$H$4,3))/F24*(1+Genanskaffelsespriser!$D$203)),"Fejl")) -> 1884.430588 | L24: 6281.435294 | M24: 6281.435294 | N24: 1 | O24: 1
A25: Pumpe inkl. stigrør og forerørsforsejlinger mv. 19 | B25: m³/h | C25: 15 | D25: 50 | E25: 50 | F25: 50 | G25: 0 | H25: 0 | J25: =IF(E25=0,"Variabel pris",IFERROR(((HLOOKUP(E25,'Variable priser'!$C$2:$H$4,2)+(E25-HLOOKUP(E25,'Variable priser'!$C$2:$H$4,1))*HLOOKUP(E25,'Variable priser'!$C$2:$H$4,3))/E25*(1+Genanskaffelsespriser!$D$203)),"Fejl")) -> 1884.430588 | K25: =IF(F25=0,"Variabel pris",IFERROR(((HLOOKUP(F25,'Variable priser'!$C$2:$H$4,2)+(F25-HLOOKUP(F25,'Variable priser'!$C$2:$H$4,1))*HLOOKUP(F25,'Variable priser'!$C$2:$H$4,3))/F25*(1+Genanskaffelsespriser!$D$203)),"Fejl")) -> 1884.430588 | L25: 6281.435294 | M25: 6281.435294 | N25: 1 | O25: 1
A26: Pumpe inkl. stigrør og forerørsforsejlinger mv. 20 | B26: m³/h | C26: 15 | D26: 50 | E26: 50 | F26: 50 | G26: 0 | H26: 0 | J26: =IF(E26=0,"Variabel pris",IFERROR(((HLOOKUP(E26,'Variable priser'!$C$2:$H$4,2)+(E26-HLOOKUP(E26,'Variable priser'!$C$2:$H$4,1))*HLOOKUP(E26,'Variable priser'!$C$2:$H$4,3))/E26*(1+Genanskaffelsespriser!$D$203)),"Fejl")) -> 1884.430588 | K26: =IF(F26=0,"Variabel pris",IFERROR(((HLOOKUP(F26,'Variable priser'!$C$2:$H$4,2)+(F26-HLOOKUP(F26,'Variable priser'!$C$2:$H$4,1))*HLOOKUP(F26,'Variable priser'!$C$2:$H$4,3))/F26*(1+Genanskaffelsespriser!$D$203)),"Fejl")) -> 1884.430588 | L26: 6281.435294 | M26: 6281.435294 | N26: 1 | O26: 1
A27: Pumpe inkl. stigrør og forerørsforsejlinger mv. 21 | B27: m³/h | C27: 15 | D27: 50 | E27: 50 | F27: 50 | G27: 0 | H27: 0 | J27: =IF(E27=0,"Variabel pris",IFERROR(((HLOOKUP(E27,'Variable priser'!$C$2:$H$4,2)+(E27-HLOOKUP(E27,'Variable priser'!$C$2:$H$4,1))*HLOOKUP(E27,'Variable priser'!$C$2:$H$4,3))/E27*(1+Genanskaffelsespriser!$D$203)),"Fejl")) -> 1884.430588 | K27: =IF(F27=0,"Variabel pris",IFERROR(((HLOOKUP(F27,'Variable priser'!$C$2:$H$4,2)+(F27-HLOOKUP(F27,'Variable priser'!$C$2:$H$4,1))*HLOOKUP(F27,'Variable priser'!$C$2:$H$4,3))/F27*(1+Genanskaffelsespriser!$D$203)),"Fejl")) -> 1884.430588 | L27: 6281.435294 | M27: 6281.435294 | N27: 1 | O27: 1
A28: Pumpe inkl. stigrør og forerørsforsejlinger mv. 22 | B28: m³/h | C28: 15 | D28: 35 | E28: 35 | F28: 35 | G28: 0 | H28: 0 | J28: =IF(E28=0,"Variabel pris",IFERROR(((HLOOKUP(E28,'Variable priser'!$C$2:$H$4,2)+(E28-HLOOKUP(E28,'Variable priser'!$C$2:$H$4,1))*HLOOKUP(E28,'Variable priser'!$C$2:$H$4,3))/E28*(1+Genanskaffelsespriser!$D$203)),"Fejl")) -> 2329.056229 | K28: =IF(F28=0,"Variabel pris",IFERROR(((HLOOKUP(F28,'Variable priser'!$C$2:$H$4,2)+(F28-HLOOKUP(F28,'Variable priser'!$C$2:$H$4,1))*HLOOKUP(F28,'Variable priser'!$C$2:$H$4,3))/F28*(1+Genanskaffelsespriser!$D$203)),"Fejl")) -> 2329.056229 | L28: 5434.464533 | M28: 5434.464533 | N28: 1 | O28: 1
A29: Pumpe inkl. stigrør og forerørsforsejlinger mv. 23 | B29: m³/h | C29: 15 | D29: 35 | E29: 35 | F29: 35 | G29: 0 | H29: 0 | J29: =IF(E29=0,"Variabel pris",IFERROR(((HLOOKUP(E29,'Variable priser'!$C$2:$H$4,2)+(E29-HLOOKUP(E29,'Variable priser'!$C$2:$H$4,1))*HLOOKUP(E29,'Variable priser'!$C$2:$H$4,3))/E29*(1+Genanskaffelsespriser!$D$203)),"Fejl")) -> 2329.056229 | K29: =IF(F29=0,"Variabel pris",IFERROR(((HLOOKUP(F29,'Variable priser'!$C$2:$H$4,2)+(F29-HLOOKUP(F29,'Variable priser'!$C$2:$H$4,1))*HLOOKUP(F29,'Variable priser'!$C$2:$H$4,3))/F29*(1+Genanskaffelsespriser!$D$203)),"Fejl")) -> 2329.056229 | L29: 5434.464533 | M29: 5434.464533 | N29: 1 | O29: 1
A30: Pumpe inkl. stigrør og forerørsforsejlinger mv. 24 | B30: m³/h | C30: 15 | D30: 55 | E30: 55 | F30: 55 | G30: 0 | H30: 0 | J30: =IF(E30=0,"Variabel pris",IFERROR(((HLOOKUP(E30,'Variable priser'!$C$2:$H$4,2)+(E30-HLOOKUP(E30,'Variable priser'!$C$2:$H$4,1))*HLOOKUP(E30,'Variable priser'!$C$2:$H$4,3))/E30*(1+Genanskaffelsespriser!$D$203)),"Fejl")) -> 1785.241797 | K30: =IF(F30=0,"Variabel pris",IFERROR(((HLOOKUP(F30,'Variable priser'!$C$2:$H$4,2)+(F30-HLOOKUP(F30,'Variable priser'!$C$2:$H$4,1))*HLOOKUP(F30,'Variable priser'!$C$2:$H$4,3))/F30*(1+Genanskaffelsespriser!$D$203)),"Fejl")) -> 1785.241797 | L30: 6545.886588 | M30: 6545.886588 | N30: 1 | O30: 1
A31: Pumpe inkl. stigrør og forerørsforsejlinger mv. 25 | B31: m³/h | C31: 15 | D31: 60 | E31: 60 | F31: 60 | G31: 0 | H31: 0 | J31: =IF(E31=0,"Variabel pris",IFERROR(((HLOOKUP(E31,'Variable priser'!$C$2:$H$4,2)+(E31-HLOOKUP(E31,'Variable priser'!$C$2:$H$4,1))*HLOOKUP(E31,'Variable priser'!$C$2:$H$4,3))/E31*(1+Genanskaffelsespriser!$D$203)),"Fejl")) -> 1702.584471 | K31: =IF(F31=0,"Variabel pris",IFERROR(((HLOOKUP(F31,'Variable priser'!$C$2:$H$4,2)+(F31-HLOOKUP(F31,'Variable priser'!$C$2:$H$4,1))*HLOOKUP(F31,'Variable priser'!$C$2:$H$4,3))/F31*(1+Genanskaffelsespriser!$D$203)),"Fejl")) -> 1702.584471 | L31: 6810.337882 | M31: 6810.337882 | N31: 1 | O31: 1
A32: Pumpe inkl. stigrør og forerørsforsejlinger mv. 26 | B32: m³/h | C32: 15 | D32: 35 | E32: 35 | F32: 35 | G32: 0 | H32: 0 | J32: =IF(E32=0,"Variabel pris",IFERROR(((HLOOKUP(E32,'Variable priser'!$C$2:$H$4,2)+(E32-HLOOKUP(E32,'Variable priser'!$C$2:$H$4,1))*HLOOKUP(E32,'Variable priser'!$C$2:$H$4,3))/E32*(1+Genanskaffelsespriser!$D$203)),"Fejl")) -> 2329.056229 | K32: =IF(F32=0,"Variabel pris",IFERROR(((HLOOKUP(F32,'Variable priser'!$C$2:$H$4,2)+(F32-HLOOKUP(F32,'Variable priser'!$C$2:$H$4,1))*HLOOKUP(F32,'Variable priser'!$C$2:$H$4,3))/F32*(1+Genanskaffelsespriser!$D$203)),"Fejl")) -> 2329.056229 | L32: 5434.464533 | M32: 5434.464533 | N32: 1 | O32: 1
A33: Pumpe inkl. stigrør og forerørsforsejlinger mv. 27 | B33: m³/h | C33: 15 | D33: 55 | E33: 55 | F33: 55 | G33: 0 | H33: 0 | J33: =IF(E33=0,"Variabel pris",IFERROR(((HLOOKUP(E33,'Variable priser'!$C$2:$H$4,2)+(E33-HLOOKUP(E33,'Variable priser'!$C$2:$H$4,1))*HLOOKUP(E33,'Variable priser'!$C$2:$H$4,3))/E33*(1+Genanskaffelsespriser!$D$203)),"Fejl")) -> 1785.241797 | K33: =IF(F33=0,"Variabel pris",IFERROR(((HLOOKUP(F33,'Variable priser'!$C$2:$H$4,2)+(F33-HLOOKUP(F33,'Variable priser'!$C$2:$H$4,1))*HLOOKUP(F33,'Variable priser'!$C$2:$H$4,3))/F33*(1+Genanskaffelsespriser!$D$203)),"Fejl")) -> 1785.241797 | L33: 6545.886588 | M33: 6545.886588 | N33: 1 | O33: 1
A34: Pumpe inkl. stigrør og forerørsforsejlinger mv. 28 | B34: m³/h | C34: 15 | D34: 55 | E34: 55 | F34: 55 | G34: 0 | H34: 0 | J34: =IF(E34=0,"Variabel pris",IFERROR(((HLOOKUP(E34,'Variable priser'!$C$2:$H$4,2)+(E34-HLOOKUP(E34,'Variable priser'!$C$2:$H$4,1))*HLOOKUP(E34,'Variable priser'!$C$2:$H$4,3))/E34*(1+Genanskaffelsespriser!$D$203)),"Fejl")) -> 1785.241797 | K34: =IF(F34=0,"Variabel pris",IFERROR(((HLOOKUP(F34,'Variable priser'!$C$2:$H$4,2)+(F34-HLOOKUP(F34,'Variable priser'!$C$2:$H$4,1))*HLOOKUP(F34,'Variable priser'!$C$2:$H$4,3))/F34*(1+Genanskaffelsespriser!$D$203)),"Fejl")) -> 1785.241797 | L34: 6545.886588 | M34: 6545.886588 | N34: 1 | O34: 1
A35: Pumpe inkl. stigrør og forerørsforsejlinger mv. 29 | B35: m³/h | C35: 15 | D35: 30 | E35: 30 | F35: 30 | G35: 0 | H35: 0 | J35: =IF(E35=0,"Variabel pris",IFERROR(((HLOOKUP(E35,'Variable priser'!$C$2:$H$4,2)+(E35-HLOOKUP(E35,'Variable priser'!$C$2:$H$4,1))*HLOOKUP(E35,'Variable priser'!$C$2:$H$4,3))/E35*(1+Genanskaffelsespriser!$D$203)),"Fejl")) -> 2571.6024 | K35: =IF(F35=0,"Variabel pris",IFERROR(((HLOOKUP(F35,'Variable priser'!$C$2:$H$4,2)+(F35-HLOOKUP(F35,'Variable priser'!$C$2:$H$4,1))*HLOOKUP(F35,'Variable priser'!$C$2:$H$4,3))/F35*(1+Genanskaffelsespriser!$D$203)),"Fejl")) -> 2571.6024 | L35: 5143.2048 | M35: 5143.2048 | N35: 1 | O35: 1
A36: Pumpe inkl. stigrør og forerørsforsejlinger mv. 30 | B36: m³/h | C36: 15 | D36: 50 | E36: 50 | F36: 50 | G36: 0 | H36: 0 | J36: =IF(E36=0,"Variabel pris",IFERROR(((HLOOKUP(E36,'Variable priser'!$C$2:$H$4,2)+(E36-HLOOKUP(E36,'Variable priser'!$C$2:$H$4,1))*HLOOKUP(E36,'Variable priser'!$C$2:$H$4,3))/E36*(1+Genanskaffelsespriser!$D$203)),"Fejl")) -> 1884.430588 | K36: =IF(F36=0,"Variabel pris",IFERROR(((HLOOKUP(F36,'Variable priser'!$C$2:$H$4,2)+(F36-HLOOKUP(F36,'Variable priser'!$C$2:$H$4,1))*HLOOKUP(F36,'Variable priser'!$C$2:$H$4,3))/F36*(1+Genanskaffelsespriser!$D$203)),"Fejl")) -> 1884.430588 | L36: 6281.435294 | M36: 6281.435294 | N36: 1 | O36: 1
A37: Pumpe inkl. stigrør og forerørsforsejlinger mv. 31 | B37: m³/h | C37: 15 | D37: 50 | E37: 50 | F37: 50 | G37: 0 | H37: 0 | J37: =IF(E37=0,"Variabel pris",IFERROR(((HLOOKUP(E37,'Variable priser'!$C$2:$H$4,2)+(E37-HLOOKUP(E37,'Variable priser'!$C$2:$H$4,1))*HLOOKUP(E37,'Variable priser'!$C$2:$H$4,3))/E37*(1+Genanskaffelsespriser!$D$203)),"Fejl")) -> 1884.430588 | K37: =IF(F37=0,"Variabel pris",IFERROR(((HLOOKUP(F37,'Variable priser'!$C$2:$H$4,2)+(F37-HLOOKUP(F37,'Variable priser'!$C$2:$H$4,1))*HLOOKUP(F37,'Variable priser'!$C$2:$H$4,3))/F37*(1+Genanskaffelsespriser!$D$203)),"Fejl")) -> 1884.430588 | L37: 6281.435294 | M37: 6281.435294 | N37: 1 | O37: 1
A38: Pumpe inkl. stigrør og forerørsforsejlinger mv. 32 | B38: m³/h | C38: 15 | D38: 50 | E38: 50 | F38: 50 | G38: 0 | H38: 0 | J38: =IF(E38=0,"Variabel pris",IFERROR(((HLOOKUP(E38,'Variable priser'!$C$2:$H$4,2)+(E38-HLOOKUP(E38,'Variable priser'!$C$2:$H$4,1))*HLOOKUP(E38,'Variable priser'!$C$2:$H$4,3))/E38*(1+Genanskaffelsespriser!$D$203)),"Fejl")) -> 1884.430588 | K38: =IF(F38=0,"Variabel pris",IFERROR(((HLOOKUP(F38,'Variable priser'!$C$2:$H$4,2)+(F38-HLOOKUP(F38,'Variable priser'!$C$2:$H$4,1))*HLOOKUP(F38,'Variable priser'!$C$2:$H$4,3))/F38*(1+Genanskaffelsespriser!$D$203)),"Fejl")) -> 1884.430588 | L38: 6281.435294 | M38: 6281.435294 | N38: 1 | O38: 1
A39: Pumpe inkl. stigrør og forerørsforsejlinger mv. 33 | B39: m³/h | C39: 15 | D39: 75 | E39: 75 | F39: 75 | G39: 0 | H39: 0 | I39: Gl. pumpe 34 | J39: =IF(E39=0,"Variabel pris",IFERROR(((HLOOKUP(E39,'Variable priser'!$C$2:$H$4,2)+(E39-HLOOKUP(E39,'Variable priser'!$C$2:$H$4,1))*HLOOKUP(E39,'Variable priser'!$C$2:$H$4,3))/E39*(1+Genanskaffelsespriser!$D$203)),"Fejl")) -> 1520.738353 | K39: =IF(F39=0,"Variabel pris",IFERROR(((HLOOKUP(F39,'Variable priser'!$C$2:$H$4,2)+(F39-HLOOKUP(F39,'Variable priser'!$C$2:$H$4,1))*HLOOKUP(F39,'Variable priser'!$C$2:$H$4,3))/F39*(1+Genanskaffelsespriser!$D$203)),"Fejl")) -> 1520.738353 | L39: 7603.691765 | M39: 7603.691765 | N39: 1 | O39: 1
A40: Pumpe inkl. stigrør og forerørsforsejlinger mv. 34 | B40: m³/h | C40: 15 | D40: 100 | E40: 100 | F40: 100 | G40: 0 | H40: 0 | J40: =IF(E40=0,"Variabel pris",IFERROR(((HLOOKUP(E40,'Variable priser'!$C$2:$H$4,2)+(E40-HLOOKUP(E40,'Variable priser'!$C$2:$H$4,1))*HLOOKUP(E40,'Variable priser'!$C$2:$H$4,3))/E40*(1+Genanskaffelsespriser!$D$203)),"Fejl")) -> 1338.892235 | K40: =IF(F40=0,"Variabel pris",IFERROR(((HLOOKUP(F40,'Variable priser'!$C$2:$H$4,2)+(F40-HLOOKUP(F40,'Variable priser'!$C$2:$H$4,1))*HLOOKUP(F40,'Variable priser'!$C$2:$H$4,3))/F40*(1+Genanskaffelsespriser!$D$203)),"Fejl")) -> 1338.892235 | L40: 8925.948235 | M40: 8925.948235 | N40: 1 | O40: 1
A41: Pumpe inkl. stigrør og forerørsforsejlinger mv. 35 | B41: m³/h | C41: 15 | D41: 100 | E41: 100 | F41: 100 | G41: 0 | H41: 0 | J41: =IF(E41=0,"Variabel pris",IFERROR(((HLOOKUP(E41,'Variable priser'!$C$2:$H$4,2)+(E41-HLOOKUP(E41,'Variable priser'!$C$2:$H$4,1))*HLOOKUP(E41,'Variable priser'!$C$2:$H$4,3))/E41*(1+Genanskaffelsespriser!$D$203)),"Fejl")) -> 1338.892235 | K41: =IF(F41=0,"Variabel pris",IFERROR(((HLOOKUP(F41,'Variable priser'!$C$2:$H$4,2)+(F41-HLOOKUP(F41,'Variable priser'!$C$2:$H$4,1))*HLOOKUP(F41,'Variable priser'!$C$2:$H$4,3))/F41*(1+Genanskaffelsespriser!$D$203)),"Fejl")) -> 1338.892235 | L41: 8925.948235 | M41: 8925.948235 | N41: 1 | O41: 1
A42: Pumpe inkl. stigrør og forerørsforsejlinger mv. 36 | B42: m³/h | C42: 15 | D42: 100 | E42: 100 | F42: 100 | G42: 0 | H42: 0 | J42: =IF(E42=0,"Variabel pris",IFERROR(((HLOOKUP(E42,'Variable priser'!$C$2:$H$4,2)+(E42-HLOOKUP(E42,'Variable priser'!$C$2:$H$4,1))*HLOOKUP(E42,'Variable priser'!$C$2:$H$4,3))/E42*(1+Genanskaffelsespriser!$D$203)),"Fejl")) -> 1338.892235 | K42: =IF(F42=0,"Variabel pris",IFERROR(((HLOOKUP(F42,'Variable priser'!$C$2:$H$4,2)+(F42-HLOOKUP(F42,'Variable priser'!$C$2:$H$4,1))*HLOOKUP(F42,'Variable priser'!$C$2:$H$4,3))/F42*(1+Genanskaffelsespriser!$D$203)),"Fejl")) -> 1338.892235 | L42: 8925.948235 | M42: 8925.948235 | N42: 1 | O42: 1
A43: Pumpe inkl. stigrør og forerørsforsejlinger mv. 37 | B43: m³/h | C43: 15 | D43: 30 | E43: 30 | F43: 30 | G43: 0 | H43: 0 | J43: =IF(E43=0,"Variabel pris",IFERROR(((HLOOKUP(E43,'Variable priser'!$C$2:$H$4,2)+(E43-HLOOKUP(E43,'Variable priser'!$C$2:$H$4,1))*HLOOKUP(E43,'Variable priser'!$C$2:$H$4,3))/E43*(1+Genanskaffelsespriser!$D$203)),"Fejl")) -> 2571.6024 | K43: =IF(F43=0,"Variabel pris",IFERROR(((HLOOKUP(F43,'Variable priser'!$C$2:$H$4,2)+(F43-HLOOKUP(F43,'Variable priser'!$C$2:$H$4,1))*HLOOKUP(F43,'Variable priser'!$C$2:$H$4,3))/F43*(1+Genanskaffelsespriser!$D$203)),"Fejl")) -> 2571.6024 | L43: 5143.2048 | M43: 5143.2048 | N43: 1 | O43: 1
A44: Pumpe inkl. stigrør og forerørsforsejlinger mv. 38 | B44: m³/h | C44: 15 | D44: 30 | E44: 30 | F44: 30 | G44: 0 | H44: 0 | J44: =IF(E44=0,"Variabel pris",IFERROR(((HLOOKUP(E44,'Variable priser'!$C$2:$H$4,2)+(E44-HLOOKUP(E44,'Variable priser'!$C$2:$H$4,1))*HLOOKUP(E44,'Variable priser'!$C$2:$H$4,3))/E44*(1+Genanskaffelsespriser!$D$203)),"Fejl")) -> 2571.6024 | K44: =IF(F44=0,"Variabel pris",IFERROR(((HLOOKUP(F44,'Variable priser'!$C$2:$H$4,2)+(F44-HLOOKUP(F44,'Variable priser'!$C$2:$H$4,1))*HLOOKUP(F44,'Variable priser'!$C$2:$H$4,3))/F44*(1+Genanskaffelsespriser!$D$203)),"Fejl")) -> 2571.6024 | L44: 5143.2048 | M44: 5143.2048 | N44: 1 | O44: 1
A45: Pumpe inkl. stigrør og forerørsforsejlinger mv. 39 | B45: m³/h | C45: 15 | D45: 30 | E45: 30 | F45: 30 | G45: 0 | H45: 0 | J45: =IF(E45=0,"Variabel pris",IFERROR(((HLOOKUP(E45,'Variable priser'!$C$2:$H$4,2)+(E45-HLOOKUP(E45,'Variable priser'!$C$2:$H$4,1))*HLOOKUP(E45,'Variable priser'!$C$2:$H$4,3))/E45*(1+Genanskaffelsespriser!$D$203)),"Fejl")) -> 2571.6024 | K45: =IF(F45=0,"Variabel pris",IFERROR(((HLOOKUP(F45,'Variable priser'!$C$2:$H$4,2)+(F45-HLOOKUP(F45,'Variable priser'!$C$2:$H$4,1))*HLOOKUP(F45,'Variable priser'!$C$2:$H$4,3))/F45*(1+Genanskaffelsespriser!$D$203)),"Fejl")) -> 2571.6024 | L45: 5143.2048 | M45: 5143.2048 | N45: 1 | O45: 1
A46: Pumpe inkl. stigrør og forerørsforsejlinger mv. 40 | B46: m³/h | C46: 15 | D46: 30 | E46: 30 | F46: 30 | G46: 0 | H46: 0 | J46: =IF(E46=0,"Variabel pris",IFERROR(((HLOOKUP(E46,'Variable priser'!$C$2:$H$4,2)+(E46-HLOOKUP(E46,'Variable priser'!$C$2:$H$4,1))*HLOOKUP(E46,'Variable priser'!$C$2:$H$4,3))/E46*(1+Genanskaffelsespriser!$D$203)),"Fejl")) -> 2571.6024 | K46: =IF(F46=0,"Variabel pris",IFERROR(((HLOOKUP(F46,'Variable priser'!$C$2:$H$4,2)+(F46-HLOOKUP(F46,'Variable priser'!$C$2:$H$4,1))*HLOOKUP(F46,'Variable priser'!$C$2:$H$4,3))/F46*(1+Genanskaffelsespriser!$D$203)),"Fejl")) -> 2571.6024 | L46: 5143.2048 | M46: 5143.2048 | N46: 1 | O46: 1
A47: Pumpe inkl. stigrør og forerørsforsejlinger mv. 41 | B47: m³/h | C47: 15 | D47: 30 | E47: 30 | F47: 30 | G47: 0 | H47: 0 | J47: =IF(E47=0,"Variabel pris",IFERROR(((HLOOKUP(E47,'Variable priser'!$C$2:$H$4,2)+(E47-HLOOKUP(E47,'Variable priser'!$C$2:$H$4,1))*HLOOKUP(E47,'Variable priser'!$C$2:$H$4,3))/E47*(1+Genanskaffelsespriser!$D$203)),"Fejl")) -> 2571.6024 | K47: =IF(F47=0,"Variabel pris",IFERROR(((HLOOKUP(F47,'Variable priser'!$C$2:$H$4,2)+(F47-HLOOKUP(F47,'Variable priser'!$C$2:$H$4,1))*HLOOKUP(F47,'Variable priser'!$C$2:$H$4,3))/F47*(1+Genanskaffelsespriser!$D$203)),"Fejl")) -> 2571.6024 | L47: 5143.2048 | M47: 5143.2048 | N47: 1 | O47: 1
A48: Pumpe inkl. stigrør og forerørsforsejlinger mv. 42 | B48: m³/h | C48: 15 | D48: 45 | E48: 45 | F48: 45 | G48: 0 | H48: 0 | J48: =IF(E48=0,"Variabel pris",IFERROR(((HLOOKUP(E48,'Variable priser'!$C$2:$H$4,2)+(E48-HLOOKUP(E48,'Variable priser'!$C$2:$H$4,1))*HLOOKUP(E48,'Variable priser'!$C$2:$H$4,3))/E48*(1+Genanskaffelsespriser!$D$203)),"Fejl")) -> 2005.661333 | K48: =IF(F48=0,"Variabel pris",IFERROR(((HLOOKUP(F48,'Variable priser'!$C$2:$H$4,2)+(F48-HLOOKUP(F48,'Variable priser'!$C$2:$H$4,1))*HLOOKUP(F48,'Variable priser'!$C$2:$H$4,3))/F48*(1+Genanskaffelsespriser!$D$203)),"Fejl")) -> 2005.661333 | L48: 6016.984 | M48: 6016.984 | N48: 1 | O48: 1
A49: Pumpe inkl. stigrør og forerørsforsejlinger mv. 43 | B49: m³/h | C49: 15 | D49: 45 | E49: 45 | F49: 45 | G49: 0 | H49: 0 | J49: =IF(E49=0,"Variabel pris",IFERROR(((HLOOKUP(E49,'Variable priser'!$C$2:$H$4,2)+(E49-HLOOKUP(E49,'Variable priser'!$C$2:$H$4,1))*HLOOKUP(E49,'Variable priser'!$C$2:$H$4,3))/E49*(1+Genanskaffelsespriser!$D$203)),"Fejl")) -> 2005.661333 | K49: =IF(F49=0,"Variabel pris",IFERROR(((HLOOKUP(F49,'Variable priser'!$C$2:$H$4,2)+(F49-HLOOKUP(F49,'Variable priser'!$C$2:$H$4,1))*HLOOKUP(F49,'Variable priser'!$C$2:$H$4,3))/F49*(1+Genanskaffelsespriser!$D$203)),"Fejl")) -> 2005.661333 | L49: 6016.984 | M49: 6016.984 | N49: 1 | O49: 1
A50: Pumpe inkl. stigrør og forerørsforsejlinger mv. 44 | B50: m³/h | C50: 15 | D50: 15 | E50: 15 | F50: 15 | G50: 0 | H50: 0 | J50: =IF(E50=0,"Variabel pris",IFERROR(((HLOOKUP(E50,'Variable priser'!$C$2:$H$4,2)+(E50-HLOOKUP(E50,'Variable priser'!$C$2:$H$4,1))*HLOOKUP(E50,'Variable priser'!$C$2:$H$4,3))/E50*(1+Genanskaffelsespriser!$D$203)),"Fejl")) -> 3570.2072 | K50: =IF(F50=0,"Variabel pris",IFERROR(((HLOOKUP(F50,'Variable priser'!$C$2:$H$4,2)+(F50-HLOOKUP(F50,'Variable priser'!$C$2:$H$4,1))*HLOOKUP(F50,'Variable priser'!$C$2:$H$4,3))/F50*(1+Genanskaffelsespriser!$D$203)),"Fejl")) -> 3570.2072 | L50: 3570.2072 | M50: 3570.2072 | N50: 1 | O50: 1
A51: Pumpe inkl. stigrør og forerørsforsejlinger mv. 45 | B51: m³/h | C51: 15 | D51: 35 | E51: 35 | F51: 35 | G51: 0 | H51: 0 | J51: =IF(E51=0,"Variabel pris",IFERROR(((HLOOKUP(E51,'Variable priser'!$C$2:$H$4,2)+(E51-HLOOKUP(E51,'Variable priser'!$C$2:$H$4,1))*HLOOKUP(E51,'Variable priser'!$C$2:$H$4,3))/E51*(1+Genanskaffelsespriser!$D$203)),"Fejl")) -> 2329.056229 | K51: =IF(F51=0,"Variabel pris",IFERROR(((HLOOKUP(F51,'Variable priser'!$C$2:$H$4,2)+(F51-HLOOKUP(F51,'Variable priser'!$C$2:$H$4,1))*HLOOKUP(F51,'Variable priser'!$C$2:$H$4,3))/F51*(1+Genanskaffelsespriser!$D$203)),"Fejl")) -> 2329.056229 | L51: 5434.464533 | M51: 5434.464533 | N51: 1 | O51: 1
A52: Pumpe inkl. stigrør og forerørsforsejlinger mv. 46 | B52: m³/h | C52: 15 | D52: 35 | E52: 35 | F52: 35 | G52: 0 | H52: 0 | J52: =IF(E52=0,"Variabel pris",IFERROR(((HLOOKUP(E52,'Variable priser'!$C$2:$H$4,2)+(E52-HLOOKUP(E52,'Variable priser'!$C$2:$H$4,1))*HLOOKUP(E52,'Variable priser'!$C$2:$H$4,3))/E52*(1+Genanskaffelsespriser!$D$203)),"Fejl")) -> 2329.056229 | K52: =IF(F52=0,"Variabel pris",IFERROR(((HLOOKUP(F52,'Variable priser'!$C$2:$H$4,2)+(F52-HLOOKUP(F52,'Variable priser'!$C$2:$H$4,1))*HLOOKUP(F52,'Variable priser'!$C$2:$H$4,3))/F52*(1+Genanskaffelsespriser!$D$203)),"Fejl")) -> 2329.056229 | L52: 5434.464533 | M52: 5434.464533 | N52: 1 | O52: 1
A53: Pumpe inkl. stigrør og forerørsforsejlinger mv. 47 | B53: m³/h | C53: 15 | D53: 35 | E53: 30 | F53: 30 | G53: -0.1428571429 | H53: 0 | I53: Gl. pumpe 51 | J53: =IF(E53=0,"Variabel pris",IFERROR(((HLOOKUP(E53,'Variable priser'!$C$2:$H$4,2)+(E53-HLOOKUP(E53,'Variable priser'!$C$2:$H$4,1))*HLOOKUP(E53,'Variable priser'!$C$2:$H$4,3))/E53*(1+Genanskaffelsespriser!$D$203)),"Fejl")) -> 2571.6024 | K53: =IF(F53=0,"Variabel pris",IFERROR(((HLOOKUP(F53,'Variable priser'!$C$2:$H$4,2)+(F53-HLOOKUP(F53,'Variable priser'!$C$2:$H$4,1))*HLOOKUP(F53,'Variable priser'!$C$2:$H$4,3))/F53*(1+Genanskaffelsespriser!$D$203)),"Fejl")) -> 2571.6024 | L53: 5143.2048 | M53: 5143.2048 | N53: 1 | O53: 1
A54: Pumpe inkl. stigrør og forerørsforsejlinger mv. 48 | B54: m³/h | C54: 15 | D54: 30 | E54: 30 | F54: 30 | G54: 0 | H54: 0 | J54: =IF(E54=0,"Variabel pris",IFERROR(((HLOOKUP(E54,'Variable priser'!$C$2:$H$4,2)+(E54-HLOOKUP(E54,'Variable priser'!$C$2:$H$4,1))*HLOOKUP(E54,'Variable priser'!$C$2:$H$4,3))/E54*(1+Genanskaffelsespriser!$D$203)),"Fejl")) -> 2571.6024 | K54: =IF(F54=0,"Variabel pris",IFERROR(((HLOOKUP(F54,'Variable priser'!$C$2:$H$4,2)+(F54-HLOOKUP(F54,'Variable priser'!$C$2:$H$4,1))*HLOOKUP(F54,'Variable priser'!$C$2:$H$4,3))/F54*(1+Genanskaffelsespriser!$D$203)),"Fejl")) -> 2571.6024 | L54: 5143.2048 | M54: 5143.2048 | N54: 1 | O54: 1
A55: Pumpe inkl. stigrør og forerørsforsejlinger mv. 49 | B55: m³/h | C55: 15 | D55: 30 | E55: 30 | F55: 30 | G55: 0 | H55: 0 | J55: =IF(E55=0,"Variabel pris",IFERROR(((HLOOKUP(E55,'Variable priser'!$C$2:$H$4,2)+(E55-HLOOKUP(E55,'Variable priser'!$C$2:$H$4,1))*HLOOKUP(E55,'Variable priser'!$C$2:$H$4,3))/E55*(1+Genanskaffelsespriser!$D$203)),"Fejl")) -> 2571.6024 | K55: =IF(F55=0,"Variabel pris",IFERROR(((HLOOKUP(F55,'Variable priser'!$C$2:$H$4,2)+(F55-HLOOKUP(F55,'Variable priser'!$C$2:$H$4,1))*HLOOKUP(F55,'Variable priser'!$C$2:$H$4,3))/F55*(1+Genanskaffelsespriser!$D$203)),"Fejl")) -> 2571.6024 | L55: 5143.2048 | M55: 5143.2048 | N55: 1 | O55: 1
A56: Pumpe inkl. stigrør og forerørsforsejlinger mv. 50 | B56: m³/h | C56: 15 | D56: 30 | E56: 30 | F56: 30 | G56: 0 | H56: 0 | J56: =IF(E56=0,"Variabel pris",IFERROR(((HLOOKUP(E56,'Variable priser'!$C$2:$H$4,2)+(E56-HLOOKUP(E56,'Variable priser'!$C$2:$H$4,1))*HLOOKUP(E56,'Variable priser'!$C$2:$H$4,3))/E56*(1+Genanskaffelsespriser!$D$203)),"Fejl")) -> 2571.6024 | K56: =IF(F56=0,"Variabel pris",IFERROR(((HLOOKUP(F56,'Variable priser'!$C$2:$H$4,2)+(F56-HLOOKUP(F56,'Variable priser'!$C$2:$H$4,1))*HLOOKUP(F56,'Variable priser'!$C$2:$H$4,3))/F56*(1+Genanskaffelsespriser!$D$203)),"Fejl")) -> 2571.6024 | L56: 5143.2048 | M56: 5143.2048 | N56: 1 | O56: 1
A57: Pumpe inkl. stigrør og forerørsforsejlinger mv. 51 | B57: m³/h | C57: 15 | D57: 30 | E57: 30 | F57: 30 | G57: 0 | H57: 0 | J57: =IF(E57=0,"Variabel pris",IFERROR(((HLOOKUP(E57,'Variable priser'!$C$2:$H$4,2)+(E57-HLOOKUP(E57,'Variable priser'!$C$2:$H$4,1))*HLOOKUP(E57,'Variable priser'!$C$2:$H$4,3))/E57*(1+Genanskaffelsespriser!$D$203)),"Fejl")) -> 2571.6024 | K57: =IF(F57=0,"Variabel pris",IFERROR(((HLOOKUP(F57,'Variable priser'!$C$2:$H$4,2)+(F57-HLOOKUP(F57,'Variable priser'!$C$2:$H$4,1))*HLOOKUP(F57,'Variable priser'!$C$2:$H$4,3))/F57*(1+Genanskaffelsespriser!$D$203)),"Fejl")) -> 2571.6024 | L57: 5143.2048 | M57: 5143.2048 | N57: 1 | O57: 1
A58: Pumpe inkl. stigrør og forerørsforsejlinger mv. 52 | B58: m³/h | C58: 15 | D58: 30 | E58: 30 | F58: 30 | G58: 0 | H58: 0 | J58: =IF(E58=0,"Variabel pris",IFERROR(((HLOOKUP(E58,'Variable priser'!$C$2:$H$4,2)+(E58-HLOOKUP(E58,'Variable priser'!$C$2:$H$4,1))*HLOOKUP(E58,'Variable priser'!$C$2:$H$4,3))/E58*(1+Genanskaffelsespriser!$D$203)),"Fejl")) -> 2571.6024 | K58: =IF(F58=0,"Variabel pris",IFERROR(((HLOOKUP(F58,'Variable priser'!$C$2:$H$4,2)+(F58-HLOOKUP(F58,'Variable priser'!$C$2:$H$4,1))*HLOOKUP(F58,'Variable priser'!$C$2:$H$4,3))/F58*(1+Genanskaffelsespriser!$D$203)),"Fejl")) -> 2571.6024 | L58: 5143.2048 | M58: 5143.2048 | N58: 1 | O58: 1
A59: Pumpe inkl. stigrør og forerørsforsejlinger mv. 53 | B59: m³/h | C59: 15 | D59: 30 | E59: 30 | F59: 30 | G59: 0 | H59: 0 | J59: =IF(E59=0,"Variabel pris",IFERROR(((HLOOKUP(E59,'Variable priser'!$C$2:$H$4,2)+(E59-HLOOKUP(E59,'Variable priser'!$C$2:$H$4,1))*HLOOKUP(E59,'Variable priser'!$C$2:$H$4,3))/E59*(1+Genanskaffelsespriser!$D$203)),"Fejl")) -> 2571.6024 | K59: =IF(F59=0,"Variabel pris",IFERROR(((HLOOKUP(F59,'Variable priser'!$C$2:$H$4,2)+(F59-HLOOKUP(F59,'Variable priser'!$C$2:$H$4,1))*HLOOKUP(F59,'Variable priser'!$C$2:$H$4,3))/F59*(1+Genanskaffelsespriser!$D$203)),"Fejl")) -> 2571.6024 | L59: 5143.2048 | M59: 5143.2048 | N59: 1 | O59: 1
A60: Pumpe inkl. stigrør og forerørsforsejlinger mv. 54 | B60: m³/h | C60: 15 | D60: 30 | E60: 30 | F60: 30 | G60: 0 | H60: 0 | J60: =IF(E60=0,"Variabel pris",IFERROR(((HLOOKUP(E60,'Variable priser'!$C$2:$H$4,2)+(E60-HLOOKUP(E60,'Variable priser'!$C$2:$H$4,1))*HLOOKUP(E60,'Variable priser'!$C$2:$H$4,3))/E60*(1+Genanskaffelsespriser!$D$203)),"Fejl")) -> 2571.6024 | K60: =IF(F60=0,"Variabel pris",IFERROR(((HLOOKUP(F60,'Variable priser'!$C$2:$H$4,2)+(F60-HLOOKUP(F60,'Variable priser'!$C$2:$H$4,1))*HLOOKUP(F60,'Variable priser'!$C$2:$H$4,3))/F60*(1+Genanskaffelsespriser!$D$203)),"Fejl")) -> 2571.6024 | L60: 5143.2048 | M60: 5143.2048 | N60: 1 | O60: 1
A61: Pumpe inkl. stigrør og forerørsforsejlinger mv. 55 | B61: m³/h | C61: 15 | D61: 30 | E61: 30 | F61: 30 | G61: 0 | H61: 0 | J61: =IF(E61=0,"Variabel pris",IFERROR(((HLOOKUP(E61,'Variable priser'!$C$2:$H$4,2)+(E61-HLOOKUP(E61,'Variable priser'!$C$2:$H$4,1))*HLOOKUP(E61,'Variable priser'!$C$2:$H$4,3))/E61*(1+Genanskaffelsespriser!$D$203)),"Fejl")) -> 2571.6024 | K61: =IF(F61=0,"Variabel pris",IFERROR(((HLOOKUP(F61,'Variable priser'!$C$2:$H$4,2)+(F61-HLOOKUP(F61,'Variable priser'!$C$2:$H$4,1))*HLOOKUP(F61,'Variable priser'!$C$2:$H$4,3))/F61*(1+Genanskaffelsespriser!$D$203)),"Fejl")) -> 2571.6024 | L61: 5143.2048 | M61: 5143.2048 | N61: 1 | O61: 1
A62: Pumpe inkl. stigrør og forerørsforsejlinger mv. 56 | B62: m³/h | C62: 15 | D62: 0 | E62: 10 | F62: 10 | G62: Ny data | H62: 0 | J62: =IF(E62=0,"Variabel pris",IFERROR(((HLOOKUP(E62,'Variable priser'!$C$2:$H$4,2)+(E62-HLOOKUP(E62,'Variable priser'!$C$2:$H$4,1))*HLOOKUP(E62,'Variable priser'!$C$2:$H$4,3))/E62*(1+Genanskaffelsespriser!$D$203)),"Fejl")) -> 4414.7304 | K62: =IF(F62=0,"Variabel pris",IFERROR(((HLOOKUP(F62,'Variable priser'!$C$2:$H$4,2)+(F62-HLOOKUP(F62,'Variable priser'!$C$2:$H$4,1))*HLOOKUP(F62,'Variable priser'!$C$2:$H$4,3))/F62*(1+Genanskaffelsespriser!$D$203)),"Fejl")) -> 4414.7304 | L62: =IF(ISBLANK(E62),"",IF(E62=0,"",IF(ISNUMBER(E62),((J62*E62)/C62)*N62,""))) -> 2943.1536 | M62: =IF(ISBLANK(F62),"",IF(F62=0,"",IF(ISNUMBER(F62),((K62*F62)/C62)*N62,""))) -> 2943.1536 | N62: 1 | O62: 1
A63: Pumpe inkl. stigrør og forerørsforsejlinger mv. 57 | B63: m³/h | C63: 15 | D63: 0 | E63: 10 | F63: 10 | G63: Ny data | H63: 0 | J63: =IF(E63=0,"Variabel pris",IFERROR(((HLOOKUP(E63,'Variable priser'!$C$2:$H$4,2)+(E63-HLOOKUP(E63,'Variable priser'!$C$2:$H$4,1))*HLOOKUP(E63,'Variable priser'!$C$2:$H$4,3))/E63*(1+Genanskaffelsespriser!$D$203)),"Fejl")) -> 4414.7304 | K63: =IF(F63=0,"Variabel pris",IFERROR(((HLOOKUP(F63,'Variable priser'!$C$2:$H$4,2)+(F63-HLOOKUP(F63,'Variable priser'!$C$2:$H$4,1))*HLOOKUP(F63,'Variable priser'!$C$2:$H$4,3))/F63*(1+Genanskaffelsespriser!$D$203)),"Fejl")) -> 4414.7304 | L63: =IF(ISBLANK(E63),"",IF(E63=0,"",IF(ISNUMBER(E63),((J63*E63)/C63)*N63,""))) -> 2943.1536 | M63: =IF(ISBLANK(F63),"",IF(F63=0,"",IF(ISNUMBER(F63),((K63*F63)/C63)*N63,""))) -> 2943.1536 | N63: 1 | O63: 1
A64: Pumpe inkl. stigrør og forerørsforsejlinger mv. 58 | B64: m³/h | C64: 15 | D64: 0 | E64: 5 | F64: 5 | G64: Ny data | H64: 0 | J64: =IF(E64=0,"Variabel pris",IFERROR(((HLOOKUP(E64,'Variable priser'!$C$2:$H$4,2)+(E64-HLOOKUP(E64,'Variable priser'!$C$2:$H$4,1))*HLOOKUP(E64,'Variable priser'!$C$2:$H$4,3))/E64*(1+Genanskaffelsespriser!$D$203)),"Fejl")) -> 4414.7304 | K64: =IF(F64=0,"Variabel pris",IFERROR(((HLOOKUP(F64,'Variable priser'!$C$2:$H$4,2)+(F64-HLOOKUP(F64,'Variable priser'!$C$2:$H$4,1))*HLOOKUP(F64,'Variable priser'!$C$2:$H$4,3))/F64*(1+Genanskaffelsespriser!$D$203)),"Fejl")) -> 4414.7304 | L64: =IF(ISBLANK(E64),"",IF(E64=0,"",IF(ISNUMBER(E64),((J64*E64)/C64)*N64,""))) -> 1471.5768 | M64: =IF(ISBLANK(F64),"",IF(F64=0,"",IF(ISNUMBER(F64),((K64*F64)/C64)*N64,""))) -> 1471.5768 | N64: 1 | O64: 1
A65: Pumpe inkl. stigrør og forerørsforsejlinger mv. 59 | B65: m³/h | C65: 15 | D65: 0 | E65: 5 | F65: 5 | G65: Ny data | H65: 0 | J65: =IF(E65=0,"Variabel pris",IFERROR(((HLOOKUP(E65,'Variable priser'!$C$2:$H$4,2)+(E65-HLOOKUP(E65,'Variable priser'!$C$2:$H$4,1))*HLOOKUP(E65,'Variable priser'!$C$2:$H$4,3))/E65*(1+Genanskaffelsespriser!$D$203)),"Fejl")) -> 4414.7304 | K65: =IF(F65=0,"Variabel pris",IFERROR(((HLOOKUP(F65,'Variable priser'!$C$2:$H$4,2)+(F65-HLOOKUP(F65,'Variable priser'!$C$2:$H$4,1))*HLOOKUP(F65,'Variable priser'!$C$2:$H$4,3))/F65*(1+Genanskaffelsespriser!$D$203)),"Fejl")) -> 4414.7304 | L65: =IF(ISBLANK(E65),"",IF(E65=0,"",IF(ISNUMBER(E65),((J65*E65)/C65)*N65,""))) -> 1471.5768 | M65: =IF(ISBLANK(F65),"",IF(F65=0,"",IF(ISNUMBER(F65),((K65*F65)/C65)*N65,""))) -> 1471.5768 | N65: 1 | O65: 1
A66: Pumpe inkl. stigrør og forerørsforsejlinger mv. 60 | B66: m³/h | C66: 15 | D66: 0 | E66: 5 | F66: 5 | G66: Ny data | H66: 0 | J66: =IF(E66=0,"Variabel pris",IFERROR(((HLOOKUP(E66,'Variable priser'!$C$2:$H$4,2)+(E66-HLOOKUP(E66,'Variable priser'!$C$2:$H$4,1))*HLOOKUP(E66,'Variable priser'!$C$2:$H$4,3))/E66*(1+Genanskaffelsespriser!$D$203)),"Fejl")) -> 4414.7304 | K66: =IF(F66=0,"Variabel pris",IFERROR(((HLOOKUP(F66,'Variable priser'!$C$2:$H$4,2)+(F66-HLOOKUP(F66,'Variable priser'!$C$2:$H$4,1))*HLOOKUP(F66,'Variable priser'!$C$2:$H$4,3))/F66*(1+Genanskaffelsespriser!$D$203)),"Fejl")) -> 4414.7304 | L66: =IF(ISBLANK(E66),"",IF(E66=0,"",IF(ISNUMBER(E66),((J66*E66)/C66)*N66,""))) -> 1471.5768 | M66: =IF(ISBLANK(F66),"",IF(F66=0,"",IF(ISNUMBER(F66),((K66*F66)/C66)*N66,""))) -> 1471.5768 | N66: 1 | O66: 1
A67: Pumpe inkl. stigrør og forerørsforsejlinger mv. 61 | B67: m³/h | C67: 15 | D67: 0 | E67: 5 | F67: 5 | G67: Ny data | H67: 0 | J67: =IF(E67=0,"Variabel pris",IFERROR(((HLOOKUP(E67,'Variable priser'!$C$2:$H$4,2)+(E67-HLOOKUP(E67,'Variable priser'!$C$2:$H$4,1))*HLOOKUP(E67,'Variable priser'!$C$2:$H$4,3))/E67*(1+Genanskaffelsespriser!$D$203)),"Fejl")) -> 4414.7304 | K67: =IF(F67=0,"Variabel pris",IFERROR(((HLOOKUP(F67,'Variable priser'!$C$2:$H$4,2)+(F67-HLOOKUP(F67,'Variable priser'!$C$2:$H$4,1))*HLOOKUP(F67,'Variable priser'!$C$2:$H$4,3))/F67*(1+Genanskaffelsespriser!$D$203)),"Fejl")) -> 4414.7304 | L67: =IF(ISBLANK(E67),"",IF(E67=0,"",IF(ISNUMBER(E67),((J67*E67)/C67)*N67,""))) -> 1471.5768 | M67: =IF(ISBLANK(F67),"",IF(F67=0,"",IF(ISNUMBER(F67),((K67*F67)/C67)*N67,""))) -> 1471.5768 | N67: 1 | O67: 1
A68: Pumpe inkl. stigrør og forerørsforsejlinger mv. 62 | B68: m³/h | C68: 15 | D68: 0 | E68: 40 | F68: 40 | G68: Ny data | H68: 0 | J68: =IF(E68=0,"Variabel pris",IFERROR(((HLOOKUP(E68,'Variable priser'!$C$2:$H$4,2)+(E68-HLOOKUP(E68,'Variable priser'!$C$2:$H$4,1))*HLOOKUP(E68,'Variable priser'!$C$2:$H$4,3))/E68*(1+Genanskaffelsespriser!$D$203)),"Fejl")) -> 2147.1466 | K68: =IF(F68=0,"Variabel pris",IFERROR(((HLOOKUP(F68,'Variable priser'!$C$2:$H$4,2)+(F68-HLOOKUP(F68,'Variable priser'!$C$2:$H$4,1))*HLOOKUP(F68,'Variable priser'!$C$2:$H$4,3))/F68*(1+Genanskaffelsespriser!$D$203)),"Fejl")) -> 2147.1466 | L68: =IF(ISBLANK(E68),"",IF(E68=0,"",IF(ISNUMBER(E68),((J68*E68)/C68)*N68,""))) -> 5725.724267 | M68: =IF(ISBLANK(F68),"",IF(F68=0,"",IF(ISNUMBER(F68),((K68*F68)/C68)*N68,""))) -> 5725.724267 | N68: 1 | O68: 1
A69: Pumpe inkl. stigrør og forerørsforsejlinger mv. 63 | B69: m³/h | C69: 15 | D69: 0 | E69: 0 | G69: 0 | H69: 0 | J69: =IF(E69=0,"Variabel pris",IFERROR(((HLOOKUP(E69,'Variable priser'!$C$2:$H$4,2)+(E69-HLOOKUP(E69,'Variable priser'!$C$2:$H$4,1))*HLOOKUP(E69,'Variable priser'!$C$2:$H$4,3))/E69*(1+Genanskaffelsespriser!$D$203)),"Fejl")) -> Variabel pris | K69: =IF(F69=0,"Variabel pris",IFERROR(((HLOOKUP(F69,'Variable priser'!$C$2:$H$4,2)+(F69-HLOOKUP(F69,'Variable priser'!$C$2:$H$4,1))*HLOOKUP(F69,'Variable priser'!$C$2:$H$4,3))/F69*(1+Genanskaffelsespriser!$D$203)),"Fejl")) -> Variabel pris | L69: =IF(ISBLANK(E69),"",IF(E69=0,"",IF(ISNUMBER(E69),((J69*E69)/C69)*N69,""))) ->  | M69: =IF(ISBLANK(F69),"",IF(F69=0,"",IF(ISNUMBER(F69),((K69*F69)/C69)*N69,""))) ->  | N69: 1 | O69: 1
A70: Pumpe inkl. stigrør og forerørsforsejlinger mv. 64 | B70: m³/h | C70: 15 | D70: 0 | E70: 0 | G70: 0 | H70: 0 | J70: =IF(E70=0,"Variabel pris",IFERROR(((HLOOKUP(E70,'Variable priser'!$C$2:$H$4,2)+(E70-HLOOKUP(E70,'Variable priser'!$C$2:$H$4,1))*HLOOKUP(E70,'Variable priser'!$C$2:$H$4,3))/E70*(1+Genanskaffelsespriser!$D$203)),"Fejl")) -> Variabel pris | K70: =IF(F70=0,"Variabel pris",IFERROR(((HLOOKUP(F70,'Variable priser'!$C$2:$H$4,2)+(F70-HLOOKUP(F70,'Variable priser'!$C$2:$H$4,1))*HLOOKUP(F70,'Variable priser'!$C$2:$H$4,3))/F70*(1+Genanskaffelsespriser!$D$203)),"Fejl")) -> Variabel pris | L70: =IF(ISBLANK(E70),"",IF(E70=0,"",IF(ISNUMBER(E70),((J70*E70)/C70)*N70,""))) ->  | M70: =IF(ISBLANK(F70),"",IF(F70=0,"",IF(ISNUMBER(F70),((K70*F70)/C70)*N70,""))) ->  | N70: 1 | O70: 1
A71: Pumpe inkl. stigrør og forerørsforsejlinger mv. 65 | B71: m³/h | C71: 15 | D71: 0 | E71: 0 | G71: 0 | H71: 0 | J71: =IF(E71=0,"Variabel pris",IFERROR(((HLOOKUP(E71,'Variable priser'!$C$2:$H$4,2)+(E71-HLOOKUP(E71,'Variable priser'!$C$2:$H$4,1))*HLOOKUP(E71,'Variable priser'!$C$2:$H$4,3))/E71*(1+Genanskaffelsespriser!$D$203)),"Fejl")) -> Variabel pris | K71: =IF(F71=0,"Variabel pris",IFERROR(((HLOOKUP(F71,'Variable priser'!$C$2:$H$4,2)+(F71-HLOOKUP(F71,'Variable priser'!$C$2:$H$4,1))*HLOOKUP(F71,'Variable priser'!$C$2:$H$4,3))/F71*(1+Genanskaffelsespriser!$D$203)),"Fejl")) -> Variabel pris | L71: =IF(ISBLANK(E71),"",IF(E71=0,"",IF(ISNUMBER(E71),((J71*E71)/C71)*N71,""))) ->  | M71: =IF(ISBLANK(F71),"",IF(F71=0,"",IF(ISNUMBER(F71),((K71*F71)/C71)*N71,""))) ->  | N71: 1 | O71: 1
A72: Pumpe inkl. stigrør og forerørsforsejlinger mv. 66 | B72: m³/h | C72: 15 | D72: 0 | E72: 0 | G72: 0 | H72: 0 | J72: =IF(E72=0,"Variabel pris",IFERROR(((HLOOKUP(E72,'Variable priser'!$C$2:$H$4,2)+(E72-HLOOKUP(E72,'Variable priser'!$C$2:$H$4,1))*HLOOKUP(E72,'Variable priser'!$C$2:$H$4,3))/E72*(1+Genanskaffelsespriser!$D$203)),"Fejl")) -> Variabel pris | K72: =IF(F72=0,"Variabel pris",IFERROR(((HLOOKUP(F72,'Variable priser'!$C$2:$H$4,2)+(F72-HLOOKUP(F72,'Variable priser'!$C$2:$H$4,1))*HLOOKUP(F72,'Variable priser'!$C$2:$H$4,3))/F72*(1+Genanskaffelsespriser!$D$203)),"Fejl")) -> Variabel pris | L72: =IF(ISBLANK(E72),"",IF(E72=0,"",IF(ISNUMBER(E72),((J72*E72)/C72)*N72,""))) ->  | M72: =IF(ISBLANK(F72),"",IF(F72=0,"",IF(ISNUMBER(F72),((K72*F72)/C72)*N72,""))) ->  | N72: 1 | O72: 1
A73: Hegn | B73: stk. | C73: =Genanskaffelsespriser!E11 -> 15 | D73: 0 | E73: 1 | F73: 1 | G73: Ny data | H73: 0 | I73: Fejlagtigt fjernet | J73: =Genanskaffelsespriser!$D11 -> 85428 | K73: =J73 -> 85428 | L73: 5695.2 | M73: 5695.2 | N73: 1 | O73: 1
A74: Elanlæg | B74: boring | C74: =Genanskaffelsespriser!E12 -> 20 | D74: 56 | E74: 66 | F74: 66 | G74: 0.1785714286 | H74: 0 | I74: er også på afværgeboringer | J74: =Genanskaffelsespriser!$D12 -> 108657 | K74: =J74 -> 108657 | L74: 358568.1 | M74: 358568.1 | N74: 1 | O74: 1
A75: SRO anlæg | B75: boring | C75: =Genanskaffelsespriser!E13 -> 10 | D75: 57 | E75: 65 | F75: 65 | G75: 0.1403508772 | H75: 0 | J75: =Genanskaffelsespriser!$D13 -> 29256 | K75: 29256 | L75: 190164 | M75: 190164 | N75: 1 | O75: 1
A76: Råvandsledninger - Land
A77: Ø 50mm < Ledningsnet ≤ Ø110 mm | B77: meter | C77: =Genanskaffelsespriser!E15 -> 75 | D77: 380.57 | E77: 380.57 | F77: =379.57 -> 379.57 | G77: 0 | H77: -0.002627637491 | J77: =Genanskaffelsespriser!$D15 -> 354 | K77: =J77 -> 354 | L77: 1796.2904 | M77: 1791.5704 | N77: 1 | O77: 1
A78: Ø110 mm < Ledningsnet ≤ Ø 250 mm | B78: meter | C78: =Genanskaffelsespriser!E16 -> 75 | D78: 5857.55 | E78: 5857.55 | F78: =5951.9 -> 5951.9 | G78: 0 | H78: 0.01610741692 | J78: =Genanskaffelsespriser!$D16 -> 1018 | K78: =J78 -> 1018 | L78: 79506.47867 | M78: 80787.12267 | N78: 1 | O78: 1
A79: Ø 250 mm < Ledningsnet ≤ Ø 500mm | B79: meter | C79: =Genanskaffelsespriser!E17 -> 75 | D79: 2539.4 | E79: 2539.4 | F79: 2539.4 | G79: 0 | H79: 0 | J79: =Genanskaffelsespriser!$D17 -> 2335 | K79: 2335 | L79: 79059.98667 | M79: 79059.98667 | N79: 1 | O79: 1
A80: Ledningsnet > Ø 500 mm | B80: meter | C80: =Genanskaffelsespriser!E18 -> 75 | D80: 0 | E80: 0 | G80: 0 | H80: 0 | J80: =Genanskaffelsespriser!$D18 -> 5029 | K80: 5029 | L80: 0 | N80: 1 | O80: 1
A81: Råvandsledninger - By
A82: Ø 50mm < Ledningsnet ≤ Ø110 mm | B82: meter | C82: =Genanskaffelsespriser!E20 -> 75 | D82: 0 | E82: 0 | F82: 0 | G82: 0 | H82: 0 | J82: =Genanskaffelsespriser!$D20 -> 958 | K82: =J82 -> 958 | L82: 0 | M82: 0 | N82: 1 | O82: 1
A83: Ø110 mm < Ledningsnet ≤ Ø 250 mm | B83: meter | C83: =Genanskaffelsespriser!E21 -> 75 | D83: 1 | E83: 1.08 | F83: 1.08 | G83: 0.08 | H83: 0 | J83: =Genanskaffelsespriser!$D21 -> 1684 | K83: =J83 -> 1684 | L83: 24.2496 | M83: 24.2496 | N83: 1 | O83: 1
A84: Ø 250 mm < Ledningsnet ≤ Ø 500mm | B84: meter | C84: =Genanskaffelsespriser!E22 -> 75 | D84: 0 | E84: 0 | F84: 0 | G84: 0 | H84: 0 | J84: =Genanskaffelsespriser!$D22 -> 3153 | K84: 3153 | L84: 0 | M84: 0 | N84: 1 | O84: 1
A85: Ledningsnet > Ø 500 mm | B85: meter | C85: =Genanskaffelsespriser!E23 -> 75 | D85: 0 | E85: 0 | F85: 0 | G85: 0 | H85: 0 | J85: =Genanskaffelsespriser!$D23 -> 5998 | K85: 5998 | L85: 0 | M85: 0 | N85: 1 | O85: 1
A86: Råvandsledninger - City
A87: Ø 50mm < Ledningsnet ≤ Ø110 mm | B87: meter | C87: =Genanskaffelsespriser!E25 -> 75 | D87: 0 | E87: 0 | F87: 0 | G87: 0 | H87: 0 | J87: =Genanskaffelsespriser!$D25 -> 1495 | K87: =J87 -> 1495 | L87: 0 | M87: 0 | N87: 1 | O87: 1
A88: Ø110 mm < Ledningsnet ≤ Ø 250 mm | B88: meter | C88: =Genanskaffelsespriser!E26 -> 75 | D88: 0 | E88: 0 | F88: 0 | G88: 0 | H88: 0 | J88: =Genanskaffelsespriser!$D26 -> 2192 | K88: =J88 -> 2192 | L88: 0 | M88: 0 | N88: 1 | O88: 1
A89: Ø 250 mm < Ledningsnet ≤ Ø 500mm | B89: meter | C89: =Genanskaffelsespriser!E27 -> 75 | D89: 0 | E89: 0 | F89: 0 | G89: 0 | H89: 0 | J89: =Genanskaffelsespriser!$D27 -> 3773 | K89: 3773 | L89: 0 | M89: 0 | N89: 1 | O89: 1
A90: Ledningsnet > Ø 500 mm | B90: meter | C90: =Genanskaffelsespriser!E28 -> 75 | D90: 0 | E90: 0 | F90: 0 | G90: 0 | H90: 0 | J90: =Genanskaffelsespriser!$D28 -> 6732 | K90: 6732 | L90: 0 | M90: 0 | N90: 1 | O90: 1
A91: Vandværk 1
A92: Beluftningsanlæg, iltningstrappe, Konstruktioner | B92: m³/h | C92: =Genanskaffelsespriser!$E$30 -> 50 | D92: 0 | E92: 0 | F92: 0 | G92: 0 | H92: 0 | I92: Agertoften, er en trykforøger - så bør ligge i distribution | J92: =IF(E92=0,"Variabel pris",IFERROR((HLOOKUP(E92,'Variable priser'!$C$6:$H$16,2)+(E92-HLOOKUP(E92,'Variable priser'!$C$6:$H$16,1))*HLOOKUP(E92,'Variable priser'!$C$6:$H$16,3))/E92*'Variable priser'!$K$7*(1+Genanskaffelsespriser!$D$203),"Fejl")) -> Variabel pris | K92: =IF(F92=0,"Variabel pris",IFERROR((HLOOKUP(F92,'Variable priser'!$C$6:$H$16,2)+(F92-HLOOKUP(F92,'Variable priser'!$C$6:$H$16,1))*HLOOKUP(F92,'Variable priser'!$C$6:$H$16,3))/F92*'Variable priser'!$K$7*(1+Genanskaffelsespriser!$D$203),"Fejl")) -> Variabel pris | L92: =IF(ISBLANK(E92),"",IF(E92=0,"",IF(ISNUMBER(E92),((J92*E92)/C92)*N92,""))) ->  | M92: =IF(ISBLANK(F92),"",IF(F92=0,"",IF(ISNUMBER(F92),((K92*F92)/C92)*N92,""))) ->  | N92: 1 | O92: 1
A93: Beluftningsanlæg, iltningstrappe, Mek./EL | B93: m³/h | C93: =Genanskaffelsespriser!$E$31 -> 25 | D93: 0 | E93: 0 | F93: 0 | G93: 0 | H93: 0 | J93: =IF(E93=0,"Variabel pris",IFERROR((HLOOKUP(E93,'Variable priser'!$C$6:$H$16,2)+(E93-HLOOKUP(E93,'Variable priser'!$C$6:$H$16,1))*HLOOKUP(E93,'Variable priser'!$C$6:$H$16,3))/E93*'Variable priser'!$L$7*(1+Genanskaffelsespriser!$D$203),"Fejl")) -> Variabel pris | K93: =IF(F93=0,"Variabel pris",IFERROR((HLOOKUP(F93,'Variable priser'!$C$6:$H$16,2)+(F93-HLOOKUP(F93,'Variable priser'!$C$6:$H$16,1))*HLOOKUP(F93,'Variable priser'!$C$6:$H$16,3))/F93*'Variable priser'!$L$7*(1+Genanskaffelsespriser!$D$203),"Fejl")) -> Variabel pris | L93: =IF(ISBLANK(E93),"",IF(E93=0,"",IF(ISNUMBER(E93),((J93*E93)/C93)*N93,""))) ->  | M93: =IF(ISBLANK(F93),"",IF(F93=0,"",IF(ISNUMBER(F93),((K93*F93)/C93)*N93,""))) ->  | N93: 1 | O93: 1
A94: Beluftningsanlæg, ika-beluftning, Konstruktioner | B94: m³/h | C94: =Genanskaffelsespriser!$E$32 -> 50 | D94: 0 | E94: 0 | F94: 0 | G94: 0 | H94: 0 | J94: =IF(E94=0,"Variabel pris",IFERROR((HLOOKUP(E94,'Variable priser'!$C$6:$H$16,4)+(E94-HLOOKUP(E94,'Variable priser'!$C$6:$H$16,1))*HLOOKUP(E94,'Variable priser'!$C$6:$H$16,5))/E94*'Variable priser'!$K$9*(1+Genanskaffelsespriser!$D$203),"Fejl")) -> Variabel pris | K94: =IF(F94=0,"Variabel pris",IFERROR((HLOOKUP(F94,'Variable priser'!$C$6:$H$16,4)+(F94-HLOOKUP(F94,'Variable priser'!$C$6:$H$16,1))*HLOOKUP(F94,'Variable priser'!$C$6:$H$16,5))/F94*'Variable priser'!$K$9*(1+Genanskaffelsespriser!$D$203),"Fejl")) -> Variabel pris | N94: 1 | O94: 1
A95: Beluftningsanlæg, ika-beluftning, Mek./EL | B95: m³/h | C95: =Genanskaffelsespriser!$E$33 -> 25 | D95: 0 | E95: 0 | F95: 0 | G95: 0 | H95: 0 | J95: =IF(E95=0,"Variabel pris",IFERROR((HLOOKUP(E95,'Variable priser'!$C$6:$H$16,4)+(E95-HLOOKUP(E95,'Variable priser'!$C$6:$H$16,1))*HLOOKUP(E95,'Variable priser'!$C$6:$H$16,5))/E95*'Variable priser'!$L$9*(1+Genanskaffelsespriser!$D$203),"Fejl")) -> Variabel pris | K95: =IF(F95=0,"Variabel pris",IFERROR((HLOOKUP(F95,'Variable priser'!$C$6:$H$16,4)+(F95-HLOOKUP(F95,'Variable priser'!$C$6:$H$16,1))*HLOOKUP(F95,'Variable priser'!$C$6:$H$16,5))/F95*'Variable priser'!$L$9*(1+Genanskaffelsespriser!$D$203),"Fejl")) -> Variabel pris | N95: 1 | O95: 1
A96: Beluftningsanlæg, bundbeluftbning, Konstruktioner | B96: m³/h | C96: =Genanskaffelsespriser!$E$34 -> 50 | D96: 0 | E96: 0 | F96: 0 | G96: 0 | H96: 0 | J96: =IF(E96=0,"Variabel pris",IFERROR((HLOOKUP(E96,'Variable priser'!$C$6:$H$16,6)+(E96-HLOOKUP(E96,'Variable priser'!$C$6:$H$16,1))*HLOOKUP(E96,'Variable priser'!$C$6:$H$16,7))/E96*'Variable priser'!$K$17*(1+Genanskaffelsespriser!$D$203),"Fejl")) -> Variabel pris | K96: =IF(F96=0,"Variabel pris",IFERROR((HLOOKUP(F96,'Variable priser'!$C$6:$H$16,6)+(F96-HLOOKUP(F96,'Variable priser'!$C$6:$H$16,1))*HLOOKUP(F96,'Variable priser'!$C$6:$H$16,7))/F96*'Variable priser'!$K$17*(1+Genanskaffelsespriser!$D$203),"Fejl")) -> Variabel pris | N96: 1 | O96: 1
A97: Beluftningsanlæg, bundbeluftbning, Mek./EL | B97: m³/h | C97: =Genanskaffelsespriser!$E$35 -> 25 | D97: 0 | E97: 0 | F97: 0 | G97: 0 | H97: 0 | J97: =IF(E97=0,"Variabel pris",IFERROR((HLOOKUP(E97,'Variable priser'!$C$6:$H$16,6)+(E97-HLOOKUP(E97,'Variable priser'!$C$6:$H$16,1))*HLOOKUP(E97,'Variable priser'!$C$6:$H$16,7))/E97*'Variable priser'!$L$17*(1+Genanskaffelsespriser!$D$203),"Fejl")) -> Variabel pris | K97: =IF(F97=0,"Variabel pris",IFERROR((HLOOKUP(F97,'Variable priser'!$C$6:$H$16,6)+(F97-HLOOKUP(F97,'Variable priser'!$C$6:$H$16,1))*HLOOKUP(F97,'Variable priser'!$C$6:$H$16,7))/F97*'Variable priser'!$L$17*(1+Genanskaffelsespriser!$D$203),"Fejl")) -> Variabel pris | N97: 1 | O97: 1
A98: Beluftningsanlæg, rislebakke, Konstruktioner | B98: m³/h | C98: =Genanskaffelsespriser!$E$36 -> 50 | D98: 0 | E98: 0 | F98: 0 | G98: 0 | H98: 0 | J98: =IF(E98=0,"Variabel pris",IFERROR((HLOOKUP(E98,'Variable priser'!$C$6:$H$18,12)+(E98-HLOOKUP(E98,'Variable priser'!$C$6:$H$18,1))*HLOOKUP(E98,'Variable priser'!$C$6:$H$18,13))/E98*'Variable priser'!$K$17*(1+Genanskaffelsespriser!$D$203),"Fejl")) -> Variabel pris | K98: =IF(F98=0,"Variabel pris",IFERROR((HLOOKUP(F98,'Variable priser'!$C$6:$H$18,12)+(F98-HLOOKUP(F98,'Variable priser'!$C$6:$H$18,1))*HLOOKUP(F98,'Variable priser'!$C$6:$H$18,13))/F98*'Variable priser'!$K$17*(1+Genanskaffelsespriser!$D$203),"Fejl")) -> Variabel pris | N98: 1 | O98: 1
A99: Beluftningsanlæg, rislebakke, Mek./EL | B99: m³/h | C99: =Genanskaffelsespriser!$E$37 -> 25 | D99: 0 | E99: 0 | F99: 0 | G99: 0 | H99: 0 | J99: =IF(E99=0,"Variabel pris",IFERROR((HLOOKUP(E99,'Variable priser'!$C$6:$H$18,12)+(E99-HLOOKUP(E99,'Variable priser'!$C$6:$H$18,1))*HLOOKUP(E99,'Variable priser'!$C$6:$H$18,13))/E99*'Variable priser'!$L$17*(1+Genanskaffelsespriser!$D$203),"Fejl")) -> Variabel pris | K99: =IF(F99=0,"Variabel pris",IFERROR((HLOOKUP(F99,'Variable priser'!$C$6:$H$18,12)+(F99-HLOOKUP(F99,'Variable priser'!$C$6:$H$18,1))*HLOOKUP(F99,'Variable priser'!$C$6:$H$18,13))/F99*'Variable priser'!$L$17*(1+Genanskaffelsespriser!$D$203),"Fejl")) -> Variabel pris | N99: 1 | O99: 1
A100: Beluftningsanlæg, kompressorbeluftning | B100: m³/h | C100: =Genanskaffelsespriser!$E$38 -> 25 | D100: 0 | E100: 0 | F100: 0 | G100: 0 | H100: 0 | J100: =IF(E100=0,"Variabel pris",IFERROR((HLOOKUP(E100,'Variable priser'!$C$6:$H$16,8)+(E100-HLOOKUP(E100,'Variable priser'!$C$6:$H$16,1))*HLOOKUP(E100,'Variable priser'!$C$6:$H$16,9))/E100*(1+Genanskaffelsespriser!$D$203),"Fejl")) -> Variabel pris | K100: =IF(F100=0,"Variabel pris",IFERROR((HLOOKUP(F100,'Variable priser'!$C$6:$H$16,8)+(F100-HLOOKUP(F100,'Variable priser'!$C$6:$H$16,1))*HLOOKUP(F100,'Variable priser'!$C$6:$H$16,9))/F100*(1+Genanskaffelsespriser!$D$203),"Fejl")) -> Variabel pris | N100: 1 | O100: 1
A101: Beluftningsanlæg, ren ilt | B101: m³/h | C101: =Genanskaffelsespriser!$E$39 -> 25 | D101: 0 | E101: 0 | F101: 0 | G101: 0 | H101: 0 | J101: =IF(E101=0,"Variabel pris",IFERROR((HLOOKUP(E101,'Variable priser'!$C$6:$H$16,10)+(E101-HLOOKUP(E101,'Variable priser'!$C$6:$H$16,1))*HLOOKUP(E101,'Variable priser'!$C$6:$H$16,11))/E101*(1+Genanskaffelsespriser!$D$203),"Fejl")) -> Variabel pris | K101: =IF(F101=0,"Variabel pris",IFERROR((HLOOKUP(F101,'Variable priser'!$C$6:$H$16,10)+(F101-HLOOKUP(F101,'Variable priser'!$C$6:$H$16,1))*HLOOKUP(F101,'Variable priser'!$C$6:$H$16,11))/F101*(1+Genanskaffelsespriser!$D$203),"Fejl")) -> Variabel pris | N101: 1 | O101: 1
A102: Behandlingsanlæg, kalk anlæg | B102: m³/h | C102: =Genanskaffelsespriser!$E$40 -> 25 | D102: 0 | E102: 0 | F102: 0 | G102: 0 | H102: 0 | J102: =IF(E102=0,"Variabel pris",IFERROR((HLOOKUP(E102,'Variable priser'!$C$20:$G$24,3)+(E102-HLOOKUP(E102,'Variable priser'!$C$20:$G$24,1))*HLOOKUP(E102,'Variable priser'!$C$20:$G$24,4))/E102*(1+Genanskaffelsespriser!$D$203),"Fejl")) -> Variabel pris | K102: =IF(F102=0,"Variabel pris",IFERROR((HLOOKUP(F102,'Variable priser'!$C$20:$G$24,3)+(F102-HLOOKUP(F102,'Variable priser'!$C$20:$G$24,1))*HLOOKUP(F102,'Variable priser'!$C$20:$G$24,4))/F102*(1+Genanskaffelsespriser!$D$203),"Fejl")) -> Variabel pris | N102: 1 | O102: 1
A103: Behandlingsanlæg, luddosering | B103: m³/h | C103: =Genanskaffelsespriser!$E$41 -> 25 | D103: 0 | E103: 0 | F103: 0 | G103: 0 | H103: 0 | J103: =IF(E103=0,"Variabel pris",IFERROR((HLOOKUP(E103,'Variable priser'!$C$20:$G$25,5)+(E103-HLOOKUP(E103,'Variable priser'!$C$20:$G$25,1))*HLOOKUP(E103,'Variable priser'!$C$20:$G$25,6))/E103*(1+Genanskaffelsespriser!$D$203),"Fejl")) -> Variabel pris | K103: =IF(F103=0,"Variabel pris",IFERROR((HLOOKUP(F103,'Variable priser'!$C$20:$G$25,5)+(F103-HLOOKUP(F103,'Variable priser'!$C$20:$G$25,1))*HLOOKUP(F103,'Variable priser'!$C$20:$G$25,6))/F103*(1+Genanskaffelsespriser!$D$203),"Fejl")) -> Variabel pris | N103: 1 | O103: 1
A104: Filteranlæg, åbne filtre, enkelt filtrering, Konstruktioner | B104: m³/h | C104: =Genanskaffelsespriser!$E$42 -> 50 | D104: 0 | E104: 0 | F104: 0 | G104: 0 | H104: 0 | J104: =IF(E104=0,"Variabel pris",IFERROR((HLOOKUP(E104,'Variable priser'!$C$28:$G$38,9)+(E104-HLOOKUP(E104,'Variable priser'!$C$28:$G$38,1))*HLOOKUP(E104,'Variable priser'!$C$28:$G$38,10))/E104*'Variable priser'!$K$31*(1+Genanskaffelsespriser!$D$203),"Fejl")) -> Variabel pris | K104: =IF(F104=0,"Variabel pris",IFERROR((HLOOKUP(F104,'Variable priser'!$C$28:$G$38,9)+(F104-HLOOKUP(F104,'Variable priser'!$C$28:$G$38,1))*HLOOKUP(F104,'Variable priser'!$C$28:$G$38,10))/F104*'Variable priser'!$K$31*(1+Genanskaffelsespriser!$D$203),"Fejl")) -> Variabel pris | N104: 1 | O104: 1
A105: Filteranlæg, åbne filtre, enkelt filtrering, Mek./EL | B105: m³/h | C105: =Genanskaffelsespriser!$E$43 -> 25 | D105: 0 | E105: 0 | F105: 0 | G105: 0 | H105: 0 | J105: =IF(E105=0,"Variabel pris",IFERROR((HLOOKUP(E105,'Variable priser'!$C$28:$G$38,9)+(E105-HLOOKUP(E105,'Variable priser'!$C$28:$G$38,1))*HLOOKUP(E105,'Variable priser'!$C$28:$G$38,10))/E105*'Variable priser'!$L$31*(1+Genanskaffelsespriser!$D$203),"Fejl")) -> Variabel pris | K105: =IF(F105=0,"Variabel pris",IFERROR((HLOOKUP(F105,'Variable priser'!$C$28:$G$38,9)+(F105-HLOOKUP(F105,'Variable priser'!$C$28:$G$38,1))*HLOOKUP(F105,'Variable priser'!$C$28:$G$38,10))/F105*'Variable priser'!$L$31*(1+Genanskaffelsespriser!$D$203),"Fejl")) -> Variabel pris | N105: 1 | O105: 1
A106: Filteranlæg, åbne filtre, dobbelt filtrering, Konstruktioner | B106: m³/h | C106: =Genanskaffelsespriser!$E$44 -> 50 | D106: 0 | E106: 0 | F106: 0 | G106: 0 | H106: 0 | J106: =IF(E106=0,"Variabel pris",IFERROR((HLOOKUP(E106,'Variable priser'!$C$28:$G$38,6)+(E106-HLOOKUP(E106,'Variable priser'!$C$28:$G$38,1))*HLOOKUP(E106,'Variable priser'!$C$28:$G$38,7))/E106*'Variable priser'!$K$31*(1+Genanskaffelsespriser!$D$203),"Fejl")) -> Variabel pris | K106: =IF(F106=0,"Variabel pris",IFERROR((HLOOKUP(F106,'Variable priser'!$C$28:$G$38,6)+(F106-HLOOKUP(F106,'Variable priser'!$C$28:$G$38,1))*HLOOKUP(F106,'Variable priser'!$C$28:$G$38,7))/F106*'Variable priser'!$K$31*(1+Genanskaffelsespriser!$D$203),"Fejl")) -> Variabel pris | N106: 1 | O106: 1
A107: Filteranlæg, åbne filtre, dobbelt filtrering, Mek./EL | B107: m³/h | C107: =Genanskaffelsespriser!$E$45 -> 25 | D107: 0 | E107: 0 | F107: 0 | G107: 0 | H107: 0 | J107: =IF(E107=0,"Variabel pris",IFERROR((HLOOKUP(E107,'Variable priser'!$C$28:$G$38,6)+(E107-HLOOKUP(E107,'Variable priser'!$C$28:$G$38,1))*HLOOKUP(E107,'Variable priser'!$C$28:$G$38,7))/E107*'Variable priser'!$L$31*(1+Genanskaffelsespriser!$D$203),"Fejl")) -> Variabel pris | K107: =IF(F107=0,"Variabel pris",IFERROR((HLOOKUP(F107,'Variable priser'!$C$28:$G$38,6)+(F107-HLOOKUP(F107,'Variable priser'!$C$28:$G$38,1))*HLOOKUP(F107,'Variable priser'!$C$28:$G$38,7))/F107*'Variable priser'!$L$31*(1+Genanskaffelsespriser!$D$203),"Fejl")) -> Variabel pris | N107: 1 | O107: 1
A108: Filteranlæg, trykfiltre, enkelt filtrering | B108: m³/h | C108: =Genanskaffelsespriser!$E$46 -> 25 | D108: 0 | E108: 0 | F108: 0 | G108: 0 | H108: 0 | J108: =IF(E108=0,"Variabel pris",IFERROR((HLOOKUP(E108,'Variable priser'!$C$40:$H$42,2)+(E108-HLOOKUP(E108,'Variable priser'!$C$40:$H$42,1))*HLOOKUP(E108,'Variable priser'!$C$40:$H$42,3))/E108*(1+Genanskaffelsespriser!$D$203),"Fejl")) -> Variabel pris | K108: =IF(F108=0,"Variabel pris",IFERROR((HLOOKUP(F108,'Variable priser'!$C$40:$H$42,2)+(F108-HLOOKUP(F108,'Variable priser'!$C$40:$H$42,1))*HLOOKUP(F108,'Variable priser'!$C$40:$H$42,3))/F108*(1+Genanskaffelsespriser!$D$203),"Fejl")) -> Variabel pris | N108: 1 | O108: 1
A109: Filteranlæg, trykfiltre, dobbelt filtrering | B109: m³/h | C109: =Genanskaffelsespriser!$E$47 -> 25 | D109: 0 | E109: 0 | F109: 0 | G109: 0 | H109: 0 | J109: =IF(E109=0,"Variabel pris",IFERROR((HLOOKUP(E109,'Variable priser'!$C$44:$H$46,2)+(E109-HLOOKUP(E109,'Variable priser'!$C$44:$H$46,1))*HLOOKUP(E109,'Variable priser'!$C$44:$H$46,3))/E109*(1+Genanskaffelsespriser!$D$203),"Fejl")) -> Variabel pris | K109: =IF(F109=0,"Variabel pris",IFERROR((HLOOKUP(F109,'Variable priser'!$C$44:$H$46,2)+(F109-HLOOKUP(F109,'Variable priser'!$C$44:$H$46,1))*HLOOKUP(F109,'Variable priser'!$C$44:$H$46,3))/F109*(1+Genanskaffelsespriser!$D$203),"Fejl")) -> Variabel pris | N109: 1 | O109: 1
A110: Rentvandsbeholder insitu støbt | B110: m³ | C110: =Genanskaffelsespriser!$E$48 -> 50 | D110: 0 | E110: 0 | F110: 0 | G110: =IF($D110="",IF($E110>0,"Ny data",IF($E110="","",0)),IF($D110=0,IF($E110=0,0,"Ny data"),($E110-$D110)/$D110)) -> 0 | H110: 0 | J110: =IF(E110=0,"Variabel pris",IFERROR((HLOOKUP(E110,'Variable priser'!$C$48:$H$50,2)+(E110-HLOOKUP(E110,'Variable priser'!$C$48:$H$50,1))*HLOOKUP(E110,'Variable priser'!$C$48:$H$50,3))/E110*(1+Genanskaffelsespriser!$D$203),"Fejl")) -> Variabel pris | K110: =IF(F110=0,"Variabel pris",IFERROR((HLOOKUP(F110,'Variable priser'!$C$48:$H$50,2)+(F110-HLOOKUP(F110,'Variable priser'!$C$48:$H$50,1))*HLOOKUP(F110,'Variable priser'!$C$48:$H$50,3))/F110*(1+Genanskaffelsespriser!$D$203),"Fejl")) -> Variabel pris | N110: 1 | O110: 1
A111: Rentvandsbeholder element | B111: m³ | C111: =Genanskaffelsespriser!$E$49 -> 50 | D111: 0 | E111: 0 | F111: 0 | G111: 0 | H111: 0 | J111: =IF(E111=0,"Variabel pris",IFERROR((HLOOKUP(E111,'Variable priser'!$C$52:$H$54,2)+(E111-HLOOKUP(E111,'Variable priser'!$C$52:$H$54,1))*HLOOKUP(E111,'Variable priser'!$C$52:$H$54,3))/E111*(1+Genanskaffelsespriser!$D$203),"Fejl")) -> Variabel pris | K111: =IF(F111=0,"Variabel pris",IFERROR((HLOOKUP(F111,'Variable priser'!$C$52:$H$54,2)+(F111-HLOOKUP(F111,'Variable priser'!$C$52:$H$54,1))*HLOOKUP(F111,'Variable priser'!$C$52:$H$54,3))/F111*(1+Genanskaffelsespriser!$D$203),"Fejl")) -> Variabel pris | N111: 1 | O111: 1
A112: Udpumpningsanlæg, rentvandspumper på vandværk | B112: m³/h | C112: =Genanskaffelsespriser!$E$50 -> 25 | D112: 100 | E112: 0 | F112: 0 | G112: -1 | H112: 0 | I112: Agertoften, er en trykforøger - så bør ligge i distribution | J112: =IF(E112=0,"Variabel pris",IFERROR((HLOOKUP(E112,'Variable priser'!$C$71:$H$73,2)+(E112-HLOOKUP(E112,'Variable priser'!$C$71:$H$73,1))*HLOOKUP(E112,'Variable priser'!$C$71:$H$73,3))/E112*(1+Genanskaffelsespriser!$D$203),"Fejl")) -> Variabel pris | K112: =IF(F112=0,"Variabel pris",IFERROR((HLOOKUP(F112,'Variable priser'!$C$71:$H$73,2)+(F112-HLOOKUP(F112,'Variable priser'!$C$71:$H$73,1))*HLOOKUP(F112,'Variable priser'!$C$71:$H$73,3))/F112*(1+Genanskaffelsespriser!$D$203),"Fejl")) -> Variabel pris | N112: 1 | O112: 1
A113: Udpumpningsanlæg, frekvensomformer | B113: kW | C113: =Genanskaffelsespriser!$E$51 -> 25 | D113: 8 | E113: 0 | F113: 0 | G113: -1 | H113: 0 | I113: Agertoften, er en trykforøger - så bør ligge i distribution | J113: =IF(E113=0,"Variabel pris",IFERROR((HLOOKUP(E113,'Variable priser'!$C$76:$J$78,2)+(E113-HLOOKUP(E113,'Variable priser'!$C$76:$J$78,1))*HLOOKUP(E113,'Variable priser'!$C$76:$J$78,3))/E113*(1+Genanskaffelsespriser!$D$203),"Fejl")) -> Variabel pris | K113: =IF(F113=0,"Variabel pris",IFERROR((HLOOKUP(F113,'Variable priser'!$C$76:$J$78,2)+(F113-HLOOKUP(F113,'Variable priser'!$C$76:$J$78,1))*HLOOKUP(F113,'Variable priser'!$C$76:$J$78,3))/F113*(1+Genanskaffelsespriser!$D$203),"Fejl")) -> Variabel pris | N113: 1 | O113: 1
A114: Udpumpningsanlæg, Hydrofor | B114: liter | C114: =Genanskaffelsespriser!$E$52 -> 25 | D114: 0 | E114: 0 | F114: 0 | G114: 0 | H114: 0 | J114: =IF(E114=0,"Variabel pris",IFERROR((HLOOKUP(E114,'Variable priser'!$C$81:$J$83,2)+(E114-HLOOKUP(E114,'Variable priser'!$C$81:$J$83,1))*HLOOKUP(E114,'Variable priser'!$C$81:$J$83,3))/E114*(1+Genanskaffelsespriser!$D$203),"Fejl")) -> Variabel pris | K114: =IF(F114=0,"Variabel pris",IFERROR((HLOOKUP(F114,'Variable priser'!$C$81:$J$83,2)+(F114-HLOOKUP(F114,'Variable priser'!$C$81:$J$83,1))*HLOOKUP(F114,'Variable priser'!$C$81:$J$83,3))/F114*(1+Genanskaffelsespriser!$D$203),"Fejl")) -> Variabel pris | N114: 1 | O114: 1
A115: Skyllevand-/slamhåndteringsanlæg - lukkede betonbeholdere | B115: m³ | C115: =Genanskaffelsespriser!$E$53 -> 50 | D115: 0 | E115: 0 | F115: 0 | G115: 0 | H115: 0 | J115: =IF(E115=0,"Variabel pris",IFERROR((HLOOKUP(E115,'Variable priser'!$C$59:$H$61,2)+(E115-HLOOKUP(E115,'Variable priser'!$C$59:$H$61,1))*HLOOKUP(E115,'Variable priser'!$C$59:$H$61,3))/E115*(1+Genanskaffelsespriser!$D$203),"Fejl")) -> Variabel pris | K115: =IF(F115=0,"Variabel pris",IFERROR((HLOOKUP(F115,'Variable priser'!$C$59:$H$61,2)+(F115-HLOOKUP(F115,'Variable priser'!$C$59:$H$61,1))*HLOOKUP(F115,'Variable priser'!$C$59:$H$61,3))/F115*(1+Genanskaffelsespriser!$D$203),"Fejl")) -> Variabel pris | N115: 1 | O115: 1
A116: Skyllevand-/slamhåndteringsanl. - åbne med faste sider/bund | B116: m³ | C116: =Genanskaffelsespriser!$E$54 -> 50 | D116: 0 | E116: 0 | F116: 0 | G116: 0 | H116: 0 | J116: =IF(E116=0,"Variabel pris",IFERROR((HLOOKUP(E116,'Variable priser'!$C$59:$H$64,5)+(E116-HLOOKUP(E116,'Variable priser'!$C$59:$H$64,1))*HLOOKUP(E116,'Variable priser'!$C$59:$H$64,6))/E116*(1+Genanskaffelsespriser!$D$203),"Fejl")) -> Variabel pris | K116: =IF(F116=0,"Variabel pris",IFERROR((HLOOKUP(F116,'Variable priser'!$C$59:$H$64,5)+(F116-HLOOKUP(F116,'Variable priser'!$C$59:$H$64,1))*HLOOKUP(F116,'Variable priser'!$C$59:$H$64,6))/F116*(1+Genanskaffelsespriser!$D$203),"Fejl")) -> Variabel pris | N116: 1 | O116: 1
A117: Skyllevand-/slamhåndteringsanlæg - jordbassiner | B117: m³ | C117: =Genanskaffelsespriser!$E$55 -> 50 | D117: 0 | E117: 0 | F117: 0 | G117: 0 | H117: 0 | J117: =IF(E117=0,"Variabel pris",IFERROR((HLOOKUP(E117,'Variable priser'!$C$59:$H$67,8)+(E117-HLOOKUP(E117,'Variable priser'!$C$59:$H$67,1))*HLOOKUP(E117,'Variable priser'!$C$59:$H$67,9))/E117*(1+Genanskaffelsespriser!$D$203),"Fejl")) -> Variabel pris | K117: =IF(F117=0,"Variabel pris",IFERROR((HLOOKUP(F117,'Variable priser'!$C$59:$H$67,8)+(F117-HLOOKUP(F117,'Variable priser'!$C$59:$H$67,1))*HLOOKUP(F117,'Variable priser'!$C$59:$H$67,9))/F117*(1+Genanskaffelsespriser!$D$203),"Fejl")) -> Variabel pris | N117: 1 | O117: 1
A118: Skyllevandsbehandling, inkl. UV-filter mv., Mek./EL | B118: m³/h. | C118: =Genanskaffelsespriser!$E$56 -> 25 | D118: 0 | E118: 0 | F118: 0 | G118: 0 | H118: 0 | J118: =IF(E118=0,"Variabel pris",IFERROR((HLOOKUP(E118,'Variable priser'!$C$108:$E$110,2)+(E118-HLOOKUP(E118,'Variable priser'!$C$108:$E$110,1))*HLOOKUP(E118,'Variable priser'!$C$108:$E$110,3))/E118*'Variable priser'!$H$109*(1+Genanskaffelsespriser!$D$203),"Fejl")) -> Variabel pris | K118: =IF(F118=0,"Variabel pris",IFERROR((HLOOKUP(F118,'Variable priser'!$C$108:$E$110,2)+(F118-HLOOKUP(F118,'Variable priser'!$C$108:$E$110,1))*HLOOKUP(F118,'Variable priser'!$C$108:$E$110,3))/F118*'Variable priser'!$H$109*(1+Genanskaffelsespriser!$D$203),"Fejl")) -> Variabel pris | N118: 1 | O118: 1
A119: Skyllevandsbehandling, inkl. UV-filter mv., SRO | B119: m³/h. | C119: =Genanskaffelsespriser!$E$57 -> 10 | D119: 0 | E119: 0 | F119: 0 | G119: 0 | H119: 0 | J119: =IF(E119=0,"Variabel pris",IFERROR((HLOOKUP(E119,'Variable priser'!$C$108:$E$110,2)+(E119-HLOOKUP(E119,'Variable priser'!$C$108:$E$110,1))*HLOOKUP(E119,'Variable priser'!$C$108:$E$110,3))/E119*'Variable priser'!$I$109*(1+Genanskaffelsespriser!$D$203),"Fejl")) -> Variabel pris | K119: =IF(F119=0,"Variabel pris",IFERROR((HLOOKUP(F119,'Variable priser'!$C$108:$E$110,2)+(F119-HLOOKUP(F119,'Variable priser'!$C$108:$E$110,1))*HLOOKUP(F119,'Variable priser'!$C$108:$E$110,3))/F119*'Variable priser'!$I$109*(1+Genanskaffelsespriser!$D$203),"Fejl")) -> Variabel pris | N119: 1 | O119: 1
A120: Nødstrømsanlæg på vandværk | B120: kW | C120: =Genanskaffelsespriser!$E$58 -> 25 | D120: 0 | E120: 0 | F120: 0 | G120: 0 | H120: 0 | J120: =IF(E120=0,"Variabel pris",IFERROR((HLOOKUP(E120,'Variable priser'!$C$86:$H$88,2)+(E120-HLOOKUP(E120,'Variable priser'!$C$86:$H$88,1))*HLOOKUP(E120,'Variable priser'!$C$86:$H$88,3))/E120*(1+Genanskaffelsespriser!$D$203),"Fejl")) -> Variabel pris | K120: =IF(F120=0,"Variabel pris",IFERROR((HLOOKUP(F120,'Variable priser'!$C$86:$H$88,2)+(F120-HLOOKUP(F120,'Variable priser'!$C$86:$H$88,1))*HLOOKUP(F120,'Variable priser'!$C$86:$H$88,3))/F120*(1+Genanskaffelsespriser!$D$203),"Fejl")) -> Variabel pris | N120: 1 | O120: 1
A121: Elanlæg og SRO-anlæg - vandværk, Elanlæg | B121: m³/h. | C121: =Genanskaffelsespriser!$E$59 -> 25 | D121: 100 | E121: 0 | F121: 0 | G121: -1 | H121: 0 | I121: Agertoften, er en trykforøger - så bør ligge i distribution | J121: =IF(E121=0,"Variabel pris",IFERROR((HLOOKUP(E121,'Variable priser'!$C$91:$J$95,4)+(E121-HLOOKUP(E121,'Variable priser'!$C$91:$J$95,1))*HLOOKUP(E121,'Variable priser'!$C$91:$J$95,5))/E121*(1+Genanskaffelsespriser!$D$203),"Fejl")) -> Variabel pris | K121: =IF(F121=0,"Variabel pris",IFERROR((HLOOKUP(F121,'Variable priser'!$C$91:$J$95,4)+(F121-HLOOKUP(F121,'Variable priser'!$C$91:$J$95,1))*HLOOKUP(F121,'Variable priser'!$C$91:$J$95,5))/F121*(1+Genanskaffelsespriser!$D$203),"Fejl")) -> Variabel pris | N121: 1 | O121: 1
A122: Elanlæg og SRO-anlæg - vandværk, SRO | B122: m³/h. | C122: =Genanskaffelsespriser!$E$60 -> 10 | D122: 100 | E122: 0 | F122: 0 | G122: -1 | H122: 0 | I122: Agertoften, er en trykforøger - så bør ligge i distribution | J122: =IF(E122=0,"Variabel pris",IFERROR((HLOOKUP(E122,'Variable priser'!$C$91:$J$98,7)+(E122-HLOOKUP(E122,'Variable priser'!$C$91:$J$98,1))*HLOOKUP(E122,'Variable priser'!$C$91:$J$98,8))/E122*(1+Genanskaffelsespriser!$D$203),"Fejl")) -> Variabel pris | K122: =IF(F122=0,"Variabel pris",IFERROR((HLOOKUP(F122,'Variable priser'!$C$91:$J$98,7)+(F122-HLOOKUP(F122,'Variable priser'!$C$91:$J$98,1))*HLOOKUP(F122,'Variable priser'!$C$91:$J$98,8))/F122*(1+Genanskaffelsespriser!$D$203),"Fejl")) -> Variabel pris | N122: 1 | O122: 1
A123: Vandværk 2
A124: Beluftningsanlæg, iltningstrappe, Konstruktioner | B124: m³/h | C124: =Genanskaffelsespriser!$E$30 -> 50 | D124: 0 | E124: 0 | F124: 0 | G124: 0 | H124: =IF($E124="",IF($F124>0,"Ny data",IF($F124="","",0)),IF($E124=0,IF($F124=0,0,"Ny data"),($F124-$E124)/$E124)) -> 0 | I124: Nordtoft er et vandtårn - så bør ligge i distribution | J124: =IF(E124=0,"Variabel pris",IFERROR((HLOOKUP(E124,'Variable priser'!$C$6:$H$16,2)+(E124-HLOOKUP(E124,'Variable priser'!$C$6:$H$16,1))*HLOOKUP(E124,'Variable priser'!$C$6:$H$16,3))/E124*'Variable priser'!$K$7*(1+Genanskaffelsespriser!$D$203),"Fejl")) -> Variabel pris | K124: =IF(F124=0,"Variabel pris",IFERROR((HLOOKUP(F124,'Variable priser'!$C$6:$H$16,2)+(F124-HLOOKUP(F124,'Variable priser'!$C$6:$H$16,1))*HLOOKUP(F124,'Variable priser'!$C$6:$H$16,3))/F124*'Variable priser'!$K$7*(1+Genanskaffelsespriser!$D$203),"Fejl")) -> Variabel pris | L124: =IF(ISBLANK(E124),"",IF(E124=0,"",IF(ISNUMBER(E124),((J124*E124)/C124)*N124,""))) ->  | M124: =IF(ISBLANK(F124),"",IF(F124=0,"",IF(ISNUMBER(F124),((K124*F124)/C124)*N124,""))) ->  | N124: 1 | O124: 1
A125: Beluftningsanlæg, iltningstrappe, Mek./EL | B125: m³/h | C125: =Genanskaffelsespriser!$E$31 -> 25 | D125: 0 | E125: 0 | F125: 0 | G125: 0 | H125: 0 | J125: =IF(E125=0,"Variabel pris",IFERROR((HLOOKUP(E125,'Variable priser'!$C$6:$H$16,2)+(E125-HLOOKUP(E125,'Variable priser'!$C$6:$H$16,1))*HLOOKUP(E125,'Variable priser'!$C$6:$H$16,3))/E125*'Variable priser'!$L$7*(1+Genanskaffelsespriser!$D$203),"Fejl")) -> Variabel pris | K125: =IF(F125=0,"Variabel pris",IFERROR((HLOOKUP(F125,'Variable priser'!$C$6:$H$16,2)+(F125-HLOOKUP(F125,'Variable priser'!$C$6:$H$16,1))*HLOOKUP(F125,'Variable priser'!$C$6:$H$16,3))/F125*'Variable priser'!$L$7*(1+Genanskaffelsespriser!$D$203),"Fejl")) -> Variabel pris | L125: =IF(ISBLANK(E125),"",IF(E125=0,"",IF(ISNUMBER(E125),((J125*E125)/C125)*N125,""))) ->  | M125: =IF(ISBLANK(F125),"",IF(F125=0,"",IF(ISNUMBER(F125),((K125*F125)/C125)*N125,""))) ->  | N125: 1 | O125: 1
A126: Beluftningsanlæg, ika-beluftning, Konstruktioner | B126: m³/h | C126: =Genanskaffelsespriser!$E$32 -> 50 | D126: 0 | E126: 0 | F126: 0 | G126: 0 | H126: 0 | J126: =IF(E126=0,"Variabel pris",IFERROR((HLOOKUP(E126,'Variable priser'!$C$6:$H$16,4)+(E126-HLOOKUP(E126,'Variable priser'!$C$6:$H$16,1))*HLOOKUP(E126,'Variable priser'!$C$6:$H$16,5))/E126*'Variable priser'!$K$9*(1+Genanskaffelsespriser!$D$203),"Fejl")) -> Variabel pris | K126: =IF(F126=0,"Variabel pris",IFERROR((HLOOKUP(F126,'Variable priser'!$C$6:$H$16,4)+(F126-HLOOKUP(F126,'Variable priser'!$C$6:$H$16,1))*HLOOKUP(F126,'Variable priser'!$C$6:$H$16,5))/F126*'Variable priser'!$K$9*(1+Genanskaffelsespriser!$D$203),"Fejl")) -> Variabel pris | N126: 1 | O126: 1
A127: Beluftningsanlæg, ika-beluftning, Mek./EL | B127: m³/h | C127: =Genanskaffelsespriser!$E$33 -> 25 | D127: 0 | E127: 0 | F127: 0 | G127: 0 | H127: 0 | J127: =IF(E127=0,"Variabel pris",IFERROR((HLOOKUP(E127,'Variable priser'!$C$6:$H$16,4)+(E127-HLOOKUP(E127,'Variable priser'!$C$6:$H$16,1))*HLOOKUP(E127,'Variable priser'!$C$6:$H$16,5))/E127*'Variable priser'!$L$9*(1+Genanskaffelsespriser!$D$203),"Fejl")) -> Variabel pris | K127: =IF(F127=0,"Variabel pris",IFERROR((HLOOKUP(F127,'Variable priser'!$C$6:$H$16,4)+(F127-HLOOKUP(F127,'Variable priser'!$C$6:$H$16,1))*HLOOKUP(F127,'Variable priser'!$C$6:$H$16,5))/F127*'Variable priser'!$L$9*(1+Genanskaffelsespriser!$D$203),"Fejl")) -> Variabel pris | N127: 1 | O127: 1
A128: Beluftningsanlæg, bundbeluftbning, Konstruktioner | B128: m³/h | C128: =Genanskaffelsespriser!$E$34 -> 50 | D128: 0 | E128: 0 | F128: 0 | G128: 0 | H128: 0 | J128: =IF(E128=0,"Variabel pris",IFERROR((HLOOKUP(E128,'Variable priser'!$C$6:$H$16,6)+(E128-HLOOKUP(E128,'Variable priser'!$C$6:$H$16,1))*HLOOKUP(E128,'Variable priser'!$C$6:$H$16,7))/E128*'Variable priser'!$K$17*(1+Genanskaffelsespriser!$D$203),"Fejl")) -> Variabel pris | K128: =IF(F128=0,"Variabel pris",IFERROR((HLOOKUP(F128,'Variable priser'!$C$6:$H$16,6)+(F128-HLOOKUP(F128,'Variable priser'!$C$6:$H$16,1))*HLOOKUP(F128,'Variable priser'!$C$6:$H$16,7))/F128*'Variable priser'!$K$17*(1+Genanskaffelsespriser!$D$203),"Fejl")) -> Variabel pris | N128: 1 | O128: 1
A129: Beluftningsanlæg, bundbeluftbning, Mek./EL | B129: m³/h | C129: =Genanskaffelsespriser!$E$35 -> 25 | D129: 0 | E129: 0 | F129: 0 | G129: 0 | H129: 0 | J129: =IF(E129=0,"Variabel pris",IFERROR((HLOOKUP(E129,'Variable priser'!$C$6:$H$16,6)+(E129-HLOOKUP(E129,'Variable priser'!$C$6:$H$16,1))*HLOOKUP(E129,'Variable priser'!$C$6:$H$16,7))/E129*'Variable priser'!$L$17*(1+Genanskaffelsespriser!$D$203),"Fejl")) -> Variabel pris | K129: =IF(F129=0,"Variabel pris",IFERROR((HLOOKUP(F129,'Variable priser'!$C$6:$H$16,6)+(F129-HLOOKUP(F129,'Variable priser'!$C$6:$H$16,1))*HLOOKUP(F129,'Variable priser'!$C$6:$H$16,7))/F129*'Variable priser'!$L$17*(1+Genanskaffelsespriser!$D$203),"Fejl")) -> Variabel pris | N129: 1 | O129: 1
A130: Beluftningsanlæg, rislebakke, Konstruktioner | B130: m³/h | C130: =Genanskaffelsespriser!$E$36 -> 50 | D130: 0 | E130: 0 | F130: 0 | G130: 0 | H130: 0 | J130: =IF(E130=0,"Variabel pris",IFERROR((HLOOKUP(E130,'Variable priser'!$C$6:$H$18,12)+(E130-HLOOKUP(E130,'Variable priser'!$C$6:$H$18,1))*HLOOKUP(E130,'Variable priser'!$C$6:$H$18,13))/E130*'Variable priser'!$K$17*(1+Genanskaffelsespriser!$D$203),"Fejl")) -> Variabel pris | K130: =IF(F130=0,"Variabel pris",IFERROR((HLOOKUP(F130,'Variable priser'!$C$6:$H$18,12)+(F130-HLOOKUP(F130,'Variable priser'!$C$6:$H$18,1))*HLOOKUP(F130,'Variable priser'!$C$6:$H$18,13))/F130*'Variable priser'!$K$17*(1+Genanskaffelsespriser!$D$203),"Fejl")) -> Variabel pris | N130: 1 | O130: 1
A131: Beluftningsanlæg, rislebakke, Mek./EL | B131: m³/h | C131: =Genanskaffelsespriser!$E$37 -> 25 | D131: 0 | E131: 0 | F131: 0 | G131: 0 | H131: 0 | J131: =IF(E131=0,"Variabel pris",IFERROR((HLOOKUP(E131,'Variable priser'!$C$6:$H$18,12)+(E131-HLOOKUP(E131,'Variable priser'!$C$6:$H$18,1))*HLOOKUP(E131,'Variable priser'!$C$6:$H$18,13))/E131*'Variable priser'!$L$17*(1+Genanskaffelsespriser!$D$203),"Fejl")) -> Variabel pris | K131: =IF(F131=0,"Variabel pris",IFERROR((HLOOKUP(F131,'Variable priser'!$C$6:$H$18,12)+(F131-HLOOKUP(F131,'Variable priser'!$C$6:$H$18,1))*HLOOKUP(F131,'Variable priser'!$C$6:$H$18,13))/F131*'Variable priser'!$L$17*(1+Genanskaffelsespriser!$D$203),"Fejl")) -> Variabel pris | N131: 1 | O131: 1
A132: Beluftningsanlæg, kompressorbeluftning | B132: m³/h | C132: =Genanskaffelsespriser!$E$38 -> 25 | D132: 0 | E132: 0 | F132: 0 | G132: 0 | H132: 0 | J132: =IF(E132=0,"Variabel pris",IFERROR((HLOOKUP(E132,'Variable priser'!$C$6:$H$16,8)+(E132-HLOOKUP(E132,'Variable priser'!$C$6:$H$16,1))*HLOOKUP(E132,'Variable priser'!$C$6:$H$16,9))/E132*(1+Genanskaffelsespriser!$D$203),"Fejl")) -> Variabel pris | K132: =IF(F132=0,"Variabel pris",IFERROR((HLOOKUP(F132,'Variable priser'!$C$6:$H$16,8)+(F132-HLOOKUP(F132,'Variable priser'!$C$6:$H$16,1))*HLOOKUP(F132,'Variable priser'!$C$6:$H$16,9))/F132*(1+Genanskaffelsespriser!$D$203),"Fejl")) -> Variabel pris | N132: 1 | O132: 1
A133: Beluftningsanlæg, ren ilt | B133: m³/h | C133: =Genanskaffelsespriser!$E$39 -> 25 | D133: 0 | E133: 0 | F133: 0 | G133: 0 | H133: 0 | J133: =IF(E133=0,"Variabel pris",IFERROR((HLOOKUP(E133,'Variable priser'!$C$6:$H$16,10)+(E133-HLOOKUP(E133,'Variable priser'!$C$6:$H$16,1))*HLOOKUP(E133,'Variable priser'!$C$6:$H$16,11))/E133*(1+Genanskaffelsespriser!$D$203),"Fejl")) -> Variabel pris | K133: =IF(F133=0,"Variabel pris",IFERROR((HLOOKUP(F133,'Variable priser'!$C$6:$H$16,10)+(F133-HLOOKUP(F133,'Variable priser'!$C$6:$H$16,1))*HLOOKUP(F133,'Variable priser'!$C$6:$H$16,11))/F133*(1+Genanskaffelsespriser!$D$203),"Fejl")) -> Variabel pris | N133: 1 | O133: 1
A134: Behandlingsanlæg, kalk anlæg | B134: m³/h | C134: =Genanskaffelsespriser!$E$40 -> 25 | D134: 0 | E134: 0 | F134: 0 | G134: 0 | H134: 0 | J134: =IF(E134=0,"Variabel pris",IFERROR((HLOOKUP(E134,'Variable priser'!$C$20:$G$24,3)+(E134-HLOOKUP(E134,'Variable priser'!$C$20:$G$24,1))*HLOOKUP(E134,'Variable priser'!$C$20:$G$24,4))/E134*(1+Genanskaffelsespriser!$D$203),"Fejl")) -> Variabel pris | K134: =IF(F134=0,"Variabel pris",IFERROR((HLOOKUP(F134,'Variable priser'!$C$20:$G$24,3)+(F134-HLOOKUP(F134,'Variable priser'!$C$20:$G$24,1))*HLOOKUP(F134,'Variable priser'!$C$20:$G$24,4))/F134*(1+Genanskaffelsespriser!$D$203),"Fejl")) -> Variabel pris | N134: 1 | O134: 1
A135: Behandlingsanlæg, luddosering | B135: m³/h | C135: =Genanskaffelsespriser!$E$41 -> 25 | D135: 0 | E135: 0 | F135: 0 | G135: 0 | H135: 0 | J135: =IF(E135=0,"Variabel pris",IFERROR((HLOOKUP(E135,'Variable priser'!$C$20:$G$25,5)+(E135-HLOOKUP(E135,'Variable priser'!$C$20:$G$25,1))*HLOOKUP(E135,'Variable priser'!$C$20:$G$25,6))/E135*(1+Genanskaffelsespriser!$D$203),"Fejl")) -> Variabel pris | K135: =IF(F135=0,"Variabel pris",IFERROR((HLOOKUP(F135,'Variable priser'!$C$20:$G$25,5)+(F135-HLOOKUP(F135,'Variable priser'!$C$20:$G$25,1))*HLOOKUP(F135,'Variable priser'!$C$20:$G$25,6))/F135*(1+Genanskaffelsespriser!$D$203),"Fejl")) -> Variabel pris | N135: 1 | O135: 1
A136: Filteranlæg, åbne filtre, enkelt filtrering, Konstruktioner | B136: m³/h | C136: =Genanskaffelsespriser!$E$42 -> 50 | D136: 0 | E136: 0 | F136: 0 | G136: 0 | H136: 0 | J136: =IF(E136=0,"Variabel pris",IFERROR((HLOOKUP(E136,'Variable priser'!$C$28:$G$38,9)+(E136-HLOOKUP(E136,'Variable priser'!$C$28:$G$38,1))*HLOOKUP(E136,'Variable priser'!$C$28:$G$38,10))/E136*'Variable priser'!$K$31*(1+Genanskaffelsespriser!$D$203),"Fejl")) -> Variabel pris | K136: =IF(F136=0,"Variabel pris",IFERROR((HLOOKUP(F136,'Variable priser'!$C$28:$G$38,9)+(F136-HLOOKUP(F136,'Variable priser'!$C$28:$G$38,1))*HLOOKUP(F136,'Variable priser'!$C$28:$G$38,10))/F136*'Variable priser'!$K$31*(1+Genanskaffelsespriser!$D$203),"Fejl")) -> Variabel pris | N136: 1 | O136: 1
A137: Filteranlæg, åbne filtre, enkelt filtrering, Mek./EL | B137: m³/h | C137: =Genanskaffelsespriser!$E$43 -> 25 | D137: 0 | E137: 0 | F137: 0 | G137: 0 | H137: 0 | J137: =IF(E137=0,"Variabel pris",IFERROR((HLOOKUP(E137,'Variable priser'!$C$28:$G$38,9)+(E137-HLOOKUP(E137,'Variable priser'!$C$28:$G$38,1))*HLOOKUP(E137,'Variable priser'!$C$28:$G$38,10))/E137*'Variable priser'!$L$31*(1+Genanskaffelsespriser!$D$203),"Fejl")) -> Variabel pris | K137: =IF(F137=0,"Variabel pris",IFERROR((HLOOKUP(F137,'Variable priser'!$C$28:$G$38,9)+(F137-HLOOKUP(F137,'Variable priser'!$C$28:$G$38,1))*HLOOKUP(F137,'Variable priser'!$C$28:$G$38,10))/F137*'Variable priser'!$L$31*(1+Genanskaffelsespriser!$D$203),"Fejl")) -> Variabel pris | N137: 1 | O137: 1
A138: Filteranlæg, åbne filtre, dobbelt filtrering, Konstruktioner | B138: m³/h | C138: =Genanskaffelsespriser!$E$44 -> 50 | D138: 0 | E138: 0 | F138: 0 | G138: 0 | H138: 0 | J138: =IF(E138=0,"Variabel pris",IFERROR((HLOOKUP(E138,'Variable priser'!$C$28:$G$38,6)+(E138-HLOOKUP(E138,'Variable priser'!$C$28:$G$38,1))*HLOOKUP(E138,'Variable priser'!$C$28:$G$38,7))/E138*'Variable priser'!$K$31*(1+Genanskaffelsespriser!$D$203),"Fejl")) -> Variabel pris | K138: =IF(F138=0,"Variabel pris",IFERROR((HLOOKUP(F138,'Variable priser'!$C$28:$G$38,6)+(F138-HLOOKUP(F138,'Variable priser'!$C$28:$G$38,1))*HLOOKUP(F138,'Variable priser'!$C$28:$G$38,7))/F138*'Variable priser'!$K$31*(1+Genanskaffelsespriser!$D$203),"Fejl")) -> Variabel pris | N138: 1 | O138: 1
A139: Filteranlæg, åbne filtre, dobbelt filtrering, Mek./EL | B139: m³/h | C139: =Genanskaffelsespriser!$E$45 -> 25 | D139: 0 | E139: 0 | F139: 0 | G139: 0 | H139: 0 | J139: =IF(E139=0,"Variabel pris",IFERROR((HLOOKUP(E139,'Variable priser'!$C$28:$G$38,6)+(E139-HLOOKUP(E139,'Variable priser'!$C$28:$G$38,1))*HLOOKUP(E139,'Variable priser'!$C$28:$G$38,7))/E139*'Variable priser'!$L$31*(1+Genanskaffelsespriser!$D$203),"Fejl")) -> Variabel pris | K139: =IF(F139=0,"Variabel pris",IFERROR((HLOOKUP(F139,'Variable priser'!$C$28:$G$38,6)+(F139-HLOOKUP(F139,'Variable priser'!$C$28:$G$38,1))*HLOOKUP(F139,'Variable priser'!$C$28:$G$38,7))/F139*'Variable priser'!$L$31*(1+Genanskaffelsespriser!$D$203),"Fejl")) -> Variabel pris | N139: 1 | O139: 1
A140: Filteranlæg, trykfiltre, enkelt filtrering | B140: m³/h | C140: =Genanskaffelsespriser!$E$46 -> 25 | D140: 0 | E140: 0 | F140: 0 | G140: 0 | H140: 0 | J140: =IF(E140=0,"Variabel pris",IFERROR((HLOOKUP(E140,'Variable priser'!$C$40:$H$42,2)+(E140-HLOOKUP(E140,'Variable priser'!$C$40:$H$42,1))*HLOOKUP(E140,'Variable priser'!$C$40:$H$42,3))/E140*(1+Genanskaffelsespriser!$D$203),"Fejl")) -> Variabel pris | K140: =IF(F140=0,"Variabel pris",IFERROR((HLOOKUP(F140,'Variable priser'!$C$40:$H$42,2)+(F140-HLOOKUP(F140,'Variable priser'!$C$40:$H$42,1))*HLOOKUP(F140,'Variable priser'!$C$40:$H$42,3))/F140*(1+Genanskaffelsespriser!$D$203),"Fejl")) -> Variabel pris | N140: 1 | O140: 1
A141: Filteranlæg, trykfiltre, dobbelt filtrering | B141: m³/h | C141: =Genanskaffelsespriser!$E$47 -> 25 | D141: 0 | E141: 0 | F141: 0 | G141: 0 | H141: 0 | J141: =IF(E141=0,"Variabel pris",IFERROR((HLOOKUP(E141,'Variable priser'!$C$44:$H$46,2)+(E141-HLOOKUP(E141,'Variable priser'!$C$44:$H$46,1))*HLOOKUP(E141,'Variable priser'!$C$44:$H$46,3))/E141*(1+Genanskaffelsespriser!$D$203),"Fejl")) -> Variabel pris | K141: =IF(F141=0,"Variabel pris",IFERROR((HLOOKUP(F141,'Variable priser'!$C$44:$H$46,2)+(F141-HLOOKUP(F141,'Variable priser'!$C$44:$H$46,1))*HLOOKUP(F141,'Variable priser'!$C$44:$H$46,3))/F141*(1+Genanskaffelsespriser!$D$203),"Fejl")) -> Variabel pris | N141: 1 | O141: 1
A142: Rentvandsbeholder insitu støbt | B142: m³ | C142: =Genanskaffelsespriser!$E$48 -> 50 | D142: 0 | E142: 0 | F142: 0 | G142: 0 | H142: 0 | J142: =IF(E142=0,"Variabel pris",IFERROR((HLOOKUP(E142,'Variable priser'!$C$48:$H$50,2)+(E142-HLOOKUP(E142,'Variable priser'!$C$48:$H$50,1))*HLOOKUP(E142,'Variable priser'!$C$48:$H$50,3))/E142*(1+Genanskaffelsespriser!$D$203),"Fejl")) -> Variabel pris | K142: =IF(F142=0,"Variabel pris",IFERROR((HLOOKUP(F142,'Variable priser'!$C$48:$H$50,2)+(F142-HLOOKUP(F142,'Variable priser'!$C$48:$H$50,1))*HLOOKUP(F142,'Variable priser'!$C$48:$H$50,3))/F142*(1+Genanskaffelsespriser!$D$203),"Fejl")) -> Variabel pris | N142: 1 | O142: 1
A143: Rentvandsbeholder element | B143: m³ | C143: =Genanskaffelsespriser!$E$49 -> 50 | D143: 0 | E143: 0 | F143: 0 | G143: 0 | H143: 0 | J143: =IF(E143=0,"Variabel pris",IFERROR((HLOOKUP(E143,'Variable priser'!$C$52:$H$54,2)+(E143-HLOOKUP(E143,'Variable priser'!$C$52:$H$54,1))*HLOOKUP(E143,'Variable priser'!$C$52:$H$54,3))/E143*(1+Genanskaffelsespriser!$D$203),"Fejl")) -> Variabel pris | K143: =IF(F143=0,"Variabel pris",IFERROR((HLOOKUP(F143,'Variable priser'!$C$52:$H$54,2)+(F143-HLOOKUP(F143,'Variable priser'!$C$52:$H$54,1))*HLOOKUP(F143,'Variable priser'!$C$52:$H$54,3))/F143*(1+Genanskaffelsespriser!$D$203),"Fejl")) -> Variabel pris | N143: 1 | O143: 1
A144: Udpumpningsanlæg, rentvandspumper på vandværk | B144: m³/h | C144: =Genanskaffelsespriser!$E$50 -> 25 | D144: 150 | E144: 0 | F144: 0 | G144: -1 | H144: 0 | I144: Nordtoft er et vandtårn - så bør ligge i distribution | J144: =IF(E144=0,"Variabel pris",IFERROR((HLOOKUP(E144,'Variable priser'!$C$71:$H$73,2)+(E144-HLOOKUP(E144,'Variable priser'!$C$71:$H$73,1))*HLOOKUP(E144,'Variable priser'!$C$71:$H$73,3))/E144*(1+Genanskaffelsespriser!$D$203),"Fejl")) -> Variabel pris | K144: =IF(F144=0,"Variabel pris",IFERROR((HLOOKUP(F144,'Variable priser'!$C$71:$H$73,2)+(F144-HLOOKUP(F144,'Variable priser'!$C$71:$H$73,1))*HLOOKUP(F144,'Variable priser'!$C$71:$H$73,3))/F144*(1+Genanskaffelsespriser!$D$203),"Fejl")) -> Variabel pris | N144: 1 | O144: 1
A145: Udpumpningsanlæg, frekvensomformer | B145: kW | C145: =Genanskaffelsespriser!$E$51 -> 25 | D145: 0 | E145: 0 | F145: 0 | G145: 0 | H145: 0 | J145: =IF(E145=0,"Variabel pris",IFERROR((HLOOKUP(E145,'Variable priser'!$C$76:$J$78,2)+(E145-HLOOKUP(E145,'Variable priser'!$C$76:$J$78,1))*HLOOKUP(E145,'Variable priser'!$C$76:$J$78,3))/E145*(1+Genanskaffelsespriser!$D$203),"Fejl")) -> Variabel pris | K145: =IF(F145=0,"Variabel pris",IFERROR((HLOOKUP(F145,'Variable priser'!$C$76:$J$78,2)+(F145-HLOOKUP(F145,'Variable priser'!$C$76:$J$78,1))*HLOOKUP(F145,'Variable priser'!$C$76:$J$78,3))/F145*(1+Genanskaffelsespriser!$D$203),"Fejl")) -> Variabel pris | N145: 1 | O145: 1
A146: Udpumpningsanlæg, Hydrofor | B146: liter | C146: =Genanskaffelsespriser!$E$52 -> 25 | D146: 0 | E146: 0 | F146: 0 | G146: 0 | H146: 0 | J146: =IF(E146=0,"Variabel pris",IFERROR((HLOOKUP(E146,'Variable priser'!$C$81:$J$83,2)+(E146-HLOOKUP(E146,'Variable priser'!$C$81:$J$83,1))*HLOOKUP(E146,'Variable priser'!$C$81:$J$83,3))/E146*(1+Genanskaffelsespriser!$D$203),"Fejl")) -> Variabel pris | K146: =IF(F146=0,"Variabel pris",IFERROR((HLOOKUP(F146,'Variable priser'!$C$81:$J$83,2)+(F146-HLOOKUP(F146,'Variable priser'!$C$81:$J$83,1))*HLOOKUP(F146,'Variable priser'!$C$81:$J$83,3))/F146*(1+Genanskaffelsespriser!$D$203),"Fejl")) -> Variabel pris | N146: 1 | O146: 1
A147: Skyllevand-/slamhåndteringsanlæg - lukkede betonbeholdere | B147: m³ | C147: =Genanskaffelsespriser!$E$53 -> 50 | D147: 0 | E147: 0 | F147: 0 | G147: 0 | H147: 0 | J147: =IF(E147=0,"Variabel pris",IFERROR((HLOOKUP(E147,'Variable priser'!$C$59:$H$61,2)+(E147-HLOOKUP(E147,'Variable priser'!$C$59:$H$61,1))*HLOOKUP(E147,'Variable priser'!$C$59:$H$61,3))/E147*(1+Genanskaffelsespriser!$D$203),"Fejl")) -> Variabel pris | K147: =IF(F147=0,"Variabel pris",IFERROR((HLOOKUP(F147,'Variable priser'!$C$59:$H$61,2)+(F147-HLOOKUP(F147,'Variable priser'!$C$59:$H$61,1))*HLOOKUP(F147,'Variable priser'!$C$59:$H$61,3))/F147*(1+Genanskaffelsespriser!$D$203),"Fejl")) -> Variabel pris | N147: 1 | O147: 1
A148: Skyllevand-/slamhåndteringsanl. - åbne med faste sider/bund | B148: m³ | C148: =Genanskaffelsespriser!$E$54 -> 50 | D148: 0 | E148: 0 | F148: 0 | G148: 0 | H148: 0 | J148: =IF(E148=0,"Variabel pris",IFERROR((HLOOKUP(E148,'Variable priser'!$C$59:$H$64,5)+(E148-HLOOKUP(E148,'Variable priser'!$C$59:$H$64,1))*HLOOKUP(E148,'Variable priser'!$C$59:$H$64,6))/E148*(1+Genanskaffelsespriser!$D$203),"Fejl")) -> Variabel pris | K148: =IF(F148=0,"Variabel pris",IFERROR((HLOOKUP(F148,'Variable priser'!$C$59:$H$64,5)+(F148-HLOOKUP(F148,'Variable priser'!$C$59:$H$64,1))*HLOOKUP(F148,'Variable priser'!$C$59:$H$64,6))/F148*(1+Genanskaffelsespriser!$D$203),"Fejl")) -> Variabel pris | N148: 1 | O148: 1
A149: Skyllevand-/slamhåndteringsanlæg - jordbassiner | B149: m³ | C149: =Genanskaffelsespriser!$E$55 -> 50 | D149: 0 | E149: 0 | F149: 0 | G149: 0 | H149: 0 | J149: =IF(E149=0,"Variabel pris",IFERROR((HLOOKUP(E149,'Variable priser'!$C$59:$H$67,8)+(E149-HLOOKUP(E149,'Variable priser'!$C$59:$H$67,1))*HLOOKUP(E149,'Variable priser'!$C$59:$H$67,9))/E149*(1+Genanskaffelsespriser!$D$203),"Fejl")) -> Variabel pris | K149: =IF(F149=0,"Variabel pris",IFERROR((HLOOKUP(F149,'Variable priser'!$C$59:$H$67,8)+(F149-HLOOKUP(F149,'Variable priser'!$C$59:$H$67,1))*HLOOKUP(F149,'Variable priser'!$C$59:$H$67,9))/F149*(1+Genanskaffelsespriser!$D$203),"Fejl")) -> Variabel pris | N149: 1 | O149: 1
A150: Skyllevandsbehandling, inkl. UV-filter mv., Mek./EL | B150: m³/h. | C150: =Genanskaffelsespriser!$E$56 -> 25 | D150: 0 | E150: 0 | F150: 0 | G150: 0 | H150: 0 | J150: =IF(E150=0,"Variabel pris",IFERROR((HLOOKUP(E150,'Variable priser'!$C$108:$E$110,2)+(E150-HLOOKUP(E150,'Variable priser'!$C$108:$E$110,1))*HLOOKUP(E150,'Variable priser'!$C$108:$E$110,3))/E150*'Variable priser'!$H$109*(1+Genanskaffelsespriser!$D$203),"Fejl")) -> Variabel pris | K150: =IF(F150=0,"Variabel pris",IFERROR((HLOOKUP(F150,'Variable priser'!$C$108:$E$110,2)+(F150-HLOOKUP(F150,'Variable priser'!$C$108:$E$110,1))*HLOOKUP(F150,'Variable priser'!$C$108:$E$110,3))/F150*'Variable priser'!$H$109*(1+Genanskaffelsespriser!$D$203),"Fejl")) -> Variabel pris | N150: 1 | O150: 1
A151: Skyllevandsbehandling, inkl. UV-filter mv., SRO | B151: m³/h. | C151: =Genanskaffelsespriser!$E$57 -> 10 | D151: 0 | E151: 0 | F151: 0 | G151: 0 | H151: 0 | J151: =IF(E151=0,"Variabel pris",IFERROR((HLOOKUP(E151,'Variable priser'!$C$108:$E$110,2)+(E151-HLOOKUP(E151,'Variable priser'!$C$108:$E$110,1))*HLOOKUP(E151,'Variable priser'!$C$108:$E$110,3))/E151*'Variable priser'!$I$109*(1+Genanskaffelsespriser!$D$203),"Fejl")) -> Variabel pris | K151: =IF(F151=0,"Variabel pris",IFERROR((HLOOKUP(F151,'Variable priser'!$C$108:$E$110,2)+(F151-HLOOKUP(F151,'Variable priser'!$C$108:$E$110,1))*HLOOKUP(F151,'Variable priser'!$C$108:$E$110,3))/F151*'Variable priser'!$I$109*(1+Genanskaffelsespriser!$D$203),"Fejl")) -> Variabel pris | N151: 1 | O151: 1
A152: Nødstrømsanlæg på vandværk | B152: kW | C152: =Genanskaffelsespriser!$E$58 -> 25 | D152: 0 | E152: 0 | F152: 0 | G152: 0 | H152: 0 | J152: =IF(E152=0,"Variabel pris",IFERROR((HLOOKUP(E152,'Variable priser'!$C$86:$H$88,2)+(E152-HLOOKUP(E152,'Variable priser'!$C$86:$H$88,1))*HLOOKUP(E152,'Variable priser'!$C$86:$H$88,3))/E152*(1+Genanskaffelsespriser!$D$203),"Fejl")) -> Variabel pris | K152: =IF(F152=0,"Variabel pris",IFERROR((HLOOKUP(F152,'Variable priser'!$C$86:$H$88,2)+(F152-HLOOKUP(F152,'Variable priser'!$C$86:$H$88,1))*HLOOKUP(F152,'Variable priser'!$C$86:$H$88,3))/F152*(1+Genanskaffelsespriser!$D$203),"Fejl")) -> Variabel pris | N152: 1 | O152: 1
A153: Elanlæg og SRO-anlæg - vandværk, Elanlæg | B153: m³/h. | C153: =Genanskaffelsespriser!$E$59 -> 25 | D153: 150 | E153: 0 | F153: 0 | G153: -1 | H153: 0 | I153: Nordtoft er et vandtårn - så bør ligge i distribution | J153: =IF(E153=0,"Variabel pris",IFERROR((HLOOKUP(E153,'Variable priser'!$C$91:$J$95,4)+(E153-HLOOKUP(E153,'Variable priser'!$C$91:$J$95,1))*HLOOKUP(E153,'Variable priser'!$C$91:$J$95,5))/E153*(1+Genanskaffelsespriser!$D$203),"Fejl")) -> Variabel pris | K153: =IF(F153=0,"Variabel pris",IFERROR((HLOOKUP(F153,'Variable priser'!$C$91:$J$95,4)+(F153-HLOOKUP(F153,'Variable priser'!$C$91:$J$95,1))*HLOOKUP(F153,'Variable priser'!$C$91:$J$95,5))/F153*(1+Genanskaffelsespriser!$D$203),"Fejl")) -> Variabel pris | N153: 1 | O153: 1
A154: Elanlæg og SRO-anlæg - vandværk, SRO | B154: m³/h. | C154: =Genanskaffelsespriser!$E$60 -> 10 | D154: 150 | E154: 0 | F154: 0 | G154: -1 | H154: 0 | I154: Nordtoft er et vandtårn - så bør ligge i distribution | J154: =IF(E154=0,"Variabel pris",IFERROR((HLOOKUP(E154,'Variable priser'!$C$91:$J$98,7)+(E154-HLOOKUP(E154,'Variable priser'!$C$91:$J$98,1))*HLOOKUP(E154,'Variable priser'!$C$91:$J$98,8))/E154*(1+Genanskaffelsespriser!$D$203),"Fejl")) -> Variabel pris | K154: =IF(F154=0,"Variabel pris",IFERROR((HLOOKUP(F154,'Variable priser'!$C$91:$J$98,7)+(F154-HLOOKUP(F154,'Variable priser'!$C$91:$J$98,1))*HLOOKUP(F154,'Variable priser'!$C$91:$J$98,8))/F154*(1+Genanskaffelsespriser!$D$203),"Fejl")) -> Variabel pris | N154: 1 | O154: 1
A155: Vandværk 3
A156: Beluftningsanlæg, iltningstrappe, Konstruktioner | B156: m³/h | C156: =Genanskaffelsespriser!$E$30 -> 50 | D156: 0 | E156: 0 | F156: 0 | G156: 0 | H156: 0 | I156: Nr. Tranders er et beholderanlæg, så bør ligge i distribution | J156: =IF(E156=0,"Variabel pris",IFERROR((HLOOKUP(E156,'Variable priser'!$C$6:$H$16,2)+(E156-HLOOKUP(E156,'Variable priser'!$C$6:$H$16,1))*HLOOKUP(E156,'Variable priser'!$C$6:$H$16,3))/E156*'Variable priser'!$K$7*(1+Genanskaffelsespriser!$D$203),"Fejl")) -> Variabel pris | K156: =IF(F156=0,"Variabel pris",IFERROR((HLOOKUP(F156,'Variable priser'!$C$6:$H$16,2)+(F156-HLOOKUP(F156,'Variable priser'!$C$6:$H$16,1))*HLOOKUP(F156,'Variable priser'!$C$6:$H$16,3))/F156*'Variable priser'!$K$7*(1+Genanskaffelsespriser!$D$203),"Fejl")) -> Variabel pris | L156: =IF(ISBLANK(E156),"",IF(E156=0,"",IF(ISNUMBER(E156),((J156*E156)/C156)*N156,""))) ->  | M156: =IF(ISBLANK(F156),"",IF(F156=0,"",IF(ISNUMBER(F156),((K156*F156)/C156)*N156,""))) ->  | N156: 1 | O156: 1
A157: Beluftningsanlæg, iltningstrappe, Mek./EL | B157: m³/h | C157: =Genanskaffelsespriser!$E$31 -> 25 | D157: 0 | E157: 0 | F157: 0 | G157: 0 | H157: 0 | J157: =IF(E157=0,"Variabel pris",IFERROR((HLOOKUP(E157,'Variable priser'!$C$6:$H$16,2)+(E157-HLOOKUP(E157,'Variable priser'!$C$6:$H$16,1))*HLOOKUP(E157,'Variable priser'!$C$6:$H$16,3))/E157*'Variable priser'!$L$7*(1+Genanskaffelsespriser!$D$203),"Fejl")) -> Variabel pris | K157: =IF(F157=0,"Variabel pris",IFERROR((HLOOKUP(F157,'Variable priser'!$C$6:$H$16,2)+(F157-HLOOKUP(F157,'Variable priser'!$C$6:$H$16,1))*HLOOKUP(F157,'Variable priser'!$C$6:$H$16,3))/F157*'Variable priser'!$L$7*(1+Genanskaffelsespriser!$D$203),"Fejl")) -> Variabel pris | L157: =IF(ISBLANK(E157),"",IF(E157=0,"",IF(ISNUMBER(E157),((J157*E157)/C157)*N157,""))) ->  | M157: =IF(ISBLANK(F157),"",IF(F157=0,"",IF(ISNUMBER(F157),((K157*F157)/C157)*N157,""))) ->  | N157: 1 | O157: 1
A158: Beluftningsanlæg, ika-beluftning, Konstruktioner | B158: m³/h | C158: =Genanskaffelsespriser!$E$32 -> 50 | D158: 0 | E158: 0 | F158: 0 | G158: 0 | H158: 0 | J158: =IF(E158=0,"Variabel pris",IFERROR((HLOOKUP(E158,'Variable priser'!$C$6:$H$16,4)+(E158-HLOOKUP(E158,'Variable priser'!$C$6:$H$16,1))*HLOOKUP(E158,'Variable priser'!$C$6:$H$16,5))/E158*'Variable priser'!$K$9*(1+Genanskaffelsespriser!$D$203),"Fejl")) -> Variabel pris | K158: =IF(F158=0,"Variabel pris",IFERROR((HLOOKUP(F158,'Variable priser'!$C$6:$H$16,4)+(F158-HLOOKUP(F158,'Variable priser'!$C$6:$H$16,1))*HLOOKUP(F158,'Variable priser'!$C$6:$H$16,5))/F158*'Variable priser'!$K$9*(1+Genanskaffelsespriser!$D$203),"Fejl")) -> Variabel pris | N158: 1 | O158: 1
A159: Beluftningsanlæg, ika-beluftning, Mek./EL | B159: m³/h | C159: =Genanskaffelsespriser!$E$33 -> 25 | D159: 0 | E159: 0 | F159: 0 | G159: 0 | H159: 0 | J159: =IF(E159=0,"Variabel pris",IFERROR((HLOOKUP(E159,'Variable priser'!$C$6:$H$16,4)+(E159-HLOOKUP(E159,'Variable priser'!$C$6:$H$16,1))*HLOOKUP(E159,'Variable priser'!$C$6:$H$16,5))/E159*'Variable priser'!$L$9*(1+Genanskaffelsespriser!$D$203),"Fejl")) -> Variabel pris | K159: =IF(F159=0,"Variabel pris",IFERROR((HLOOKUP(F159,'Variable priser'!$C$6:$H$16,4)+(F159-HLOOKUP(F159,'Variable priser'!$C$6:$H$16,1))*HLOOKUP(F159,'Variable priser'!$C$6:$H$16,5))/F159*'Variable priser'!$L$9*(1+Genanskaffelsespriser!$D$203),"Fejl")) -> Variabel pris | N159: 1 | O159: 1
A160: Beluftningsanlæg, bundbeluftbning, Konstruktioner | B160: m³/h | C160: =Genanskaffelsespriser!$E$34 -> 50 | D160: 0 | E160: 0 | F160: 0 | G160: 0 | H160: 0 | J160: =IF(E160=0,"Variabel pris",IFERROR((HLOOKUP(E160,'Variable priser'!$C$6:$H$16,6)+(E160-HLOOKUP(E160,'Variable priser'!$C$6:$H$16,1))*HLOOKUP(E160,'Variable priser'!$C$6:$H$16,7))/E160*'Variable priser'!$K$17*(1+Genanskaffelsespriser!$D$203),"Fejl")) -> Variabel pris | K160: =IF(F160=0,"Variabel pris",IFERROR((HLOOKUP(F160,'Variable priser'!$C$6:$H$16,6)+(F160-HLOOKUP(F160,'Variable priser'!$C$6:$H$16,1))*HLOOKUP(F160,'Variable priser'!$C$6:$H$16,7))/F160*'Variable priser'!$K$17*(1+Genanskaffelsespriser!$D$203),"Fejl")) -> Variabel pris | N160: 1 | O160: 1
A161: Beluftningsanlæg, bundbeluftbning, Mek./EL | B161: m³/h | C161: =Genanskaffelsespriser!$E$35 -> 25 | D161: 0 | E161: 0 | F161: 0 | G161: 0 | H161: 0 | J161: =IF(E161=0,"Variabel pris",IFERROR((HLOOKUP(E161,'Variable priser'!$C$6:$H$16,6)+(E161-HLOOKUP(E161,'Variable priser'!$C$6:$H$16,1))*HLOOKUP(E161,'Variable priser'!$C$6:$H$16,7))/E161*'Variable priser'!$L$17*(1+Genanskaffelsespriser!$D$203),"Fejl")) -> Variabel pris | K161: =IF(F161=0,"Variabel pris",IFERROR((HLOOKUP(F161,'Variable priser'!$C$6:$H$16,6)+(F161-HLOOKUP(F161,'Variable priser'!$C$6:$H$16,1))*HLOOKUP(F161,'Variable priser'!$C$6:$H$16,7))/F161*'Variable priser'!$L$17*(1+Genanskaffelsespriser!$D$203),"Fejl")) -> Variabel pris | N161: 1 | O161: 1
A162: Beluftningsanlæg, rislebakke, Konstruktioner | B162: m³/h | C162: =Genanskaffelsespriser!$E$36 -> 50 | D162: 0 | E162: 0 | F162: 0 | G162: 0 | H162: 0 | J162: =IF(E162=0,"Variabel pris",IFERROR((HLOOKUP(E162,'Variable priser'!$C$6:$H$18,12)+(E162-HLOOKUP(E162,'Variable priser'!$C$6:$H$18,1))*HLOOKUP(E162,'Variable priser'!$C$6:$H$18,13))/E162*'Variable priser'!$K$17*(1+Genanskaffelsespriser!$D$203),"Fejl")) -> Variabel pris | K162: =IF(F162=0,"Variabel pris",IFERROR((HLOOKUP(F162,'Variable priser'!$C$6:$H$18,12)+(F162-HLOOKUP(F162,'Variable priser'!$C$6:$H$18,1))*HLOOKUP(F162,'Variable priser'!$C$6:$H$18,13))/F162*'Variable priser'!$K$17*(1+Genanskaffelsespriser!$D$203),"Fejl")) -> Variabel pris | N162: 1 | O162: 1
A163: Beluftningsanlæg, rislebakke, Mek./EL | B163: m³/h | C163: =Genanskaffelsespriser!$E$37 -> 25 | D163: 0 | E163: 0 | F163: 0 | G163: 0 | H163: 0 | J163: =IF(E163=0,"Variabel pris",IFERROR((HLOOKUP(E163,'Variable priser'!$C$6:$H$18,12)+(E163-HLOOKUP(E163,'Variable priser'!$C$6:$H$18,1))*HLOOKUP(E163,'Variable priser'!$C$6:$H$18,13))/E163*'Variable priser'!$L$17*(1+Genanskaffelsespriser!$D$203),"Fejl")) -> Variabel pris | K163: =IF(F163=0,"Variabel pris",IFERROR((HLOOKUP(F163,'Variable priser'!$C$6:$H$18,12)+(F163-HLOOKUP(F163,'Variable priser'!$C$6:$H$18,1))*HLOOKUP(F163,'Variable priser'!$C$6:$H$18,13))/F163*'Variable priser'!$L$17*(1+Genanskaffelsespriser!$D$203),"Fejl")) -> Variabel pris | N163: 1 | O163: 1
A164: Beluftningsanlæg, kompressorbeluftning | B164: m³/h | C164: =Genanskaffelsespriser!$E$38 -> 25 | D164: 0 | E164: 0 | F164: 0 | G164: 0 | H164: 0 | J164: =IF(E164=0,"Variabel pris",IFERROR((HLOOKUP(E164,'Variable priser'!$C$6:$H$16,8)+(E164-HLOOKUP(E164,'Variable priser'!$C$6:$H$16,1))*HLOOKUP(E164,'Variable priser'!$C$6:$H$16,9))/E164*(1+Genanskaffelsespriser!$D$203),"Fejl")) -> Variabel pris | K164: =IF(F164=0,"Variabel pris",IFERROR((HLOOKUP(F164,'Variable priser'!$C$6:$H$16,8)+(F164-HLOOKUP(F164,'Variable priser'!$C$6:$H$16,1))*HLOOKUP(F164,'Variable priser'!$C$6:$H$16,9))/F164*(1+Genanskaffelsespriser!$D$203),"Fejl")) -> Variabel pris | N164: 1 | O164: 1
A165: Beluftningsanlæg, ren ilt | B165: m³/h | C165: =Genanskaffelsespriser!$E$39 -> 25 | D165: 0 | E165: 0 | F165: 0 | G165: 0 | H165: 0 | J165: =IF(E165=0,"Variabel pris",IFERROR((HLOOKUP(E165,'Variable priser'!$C$6:$H$16,10)+(E165-HLOOKUP(E165,'Variable priser'!$C$6:$H$16,1))*HLOOKUP(E165,'Variable priser'!$C$6:$H$16,11))/E165*(1+Genanskaffelsespriser!$D$203),"Fejl")) -> Variabel pris | K165: =IF(F165=0,"Variabel pris",IFERROR((HLOOKUP(F165,'Variable priser'!$C$6:$H$16,10)+(F165-HLOOKUP(F165,'Variable priser'!$C$6:$H$16,1))*HLOOKUP(F165,'Variable priser'!$C$6:$H$16,11))/F165*(1+Genanskaffelsespriser!$D$203),"Fejl")) -> Variabel pris | N165: 1 | O165: 1
A166: Behandlingsanlæg, kalk anlæg | B166: m³/h | C166: =Genanskaffelsespriser!$E$40 -> 25 | D166: 0 | E166: 0 | F166: 0 | G166: 0 | H166: 0 | J166: =IF(E166=0,"Variabel pris",IFERROR((HLOOKUP(E166,'Variable priser'!$C$20:$G$24,3)+(E166-HLOOKUP(E166,'Variable priser'!$C$20:$G$24,1))*HLOOKUP(E166,'Variable priser'!$C$20:$G$24,4))/E166*(1+Genanskaffelsespriser!$D$203),"Fejl")) -> Variabel pris | K166: =IF(F166=0,"Variabel pris",IFERROR((HLOOKUP(F166,'Variable priser'!$C$20:$G$24,3)+(F166-HLOOKUP(F166,'Variable priser'!$C$20:$G$24,1))*HLOOKUP(F166,'Variable priser'!$C$20:$G$24,4))/F166*(1+Genanskaffelsespriser!$D$203),"Fejl")) -> Variabel pris | N166: 1 | O166: 1
A167: Behandlingsanlæg, luddosering | B167: m³/h | C167: =Genanskaffelsespriser!$E$41 -> 25 | D167: 0 | E167: 0 | F167: 0 | G167: 0 | H167: 0 | J167: =IF(E167=0,"Variabel pris",IFERROR((HLOOKUP(E167,'Variable priser'!$C$20:$G$25,5)+(E167-HLOOKUP(E167,'Variable priser'!$C$20:$G$25,1))*HLOOKUP(E167,'Variable priser'!$C$20:$G$25,6))/E167*(1+Genanskaffelsespriser!$D$203),"Fejl")) -> Variabel pris | K167: =IF(F167=0,"Variabel pris",IFERROR((HLOOKUP(F167,'Variable priser'!$C$20:$G$25,5)+(F167-HLOOKUP(F167,'Variable priser'!$C$20:$G$25,1))*HLOOKUP(F167,'Variable priser'!$C$20:$G$25,6))/F167*(1+Genanskaffelsespriser!$D$203),"Fejl")) -> Variabel pris | N167: 1 | O167: 1
A168: Filteranlæg, åbne filtre, enkelt filtrering, Konstruktioner | B168: m³/h | C168: =Genanskaffelsespriser!$E$42 -> 50 | D168: 0 | E168: 0 | F168: 0 | G168: 0 | H168: 0 | J168: =IF(E168=0,"Variabel pris",IFERROR((HLOOKUP(E168,'Variable priser'!$C$28:$G$38,9)+(E168-HLOOKUP(E168,'Variable priser'!$C$28:$G$38,1))*HLOOKUP(E168,'Variable priser'!$C$28:$G$38,10))/E168*'Variable priser'!$K$31*(1+Genanskaffelsespriser!$D$203),"Fejl")) -> Variabel pris | K168: =IF(F168=0,"Variabel pris",IFERROR((HLOOKUP(F168,'Variable priser'!$C$28:$G$38,9)+(F168-HLOOKUP(F168,'Variable priser'!$C$28:$G$38,1))*HLOOKUP(F168,'Variable priser'!$C$28:$G$38,10))/F168*'Variable priser'!$K$31*(1+Genanskaffelsespriser!$D$203),"Fejl")) -> Variabel pris | N168: 1 | O168: 1
A169: Filteranlæg, åbne filtre, enkelt filtrering, Mek./EL | B169: m³/h | C169: =Genanskaffelsespriser!$E$43 -> 25 | D169: 0 | E169: 0 | F169: 0 | G169: 0 | H169: 0 | J169: =IF(E169=0,"Variabel pris",IFERROR((HLOOKUP(E169,'Variable priser'!$C$28:$G$38,9)+(E169-HLOOKUP(E169,'Variable priser'!$C$28:$G$38,1))*HLOOKUP(E169,'Variable priser'!$C$28:$G$38,10))/E169*'Variable priser'!$L$31*(1+Genanskaffelsespriser!$D$203),"Fejl")) -> Variabel pris | K169: =IF(F169=0,"Variabel pris",IFERROR((HLOOKUP(F169,'Variable priser'!$C$28:$G$38,9)+(F169-HLOOKUP(F169,'Variable priser'!$C$28:$G$38,1))*HLOOKUP(F169,'Variable priser'!$C$28:$G$38,10))/F169*'Variable priser'!$L$31*(1+Genanskaffelsespriser!$D$203),"Fejl")) -> Variabel pris | N169: 1 | O169: 1
A170: Filteranlæg, åbne filtre, dobbelt filtrering, Konstruktioner | B170: m³/h | C170: =Genanskaffelsespriser!$E$44 -> 50 | D170: 0 | E170: 0 | F170: 0 | G170: 0 | H170: 0 | J170: =IF(E170=0,"Variabel pris",IFERROR((HLOOKUP(E170,'Variable priser'!$C$28:$G$38,6)+(E170-HLOOKUP(E170,'Variable priser'!$C$28:$G$38,1))*HLOOKUP(E170,'Variable priser'!$C$28:$G$38,7))/E170*'Variable priser'!$K$31*(1+Genanskaffelsespriser!$D$203),"Fejl")) -> Variabel pris | K170: =IF(F170=0,"Variabel pris",IFERROR((HLOOKUP(F170,'Variable priser'!$C$28:$G$38,6)+(F170-HLOOKUP(F170,'Variable priser'!$C$28:$G$38,1))*HLOOKUP(F170,'Variable priser'!$C$28:$G$38,7))/F170*'Variable priser'!$K$31*(1+Genanskaffelsespriser!$D$203),"Fejl")) -> Variabel pris | N170: 1 | O170: 1
A171: Filteranlæg, åbne filtre, dobbelt filtrering, Mek./EL | B171: m³/h | C171: =Genanskaffelsespriser!$E$45 -> 25 | D171: 0 | E171: 0 | F171: 0 | G171: 0 | H171: 0 | J171: =IF(E171=0,"Variabel pris",IFERROR((HLOOKUP(E171,'Variable priser'!$C$28:$G$38,6)+(E171-HLOOKUP(E171,'Variable priser'!$C$28:$G$38,1))*HLOOKUP(E171,'Variable priser'!$C$28:$G$38,7))/E171*'Variable priser'!$L$31*(1+Genanskaffelsespriser!$D$203),"Fejl")) -> Variabel pris | K171: =IF(F171=0,"Variabel pris",IFERROR((HLOOKUP(F171,'Variable priser'!$C$28:$G$38,6)+(F171-HLOOKUP(F171,'Variable priser'!$C$28:$G$38,1))*HLOOKUP(F171,'Variable priser'!$C$28:$G$38,7))/F171*'Variable priser'!$L$31*(1+Genanskaffelsespriser!$D$203),"Fejl")) -> Variabel pris | N171: 1 | O171: 1
A172: Filteranlæg, trykfiltre, enkelt filtrering | B172: m³/h | C172: =Genanskaffelsespriser!$E$46 -> 25 | D172: 0 | E172: 0 | F172: 0 | G172: 0 | H172: 0 | J172: =IF(E172=0,"Variabel pris",IFERROR((HLOOKUP(E172,'Variable priser'!$C$40:$H$42,2)+(E172-HLOOKUP(E172,'Variable priser'!$C$40:$H$42,1))*HLOOKUP(E172,'Variable priser'!$C$40:$H$42,3))/E172*(1+Genanskaffelsespriser!$D$203),"Fejl")) -> Variabel pris | K172: =IF(F172=0,"Variabel pris",IFERROR((HLOOKUP(F172,'Variable priser'!$C$40:$H$42,2)+(F172-HLOOKUP(F172,'Variable priser'!$C$40:$H$42,1))*HLOOKUP(F172,'Variable priser'!$C$40:$H$42,3))/F172*(1+Genanskaffelsespriser!$D$203),"Fejl")) -> Variabel pris | N172: 1 | O172: 1
A173: Filteranlæg, trykfiltre, dobbelt filtrering | B173: m³/h | C173: =Genanskaffelsespriser!$E$47 -> 25 | D173: 0 | E173: 0 | F173: 0 | G173: 0 | H173: 0 | J173: =IF(E173=0,"Variabel pris",IFERROR((HLOOKUP(E173,'Variable priser'!$C$44:$H$46,2)+(E173-HLOOKUP(E173,'Variable priser'!$C$44:$H$46,1))*HLOOKUP(E173,'Variable priser'!$C$44:$H$46,3))/E173*(1+Genanskaffelsespriser!$D$203),"Fejl")) -> Variabel pris | K173: =IF(F173=0,"Variabel pris",IFERROR((HLOOKUP(F173,'Variable priser'!$C$44:$H$46,2)+(F173-HLOOKUP(F173,'Variable priser'!$C$44:$H$46,1))*HLOOKUP(F173,'Variable priser'!$C$44:$H$46,3))/F173*(1+Genanskaffelsespriser!$D$203),"Fejl")) -> Variabel pris | N173: 1 | O173: 1
A174: Rentvandsbeholder insitu støbt | B174: m³ | C174: =Genanskaffelsespriser!$E$48 -> 50 | D174: 0 | E174: 0 | F174: 0 | G174: =IF($D174="",IF($E174>0,"Ny data",IF($E174="","",0)),IF($D174=0,IF($E174=0,0,"Ny data"),($E174-$D174)/$D174)) -> 0 | H174: 0 | J174: =IF(E174=0,"Variabel pris",IFERROR((HLOOKUP(E174,'Variable priser'!$C$48:$H$50,2)+(E174-HLOOKUP(E174,'Variable priser'!$C$48:$H$50,1))*HLOOKUP(E174,'Variable priser'!$C$48:$H$50,3))/E174*(1+Genanskaffelsespriser!$D$203),"Fejl")) -> Variabel pris | K174: =IF(F174=0,"Variabel pris",IFERROR((HLOOKUP(F174,'Variable priser'!$C$48:$H$50,2)+(F174-HLOOKUP(F174,'Variable priser'!$C$48:$H$50,1))*HLOOKUP(F174,'Variable priser'!$C$48:$H$50,3))/F174*(1+Genanskaffelsespriser!$D$203),"Fejl")) -> Variabel pris | N174: 1 | O174: 1
A175: Rentvandsbeholder element | B175: m³ | C175: =Genanskaffelsespriser!$E$49 -> 50 | D175: 0 | E175: 0 | F175: 0 | G175: 0 | H175: 0 | J175: =IF(E175=0,"Variabel pris",IFERROR((HLOOKUP(E175,'Variable priser'!$C$52:$H$54,2)+(E175-HLOOKUP(E175,'Variable priser'!$C$52:$H$54,1))*HLOOKUP(E175,'Variable priser'!$C$52:$H$54,3))/E175*(1+Genanskaffelsespriser!$D$203),"Fejl")) -> Variabel pris | K175: =IF(F175=0,"Variabel pris",IFERROR((HLOOKUP(F175,'Variable priser'!$C$52:$H$54,2)+(F175-HLOOKUP(F175,'Variable priser'!$C$52:$H$54,1))*HLOOKUP(F175,'Variable priser'!$C$52:$H$54,3))/F175*(1+Genanskaffelsespriser!$D$203),"Fejl")) -> Variabel pris | N175: 1 | O175: 1
A176: Udpumpningsanlæg, rentvandspumper på vandværk | B176: m³/h | C176: =Genanskaffelsespriser!$E$50 -> 25 | D176: 250 | E176: 0 | F176: 0 | G176: -1 | H176: 0 | I176: Nr. Tranders er et beholderanlæg, så bør ligge i distribution | J176: =IF(E176=0,"Variabel pris",IFERROR((HLOOKUP(E176,'Variable priser'!$C$71:$H$73,2)+(E176-HLOOKUP(E176,'Variable priser'!$C$71:$H$73,1))*HLOOKUP(E176,'Variable priser'!$C$71:$H$73,3))/E176*(1+Genanskaffelsespriser!$D$203),"Fejl")) -> Variabel pris | K176: =IF(F176=0,"Variabel pris",IFERROR((HLOOKUP(F176,'Variable priser'!$C$71:$H$73,2)+(F176-HLOOKUP(F176,'Variable priser'!$C$71:$H$73,1))*HLOOKUP(F176,'Variable priser'!$C$71:$H$73,3))/F176*(1+Genanskaffelsespriser!$D$203),"Fejl")) -> Variabel pris | N176: 1 | O176: 1
A177: Udpumpningsanlæg, frekvensomformer | B177: kW | C177: =Genanskaffelsespriser!$E$51 -> 25 | D177: 75 | E177: 0 | F177: 0 | G177: -1 | H177: 0 | I177: Nr. Tranders er et beholderanlæg, så bør ligge i distribution | J177: =IF(E177=0,"Variabel pris",IFERROR((HLOOKUP(E177,'Variable priser'!$C$76:$J$78,2)+(E177-HLOOKUP(E177,'Variable priser'!$C$76:$J$78,1))*HLOOKUP(E177,'Variable priser'!$C$76:$J$78,3))/E177*(1+Genanskaffelsespriser!$D$203),"Fejl")) -> Variabel pris | K177: =IF(F177=0,"Variabel pris",IFERROR((HLOOKUP(F177,'Variable priser'!$C$76:$J$78,2)+(F177-HLOOKUP(F177,'Variable priser'!$C$76:$J$78,1))*HLOOKUP(F177,'Variable priser'!$C$76:$J$78,3))/F177*(1+Genanskaffelsespriser!$D$203),"Fejl")) -> Variabel pris | N177: 1 | O177: 1
A178: Udpumpningsanlæg, Hydrofor | B178: liter | C178: =Genanskaffelsespriser!$E$52 -> 25 | D178: 0 | E178: 0 | F178: 0 | G178: 0 | H178: 0 | J178: =IF(E178=0,"Variabel pris",IFERROR((HLOOKUP(E178,'Variable priser'!$C$81:$J$83,2)+(E178-HLOOKUP(E178,'Variable priser'!$C$81:$J$83,1))*HLOOKUP(E178,'Variable priser'!$C$81:$J$83,3))/E178*(1+Genanskaffelsespriser!$D$203),"Fejl")) -> Variabel pris | K178: =IF(F178=0,"Variabel pris",IFERROR((HLOOKUP(F178,'Variable priser'!$C$81:$J$83,2)+(F178-HLOOKUP(F178,'Variable priser'!$C$81:$J$83,1))*HLOOKUP(F178,'Variable priser'!$C$81:$J$83,3))/F178*(1+Genanskaffelsespriser!$D$203),"Fejl")) -> Variabel pris | N178: 1 | O178: 1
A179: Skyllevand-/slamhåndteringsanlæg - lukkede betonbeholdere | B179: m³ | C179: =Genanskaffelsespriser!$E$53 -> 50 | D179: 0 | E179: 0 | F179: 0 | G179: 0 | H179: 0 | J179: =IF(E179=0,"Variabel pris",IFERROR((HLOOKUP(E179,'Variable priser'!$C$59:$H$61,2)+(E179-HLOOKUP(E179,'Variable priser'!$C$59:$H$61,1))*HLOOKUP(E179,'Variable priser'!$C$59:$H$61,3))/E179*(1+Genanskaffelsespriser!$D$203),"Fejl")) -> Variabel pris | K179: =IF(F179=0,"Variabel pris",IFERROR((HLOOKUP(F179,'Variable priser'!$C$59:$H$61,2)+(F179-HLOOKUP(F179,'Variable priser'!$C$59:$H$61,1))*HLOOKUP(F179,'Variable priser'!$C$59:$H$61,3))/F179*(1+Genanskaffelsespriser!$D$203),"Fejl")) -> Variabel pris | N179: 1 | O179: 1
A180: Skyllevand-/slamhåndteringsanl. - åbne med faste sider/bund | B180: m³ | C180: =Genanskaffelsespriser!$E$54 -> 50 | D180: 0 | E180: 0 | F180: 0 | G180: 0 | H180: 0 | J180: =IF(E180=0,"Variabel pris",IFERROR((HLOOKUP(E180,'Variable priser'!$C$59:$H$64,5)+(E180-HLOOKUP(E180,'Variable priser'!$C$59:$H$64,1))*HLOOKUP(E180,'Variable priser'!$C$59:$H$64,6))/E180*(1+Genanskaffelsespriser!$D$203),"Fejl")) -> Variabel pris | K180: =IF(F180=0,"Variabel pris",IFERROR((HLOOKUP(F180,'Variable priser'!$C$59:$H$64,5)+(F180-HLOOKUP(F180,'Variable priser'!$C$59:$H$64,1))*HLOOKUP(F180,'Variable priser'!$C$59:$H$64,6))/F180*(1+Genanskaffelsespriser!$D$203),"Fejl")) -> Variabel pris | N180: 1 | O180: 1
A181: Skyllevand-/slamhåndteringsanlæg - jordbassiner | B181: m³ | C181: =Genanskaffelsespriser!$E$55 -> 50 | D181: 0 | E181: 0 | F181: 0 | G181: 0 | H181: 0 | J181: =IF(E181=0,"Variabel pris",IFERROR((HLOOKUP(E181,'Variable priser'!$C$59:$H$67,8)+(E181-HLOOKUP(E181,'Variable priser'!$C$59:$H$67,1))*HLOOKUP(E181,'Variable priser'!$C$59:$H$67,9))/E181*(1+Genanskaffelsespriser!$D$203),"Fejl")) -> Variabel pris | K181: =IF(F181=0,"Variabel pris",IFERROR((HLOOKUP(F181,'Variable priser'!$C$59:$H$67,8)+(F181-HLOOKUP(F181,'Variable priser'!$C$59:$H$67,1))*HLOOKUP(F181,'Variable priser'!$C$59:$H$67,9))/F181*(1+Genanskaffelsespriser!$D$203),"Fejl")) -> Variabel pris | N181: 1 | O181: 1
A182: Skyllevandsbehandling, inkl. UV-filter mv., Mek./EL | B182: m³/h. | C182: =Genanskaffelsespriser!$E$56 -> 25 | D182: 0 | E182: 0 | F182: 0 | G182: 0 | H182: 0 | J182: =IF(E182=0,"Variabel pris",IFERROR((HLOOKUP(E182,'Variable priser'!$C$108:$E$110,2)+(E182-HLOOKUP(E182,'Variable priser'!$C$108:$E$110,1))*HLOOKUP(E182,'Variable priser'!$C$108:$E$110,3))/E182*'Variable priser'!$H$109*(1+Genanskaffelsespriser!$D$203),"Fejl")) -> Variabel pris | K182: =IF(F182=0,"Variabel pris",IFERROR((HLOOKUP(F182,'Variable priser'!$C$108:$E$110,2)+(F182-HLOOKUP(F182,'Variable priser'!$C$108:$E$110,1))*HLOOKUP(F182,'Variable priser'!$C$108:$E$110,3))/F182*'Variable priser'!$H$109*(1+Genanskaffelsespriser!$D$203),"Fejl")) -> Variabel pris | N182: 1 | O182: 1
A183: Skyllevandsbehandling, inkl. UV-filter mv., SRO | B183: m³/h. | C183: =Genanskaffelsespriser!$E$57 -> 10 | D183: 0 | E183: 0 | F183: 0 | G183: 0 | H183: 0 | J183: =IF(E183=0,"Variabel pris",IFERROR((HLOOKUP(E183,'Variable priser'!$C$108:$E$110,2)+(E183-HLOOKUP(E183,'Variable priser'!$C$108:$E$110,1))*HLOOKUP(E183,'Variable priser'!$C$108:$E$110,3))/E183*'Variable priser'!$I$109*(1+Genanskaffelsespriser!$D$203),"Fejl")) -> Variabel pris | K183: =IF(F183=0,"Variabel pris",IFERROR((HLOOKUP(F183,'Variable priser'!$C$108:$E$110,2)+(F183-HLOOKUP(F183,'Variable priser'!$C$108:$E$110,1))*HLOOKUP(F183,'Variable priser'!$C$108:$E$110,3))/F183*'Variable priser'!$I$109*(1+Genanskaffelsespriser!$D$203),"Fejl")) -> Variabel pris | N183: 1 | O183: 1
A184: Nødstrømsanlæg på vandværk | B184: kW | C184: =Genanskaffelsespriser!$E$58 -> 25 | D184: 0 | E184: 0 | F184: 0 | G184: 0 | H184: 0 | J184: =IF(E184=0,"Variabel pris",IFERROR((HLOOKUP(E184,'Variable priser'!$C$86:$H$88,2)+(E184-HLOOKUP(E184,'Variable priser'!$C$86:$H$88,1))*HLOOKUP(E184,'Variable priser'!$C$86:$H$88,3))/E184*(1+Genanskaffelsespriser!$D$203),"Fejl")) -> Variabel pris | K184: =IF(F184=0,"Variabel pris",IFERROR((HLOOKUP(F184,'Variable priser'!$C$86:$H$88,2)+(F184-HLOOKUP(F184,'Variable priser'!$C$86:$H$88,1))*HLOOKUP(F184,'Variable priser'!$C$86:$H$88,3))/F184*(1+Genanskaffelsespriser!$D$203),"Fejl")) -> Variabel pris | N184: 1 | O184: 1
A185: Elanlæg og SRO-anlæg - vandværk, Elanlæg | B185: m³/h. | C185: =Genanskaffelsespriser!$E$59 -> 25 | D185: 250 | E185: 0 | F185: 0 | G185: -1 | H185: 0 | I185: Nr. Tranders er et beholderanlæg, så bør ligge i distribution | J185: =IF(E185=0,"Variabel pris",IFERROR((HLOOKUP(E185,'Variable priser'!$C$91:$J$95,4)+(E185-HLOOKUP(E185,'Variable priser'!$C$91:$J$95,1))*HLOOKUP(E185,'Variable priser'!$C$91:$J$95,5))/E185*(1+Genanskaffelsespriser!$D$203),"Fejl")) -> Variabel pris | K185: =IF(F185=0,"Variabel pris",IFERROR((HLOOKUP(F185,'Variable priser'!$C$91:$J$95,4)+(F185-HLOOKUP(F185,'Variable priser'!$C$91:$J$95,1))*HLOOKUP(F185,'Variable priser'!$C$91:$J$95,5))/F185*(1+Genanskaffelsespriser!$D$203),"Fejl")) -> Variabel pris | N185: 1 | O185: 1
A186: Elanlæg og SRO-anlæg - vandværk, SRO | B186: m³/h. | C186: =Genanskaffelsespriser!$E$60 -> 10 | D186: 250 | E186: 0 | F186: 0 | G186: -1 | H186: 0 | I186: Nr. Tranders er et beholderanlæg, så bør ligge i distribution | J186: =IF(E186=0,"Variabel pris",IFERROR((HLOOKUP(E186,'Variable priser'!$C$91:$J$98,7)+(E186-HLOOKUP(E186,'Variable priser'!$C$91:$J$98,1))*HLOOKUP(E186,'Variable priser'!$C$91:$J$98,8))/E186*(1+Genanskaffelsespriser!$D$203),"Fejl")) -> Variabel pris | K186: =IF(F186=0,"Variabel pris",IFERROR((HLOOKUP(F186,'Variable priser'!$C$91:$J$98,7)+(F186-HLOOKUP(F186,'Variable priser'!$C$91:$J$98,1))*HLOOKUP(F186,'Variable priser'!$C$91:$J$98,8))/F186*(1+Genanskaffelsespriser!$D$203),"Fejl")) -> Variabel pris | N186: 1 | O186: 1
A187: Vandværk 4
A188: Beluftningsanlæg, iltningstrappe, Konstruktioner | B188: m³/h | C188: =Genanskaffelsespriser!$E$30 -> 50 | D188: 0 | E188: 0 | F188: 0 | G188: =IF($D188="",IF($E188>0,"Ny data",IF($E188="","",0)),IF($D188=0,IF($E188=0,0,"Ny data"),($E188-$D188)/$D188)) -> 0 | H188: 0 | I188: Ferslev Beholderanlæg, bør ligge i distribution | J188: =IF(E188=0,"Variabel pris",IFERROR((HLOOKUP(E188,'Variable priser'!$C$6:$H$16,2)+(E188-HLOOKUP(E188,'Variable priser'!$C$6:$H$16,1))*HLOOKUP(E188,'Variable priser'!$C$6:$H$16,3))/E188*'Variable priser'!$K$7*(1+Genanskaffelsespriser!$D$203),"Fejl")) -> Variabel pris | K188: =IF(F188=0,"Variabel pris",IFERROR((HLOOKUP(F188,'Variable priser'!$C$6:$H$16,2)+(F188-HLOOKUP(F188,'Variable priser'!$C$6:$H$16,1))*HLOOKUP(F188,'Variable priser'!$C$6:$H$16,3))/F188*'Variable priser'!$K$7*(1+Genanskaffelsespriser!$D$203),"Fejl")) -> Variabel pris | L188: =IF(ISBLANK(E188),"",IF(E188=0,"",IF(ISNUMBER(E188),((J188*E188)/C188)*N188,""))) ->  | M188: =IF(ISBLANK(F188),"",IF(F188=0,"",IF(ISNUMBER(F188),((K188*F188)/C188)*N188,""))) ->  | N188: 1 | O188: 1
A189: Beluftningsanlæg, iltningstrappe, Mek./EL | B189: m³/h | C189: =Genanskaffelsespriser!$E$31 -> 25 | D189: 0 | E189: 0 | F189: 0 | G189: 0 | H189: =IF($E189="",IF($F189>0,"Ny data",IF($F189="","",0)),IF($E189=0,IF($F189=0,0,"Ny data"),($F189-$E189)/$E189)) -> 0 | J189: =IF(E189=0,"Variabel pris",IFERROR((HLOOKUP(E189,'Variable priser'!$C$6:$H$16,2)+(E189-HLOOKUP(E189,'Variable priser'!$C$6:$H$16,1))*HLOOKUP(E189,'Variable priser'!$C$6:$H$16,3))/E189*'Variable priser'!$L$7*(1+Genanskaffelsespriser!$D$203),"Fejl")) -> Variabel pris | K189: =IF(F189=0,"Variabel pris",IFERROR((HLOOKUP(F189,'Variable priser'!$C$6:$H$16,2)+(F189-HLOOKUP(F189,'Variable priser'!$C$6:$H$16,1))*HLOOKUP(F189,'Variable priser'!$C$6:$H$16,3))/F189*'Variable priser'!$L$7*(1+Genanskaffelsespriser!$D$203),"Fejl")) -> Variabel pris | L189: =IF(ISBLANK(E189),"",IF(E189=0,"",IF(ISNUMBER(E189),((J189*E189)/C189)*N189,""))) ->  | M189: =IF(ISBLANK(F189),"",IF(F189=0,"",IF(ISNUMBER(F189),((K189*F189)/C189)*N189,""))) ->  | N189: 1 | O189: 1
A190: Beluftningsanlæg, ika-beluftning, Konstruktioner | B190: m³/h | C190: =Genanskaffelsespriser!$E$32 -> 50 | D190: 0 | E190: 0 | F190: 0 | G190: 0 | H190: 0 | J190: =IF(E190=0,"Variabel pris",IFERROR((HLOOKUP(E190,'Variable priser'!$C$6:$H$16,4)+(E190-HLOOKUP(E190,'Variable priser'!$C$6:$H$16,1))*HLOOKUP(E190,'Variable priser'!$C$6:$H$16,5))/E190*'Variable priser'!$K$9*(1+Genanskaffelsespriser!$D$203),"Fejl")) -> Variabel pris | K190: =IF(F190=0,"Variabel pris",IFERROR((HLOOKUP(F190,'Variable priser'!$C$6:$H$16,4)+(F190-HLOOKUP(F190,'Variable priser'!$C$6:$H$16,1))*HLOOKUP(F190,'Variable priser'!$C$6:$H$16,5))/F190*'Variable priser'!$K$9*(1+Genanskaffelsespriser!$D$203),"Fejl")) -> Variabel pris | N190: 1 | O190: 1
A191: Beluftningsanlæg, ika-beluftning, Mek./EL | B191: m³/h | C191: =Genanskaffelsespriser!$E$33 -> 25 | D191: 0 | E191: 0 | F191: 0 | G191: 0 | H191: 0 | J191: =IF(E191=0,"Variabel pris",IFERROR((HLOOKUP(E191,'Variable priser'!$C$6:$H$16,4)+(E191-HLOOKUP(E191,'Variable priser'!$C$6:$H$16,1))*HLOOKUP(E191,'Variable priser'!$C$6:$H$16,5))/E191*'Variable priser'!$L$9*(1+Genanskaffelsespriser!$D$203),"Fejl")) -> Variabel pris | K191: =IF(F191=0,"Variabel pris",IFERROR((HLOOKUP(F191,'Variable priser'!$C$6:$H$16,4)+(F191-HLOOKUP(F191,'Variable priser'!$C$6:$H$16,1))*HLOOKUP(F191,'Variable priser'!$C$6:$H$16,5))/F191*'Variable priser'!$L$9*(1+Genanskaffelsespriser!$D$203),"Fejl")) -> Variabel pris | N191: 1 | O191: 1
A192: Beluftningsanlæg, bundbeluftbning, Konstruktioner | B192: m³/h | C192: =Genanskaffelsespriser!$E$34 -> 50 | D192: 0 | E192: 0 | F192: 0 | G192: 0 | H192: 0 | J192: =IF(E192=0,"Variabel pris",IFERROR((HLOOKUP(E192,'Variable priser'!$C$6:$H$16,6)+(E192-HLOOKUP(E192,'Variable priser'!$C$6:$H$16,1))*HLOOKUP(E192,'Variable priser'!$C$6:$H$16,7))/E192*'Variable priser'!$K$17*(1+Genanskaffelsespriser!$D$203),"Fejl")) -> Variabel pris | K192: =IF(F192=0,"Variabel pris",IFERROR((HLOOKUP(F192,'Variable priser'!$C$6:$H$16,6)+(F192-HLOOKUP(F192,'Variable priser'!$C$6:$H$16,1))*HLOOKUP(F192,'Variable priser'!$C$6:$H$16,7))/F192*'Variable priser'!$K$17*(1+Genanskaffelsespriser!$D$203),"Fejl")) -> Variabel pris | N192: 1 | O192: 1
A193: Beluftningsanlæg, bundbeluftbning, Mek./EL | B193: m³/h | C193: =Genanskaffelsespriser!$E$35 -> 25 | D193: 0 | E193: 0 | F193: 0 | G193: 0 | H193: 0 | J193: =IF(E193=0,"Variabel pris",IFERROR((HLOOKUP(E193,'Variable priser'!$C$6:$H$16,6)+(E193-HLOOKUP(E193,'Variable priser'!$C$6:$H$16,1))*HLOOKUP(E193,'Variable priser'!$C$6:$H$16,7))/E193*'Variable priser'!$L$17*(1+Genanskaffelsespriser!$D$203),"Fejl")) -> Variabel pris | K193: =IF(F193=0,"Variabel pris",IFERROR((HLOOKUP(F193,'Variable priser'!$C$6:$H$16,6)+(F193-HLOOKUP(F193,'Variable priser'!$C$6:$H$16,1))*HLOOKUP(F193,'Variable priser'!$C$6:$H$16,7))/F193*'Variable priser'!$L$17*(1+Genanskaffelsespriser!$D$203),"Fejl")) -> Variabel pris | N193: 1 | O193: 1
A194: Beluftningsanlæg, rislebakke, Konstruktioner | B194: m³/h | C194: =Genanskaffelsespriser!$E$36 -> 50 | D194: 0 | E194: 0 | F194: 0 | G194: 0 | H194: 0 | J194: =IF(E194=0,"Variabel pris",IFERROR((HLOOKUP(E194,'Variable priser'!$C$6:$H$18,12)+(E194-HLOOKUP(E194,'Variable priser'!$C$6:$H$18,1))*HLOOKUP(E194,'Variable priser'!$C$6:$H$18,13))/E194*'Variable priser'!$K$17*(1+Genanskaffelsespriser!$D$203),"Fejl")) -> Variabel pris | K194: =IF(F194=0,"Variabel pris",IFERROR((HLOOKUP(F194,'Variable priser'!$C$6:$H$18,12)+(F194-HLOOKUP(F194,'Variable priser'!$C$6:$H$18,1))*HLOOKUP(F194,'Variable priser'!$C$6:$H$18,13))/F194*'Variable priser'!$K$17*(1+Genanskaffelsespriser!$D$203),"Fejl")) -> Variabel pris | N194: 1 | O194: 1
A195: Beluftningsanlæg, rislebakke, Mek./EL | B195: m³/h | C195: =Genanskaffelsespriser!$E$37 -> 25 | D195: 0 | E195: 0 | F195: 0 | G195: 0 | H195: 0 | J195: =IF(E195=0,"Variabel pris",IFERROR((HLOOKUP(E195,'Variable priser'!$C$6:$H$18,12)+(E195-HLOOKUP(E195,'Variable priser'!$C$6:$H$18,1))*HLOOKUP(E195,'Variable priser'!$C$6:$H$18,13))/E195*'Variable priser'!$L$17*(1+Genanskaffelsespriser!$D$203),"Fejl")) -> Variabel pris | K195: =IF(F195=0,"Variabel pris",IFERROR((HLOOKUP(F195,'Variable priser'!$C$6:$H$18,12)+(F195-HLOOKUP(F195,'Variable priser'!$C$6:$H$18,1))*HLOOKUP(F195,'Variable priser'!$C$6:$H$18,13))/F195*'Variable priser'!$L$17*(1+Genanskaffelsespriser!$D$203),"Fejl")) -> Variabel pris | N195: 1 | O195: 1
A196: Beluftningsanlæg, kompressorbeluftning | B196: m³/h | C196: =Genanskaffelsespriser!$E$38 -> 25 | D196: 0 | E196: 0 | F196: 0 | G196: 0 | H196: 0 | J196: =IF(E196=0,"Variabel pris",IFERROR((HLOOKUP(E196,'Variable priser'!$C$6:$H$16,8)+(E196-HLOOKUP(E196,'Variable priser'!$C$6:$H$16,1))*HLOOKUP(E196,'Variable priser'!$C$6:$H$16,9))/E196*(1+Genanskaffelsespriser!$D$203),"Fejl")) -> Variabel pris | K196: =IF(F196=0,"Variabel pris",IFERROR((HLOOKUP(F196,'Variable priser'!$C$6:$H$16,8)+(F196-HLOOKUP(F196,'Variable priser'!$C$6:$H$16,1))*HLOOKUP(F196,'Variable priser'!$C$6:$H$16,9))/F196*(1+Genanskaffelsespriser!$D$203),"Fejl")) -> Variabel pris | N196: 1 | O196: 1
A197: Beluftningsanlæg, ren ilt | B197: m³/h | C197: =Genanskaffelsespriser!$E$39 -> 25 | D197: 0 | E197: 0 | F197: 0 | G197: 0 | H197: 0 | J197: =IF(E197=0,"Variabel pris",IFERROR((HLOOKUP(E197,'Variable priser'!$C$6:$H$16,10)+(E197-HLOOKUP(E197,'Variable priser'!$C$6:$H$16,1))*HLOOKUP(E197,'Variable priser'!$C$6:$H$16,11))/E197*(1+Genanskaffelsespriser!$D$203),"Fejl")) -> Variabel pris | K197: =IF(F197=0,"Variabel pris",IFERROR((HLOOKUP(F197,'Variable priser'!$C$6:$H$16,10)+(F197-HLOOKUP(F197,'Variable priser'!$C$6:$H$16,1))*HLOOKUP(F197,'Variable priser'!$C$6:$H$16,11))/F197*(1+Genanskaffelsespriser!$D$203),"Fejl")) -> Variabel pris | N197: 1 | O197: 1
A198: Behandlingsanlæg, kalk anlæg | B198: m³/h | C198: =Genanskaffelsespriser!$E$40 -> 25 | D198: 0 | E198: 0 | F198: 0 | G198: 0 | H198: 0 | J198: =IF(E198=0,"Variabel pris",IFERROR((HLOOKUP(E198,'Variable priser'!$C$20:$G$24,3)+(E198-HLOOKUP(E198,'Variable priser'!$C$20:$G$24,1))*HLOOKUP(E198,'Variable priser'!$C$20:$G$24,4))/E198*(1+Genanskaffelsespriser!$D$203),"Fejl")) -> Variabel pris | K198: =IF(F198=0,"Variabel pris",IFERROR((HLOOKUP(F198,'Variable priser'!$C$20:$G$24,3)+(F198-HLOOKUP(F198,'Variable priser'!$C$20:$G$24,1))*HLOOKUP(F198,'Variable priser'!$C$20:$G$24,4))/F198*(1+Genanskaffelsespriser!$D$203),"Fejl")) -> Variabel pris | N198: 1 | O198: 1
A199: Behandlingsanlæg, luddosering | B199: m³/h | C199: =Genanskaffelsespriser!$E$41 -> 25 | D199: 0 | E199: 0 | F199: 0 | G199: 0 | H199: 0 | J199: =IF(E199=0,"Variabel pris",IFERROR((HLOOKUP(E199,'Variable priser'!$C$20:$G$25,5)+(E199-HLOOKUP(E199,'Variable priser'!$C$20:$G$25,1))*HLOOKUP(E199,'Variable priser'!$C$20:$G$25,6))/E199*(1+Genanskaffelsespriser!$D$203),"Fejl")) -> Variabel pris | K199: =IF(F199=0,"Variabel pris",IFERROR((HLOOKUP(F199,'Variable priser'!$C$20:$G$25,5)+(F199-HLOOKUP(F199,'Variable priser'!$C$20:$G$25,1))*HLOOKUP(F199,'Variable priser'!$C$20:$G$25,6))/F199*(1+Genanskaffelsespriser!$D$203),"Fejl")) -> Variabel pris | N199: 1 | O199: 1
A200: Filteranlæg, åbne filtre, enkelt filtrering, Konstruktioner | B200: m³/h | C200: =Genanskaffelsespriser!$E$42 -> 50 | D200: 0 | E200: 0 | F200: 0 | G200: 0 | H200: 0 | J200: =IF(E200=0,"Variabel pris",IFERROR((HLOOKUP(E200,'Variable priser'!$C$28:$G$38,9)+(E200-HLOOKUP(E200,'Variable priser'!$C$28:$G$38,1))*HLOOKUP(E200,'Variable priser'!$C$28:$G$38,10))/E200*'Variable priser'!$K$31*(1+Genanskaffelsespriser!$D$203),"Fejl")) -> Variabel pris | K200: =IF(F200=0,"Variabel pris",IFERROR((HLOOKUP(F200,'Variable priser'!$C$28:$G$38,9)+(F200-HLOOKUP(F200,'Variable priser'!$C$28:$G$38,1))*HLOOKUP(F200,'Variable priser'!$C$28:$G$38,10))/F200*'Variable priser'!$K$31*(1+Genanskaffelsespriser!$D$203),"Fejl")) -> Variabel pris | N200: 1 | O200: 1
... 866 more rows

Sheet Distributionsanlæg
A1: Distributionsanlæg | B1: Enhed | C1: Standard-levetid | D1: Samlet mængde per 31/12-2023 | E1: Samlet mængde per 31/12-2024 | F1: Samlet mængde per 31/12-2025 | G1: Afvigelse 2023-2024 | H1: Afvigelse 2024-2025 | I1: Bemærkninger | J1: Enhedspris 2024 | K1: Enhedspris 2025 | L1: Netvolumenbidrag 2024 | M1: Netvolumenbidrag 2025 | N1: Ejerandel 2024 (%) | O1: Ejerandel 2025 (%)
A2: Ledningsnet - Land | N2: 1
A3: Ledningsnet ≤ Ø50 mm | B3: meter | C3: =Genanskaffelsespriser!E81 -> 75 | D3: 7637.42 | E3: 7798.73 | F3: 7857.18 | G3: =IF($D3="",IF($E3>0,"Ny data",IF($E3="","",0)),IF($D3=0,IF($E3=0,0,"Ny data"),($E3-$D3)/$D3)) -> 0.02112100683 | H3: =IF($E3="",IF($F3>0,"Ny data",IF($F3="","",0)),IF($E3=0,IF($F3=0,0,"Ny data"),($F3-$E3)/$E3)) -> 0.007494810052 | J3: =Genanskaffelsespriser!$D81 -> 529 | K3: =J3 -> 529 | L3: =IF(ISNUMBER(E3),((J3*E3)/C3)*N3,"") -> 55007.04227 | M3: =IF(ISNUMBER(F3),((K3*F3)/C3)*O3,"") -> 55419.3096 | N3: 1 | O3: 1
A4: Ø 50mm < Ledningsnet ≤ Ø110 mm | B4: meter | C4: =Genanskaffelsespriser!E82 -> 75 | D4: 59994.05 | E4: 61041.81 | F4: 64292.39 | G4: =IF($D4="",IF($E4>0,"Ny data",IF($E4="","",0)),IF($D4=0,IF($E4=0,0,"Ny data"),($E4-$D4)/$D4)) -> 0.01746439855 | H4: =IF($E4="",IF($F4>0,"Ny data",IF($F4="","",0)),IF($E4=0,IF($F4=0,0,"Ny data"),($F4-$E4)/$E4)) -> 0.05325169748 | J4: =Genanskaffelsespriser!$D82 -> 808 | K4: =J4 -> 808 | L4: =IF(ISNUMBER(E4),((J4*E4)/C4)*N4,"") -> 657623.7664 | M4: =IF(ISNUMBER(F4),((K4*F4)/C4)*O4,"") -> 692643.3483 | N4: 1 | O4: 1
A5: Ø110 mm < Ledningsnet ≤ Ø 250 mm | B5: meter | C5: =Genanskaffelsespriser!E83 -> 75 | D5: 20641.78 | E5: 20657.78 | F5: 22260.27 | G5: 0.0007751269513 | H5: 0.07757319518 | J5: =Genanskaffelsespriser!$D83 -> 1513 | K5: 1513 | L5: 416736.2819 | M5: 449063.8468 | N5: 1 | O5: 1
A6: Ø 250 mm < Ledningsnet ≤ Ø 500mm | B6: meter | C6: =Genanskaffelsespriser!E84 -> 75 | D6: 33228.9 | E6: 33228.9 | F6: 33228.9 | G6: 0 | H6: 0 | J6: =Genanskaffelsespriser!$D84 -> 2944 | K6: 2944 | L6: 1304345.088 | M6: 1304345.088 | N6: 1 | O6: 1
A7: Ledningsnet > Ø 500 mm | B7: meter | C7: =Genanskaffelsespriser!E85 -> 75 | D7: 0 | E7: 0 | F7: 0 | G7: 0 | H7: 0 | J7: =Genanskaffelsespriser!$D85 -> 5751 | K7: 5751 | L7: 0 | M7: 0 | N7: 1 | O7: 1
A8: Støbejernsledninger ≤ Ø50 mm | B8: meter | C8: =Genanskaffelsespriser!E86 -> 100 | D8: 0 | E8: 0 | F8: 0 | G8: 0 | H8: 0 | J8: =Genanskaffelsespriser!$D86 -> 899 | K8: 899 | L8: 0 | M8: 0 | N8: 1 | O8: 1
A9: Støbejernsledninger Ø 50mm < Ledningsnet ≤ Ø110 mm | B9: meter | C9: =Genanskaffelsespriser!E87 -> 100 | D9: 3.58 | E9: 3.58 | F9: 3.58 | G9: 0 | H9: 0 | J9: =Genanskaffelsespriser!$D87 -> 1053 | K9: 1053 | L9: 37.6974 | M9: 37.6974 | N9: 1 | O9: 1
A10: Støbejernsledninger Ø110 mm < Ledningsnet ≤ Ø 250 mm | B10: meter | C10: =Genanskaffelsespriser!E88 -> 100 | D10: 1196.55 | E10: 1196.55 | F10: 1196.55 | G10: -1.90024383e-16 | H10: 1.90024383e-16 | J10: =Genanskaffelsespriser!$D88 -> 1490 | K10: 1490 | L10: 17828.595 | M10: 17828.595 | N10: 1 | O10: 1
A11: Støbejernsledninger Ø 250 mm < Ledningsnet ≤ Ø 500mm | B11: meter | C11: =Genanskaffelsespriser!E89 -> 100 | D11: 926.68 | E11: 926.68 | F11: 926.68 | G11: 1.226818726e-16 | H11: 0 | J11: =Genanskaffelsespriser!$D89 -> 2762 | K11: 2762 | L11: 25594.9016 | M11: 25594.9016 | N11: 1 | O11: 1
A12: Støbejernsledninger Ledningsnet > Ø 500 mm | B12: meter | C12: =Genanskaffelsespriser!E90 -> 100 | D12: 0 | E12: 0 | F12: 0 | G12: 0 | H12: 0 | J12: =Genanskaffelsespriser!$D90 -> 5484 | K12: 5484 | L12: 0 | M12: 0 | N12: 1 | O12: 1
A13: Eternitledninger ≤ Ø50 mm | B13: meter | C13: =Genanskaffelsespriser!E91 -> 75 | D13: 0 | E13: 0 | F13: 0 | G13: 0 | H13: 0 | J13: =Genanskaffelsespriser!$D91 -> 655 | K13: 655 | L13: 0 | M13: 0 | N13: 1 | O13: 1
A14: Eternitledninger Ø 50mm < Ledningsnet ≤ Ø110 mm | B14: meter | C14: =Genanskaffelsespriser!E92 -> 75 | D14: 0 | E14: 0 | F14: 0 | G14: 0 | H14: 0 | J14: =Genanskaffelsespriser!$D92 -> 885 | K14: 885 | L14: 0 | M14: 0 | N14: 1 | O14: 1
A15: Eternitledninger Ø110 mm < Ledningsnet ≤ Ø 250 mm | B15: meter | C15: =Genanskaffelsespriser!E93 -> 75 | D15: 4406.03 | E15: 4406.03 | F15: 4406.03 | G15: -6.192613544e-16 | H15: 4.128409029e-16 | J15: =Genanskaffelsespriser!$D93 -> 1287 | K15: 1287 | L15: 75607.4748 | M15: 75607.4748 | N15: 1 | O15: 1
A16: Eternitledninger Ø 250 mm < Ledningsnet ≤ Ø 500mm | B16: meter | C16: =Genanskaffelsespriser!E94 -> 75 | D16: 6830.45 | E16: 6824.01 | F16: 6824.01 | G16: -0.0009428368556 | H16: 0 | J16: =Genanskaffelsespriser!$D94 -> 3056 | K16: 3056 | L16: 278055.6608 | M16: 278055.6608 | N16: 1 | O16: 1
A17: Eternitledninger Ledningsnet > Ø 500 mm | B17: meter | C17: =Genanskaffelsespriser!E95 -> 75 | D17: 136.41 | E17: 136.41 | F17: 136.41 | G17: 0 | H17: 0 | J17: =Genanskaffelsespriser!$D95 -> 8477 | K17: 8477 | L17: 15417.9676 | M17: 15417.9676 | N17: 1 | O17: 1
A18: Skelbrønd, Konstruktioner | B18: stk. | C18: =Genanskaffelsespriser!E96 -> 50 | D18: 0 | E18: 0 | F18: 0 | G18: 0 | H18: 0 | J18: =Genanskaffelsespriser!$D96 -> 10415 | K18: 10415 | L18: 0 | M18: 0 | N18: 1 | O18: 1
A19: Skelbrønd, Mek./EL | B19: stk. | C19: =Genanskaffelsespriser!E97 -> 15 | D19: 0 | E19: 0 | F19: 0 | G19: 0 | H19: 0 | J19: =Genanskaffelsespriser!$D97 -> 15623 | K19: 15623 | L19: 0 | M19: 0 | N19: 1 | O19: 1
A20: Inspektionsbrønd, Konstruktioner | B20: stk. | C20: =Genanskaffelsespriser!E98 -> 50 | D20: 0 | E20: 0 | F20: 0 | G20: 0 | H20: 0 | J20: =Genanskaffelsespriser!$D98 -> 10415 | K20: 10415 | L20: 0 | M20: 0 | N20: 1 | O20: 1
A21: Inspektionsbrønd, Mek./EL | B21: stk. | C21: =Genanskaffelsespriser!E99 -> 15 | D21: 0 | E21: 0 | F21: 0 | G21: 0 | H21: 0 | J21: =Genanskaffelsespriser!$D99 -> 13019 | K21: 13019 | L21: 0 | M21: 0 | N21: 1 | O21: 1
A22: Stik på ledningsnet, Konstruktioner | B22: stk. | C22: =Genanskaffelsespriser!E100 -> 75 | D22: 3877 | E22: 4539.7325 | F22: 4561.205 | G22: 0.1709395151 | H22: 0.00472990424 | J22: =Genanskaffelsespriser!$D100 -> 4722 | K22: 4722 | L22: 285821.5582 | M22: 287173.4668 | N22: 1 | O22: 1
A23: Stik på ledningsnet, Mek./EL | B23: stk. | C23: =Genanskaffelsespriser!E101 -> 75 | D23: 0 | E23: 4539.7325 | F23: 4561.205 | G23: Ny data | H23: 0.00472990424 | J23: =Genanskaffelsespriser!$D101 -> 4722 | K23: 4722 | L23: 285821.5582 | M23: 287173.4668 | N23: 1 | O23: 1
A24: Ledningsnet - By
A25: Ledningsnet ≤ Ø50 mm | B25: meter | C25: =Genanskaffelsespriser!E103 -> 75 | D25: 12959 | E25: 13139.14 | F25: 13788.94 | G25: 0.01390076395 | H25: 0.04945529159 | J25: =Genanskaffelsespriser!$D103 -> 650 | K25: =J25 -> 650 | L25: 113872.5467 | M25: 119504.1467 | N25: 1 | O25: 1
A26: Ø 50mm < Ledningsnet ≤ Ø110 mm | B26: meter | C26: =Genanskaffelsespriser!E104 -> 75 | D26: 230797 | E26: 234605.01 | F26: 240229.93 | G26: 0.01649939124 | H26: 0.02397612907 | J26: =Genanskaffelsespriser!$D104 -> 958 | K26: =J26 -> 958 | L26: 2996687.994 | M26: 3068536.973 | N26: 1 | O26: 1
A27: Ø110 mm < Ledningsnet ≤ Ø 250 mm | B27: meter | C27: =Genanskaffelsespriser!E105 -> 75 | D27: 96917 | E27: 99072.96 | F27: 100078.59 | G27: 0.0222454265 | H27: 0.01015039825 | J27: =Genanskaffelsespriser!$D105 -> 1684 | K27: 1684 | L27: 2224518.195 | M27: 2247097.941 | N27: 1 | O27: 1
A28: Ø 250 mm < Ledningsnet ≤ Ø 500mm | B28: meter | C28: =Genanskaffelsespriser!E106 -> 75 | D28: 19596 | E28: 19600.32 | F28: 20590.6 | G28: 0.0002204531537 | H28: 0.05052366492 | J28: =Genanskaffelsespriser!$D106 -> 3153 | K28: 3153 | L28: 823997.4528 | M28: 865628.824 | N28: 1 | O28: 1
A29: Ledningsnet > Ø 500 mm | B29: meter | C29: =Genanskaffelsespriser!E107 -> 75 | D29: 0 | E29: 0 | F29: 0 | G29: 0 | H29: 0 | J29: =Genanskaffelsespriser!$D107 -> 5998 | K29: 5998 | L29: 0 | M29: 0 | N29: 1 | O29: 1
A30: Støbejernsledninger ≤ Ø50 mm | B30: meter | C30: =Genanskaffelsespriser!E108 -> 100 | D30: 366.96 | E30: 366.96 | F30: 299.97 | G30: 0 | H30: -0.1825539568 | J30: =Genanskaffelsespriser!$D108 -> 1020 | K30: 1020 | L30: 3742.992 | M30: 3059.694 | N30: 1 | O30: 1
A31: Støbejernsledninger Ø 50mm < Ledningsnet ≤ Ø110 mm | B31: meter | C31: =Genanskaffelsespriser!E109 -> 100 | D31: 9689.76 | E31: 9130.15 | F31: 8374.99 | G31: -0.0577527204 | H31: -0.08271057978 | J31: =Genanskaffelsespriser!$D109 -> 1203 | K31: 1203 | L31: 109835.7045 | M31: 100751.1297 | N31: 1 | O31: 1
A32: Støbejernsledninger Ø110 mm < Ledningsnet ≤ Ø 250 mm | B32: meter | C32: =Genanskaffelsespriser!E110 -> 100 | D32: 24641.55 | E32: 23907.64 | F32: 22804.94 | G32: -0.02978343489 | H32: -0.04612333129 | J32: =Genanskaffelsespriser!$D110 -> 1661 | K32: 1661 | L32: 397105.9004 | M32: 378790.0534 | N32: 1 | O32: 1
A33: Støbejernsledninger Ø 250 mm < Ledningsnet ≤ Ø 500mm | B33: meter | C33: =Genanskaffelsespriser!E111 -> 100 | D33: 3723.14 | E33: 3719.02 | F33: 3719.02 | G33: -0.001106592822 | H33: 1.222761241e-16 | J33: =Genanskaffelsespriser!$D111 -> 2971 | K33: 2971 | L33: 110492.0842 | M33: 110492.0842 | N33: 1 | O33: 1
A34: Støbejernsledninger Ledningsnet > Ø 500 mm | B34: meter | C34: =Genanskaffelsespriser!E112 -> 100 | D34: 0 | E34: 0 | F34: 0 | G34: 0 | H34: 0 | J34: =Genanskaffelsespriser!$D112 -> 5731 | K34: 5731 | L34: 0 | M34: 0 | N34: 1 | O34: 1
A35: Eternitledninger ≤ Ø50 mm | B35: meter | C35: =Genanskaffelsespriser!E113 -> 75 | D35: 0 | E35: 0 | F35: 0 | G35: 0 | H35: 0 | J35: =Genanskaffelsespriser!$D113 -> 776 | K35: 776 | L35: 0 | M35: 0 | N35: 1 | O35: 1
A36: Eternitledninger Ø 50mm < Ledningsnet ≤ Ø110 mm | B36: meter | C36: =Genanskaffelsespriser!E114 -> 75 | D36: 2932.69 | E36: 2932.69 | F36: 2804.4 | G36: -1.550615138e-16 | H36: -0.04374482131 | J36: =Genanskaffelsespriser!$D114 -> 1035 | K36: 1035 | L36: 40471.122 | M36: 38700.72 | N36: 1 | O36: 1
A37: Eternitledninger Ø110 mm < Ledningsnet ≤ Ø 250 mm | B37: meter | C37: =Genanskaffelsespriser!E115 -> 75 | D37: 87369.79 | E37: 85776.64 | F37: 85340.48 | G37: -0.01823456369 | H37: -0.005084834286 | J37: =Genanskaffelsespriser!$D115 -> 1456 | K37: 1456 | L37: 1665210.505 | M37: 1656743.185 | N37: 1 | O37: 1
A38: Eternitledninger Ø 250 mm < Ledningsnet ≤ Ø 500mm | B38: meter | C38: =Genanskaffelsespriser!E116 -> 75 | D38: 33996.82 | E38: 33601.14 | F38: 32388.78 | G38: -0.01163873562 | H38: -0.03608091868 | J38: =Genanskaffelsespriser!$D116 -> 3265 | K38: 3265 | L38: 1462769.628 | M38: 1409991.556 | N38: 1 | O38: 1
A39: Eternitledninger Ledningsnet > Ø 500 mm | B39: meter | C39: =Genanskaffelsespriser!E117 -> 75 | D39: 1073.94 | E39: 1073.94 | F39: 1073.94 | G39: 0 | H39: 0 | J39: =Genanskaffelsespriser!$D117 -> 8724 | K39: 8724 | L39: 124920.7008 | M39: 124920.7008 | N39: 1 | O39: 1
A40: Skelbrønd, Konstruktioner | B40: stk. | C40: =Genanskaffelsespriser!E118 -> 50 | D40: 0 | E40: 0 | F40: 0 | G40: 0 | H40: 0 | J40: =Genanskaffelsespriser!$D118 -> 11457 | K40: 11457 | L40: 0 | M40: 0 | N40: 1 | O40: 1
A41: Skelbrønd, Mek./EL | B41: stk. | C41: =Genanskaffelsespriser!E119 -> 15 | D41: 0 | E41: 0 | F41: 0 | G41: 0 | H41: 0 | J41: =Genanskaffelsespriser!$D119 -> 17185 | K41: 17185 | L41: 0 | M41: 0 | N41: 1 | O41: 1
A42: Inspektionsbrønd, Konstruktioner | B42: stk. | C42: =Genanskaffelsespriser!E120 -> 50 | D42: 0 | E42: 0 | F42: 0 | G42: 0 | H42: 0 | J42: =Genanskaffelsespriser!$D120 -> 11457 | K42: 11457 | L42: 0 | M42: 0 | N42: 1 | O42: 1
A43: Inspektionsbrønd, Mek./EL | B43: stk. | C43: =Genanskaffelsespriser!E121 -> 15 | D43: 0 | E43: 0 | F43: 0 | G43: 0 | H43: 0 | J43: =Genanskaffelsespriser!$D121 -> 14321 | K43: 14321 | L43: 0 | M43: 0 | N43: 1 | O43: 1
A44: Stik på ledningsnet, Konstruktioner | B44: stk. | C44: =Genanskaffelsespriser!E122 -> 75 | D44: 25742 | E44: 25797.09 | F44: 25963.525 | G44: 0.002140082356 | H44: 0.006451696684 | J44: =Genanskaffelsespriser!$D122 -> 5666 | K44: 5666 | L44: 1948884.159 | M44: 1961457.769 | N44: 1 | O44: 1
A45: Stik på ledningsnet, Mek./EL | B45: stk. | C45: =Genanskaffelsespriser!E123 -> 75 | D45: 0 | E45: 25797.09 | F45: 25963.525 | G45: Ny data | H45: 0.006451696684 | J45: =Genanskaffelsespriser!$D123 -> 5666 | K45: 5666 | L45: 1948884.159 | M45: 1961457.769 | N45: 1 | O45: 1
A46: Ledningsnet - City
A47: Ledningsnet ≤ Ø50 mm | B47: meter | C47: =Genanskaffelsespriser!E125 -> 75 | D47: 104.55 | E47: 104.55 | F47: 104.21 | G47: 1.359240049e-16 | H47: -0.00325203252 | J47: =Genanskaffelsespriser!$D125 -> 1078 | K47: =J47 -> 1078 | L47: 1502.732 | M47: 1497.845067 | N47: 1 | O47: 1
A48: Ø 50mm < Ledningsnet ≤ Ø110 mm | B48: meter | C48: =Genanskaffelsespriser!E126 -> 75 | D48: 9963.76 | E48: 9906.02 | F48: 9906.02 | G48: -0.005795001084 | H48: 0 | J48: =Genanskaffelsespriser!$D126 -> 1495 | K48: =J48 -> 1495 | L48: 197459.9987 | M48: 197459.9987 | N48: 1 | O48: 1
A49: Ø110 mm < Ledningsnet ≤ Ø 250 mm | B49: meter | C49: =Genanskaffelsespriser!E127 -> 75 | D49: 4313.01 | E49: 4355.77 | F49: 4356.27 | G49: 0.009914189858 | H49: 0.0001147902667 | J49: =Genanskaffelsespriser!$D127 -> 2192 | K49: 2192 | L49: 127304.6379 | M49: 127319.2512 | N49: 1 | O49: 1
A50: Ø 250 mm < Ledningsnet ≤ Ø 500mm | B50: meter | C50: =Genanskaffelsespriser!E128 -> 75 | D50: 825.65 | E50: 824.56 | F50: 824.56 | G50: -0.001320171986 | H50: 0 | J50: =Genanskaffelsespriser!$D128 -> 3773 | K50: 3773 | L50: 41480.86507 | M50: 41480.86507 | N50: 1 | O50: 1
A51: Ledningsnet > Ø 500 mm | B51: meter | C51: =Genanskaffelsespriser!E129 -> 75 | D51: 0 | E51: 0 | F51: 0 | G51: 0 | H51: 0 | J51: =Genanskaffelsespriser!$D129 -> 6732 | K51: 6732 | L51: 0 | M51: 0 | N51: 1 | O51: 1
A52: Støbejernsledninger ≤ Ø50 mm | B52: meter | C52: =Genanskaffelsespriser!E130 -> 100 | D52: 0 | E52: 0 | F52: 0 | G52: 0 | H52: 0 | J52: =Genanskaffelsespriser!$D130 -> 1448 | K52: 1448 | L52: 0 | M52: 0 | N52: 1 | O52: 1
A53: Støbejernsledninger Ø 50mm < Ledningsnet ≤ Ø110 mm | B53: meter | C53: =Genanskaffelsespriser!E131 -> 100 | D53: 144.24 | E53: 144.24 | F53: 156.88 | G53: 0 | H53: 0.0876317249 | J53: =Genanskaffelsespriser!$D131 -> 1740 | K53: 1740 | L53: 2509.776 | M53: 2729.712 | N53: 1 | O53: 1
A54: Støbejernsledninger Ø110 mm < Ledningsnet ≤ Ø 250 mm | B54: meter | C54: =Genanskaffelsespriser!E132 -> 100 | D54: 2544.97 | E54: 2522.75 | F54: 2517.41 | G54: -0.008730947713 | H54: -0.002116737687 | J54: =Genanskaffelsespriser!$D132 -> 2169 | K54: 2169 | L54: 54718.4475 | M54: 54602.6229 | N54: 1 | O54: 1
A55: Støbejernsledninger Ø 250 mm < Ledningsnet ≤ Ø 500mm | B55: meter | C55: =Genanskaffelsespriser!E133 -> 100 | D55: 181 | E55: 181 | F55: 181 | G55: 0 | H55: 0 | J55: =Genanskaffelsespriser!$D133 -> 3591 | K55: 3591 | L55: 6499.71 | M55: 6499.71 | N55: 1 | O55: 1
A56: Støbejernsledninger Ledningsnet > Ø 500 mm | B56: meter | C56: =Genanskaffelsespriser!E134 -> 100 | D56: 0 | E56: 0 | F56: 0 | G56: 0 | H56: 0 | J56: =Genanskaffelsespriser!$D134 -> 6465 | K56: 6465 | L56: 0 | M56: 0 | N56: 1 | O56: 1
A57: Eternitledninger ≤ Ø50 mm | B57: meter | C57: =Genanskaffelsespriser!E135 -> 75 | D57: 0 | E57: 0 | F57: 0 | G57: 0 | H57: 0 | J57: =Genanskaffelsespriser!$D135 -> 1204 | K57: 1204 | L57: 0 | M57: 0 | N57: 1 | O57: 1
A58: Eternitledninger Ø 50mm < Ledningsnet ≤ Ø110 mm | B58: meter | C58: =Genanskaffelsespriser!E136 -> 75 | D58: 0 | E58: 0 | F58: 0 | G58: 0 | H58: 0 | J58: =Genanskaffelsespriser!$D136 -> 1572 | K58: 1572 | L58: 0 | M58: 0 | N58: 1 | O58: 1
A59: Eternitledninger Ø110 mm < Ledningsnet ≤ Ø 250 mm | B59: meter | C59: =Genanskaffelsespriser!E137 -> 75 | D59: 9649.73 | E59: 9590.41 | F59: 9590.14 | G59: -0.006147322257 | H59: -2.81531238e-05 | J59: =Genanskaffelsespriser!$D137 -> 1966 | K59: 1966 | L59: 251396.6141 | M59: 251389.5365 | N59: 1 | O59: 1
A60: Eternitledninger Ø 250 mm < Ledningsnet ≤ Ø 500mm | B60: meter | C60: =Genanskaffelsespriser!E138 -> 75 | D60: 945.23 | E60: 926.68 | F60: 926.68 | G60: -0.01962485321 | H60: 0 | J60: =Genanskaffelsespriser!$D138 -> 3885 | K60: 3885 | L60: 48002.024 | M60: 48002.024 | N60: 1 | O60: 1
A61: Eternitledninger Ledningsnet > Ø 500 mm | B61: meter | C61: =Genanskaffelsespriser!E139 -> 75 | D61: 0 | E61: 0 | F61: 0 | G61: 0 | H61: 0 | J61: =Genanskaffelsespriser!$D139 -> 9458 | K61: 9458 | L61: 0 | M61: 0 | N61: 1 | O61: 1
A62: Skelbrønd, Konstruktioner | B62: stk. | C62: =Genanskaffelsespriser!E140 -> 50 | D62: 0 | E62: 0 | F62: 0 | G62: 0 | H62: 0 | J62: =Genanskaffelsespriser!$D140 -> 12498 | K62: 12498 | L62: 0 | M62: 0 | N62: 1 | O62: 1
A63: Skelbrønd, Mek./EL | B63: stk. | C63: =Genanskaffelsespriser!E141 -> 15 | D63: 0 | E63: 0 | F63: 0 | G63: 0 | H63: 0 | J63: =Genanskaffelsespriser!$D141 -> 18747 | K63: 18747 | L63: 0 | M63: 0 | N63: 1 | O63: 1
A64: Inspektionsbrønd, Konstruktioner | B64: stk. | C64: =Genanskaffelsespriser!E142 -> 50 | D64: 0 | E64: 0 | F64: 0 | G64: 0 | H64: 0 | J64: =Genanskaffelsespriser!$D142 -> 12498 | K64: 12498 | L64: 0 | M64: 0 | N64: 1 | O64: 1
A65: Inspektionsbrønd, Mek./EL | B65: stk. | C65: =Genanskaffelsespriser!E143 -> 15 | D65: 0 | E65: 0 | F65: 0 | G65: 0 | H65: 0 | J65: =Genanskaffelsespriser!$D143 -> 15623 | K65: 15623 | L65: 0 | M65: 0 | N65: 1 | O65: 1
A66: Stik på ledningsnet, Konstruktioner | B66: stk. | C66: =Genanskaffelsespriser!E144 -> 75 | D66: 1409 | E66: 1365.635 | F66: 1361.075 | G66: -0.03077714691 | H66: -0.003339105984 | J66: =Genanskaffelsespriser!$D144 -> 6139 | K66: 6139 | L66: 111781.7769 | M66: 111408.5257 | N66: 1 | O66: 1
A67: Stik på ledningsnet, Mek./EL | B67: stk. | C67: =Genanskaffelsespriser!E145 -> 75 | D67: 0 | E67: 1365.635 | F67: 1361.075 | G67: Ny data | H67: -0.003339105984 | J67: =Genanskaffelsespriser!$D145 -> 6139 | K67: 6139 | L67: 111781.7769 | M67: 111408.5257 | N67: 1 | O67: 1
A68: Ledningsnet - Indre city
A69: Ledningsnet ≤ Ø50 mm | B69: meter | C69: =Genanskaffelsespriser!E147 -> 75 | D69: 414.24 | E69: 414.9 | F69: 443.62 | G69: =IF($D69="",IF($E69>0,"Ny data",IF($E69="","",0)),IF($D69=0,IF($E69=0,0,"Ny data"),($E69-$D69)/$D69)) -> 0.001593279258 | H69: =IF($E69="",IF($F69>0,"Ny data",IF($F69="","",0)),IF($E69=0,IF($F69=0,0,"Ny data"),($F69-$E69)/$E69)) -> 0.06922149916 | J69: =Genanskaffelsespriser!$D147 -> 1697 | K69: =J69 -> 1697 | L69: =IF(ISNUMBER(E69),((J69*E69)/C69)*N69,"") -> 9387.804 | M69: =IF(ISNUMBER(F69),((K69*F69)/C69)*O69,"") -> 10037.64187 | N69: 1 | O69: 1
A70: Ø 50mm < Ledningsnet ≤ Ø110 mm | B70: meter | C70: =Genanskaffelsespriser!E148 -> 75 | D70: 28382.21 | E70: 28620.07 | F70: 28763.86 | G70: 0.008380601792 | H70: 0.005024096727 | J70: =Genanskaffelsespriser!$D148 -> 2268 | K70: =J70 -> 2268 | L70: 865470.9168 | M70: 869819.1264 | N70: 1 | O70: 1
A71: Ø110 mm < Ledningsnet ≤ Ø 250 mm | B71: meter | C71: =Genanskaffelsespriser!E149 -> 75 | D71: 16313.04 | E71: 16738.41 | F71: 16796.87 | G71: 0.02607545865 | H71: 0.003492565901 | J71: =Genanskaffelsespriser!$D149 -> 3009 | K71: 3009 | L71: 671545.0092 | M71: 673890.4244 | N71: 1 | O71: 1
A72: Ø 250 mm < Ledningsnet ≤ Ø 500mm | B72: meter | C72: =Genanskaffelsespriser!E150 -> 75 | D72: 503.72 | E72: 503.72 | F72: 503.72 | G72: 0 | H72: 0 | J72: =Genanskaffelsespriser!$D150 -> 4773 | K72: 4773 | L72: 32056.7408 | M72: 32056.7408 | N72: 1 | O72: 1
A73: Ledningsnet > Ø 500 mm | B73: meter | C73: =Genanskaffelsespriser!E151 -> 75 | D73: 0 | E73: 0 | F73: 0 | G73: 0 | H73: 0 | J73: =Genanskaffelsespriser!$D151 -> 7915 | K73: 7915 | L73: 0 | M73: 0 | N73: 1 | O73: 1
A74: Støbejernsledninger ≤ Ø50 mm | B74: meter | C74: =Genanskaffelsespriser!E152 -> 100 | D74: 0 | E74: 0 | F74: 0 | G74: 0 | H74: 0 | J74: =Genanskaffelsespriser!$D152 -> 2067 | K74: 2067 | L74: 0 | M74: 0 | N74: 1 | O74: 1
A75: Støbejernsledninger Ø 50mm < Ledningsnet ≤ Ø110 mm | B75: meter | C75: =Genanskaffelsespriser!E153 -> 100 | D75: 1250.6 | E75: 1250.6 | F75: 1243.23 | G75: 0 | H75: -0.005893171278 | J75: =Genanskaffelsespriser!$D153 -> 2513 | K75: 2513 | L75: 31427.578 | M75: 31242.3699 | N75: 1 | O75: 1
A76: Støbejernsledninger Ø110 mm < Ledningsnet ≤ Ø 250 mm | B76: meter | C76: =Genanskaffelsespriser!E154 -> 100 | D76: 8008.8 | E76: 7283.6 | F76: 6993.86 | G76: -0.09055039457 | H76: -0.03977977923 | J76: =Genanskaffelsespriser!$D154 -> 2986 | K76: 2986 | L76: 217488.296 | M76: 208836.6596 | N76: 1 | O76: 1
A77: Støbejernsledninger Ø 250 mm < Ledningsnet ≤ Ø 500mm | B77: meter | C77: =Genanskaffelsespriser!E155 -> 100 | D77: 327 | E77: 327 | F77: 327 | G77: 0 | H77: 0 | J77: =Genanskaffelsespriser!$D155 -> 4591 | K77: 4591 | L77: 15012.57 | M77: 15012.57 | N77: 1 | O77: 1
A78: Støbejernsledninger Ledningsnet > Ø 500 mm | B78: meter | C78: =Genanskaffelsespriser!E156 -> 100 | D78: 0 | E78: 0 | F78: 0 | G78: 0 | H78: 0 | J78: =Genanskaffelsespriser!$D156 -> 7648 | K78: 7648 | L78: 0 | M78: 0 | N78: 1 | O78: 1
A79: Eternitledninger ≤ Ø50 mm | B79: meter | C79: =Genanskaffelsespriser!E157 -> 75 | D79: 0 | E79: 0 | F79: 0 | G79: 0 | H79: 0 | J79: =Genanskaffelsespriser!$D157 -> 1823 | K79: 1823 | L79: 0 | M79: 0 | N79: 1 | O79: 1
A80: Eternitledninger Ø 50mm < Ledningsnet ≤ Ø110 mm | B80: meter | C80: =Genanskaffelsespriser!E158 -> 75 | D80: 308.42 | E80: 308.42 | F80: 308.42 | G80: 0 | H80: -1.843052294e-16 | J80: =Genanskaffelsespriser!$D158 -> 2345 | K80: 2345 | L80: 9643.265333 | M80: 9643.265333 | N80: 1 | O80: 1
A81: Eternitledninger Ø110 mm < Ledningsnet ≤ Ø 250 mm | B81: meter | C81: =Genanskaffelsespriser!E159 -> 75 | D81: 2400.75 | E81: 2120.65 | F81: 2119.87 | G81: -0.1166718734 | H81: -0.0003678117558 | J81: =Genanskaffelsespriser!$D159 -> 2783 | K81: 2783 | L81: 78690.25267 | M81: 78661.30947 | N81: 1 | O81: 1
A82: Eternitledninger Ø 250 mm < Ledningsnet ≤ Ø 500mm | B82: meter | C82: =Genanskaffelsespriser!E160 -> 75 | D82: 1043.98 | E82: 1042.98 | F82: 1042.98 | G82: -0.0009578727562 | H82: 0 | J82: =Genanskaffelsespriser!$D160 -> 4885 | K82: 4885 | L82: 67932.764 | M82: 67932.764 | N82: 1 | O82: 1
A83: Eternitledninger Ledningsnet > Ø 500 mm | B83: meter | C83: =Genanskaffelsespriser!E161 -> 75 | D83: 0 | E83: 0 | F83: 0 | G83: 0 | H83: 0 | J83: =Genanskaffelsespriser!$D161 -> 10641 | K83: 10641 | L83: 0 | M83: 0 | N83: 1 | O83: 1
A84: Skelbrønd, Konstruktioner | B84: stk. | C84: =Genanskaffelsespriser!E162 -> 50 | D84: 0 | E84: 0 | F84: 0 | G84: 0 | H84: 0 | J84: =Genanskaffelsespriser!$D162 -> 13540 | K84: 13540 | L84: 0 | M84: 0 | N84: 1 | O84: 1
A85: Skelbrønd, Mek./EL | B85: stk. | C85: =Genanskaffelsespriser!E163 -> 15 | D85: 0 | E85: 0 | F85: 0 | G85: 0 | H85: 0 | J85: =Genanskaffelsespriser!$D163 -> 20310 | K85: 20310 | L85: 0 | M85: 0 | N85: 1 | O85: 1
A86: Inspektionsbrønd, Konstruktioner | B86: stk. | C86: =Genanskaffelsespriser!E164 -> 50 | D86: 0 | E86: 0 | F86: 0 | G86: 0 | H86: 0 | J86: =Genanskaffelsespriser!$D164 -> 13540 | K86: 13540 | L86: 0 | M86: 0 | N86: 1 | O86: 1
A87: Inspektionsbrønd, Mek./EL | B87: stk. | C87: =Genanskaffelsespriser!E165 -> 15 | D87: 0 | E87: 0 | F87: 0 | G87: 0 | H87: 0 | J87: =Genanskaffelsespriser!$D165 -> 16925 | K87: 16925 | L87: 0 | M87: 0 | N87: 1 | O87: 1
A88: Stik på ledningsnet, Konstruktioner | B88: stk. | C88: =Genanskaffelsespriser!E166 -> 75 | D88: 4850 | E88: 4568.865 | F88: 4567.9525 | G88: -0.05796597938 | H88: -0.000199721375 | J88: =Genanskaffelsespriser!$D166 -> 7555 | K88: 7555 | L88: 460237.001 | M88: 460145.0818 | N88: 1 | O88: 1
A89: Stik på ledningsnet, Mek./EL | B89: stk. | C89: =Genanskaffelsespriser!E167 -> 75 | D89: 0 | E89: 4568.865 | F89: 4567.9525 | G89: Ny data | H89: -0.000199721375 | J89: =Genanskaffelsespriser!$D167 -> 7555 | K89: 7555 | L89: 460237.001 | M89: 460145.0818 | N89: 1 | O89: 1
A90: Ventiler
A91: Ventiler på ledningsnet ≤ Ø50 mm | B91: stk. | C91: =Genanskaffelsespriser!E169 -> 75 | D91: 20781 | E91: 21121 | F91: 20135 | G91: 0.01636109908 | H91: -0.04668339567 | J91: =Genanskaffelsespriser!$D169 -> 7732 | K91: =J91 -> 7732 | L91: 2177434.293 | M91: 2075784.267 | N91: 1 | O91: 1
A92: Ventiler på Ø 50mm < Ledningsnet ≤ Ø110 mm | B92: stk. | C92: =Genanskaffelsespriser!E170 -> 75 | D92: 4994 | E92: 5058 | F92: 4074 | G92: 0.01281537845 | H92: -0.1945432977 | I92: Tilgang på ventiler | J92: =Genanskaffelsespriser!$D170 -> 8980 | K92: =J92 -> 8980 | L92: 605611.2 | M92: 487793.6 | N92: 1 | O92: 1
A93: Ventiler på Ø110 mm < Ledningsnet ≤ Ø 250 mm | B93: stk. | C93: =Genanskaffelsespriser!E171 -> 75 | D93: 1789 | E93: 1805 | F93: 3449 | G93: 0.008943543879 | H93: 0.9108033241 | I93: Tilgang på ventiler | J93: =Genanskaffelsespriser!$D171 -> 21736 | K93: 21736 | L93: 523113.0667 | M93: 999566.1867 | N93: 1 | O93: 1
A94: Ventiler på Ø 250 mm < Ledningsnet ≤ Ø 500mm | B94: stk. | C94: =Genanskaffelsespriser!E172 -> 75 | D94: 211 | E94: 217 | F94: 665 | G94: =IF($D94="",IF($E94>0,"Ny data",IF($E94="","",0)),IF($D94=0,IF($E94=0,0,"Ny data"),($E94-$D94)/$D94)) -> 0.02843601896 | H94: =IF($E94="",IF($F94>0,"Ny data",IF($F94="","",0)),IF($E94=0,IF($F94=0,0,"Ny data"),($F94-$E94)/$E94)) -> 2.064516129 | I94: Tilgang på ventiler | J94: =Genanskaffelsespriser!$D172 -> 78299 | K94: 78299 | L94: 226545.1067 | M94: 694251.1333 | N94: 1 | O94: 1
A95: Ventiler på ledningsnet > Ø 500 mm | B95: stk. | C95: =Genanskaffelsespriser!E173 -> 75 | D95: 0 | E95: 0 | F95: 0 | G95: 0 | H95: 0 | J95: =Genanskaffelsespriser!$D173 -> 223733 | K95: 223733 | L95: 0 | M95: 0 | N95: 1 | O95: 1
A96: Pumpestationer, bygværker og bassiner 1
A97: Pumpestation (inkl. evt. hydrofor)/trykforøger, Konstruktioner | B97: m³/h | C97: =+Genanskaffelsespriser!$E$175 -> 50 | D97: 0 | E97: 150 | F97: 150 | G97: Ny data | H97: 0 | I97: Nordtoft Vandtårn, er flyttet fra Produktion | J97: =IF(E97=0,"Variabel pris",IFERROR((HLOOKUP(E97,'Variable priser'!$C$103:$F$105,2)+(E97-HLOOKUP(E97,'Variable priser'!$C$103:$F$105,1))*HLOOKUP(E97,'Variable priser'!$C$103:$F$105,3))*'Variable priser'!$I$102/E97*(1+Genanskaffelsespriser!$D$203),"Fejl")) -> 978.2475 | K97: =IF(F97=0,"Variabel pris",IFERROR((HLOOKUP(F97,'Variable priser'!$C$103:$F$105,2)+(F97-HLOOKUP(F97,'Variable priser'!$C$103:$F$105,1))*HLOOKUP(F97,'Variable priser'!$C$103:$F$105,3))*'Variable priser'!$I$102/F97*(1+Genanskaffelsespriser!$D$203),"Fejl")) -> 978.2475 | L97: =IF(ISBLANK(E97),"",IF(E97=0,"",IF(ISNUMBER(E97),((J97*E97)/$C97)*N97,""))) -> 2934.7425 | M97: =IF(ISBLANK(F97),"",IF(F97=0,"",IF(ISNUMBER(F97),((K97*F97)/$C97)*O97,""))) -> 2934.7425 | N97: 1 | O97: 1
A98: Pumpestation (inkl. evt. hydrofor)/trykforøger, Mek./EL | B98: m³/h | C98: =+Genanskaffelsespriser!$E$176 -> 25 | D98: 0 | E98: 150 | F98: 150 | G98: Ny data | H98: 0 | I98: Nordtoft Vandtårn, er flyttet fra Produktion | J98: =IF(E98=0,"Variabel pris",IFERROR((HLOOKUP(E98,'Variable priser'!$C$103:$F$105,2)+(E98-HLOOKUP(E98,'Variable priser'!$C$103:$F$105,1))*HLOOKUP(E98,'Variable priser'!$C$103:$F$105,3))*'Variable priser'!$J$102/E98*(1+Genanskaffelsespriser!$D$203),"Fejl")) -> 2543.4435 | K98: =IF(F98=0,"Variabel pris",IFERROR((HLOOKUP(F98,'Variable priser'!$C$103:$F$105,2)+(F98-HLOOKUP(F98,'Variable priser'!$C$103:$F$105,1))*HLOOKUP(F98,'Variable priser'!$C$103:$F$105,3))*'Variable priser'!$J$102/F98*(1+Genanskaffelsespriser!$D$203),"Fejl")) -> 2543.4435 | L98: =IF(ISBLANK(E98),"",IF(E98=0,"",IF(ISNUMBER(E98),((J98*E98)/$C98)*N97,""))) -> 15260.661 | M98: =IF(ISBLANK(F98),"",IF(F98=0,"",IF(ISNUMBER(F98),((K98*F98)/$C98)*O97,""))) -> 15260.661 | N98: 1 | O98: 1
A99: Pumpestation (inkl. evt. hydrofor)/trykforøger, SRO | B99: m³/h | C99: =+Genanskaffelsespriser!$E$177 -> 10 | D99: 0 | E99: 150 | F99: 150 | G99: Ny data | H99: 0 | I99: Nordtoft, er flyttet fra Produktion | J99: =IF(E99=0,"Variabel pris",IFERROR((HLOOKUP(E99,'Variable priser'!$C$103:$F$105,2)+(E99-HLOOKUP(E99,'Variable priser'!$C$103:$F$105,1))*HLOOKUP(E99,'Variable priser'!$C$103:$F$105,3))*'Variable priser'!$L$102/E99*(1+Genanskaffelsespriser!$D$203),"Fejl")) -> 391.299 | K99: =IF(F99=0,"Variabel pris",IFERROR((HLOOKUP(F99,'Variable priser'!$C$103:$F$105,2)+(F99-HLOOKUP(F99,'Variable priser'!$C$103:$F$105,1))*HLOOKUP(F99,'Variable priser'!$C$103:$F$105,3))*'Variable priser'!$L$102/F99*(1+Genanskaffelsespriser!$D$203),"Fejl")) -> 391.299 | L99: =IF(ISBLANK(E99),"",IF(E99=0,"",IF(ISNUMBER(E99),((J99*E99)/$C99)*N97,""))) -> 5869.485 | M99: =IF(ISBLANK(F99),"",IF(F99=0,"Samlet mængde kan ikke være nul i 2025",IF(ISNUMBER(F99),((K99*F99)/$C99)*O97,""))) -> 5869.485 | N99: 1 | O99: 1
A100: Beholderanlæg - højdebeholder | B100: m³ | C100: =+Genanskaffelsespriser!$E$178 -> 50 | D100: 0 | E100: 0 | F100: 0 | G100: 0 | H100: 0 | J100: =IF(E100=0,"Variabel pris",IFERROR((HLOOKUP(E100,'Variable priser'!$C$48:$H$50,2)+(E100-HLOOKUP(E100,'Variable priser'!$C$48:$H$50,1))*HLOOKUP(E100,'Variable priser'!$C$48:$H$50,3))/E100*(1+Genanskaffelsespriser!$D$203),"Fejl")) -> Variabel pris | K100: =IF(F100=0,"Variabel pris",IFERROR((HLOOKUP(F100,'Variable priser'!$C$48:$H$50,2)+(F100-HLOOKUP(F100,'Variable priser'!$C$48:$H$50,1))*HLOOKUP(F100,'Variable priser'!$C$48:$H$50,3))/F100*(1+Genanskaffelsespriser!$D$203),"Fejl")) -> Variabel pris | L100: =IF(ISBLANK(E100),"",IF(E100=0,"",IF(ISNUMBER(E100),((J100*E100)/$C100)*N97,""))) ->  | M100: =IF(ISBLANK(F100),"",IF(F100=0,"",IF(ISNUMBER(F100),((K100*F100)/$C100)*O97,""))) ->  | N100: 1 | O100: 1
A101: Beholderanlæg - vandtårn | B101: m³ | C101: =+Genanskaffelsespriser!$E$179 -> 50 | D101: 800 | E101: 800 | F101: 800 | G101: 0 | H101: 0 | J101: =IF(E101=0,"Variabel pris",IFERROR((HLOOKUP(E101,'Variable priser'!$C$55:$H$57,2)+(E101-HLOOKUP(E101,'Variable priser'!$C$55:$H$57,1))*HLOOKUP(E101,'Variable priser'!$C$55:$H$57,3))/E101*(1+Genanskaffelsespriser!$D$203),"Fejl")) -> 6502.95054 | K101: =IF(F101=0,"Variabel pris",IFERROR((HLOOKUP(F101,'Variable priser'!$C$55:$H$57,2)+(F101-HLOOKUP(F101,'Variable priser'!$C$55:$H$57,1))*HLOOKUP(F101,'Variable priser'!$C$55:$H$57,3))/F101*(1+Genanskaffelsespriser!$D$203),"Fejl")) -> 6502.95054 | L101: =IF(ISBLANK(E101),"",IF(E101=0,"",IF(ISNUMBER(E101),((J101*E101)/$C101)*N97,""))) -> 104047.2086 | M101: =IF(ISBLANK(F101),"",IF(F101=0,"",IF(ISNUMBER(F101),((K101*F101)/$C101)*O97,""))) -> 104047.2086 | N101: 1 | O101: 1
A102: Pumpestationer, bygværker og bassiner 2
A103: Pumpestation (inkl. evt. hydrofor)/trykforøger, Konstruktioner | B103: m³/h | C103: =+Genanskaffelsespriser!$E$175 -> 50 | D103: 0 | E103: 250 | F103: 250 | G103: Ny data | H103: 0 | I103: Nr. Tranders trykforøger og trykreduktion, flyttet fra produktion | J103: =IF(E103=0,"Variabel pris",IFERROR((HLOOKUP(E103,'Variable priser'!$C$103:$F$105,2)+(E103-HLOOKUP(E103,'Variable priser'!$C$103:$F$105,1))*HLOOKUP(E103,'Variable priser'!$C$103:$F$105,3))*'Variable priser'!$I$102/E103*(1+Genanskaffelsespriser!$D$203),"Fejl")) -> 877.68 | K103: =IF(F103=0,"Variabel pris",IFERROR((HLOOKUP(F103,'Variable priser'!$C$103:$F$105,2)+(F103-HLOOKUP(F103,'Variable priser'!$C$103:$F$105,1))*HLOOKUP(F103,'Variable priser'!$C$103:$F$105,3))*'Variable priser'!$I$102/F103*(1+Genanskaffelsespriser!$D$203),"Fejl")) -> 877.68 | L103: =IF(ISBLANK(E103),"",IF(E103=0,"",IF(ISNUMBER(E103),((J103*E103)/$C103)*N103,""))) -> 4388.4 | M103: =IF(ISBLANK(F103),"",IF(F103=0,"",IF(ISNUMBER(F103),((K103*F103)/$C103)*O103,""))) -> 4388.4 | N103: 1 | O103: 1
A104: Pumpestation (inkl. evt. hydrofor)/trykforøger, Mek./EL | B104: m³/h | C104: =+Genanskaffelsespriser!$E$176 -> 25 | D104: 0 | E104: 250 | F104: 250 | G104: Ny data | H104: 0 | I104: Nr. Tranders trykforøger og trykreduktion, flyttet fra produktion | J104: =IF(E104=0,"Variabel pris",IFERROR((HLOOKUP(E104,'Variable priser'!$C$103:$F$105,2)+(E104-HLOOKUP(E104,'Variable priser'!$C$103:$F$105,1))*HLOOKUP(E104,'Variable priser'!$C$103:$F$105,3))*'Variable priser'!$J$102/E104*(1+Genanskaffelsespriser!$D$203),"Fejl")) -> 2281.968 | K104: =IF(F104=0,"Variabel pris",IFERROR((HLOOKUP(F104,'Variable priser'!$C$103:$F$105,2)+(F104-HLOOKUP(F104,'Variable priser'!$C$103:$F$105,1))*HLOOKUP(F104,'Variable priser'!$C$103:$F$105,3))*'Variable priser'!$J$102/F104*(1+Genanskaffelsespriser!$D$203),"Fejl")) -> 2281.968 | L104: =IF(ISBLANK(E104),"",IF(E104=0,"",IF(ISNUMBER(E104),((J104*E104)/$C104)*N103,""))) -> 22819.68 | M104: =IF(ISBLANK(F104),"",IF(F104=0,"",IF(ISNUMBER(F104),((K104*F104)/$C104)*O103,""))) -> 22819.68 | N104: 1 | O104: 1
A105: Pumpestation (inkl. evt. hydrofor)/trykforøger, SRO | B105: m³/h | C105: =+Genanskaffelsespriser!$E$177 -> 10 | D105: 0 | E105: 250 | F105: 250 | G105: Ny data | H105: 0 | I105: Nr. Tranders trykforøger og trykreduktion, flyttet fra produktion | J105: =IF(E105=0,"Variabel pris",IFERROR((HLOOKUP(E105,'Variable priser'!$C$103:$F$105,2)+(E105-HLOOKUP(E105,'Variable priser'!$C$103:$F$105,1))*HLOOKUP(E105,'Variable priser'!$C$103:$F$105,3))*'Variable priser'!$L$102/E105*(1+Genanskaffelsespriser!$D$203),"Fejl")) -> 351.072 | K105: =IF(F105=0,"Variabel pris",IFERROR((HLOOKUP(F105,'Variable priser'!$C$103:$F$105,2)+(F105-HLOOKUP(F105,'Variable priser'!$C$103:$F$105,1))*HLOOKUP(F105,'Variable priser'!$C$103:$F$105,3))*'Variable priser'!$L$102/F105*(1+Genanskaffelsespriser!$D$203),"Fejl")) -> 351.072 | L105: =IF(ISBLANK(E105),"",IF(E105=0,"",IF(ISNUMBER(E105),((J105*E105)/$C105)*N103,""))) -> 8776.8 | M105: =IF(ISBLANK(F105),"",IF(F105=0,"Samlet mængde kan ikke være nul i 2025",IF(ISNUMBER(F105),((K105*F105)/$C105)*O103,""))) -> 8776.8 | N105: 1 | O105: 1
A106: Beholderanlæg - højdebeholder | B106: m³ | C106: =+Genanskaffelsespriser!$E$178 -> 50 | D106: 4000 | E106: 4000 | F106: 4000 | G106: 0 | H106: 0 | J106: =IF(E106=0,"Variabel pris",IFERROR((HLOOKUP(E106,'Variable priser'!$C$48:$H$50,2)+(E106-HLOOKUP(E106,'Variable priser'!$C$48:$H$50,1))*HLOOKUP(E106,'Variable priser'!$C$48:$H$50,3))/E106*(1+Genanskaffelsespriser!$D$203),"Fejl")) -> 2285.23374 | K106: =IF(F106=0,"Variabel pris",IFERROR((HLOOKUP(F106,'Variable priser'!$C$48:$H$50,2)+(F106-HLOOKUP(F106,'Variable priser'!$C$48:$H$50,1))*HLOOKUP(F106,'Variable priser'!$C$48:$H$50,3))/F106*(1+Genanskaffelsespriser!$D$203),"Fejl")) -> 2285.23374 | L106: =IF(ISBLANK(E106),"",IF(E106=0,"",IF(ISNUMBER(E106),((J106*E106)/$C106)*N103,""))) -> 182818.6992 | M106: =IF(ISBLANK(F106),"",IF(F106=0,"",IF(ISNUMBER(F106),((K106*F106)/$C106)*O103,""))) -> 182818.6992 | N106: 1 | O106: 1
A107: Beholderanlæg - vandtårn | B107: m³ | C107: =+Genanskaffelsespriser!$E$179 -> 50 | D107: 0 | E107: 0 | F107: 0 | G107: 0 | H107: 0 | J107: =IF(E107=0,"Variabel pris",IFERROR((HLOOKUP(E107,'Variable priser'!$C$55:$H$57,2)+(E107-HLOOKUP(E107,'Variable priser'!$C$55:$H$57,1))*HLOOKUP(E107,'Variable priser'!$C$55:$H$57,3))/E107*(1+Genanskaffelsespriser!$D$203),"Fejl")) -> Variabel pris | K107: =IF(F107=0,"Variabel pris",IFERROR((HLOOKUP(F107,'Variable priser'!$C$55:$H$57,2)+(F107-HLOOKUP(F107,'Variable priser'!$C$55:$H$57,1))*HLOOKUP(F107,'Variable priser'!$C$55:$H$57,3))/F107*(1+Genanskaffelsespriser!$D$203),"Fejl")) -> Variabel pris | L107: =IF(ISBLANK(E107),"",IF(E107=0,"",IF(ISNUMBER(E107),((J107*E107)/$C107)*N103,""))) ->  | M107: =IF(ISBLANK(F107),"",IF(F107=0,"",IF(ISNUMBER(F107),((K107*F107)/$C107)*O103,""))) ->  | N107: 1 | O107: 1
A108: Pumpestationer, bygværker og bassiner 3
A109: Pumpestation (inkl. evt. hydrofor)/trykforøger, Konstruktioner | B109: m³/h | C109: =+Genanskaffelsespriser!$E$175 -> 50 | D109: 0 | E109: 0 | F109: 0 | G109: 0 | H109: 0 | I109: Granhøj | J109: =IF(E109=0,"Variabel pris",IFERROR((HLOOKUP(E109,'Variable priser'!$C$103:$F$105,2)+(E109-HLOOKUP(E109,'Variable priser'!$C$103:$F$105,1))*HLOOKUP(E109,'Variable priser'!$C$103:$F$105,3))*'Variable priser'!$I$102/E109*(1+Genanskaffelsespriser!$D$203),"Fejl")) -> Variabel pris | K109: =IF(F109=0,"Variabel pris",IFERROR((HLOOKUP(F109,'Variable priser'!$C$103:$F$105,2)+(F109-HLOOKUP(F109,'Variable priser'!$C$103:$F$105,1))*HLOOKUP(F109,'Variable priser'!$C$103:$F$105,3))*'Variable priser'!$I$102/F109*(1+Genanskaffelsespriser!$D$203),"Fejl")) -> Variabel pris | L109: =IF(ISBLANK(E109),"",IF(E109=0,"",IF(ISNUMBER(E109),((J109*E109)/$C109)*N109,""))) ->  | M109: =IF(ISBLANK(F109),"",IF(F109=0,"",IF(ISNUMBER(F109),((K109*F109)/$C109)*O109,""))) ->  | N109: 1 | O109: 1
A110: Pumpestation (inkl. evt. hydrofor)/trykforøger, Mek./EL | B110: m³/h | C110: =+Genanskaffelsespriser!$E$176 -> 25 | D110: 0 | E110: 0 | F110: 0 | G110: 0 | H110: 0 | J110: =IF(E110=0,"Variabel pris",IFERROR((HLOOKUP(E110,'Variable priser'!$C$103:$F$105,2)+(E110-HLOOKUP(E110,'Variable priser'!$C$103:$F$105,1))*HLOOKUP(E110,'Variable priser'!$C$103:$F$105,3))*'Variable priser'!$J$102/E110*(1+Genanskaffelsespriser!$D$203),"Fejl")) -> Variabel pris | K110: =IF(F110=0,"Variabel pris",IFERROR((HLOOKUP(F110,'Variable priser'!$C$103:$F$105,2)+(F110-HLOOKUP(F110,'Variable priser'!$C$103:$F$105,1))*HLOOKUP(F110,'Variable priser'!$C$103:$F$105,3))*'Variable priser'!$J$102/F110*(1+Genanskaffelsespriser!$D$203),"Fejl")) -> Variabel pris | L110: =IF(ISBLANK(E110),"",IF(E110=0,"",IF(ISNUMBER(E110),((J110*E110)/$C110)*N109,""))) ->  | M110: =IF(ISBLANK(F110),"",IF(F110=0,"",IF(ISNUMBER(F110),((K110*F110)/$C110)*O109,""))) ->  | N110: 1 | O110: 1
A111: Pumpestation (inkl. evt. hydrofor)/trykforøger, SRO | B111: m³/h | C111: =+Genanskaffelsespriser!$E$177 -> 10 | D111: 0 | E111: 0 | F111: 0 | G111: 0 | H111: 0 | J111: =IF(E111=0,"Variabel pris",IFERROR((HLOOKUP(E111,'Variable priser'!$C$103:$F$105,2)+(E111-HLOOKUP(E111,'Variable priser'!$C$103:$F$105,1))*HLOOKUP(E111,'Variable priser'!$C$103:$F$105,3))*'Variable priser'!$L$102/E111*(1+Genanskaffelsespriser!$D$203),"Fejl")) -> Variabel pris | K111: =IF(F111=0,"Variabel pris",IFERROR((HLOOKUP(F111,'Variable priser'!$C$103:$F$105,2)+(F111-HLOOKUP(F111,'Variable priser'!$C$103:$F$105,1))*HLOOKUP(F111,'Variable priser'!$C$103:$F$105,3))*'Variable priser'!$L$102/F111*(1+Genanskaffelsespriser!$D$203),"Fejl")) -> Variabel pris | L111: =IF(ISBLANK(E111),"",IF(E111=0,"",IF(ISNUMBER(E111),((J111*E111)/$C111)*N109,""))) ->  | M111: =IF(ISBLANK(F111),"",IF(F111=0,"Samlet mængde kan ikke være nul i 2025",IF(ISNUMBER(F111),((K111*F111)/$C111)*O109,""))) -> Samlet mængde kan ikke være nul i 2025 | N111: 1 | O111: 1
A112: Beholderanlæg - højdebeholder | B112: m³ | C112: =+Genanskaffelsespriser!$E$178 -> 50 | D112: 0 | E112: 0 | F112: 0 | G112: 0 | H112: 0 | J112: =IF(E112=0,"Variabel pris",IFERROR((HLOOKUP(E112,'Variable priser'!$C$48:$H$50,2)+(E112-HLOOKUP(E112,'Variable priser'!$C$48:$H$50,1))*HLOOKUP(E112,'Variable priser'!$C$48:$H$50,3))/E112*(1+Genanskaffelsespriser!$D$203),"Fejl")) -> Variabel pris | K112: =IF(F112=0,"Variabel pris",IFERROR((HLOOKUP(F112,'Variable priser'!$C$48:$H$50,2)+(F112-HLOOKUP(F112,'Variable priser'!$C$48:$H$50,1))*HLOOKUP(F112,'Variable priser'!$C$48:$H$50,3))/F112*(1+Genanskaffelsespriser!$D$203),"Fejl")) -> Variabel pris | L112: =IF(ISBLANK(E112),"",IF(E112=0,"",IF(ISNUMBER(E112),((J112*E112)/$C112)*N109,""))) ->  | M112: =IF(ISBLANK(F112),"",IF(F112=0,"",IF(ISNUMBER(F112),((K112*F112)/$C112)*O109,""))) ->  | N112: 1 | O112: 1
A113: Beholderanlæg - vandtårn | B113: m³ | C113: =+Genanskaffelsespriser!$E$179 -> 50 | D113: 2000 | E113: 2000 | F113: 2000 | G113: 0 | H113: 0 | J113: =IF(E113=0,"Variabel pris",IFERROR((HLOOKUP(E113,'Variable priser'!$C$55:$H$57,2)+(E113-HLOOKUP(E113,'Variable priser'!$C$55:$H$57,1))*HLOOKUP(E113,'Variable priser'!$C$55:$H$57,3))/E113*(1+Genanskaffelsespriser!$D$203),"Fejl")) -> 4394.29878 | K113: =IF(F113=0,"Variabel pris",IFERROR((HLOOKUP(F113,'Variable priser'!$C$55:$H$57,2)+(F113-HLOOKUP(F113,'Variable priser'!$C$55:$H$57,1))*HLOOKUP(F113,'Variable priser'!$C$55:$H$57,3))/F113*(1+Genanskaffelsespriser!$D$203),"Fejl")) -> 4394.29878 | L113: =IF(ISBLANK(E113),"",IF(E113=0,"",IF(ISNUMBER(E113),((J113*E113)/$C113)*N109,""))) -> 175771.9512 | M113: =IF(ISBLANK(F113),"",IF(F113=0,"",IF(ISNUMBER(F113),((K113*F113)/$C113)*O109,""))) -> 175771.9512 | N113: 1 | O113: 1
A114: Pumpestationer, bygværker og bassiner 4
A115: Pumpestation (inkl. evt. hydrofor)/trykforøger, Konstruktioner | B115: m³/h | C115: =+Genanskaffelsespriser!$E$175 -> 50 | D115: 0 | E115: 0 | F115: 0 | G115: 0 | H115: 0 | I115: Sønderbro | J115: =IF(E115=0,"Variabel pris",IFERROR((HLOOKUP(E115,'Variable priser'!$C$103:$F$105,2)+(E115-HLOOKUP(E115,'Variable priser'!$C$103:$F$105,1))*HLOOKUP(E115,'Variable priser'!$C$103:$F$105,3))*'Variable priser'!$I$102/E115*(1+Genanskaffelsespriser!$D$203),"Fejl")) -> Variabel pris | K115: =IF(F115=0,"Variabel pris",IFERROR((HLOOKUP(F115,'Variable priser'!$C$103:$F$105,2)+(F115-HLOOKUP(F115,'Variable priser'!$C$103:$F$105,1))*HLOOKUP(F115,'Variable priser'!$C$103:$F$105,3))*'Variable priser'!$I$102/F115*(1+Genanskaffelsespriser!$D$203),"Fejl")) -> Variabel pris | L115: =IF(ISBLANK(E115),"",IF(E115=0,"",IF(ISNUMBER(E115),((J115*E115)/$C115)*N115,""))) ->  | M115: =IF(ISBLANK(F115),"",IF(F115=0,"",IF(ISNUMBER(F115),((K115*F115)/$C115)*O115,""))) ->  | N115: 1 | O115: 1
A116: Pumpestation (inkl. evt. hydrofor)/trykforøger, Mek./EL | B116: m³/h | C116: =+Genanskaffelsespriser!$E$176 -> 25 | D116: 0 | E116: 0 | F116: 0 | G116: 0 | H116: 0 | J116: =IF(E116=0,"Variabel pris",IFERROR((HLOOKUP(E116,'Variable priser'!$C$103:$F$105,2)+(E116-HLOOKUP(E116,'Variable priser'!$C$103:$F$105,1))*HLOOKUP(E116,'Variable priser'!$C$103:$F$105,3))*'Variable priser'!$J$102/E116*(1+Genanskaffelsespriser!$D$203),"Fejl")) -> Variabel pris | K116: =IF(F116=0,"Variabel pris",IFERROR((HLOOKUP(F116,'Variable priser'!$C$103:$F$105,2)+(F116-HLOOKUP(F116,'Variable priser'!$C$103:$F$105,1))*HLOOKUP(F116,'Variable priser'!$C$103:$F$105,3))*'Variable priser'!$J$102/F116*(1+Genanskaffelsespriser!$D$203),"Fejl")) -> Variabel pris | L116: =IF(ISBLANK(E116),"",IF(E116=0,"",IF(ISNUMBER(E116),((J116*E116)/$C116)*N115,""))) ->  | M116: =IF(ISBLANK(F116),"",IF(F116=0,"",IF(ISNUMBER(F116),((K116*F116)/$C116)*O115,""))) ->  | N116: 1 | O116: 1
A117: Pumpestation (inkl. evt. hydrofor)/trykforøger, SRO | B117: m³/h | C117: =+Genanskaffelsespriser!$E$177 -> 10 | D117: 0 | E117: 0 | F117: 0 | G117: 0 | H117: 0 | J117: =IF(E117=0,"Variabel pris",IFERROR((HLOOKUP(E117,'Variable priser'!$C$103:$F$105,2)+(E117-HLOOKUP(E117,'Variable priser'!$C$103:$F$105,1))*HLOOKUP(E117,'Variable priser'!$C$103:$F$105,3))*'Variable priser'!$L$102/E117*(1+Genanskaffelsespriser!$D$203),"Fejl")) -> Variabel pris | K117: =IF(F117=0,"Variabel pris",IFERROR((HLOOKUP(F117,'Variable priser'!$C$103:$F$105,2)+(F117-HLOOKUP(F117,'Variable priser'!$C$103:$F$105,1))*HLOOKUP(F117,'Variable priser'!$C$103:$F$105,3))*'Variable priser'!$L$102/F117*(1+Genanskaffelsespriser!$D$203),"Fejl")) -> Variabel pris | L117: =IF(ISBLANK(E117),"",IF(E117=0,"",IF(ISNUMBER(E117),((J117*E117)/$C117)*N115,""))) ->  | M117: =IF(ISBLANK(F117),"",IF(F117=0,"Samlet mængde kan ikke være nul i 2025",IF(ISNUMBER(F117),((K117*F117)/$C117)*O115,""))) -> Samlet mængde kan ikke være nul i 2025 | N117: 1 | O117: 1
A118: Beholderanlæg - højdebeholder | B118: m³ | C118: =+Genanskaffelsespriser!$E$178 -> 50 | D118: 7600 | E118: 7600 | F118: 7600 | G118: 0 | H118: 0 | J118: =IF(E118=0,"Variabel pris",IFERROR((HLOOKUP(E118,'Variable priser'!$C$48:$H$50,2)+(E118-HLOOKUP(E118,'Variable priser'!$C$48:$H$50,1))*HLOOKUP(E118,'Variable priser'!$C$48:$H$50,3))/E118*(1+Genanskaffelsespriser!$D$203),"Fejl")) -> 1980.039581 | K118: =IF(F118=0,"Variabel pris",IFERROR((HLOOKUP(F118,'Variable priser'!$C$48:$H$50,2)+(F118-HLOOKUP(F118,'Variable priser'!$C$48:$H$50,1))*HLOOKUP(F118,'Variable priser'!$C$48:$H$50,3))/F118*(1+Genanskaffelsespriser!$D$203),"Fejl")) -> 1980.039581 | L118: =IF(ISBLANK(E118),"",IF(E118=0,"",IF(ISNUMBER(E118),((J118*E118)/$C118)*N115,""))) -> 300966.0163 | M118: =IF(ISBLANK(F118),"",IF(F118=0,"",IF(ISNUMBER(F118),((K118*F118)/$C118)*O115,""))) -> 300966.0163 | N118: 1 | O118: 1
A119: Beholderanlæg - vandtårn | B119: m³ | C119: =+Genanskaffelsespriser!$E$179 -> 50 | D119: 0 | E119: 0 | F119: 0 | G119: 0 | H119: 0 | J119: =IF(E119=0,"Variabel pris",IFERROR((HLOOKUP(E119,'Variable priser'!$C$55:$H$57,2)+(E119-HLOOKUP(E119,'Variable priser'!$C$55:$H$57,1))*HLOOKUP(E119,'Variable priser'!$C$55:$H$57,3))/E119*(1+Genanskaffelsespriser!$D$203),"Fejl")) -> Variabel pris | K119: =IF(F119=0,"Variabel pris",IFERROR((HLOOKUP(F119,'Variable priser'!$C$55:$H$57,2)+(F119-HLOOKUP(F119,'Variable priser'!$C$55:$H$57,1))*HLOOKUP(F119,'Variable priser'!$C$55:$H$57,3))/F119*(1+Genanskaffelsespriser!$D$203),"Fejl")) -> Variabel pris | L119: =IF(ISBLANK(E119),"",IF(E119=0,"",IF(ISNUMBER(E119),((J119*E119)/$C119)*N115,""))) ->  | M119: =IF(ISBLANK(F119),"",IF(F119=0,"",IF(ISNUMBER(F119),((K119*F119)/$C119)*O115,""))) ->  | N119: 1 | O119: 1
A120: Pumpestationer, bygværker og bassiner 5 | D120: 0
A121: Pumpestation (inkl. evt. hydrofor)/trykforøger, Konstruktioner | B121: m³/h | C121: =+Genanskaffelsespriser!$E$175 -> 50 | D121: 0 | E121: 100 | F121: 100 | G121: Ny data | H121: 0 | I121: Agertoften | J121: =IF(E121=0,"Variabel pris",IFERROR((HLOOKUP(E121,'Variable priser'!$C$103:$F$105,2)+(E121-HLOOKUP(E121,'Variable priser'!$C$103:$F$105,1))*HLOOKUP(E121,'Variable priser'!$C$103:$F$105,3))*'Variable priser'!$I$102/E121*(1+Genanskaffelsespriser!$D$203),"Fejl")) -> 1103.956875 | K121: =IF(F121=0,"Variabel pris",IFERROR((HLOOKUP(F121,'Variable priser'!$C$103:$F$105,2)+(F121-HLOOKUP(F121,'Variable priser'!$C$103:$F$105,1))*HLOOKUP(F121,'Variable priser'!$C$103:$F$105,3))*'Variable priser'!$I$102/F121*(1+Genanskaffelsespriser!$D$203),"Fejl")) -> 1103.956875 | L121: =IF(ISBLANK(E121),"",IF(E121=0,"",IF(ISNUMBER(E121),((J121*E121)/$C121)*N121,""))) -> 2207.91375 | M121: =IF(ISBLANK(F121),"",IF(F121=0,"",IF(ISNUMBER(F121),((K121*F121)/$C121)*O121,""))) -> 2207.91375 | N121: 1 | O121: 1
A122: Pumpestation (inkl. evt. hydrofor)/trykforøger, Mek./EL | B122: m³/h | C122: =+Genanskaffelsespriser!$E$176 -> 25 | D122: 0 | E122: 100 | F122: 100 | G122: Ny data | H122: 0 | J122: =IF(E122=0,"Variabel pris",IFERROR((HLOOKUP(E122,'Variable priser'!$C$103:$F$105,2)+(E122-HLOOKUP(E122,'Variable priser'!$C$103:$F$105,1))*HLOOKUP(E122,'Variable priser'!$C$103:$F$105,3))*'Variable priser'!$J$102/E122*(1+Genanskaffelsespriser!$D$203),"Fejl")) -> 2870.287875 | K122: =IF(F122=0,"Variabel pris",IFERROR((HLOOKUP(F122,'Variable priser'!$C$103:$F$105,2)+(F122-HLOOKUP(F122,'Variable priser'!$C$103:$F$105,1))*HLOOKUP(F122,'Variable priser'!$C$103:$F$105,3))*'Variable priser'!$J$102/F122*(1+Genanskaffelsespriser!$D$203),"Fejl")) -> 2870.287875 | L122: =IF(ISBLANK(E122),"",IF(E122=0,"",IF(ISNUMBER(E122),((J122*E122)/$C122)*N121,""))) -> 11481.1515 | M122: =IF(ISBLANK(F122),"",IF(F122=0,"",IF(ISNUMBER(F122),((K122*F122)/$C122)*O121,""))) -> 11481.1515 | N122: 1 | O122: 1
A123: Pumpestation (inkl. evt. hydrofor)/trykforøger, SRO | B123: m³/h | C123: =+Genanskaffelsespriser!$E$177 -> 10 | D123: 0 | E123: 100 | F123: 100 | G123: Ny data | H123: 0 | J123: =IF(E123=0,"Variabel pris",IFERROR((HLOOKUP(E123,'Variable priser'!$C$103:$F$105,2)+(E123-HLOOKUP(E123,'Variable priser'!$C$103:$F$105,1))*HLOOKUP(E123,'Variable priser'!$C$103:$F$105,3))*'Variable priser'!$L$102/E123*(1+Genanskaffelsespriser!$D$203),"Fejl")) -> 441.58275 | K123: =IF(F123=0,"Variabel pris",IFERROR((HLOOKUP(F123,'Variable priser'!$C$103:$F$105,2)+(F123-HLOOKUP(F123,'Variable priser'!$C$103:$F$105,1))*HLOOKUP(F123,'Variable priser'!$C$103:$F$105,3))*'Variable priser'!$L$102/F123*(1+Genanskaffelsespriser!$D$203),"Fejl")) -> 441.58275 | L123: =IF(ISBLANK(E123),"",IF(E123=0,"",IF(ISNUMBER(E123),((J123*E123)/$C123)*N121,""))) -> 4415.8275 | M123: =IF(ISBLANK(F123),"",IF(F123=0,"Samlet mængde kan ikke være nul i 2025",IF(ISNUMBER(F123),((K123*F123)/$C123)*O121,""))) -> 4415.8275 | N123: 1 | O123: 1
A124: Beholderanlæg - højdebeholder | B124: m³ | C124: =+Genanskaffelsespriser!$E$178 -> 50 | D124: 0 | E124: 0 | F124: 0 | G124: 0 | H124: 0 | J124: =IF(E124=0,"Variabel pris",IFERROR((HLOOKUP(E124,'Variable priser'!$C$48:$H$50,2)+(E124-HLOOKUP(E124,'Variable priser'!$C$48:$H$50,1))*HLOOKUP(E124,'Variable priser'!$C$48:$H$50,3))/E124*(1+Genanskaffelsespriser!$D$203),"Fejl")) -> Variabel pris | K124: =IF(F124=0,"Variabel pris",IFERROR((HLOOKUP(F124,'Variable priser'!$C$48:$H$50,2)+(F124-HLOOKUP(F124,'Variable priser'!$C$48:$H$50,1))*HLOOKUP(F124,'Variable priser'!$C$48:$H$50,3))/F124*(1+Genanskaffelsespriser!$D$203),"Fejl")) -> Variabel pris | L124: =IF(ISBLANK(E124),"",IF(E124=0,"",IF(ISNUMBER(E124),((J124*E124)/$C124)*N121,""))) ->  | M124: =IF(ISBLANK(F124),"",IF(F124=0,"",IF(ISNUMBER(F124),((K124*F124)/$C124)*O121,""))) ->  | N124: 1 | O124: 1
A125: Beholderanlæg - vandtårn | B125: m³ | C125: =+Genanskaffelsespriser!$E$179 -> 50 | D125: 0 | E125: 0 | F125: 0 | G125: 0 | H125: 0 | J125: =IF(E125=0,"Variabel pris",IFERROR((HLOOKUP(E125,'Variable priser'!$C$55:$H$57,2)+(E125-HLOOKUP(E125,'Variable priser'!$C$55:$H$57,1))*HLOOKUP(E125,'Variable priser'!$C$55:$H$57,3))/E125*(1+Genanskaffelsespriser!$D$203),"Fejl")) -> Variabel pris | K125: =IF(F125=0,"Variabel pris",IFERROR((HLOOKUP(F125,'Variable priser'!$C$55:$H$57,2)+(F125-HLOOKUP(F125,'Variable priser'!$C$55:$H$57,1))*HLOOKUP(F125,'Variable priser'!$C$55:$H$57,3))/F125*(1+Genanskaffelsespriser!$D$203),"Fejl")) -> Variabel pris | L125: =IF(ISBLANK(E125),"",IF(E125=0,"",IF(ISNUMBER(E125),((J125*E125)/$C125)*N121,""))) ->  | M125: =IF(ISBLANK(F125),"",IF(F125=0,"",IF(ISNUMBER(F125),((K125*F125)/$C125)*O121,""))) ->  | N125: 1 | O125: 1
A126: Pumpestationer, bygværker og bassiner 6 | D126: 0
A127: Pumpestation (inkl. evt. hydrofor)/trykforøger, Konstruktioner | B127: m³/h | C127: =+Genanskaffelsespriser!$E$175 -> 50 | D127: 0 | E127: 0 | F127: 0 | G127: 0 | H127: 0 | I127: Ferslev Beholder | J127: =IF(E127=0,"Variabel pris",IFERROR((HLOOKUP(E127,'Variable priser'!$C$103:$F$105,2)+(E127-HLOOKUP(E127,'Variable priser'!$C$103:$F$105,1))*HLOOKUP(E127,'Variable priser'!$C$103:$F$105,3))*'Variable priser'!$I$102/E127*(1+Genanskaffelsespriser!$D$203),"Fejl")) -> Variabel pris | K127: =IF(F127=0,"Variabel pris",IFERROR((HLOOKUP(F127,'Variable priser'!$C$103:$F$105,2)+(F127-HLOOKUP(F127,'Variable priser'!$C$103:$F$105,1))*HLOOKUP(F127,'Variable priser'!$C$103:$F$105,3))*'Variable priser'!$I$102/F127*(1+Genanskaffelsespriser!$D$203),"Fejl")) -> Variabel pris | L127: =IF(ISBLANK(E127),"",IF(E127=0,"",IF(ISNUMBER(E127),((J127*E127)/$C127)*N127,""))) ->  | M127: =IF(ISBLANK(F127),"",IF(F127=0,"",IF(ISNUMBER(F127),((K127*F127)/$C127)*O127,""))) ->  | N127: 1 | O127: 1
A128: Pumpestation (inkl. evt. hydrofor)/trykforøger, Mek./EL | B128: m³/h | C128: =+Genanskaffelsespriser!$E$176 -> 25 | D128: 0 | E128: 0 | F128: 0 | G128: 0 | H128: 0 | J128: =IF(E128=0,"Variabel pris",IFERROR((HLOOKUP(E128,'Variable priser'!$C$103:$F$105,2)+(E128-HLOOKUP(E128,'Variable priser'!$C$103:$F$105,1))*HLOOKUP(E128,'Variable priser'!$C$103:$F$105,3))*'Variable priser'!$J$102/E128*(1+Genanskaffelsespriser!$D$203),"Fejl")) -> Variabel pris | K128: =IF(F128=0,"Variabel pris",IFERROR((HLOOKUP(F128,'Variable priser'!$C$103:$F$105,2)+(F128-HLOOKUP(F128,'Variable priser'!$C$103:$F$105,1))*HLOOKUP(F128,'Variable priser'!$C$103:$F$105,3))*'Variable priser'!$J$102/F128*(1+Genanskaffelsespriser!$D$203),"Fejl")) -> Variabel pris | L128: =IF(ISBLANK(E128),"",IF(E128=0,"",IF(ISNUMBER(E128),((J128*E128)/$C128)*N127,""))) ->  | M128: =IF(ISBLANK(F128),"",IF(F128=0,"",IF(ISNUMBER(F128),((K128*F128)/$C128)*O127,""))) ->  | N128: 1 | O128: 1
A129: Pumpestation (inkl. evt. hydrofor)/trykforøger, SRO | B129: m³/h | C129: =+Genanskaffelsespriser!$E$177 -> 10 | D129: 0 | E129: 0 | F129: 0 | G129: 0 | H129: 0 | J129: =IF(E129=0,"Variabel pris",IFERROR((HLOOKUP(E129,'Variable priser'!$C$103:$F$105,2)+(E129-HLOOKUP(E129,'Variable priser'!$C$103:$F$105,1))*HLOOKUP(E129,'Variable priser'!$C$103:$F$105,3))*'Variable priser'!$L$102/E129*(1+Genanskaffelsespriser!$D$203),"Fejl")) -> Variabel pris | K129: =IF(F129=0,"Variabel pris",IFERROR((HLOOKUP(F129,'Variable priser'!$C$103:$F$105,2)+(F129-HLOOKUP(F129,'Variable priser'!$C$103:$F$105,1))*HLOOKUP(F129,'Variable priser'!$C$103:$F$105,3))*'Variable priser'!$L$102/F129*(1+Genanskaffelsespriser!$D$203),"Fejl")) -> Variabel pris | L129: =IF(ISBLANK(E129),"",IF(E129=0,"",IF(ISNUMBER(E129),((J129*E129)/$C129)*N127,""))) ->  | M129: =IF(ISBLANK(F129),"",IF(F129=0,"Samlet mængde kan ikke være nul i 2025",IF(ISNUMBER(F129),((K129*F129)/$C129)*O127,""))) -> Samlet mængde kan ikke være nul i 2025 | N129: 1 | O129: 1
A130: Beholderanlæg - højdebeholder | B130: m³ | C130: =+Genanskaffelsespriser!$E$178 -> 50 | D130: 0 | E130: 500 | F130: 500 | G130: Ny data | H130: 0 | J130: =IF(E130=0,"Variabel pris",IFERROR((HLOOKUP(E130,'Variable priser'!$C$48:$H$50,2)+(E130-HLOOKUP(E130,'Variable priser'!$C$48:$H$50,1))*HLOOKUP(E130,'Variable priser'!$C$48:$H$50,3))/E130*(1+Genanskaffelsespriser!$D$203),"Fejl")) -> 4686.8112 | K130: =IF(F130=0,"Variabel pris",IFERROR((HLOOKUP(F130,'Variable priser'!$C$48:$H$50,2)+(F130-HLOOKUP(F130,'Variable priser'!$C$48:$H$50,1))*HLOOKUP(F130,'Variable priser'!$C$48:$H$50,3))/F130*(1+Genanskaffelsespriser!$D$203),"Fejl")) -> 4686.8112 | L130: =IF(ISBLANK(E130),"",IF(E130=0,"",IF(ISNUMBER(E130),((J130*E130)/$C130)*N127,""))) -> 46868.112 | M130: =IF(ISBLANK(F130),"",IF(F130=0,"",IF(ISNUMBER(F130),((K130*F130)/$C130)*O127,""))) -> 46868.112 | N130: 1 | O130: 1
A131: Beholderanlæg - vandtårn | B131: m³ | C131: =+Genanskaffelsespriser!$E$179 -> 50 | D131: 0 | E131: 0 | F131: 0 | G131: 0 | H131: 0 | J131: =IF(E131=0,"Variabel pris",IFERROR((HLOOKUP(E131,'Variable priser'!$C$55:$H$57,2)+(E131-HLOOKUP(E131,'Variable priser'!$C$55:$H$57,1))*HLOOKUP(E131,'Variable priser'!$C$55:$H$57,3))/E131*(1+Genanskaffelsespriser!$D$203),"Fejl")) -> Variabel pris | K131: =IF(F131=0,"Variabel pris",IFERROR((HLOOKUP(F131,'Variable priser'!$C$55:$H$57,2)+(F131-HLOOKUP(F131,'Variable priser'!$C$55:$H$57,1))*HLOOKUP(F131,'Variable priser'!$C$55:$H$57,3))/F131*(1+Genanskaffelsespriser!$D$203),"Fejl")) -> Variabel pris | L131: =IF(ISBLANK(E131),"",IF(E131=0,"",IF(ISNUMBER(E131),((J131*E131)/$C131)*N127,""))) ->  | M131: =IF(ISBLANK(F131),"",IF(F131=0,"",IF(ISNUMBER(F131),((K131*F131)/$C131)*O127,""))) ->  | N131: 1 | O131: 1
A132: Pumpestationer, bygværker og bassiner 7 | D132: 0
A133: Pumpestation (inkl. evt. hydrofor)/trykforøger, Konstruktioner | B133: m³/h | C133: =+Genanskaffelsespriser!$E$175 -> 50 | D133: 0 | E133: 85 | F133: 85 | G133: Ny data | H133: 0 | I133: Svenstrup Beholder | J133: =IF(E133=0,"Variabel pris",IFERROR((HLOOKUP(E133,'Variable priser'!$C$103:$F$105,2)+(E133-HLOOKUP(E133,'Variable priser'!$C$103:$F$105,1))*HLOOKUP(E133,'Variable priser'!$C$103:$F$105,3))*'Variable priser'!$I$102/E133*(1+Genanskaffelsespriser!$D$203),"Fejl")) -> 1170.508897 | K133: =IF(F133=0,"Variabel pris",IFERROR((HLOOKUP(F133,'Variable priser'!$C$103:$F$105,2)+(F133-HLOOKUP(F133,'Variable priser'!$C$103:$F$105,1))*HLOOKUP(F133,'Variable priser'!$C$103:$F$105,3))*'Variable priser'!$I$102/F133*(1+Genanskaffelsespriser!$D$203),"Fejl")) -> 1170.508897 | L133: =IF(ISBLANK(E133),"",IF(E133=0,"",IF(ISNUMBER(E133),((J133*E133)/$C133)*N133,""))) -> 1989.865125 | M133: =IF(ISBLANK(F133),"",IF(F133=0,"",IF(ISNUMBER(F133),((K133*F133)/$C133)*O133,""))) -> 1989.865125 | N133: 1 | O133: 1
A134: Pumpestation (inkl. evt. hydrofor)/trykforøger, Mek./EL | B134: m³/h | C134: =+Genanskaffelsespriser!$E$176 -> 25 | D134: 0 | E134: 85 | F134: 85 | G134: Ny data | H134: 0 | J134: =IF(E134=0,"Variabel pris",IFERROR((HLOOKUP(E134,'Variable priser'!$C$103:$F$105,2)+(E134-HLOOKUP(E134,'Variable priser'!$C$103:$F$105,1))*HLOOKUP(E134,'Variable priser'!$C$103:$F$105,3))*'Variable priser'!$J$102/E134*(1+Genanskaffelsespriser!$D$203),"Fejl")) -> 3043.323132 | K134: =IF(F134=0,"Variabel pris",IFERROR((HLOOKUP(F134,'Variable priser'!$C$103:$F$105,2)+(F134-HLOOKUP(F134,'Variable priser'!$C$103:$F$105,1))*HLOOKUP(F134,'Variable priser'!$C$103:$F$105,3))*'Variable priser'!$J$102/F134*(1+Genanskaffelsespriser!$D$203),"Fejl")) -> 3043.323132 | L134: =IF(ISBLANK(E134),"",IF(E134=0,"",IF(ISNUMBER(E134),((J134*E134)/$C134)*N133,""))) -> 10347.29865 | M134: =IF(ISBLANK(F134),"",IF(F134=0,"",IF(ISNUMBER(F134),((K134*F134)/$C134)*O133,""))) -> 10347.29865 | N134: 1 | O134: 1
A135: Pumpestation (inkl. evt. hydrofor)/trykforøger, SRO | B135: m³/h | C135: =+Genanskaffelsespriser!$E$177 -> 10 | D135: 0 | E135: 85 | F135: 85 | G135: Ny data | H135: 0 | J135: =IF(E135=0,"Variabel pris",IFERROR((HLOOKUP(E135,'Variable priser'!$C$103:$F$105,2)+(E135-HLOOKUP(E135,'Variable priser'!$C$103:$F$105,1))*HLOOKUP(E135,'Variable priser'!$C$103:$F$105,3))*'Variable priser'!$L$102/E135*(1+Genanskaffelsespriser!$D$203),"Fejl")) -> 468.2035588 | K135: =IF(F135=0,"Variabel pris",IFERROR((HLOOKUP(F135,'Variable priser'!$C$103:$F$105,2)+(F135-HLOOKUP(F135,'Variable priser'!$C$103:$F$105,1))*HLOOKUP(F135,'Variable priser'!$C$103:$F$105,3))*'Variable priser'!$L$102/F135*(1+Genanskaffelsespriser!$D$203),"Fejl")) -> 468.2035588 | L135: =IF(ISBLANK(E135),"",IF(E135=0,"",IF(ISNUMBER(E135),((J135*E135)/$C135)*N133,""))) -> 3979.73025 | M135: =IF(ISBLANK(F135),"",IF(F135=0,"Samlet mængde kan ikke være nul i 2025",IF(ISNUMBER(F135),((K135*F135)/$C135)*O133,""))) -> 3979.73025 | N135: 1 | O135: 1
A136: Beholderanlæg - højdebeholder | B136: m³ | C136: =+Genanskaffelsespriser!$E$178 -> 50 | D136: 0 | E136: 3000 | F136: 3000 | G136: Ny data | H136: 0 | J136: =IF(E136=0,"Variabel pris",IFERROR((HLOOKUP(E136,'Variable priser'!$C$48:$H$50,2)+(E136-HLOOKUP(E136,'Variable priser'!$C$48:$H$50,1))*HLOOKUP(E136,'Variable priser'!$C$48:$H$50,3))/E136*(1+Genanskaffelsespriser!$D$203),"Fejl")) -> 2500 | K136: =IF(F136=0,"Variabel pris",IFERROR((HLOOKUP(F136,'Variable priser'!$C$48:$H$50,2)+(F136-HLOOKUP(F136,'Variable priser'!$C$48:$H$50,1))*HLOOKUP(F136,'Variable priser'!$C$48:$H$50,3))/F136*(1+Genanskaffelsespriser!$D$203),"Fejl")) -> 2500 | L136: =IF(ISBLANK(E136),"",IF(E136=0,"",IF(ISNUMBER(E136),((J136*E136)/$C136)*N133,""))) -> 150000 | M136: =IF(ISBLANK(F136),"",IF(F136=0,"",IF(ISNUMBER(F136),((K136*F136)/$C136)*O133,""))) -> 150000 | N136: 1 | O136: 1
A137: Beholderanlæg - vandtårn | B137: m³ | C137: =+Genanskaffelsespriser!$E$179 -> 50 | D137: 0 | E137: 0 | F137: 0 | G137: 0 | H137: 0 | J137: =IF(E137=0,"Variabel pris",IFERROR((HLOOKUP(E137,'Variable priser'!$C$55:$H$57,2)+(E137-HLOOKUP(E137,'Variable priser'!$C$55:$H$57,1))*HLOOKUP(E137,'Variable priser'!$C$55:$H$57,3))/E137*(1+Genanskaffelsespriser!$D$203),"Fejl")) -> Variabel pris | K137: =IF(F137=0,"Variabel pris",IFERROR((HLOOKUP(F137,'Variable priser'!$C$55:$H$57,2)+(F137-HLOOKUP(F137,'Variable priser'!$C$55:$H$57,1))*HLOOKUP(F137,'Variable priser'!$C$55:$H$57,3))/F137*(1+Genanskaffelsespriser!$D$203),"Fejl")) -> Variabel pris | L137: =IF(ISBLANK(E137),"",IF(E137=0,"",IF(ISNUMBER(E137),((J137*E137)/$C137)*N133,""))) ->  | M137: =IF(ISBLANK(F137),"",IF(F137=0,"",IF(ISNUMBER(F137),((K137*F137)/$C137)*O133,""))) ->  | N137: 1 | O137: 1
A138: Pumpestationer, bygværker og bassiner 8 | D138: 0
A139: Pumpestation (inkl. evt. hydrofor)/trykforøger, Konstruktioner | B139: m³/h | C139: =+Genanskaffelsespriser!$E$175 -> 50 | D139: 0 | E139: 275 | F139: 275 | G139: Ny data | H139: 0 | I139: Svenstrup trykforøger | J139: =IF(E139=0,"Variabel pris",IFERROR((HLOOKUP(E139,'Variable priser'!$C$103:$F$105,2)+(E139-HLOOKUP(E139,'Variable priser'!$C$103:$F$105,1))*HLOOKUP(E139,'Variable priser'!$C$103:$F$105,3))*'Variable priser'!$I$102/E139*(1+Genanskaffelsespriser!$D$203),"Fejl")) -> 863.96625 | K139: =IF(F139=0,"Variabel pris",IFERROR((HLOOKUP(F139,'Variable priser'!$C$103:$F$105,2)+(F139-HLOOKUP(F139,'Variable priser'!$C$103:$F$105,1))*HLOOKUP(F139,'Variable priser'!$C$103:$F$105,3))*'Variable priser'!$I$102/F139*(1+Genanskaffelsespriser!$D$203),"Fejl")) -> 863.96625 | L139: =IF(ISBLANK(E139),"",IF(E139=0,"",IF(ISNUMBER(E139),((J139*E139)/$C139)*N139,""))) -> 4751.814375 | M139: =IF(ISBLANK(F139),"",IF(F139=0,"",IF(ISNUMBER(F139),((K139*F139)/$C139)*O139,""))) -> 4751.814375 | N139: 1 | O139: 1
A140: Pumpestation (inkl. evt. hydrofor)/trykforøger, Mek./EL | B140: m³/h | C140: =+Genanskaffelsespriser!$E$176 -> 25 | D140: 0 | E140: 275 | F140: 275 | G140: Ny data | H140: 0 | J140: =IF(E140=0,"Variabel pris",IFERROR((HLOOKUP(E140,'Variable priser'!$C$103:$F$105,2)+(E140-HLOOKUP(E140,'Variable priser'!$C$103:$F$105,1))*HLOOKUP(E140,'Variable priser'!$C$103:$F$105,3))*'Variable priser'!$J$102/E140*(1+Genanskaffelsespriser!$D$203),"Fejl")) -> 2246.31225 | K140: =IF(F140=0,"Variabel pris",IFERROR((HLOOKUP(F140,'Variable priser'!$C$103:$F$105,2)+(F140-HLOOKUP(F140,'Variable priser'!$C$103:$F$105,1))*HLOOKUP(F140,'Variable priser'!$C$103:$F$105,3))*'Variable priser'!$J$102/F140*(1+Genanskaffelsespriser!$D$203),"Fejl")) -> 2246.31225 | L140: =IF(ISBLANK(E140),"",IF(E140=0,"",IF(ISNUMBER(E140),((J140*E140)/$C140)*N139,""))) -> 24709.43475 | M140: =IF(ISBLANK(F140),"",IF(F140=0,"",IF(ISNUMBER(F140),((K140*F140)/$C140)*O139,""))) -> 24709.43475 | N140: 1 | O140: 1
A141: Pumpestation (inkl. evt. hydrofor)/trykforøger, SRO | B141: m³/h | C141: =+Genanskaffelsespriser!$E$177 -> 10 | D141: 0 | E141: 275 | F141: 275 | G141: Ny data | H141: 0 | J141: =IF(E141=0,"Variabel pris",IFERROR((HLOOKUP(E141,'Variable priser'!$C$103:$F$105,2)+(E141-HLOOKUP(E141,'Variable priser'!$C$103:$F$105,1))*HLOOKUP(E141,'Variable priser'!$C$103:$F$105,3))*'Variable priser'!$L$102/E141*(1+Genanskaffelsespriser!$D$203),"Fejl")) -> 345.5865 | K141: =IF(F141=0,"Variabel pris",IFERROR((HLOOKUP(F141,'Variable priser'!$C$103:$F$105,2)+(F141-HLOOKUP(F141,'Variable priser'!$C$103:$F$105,1))*HLOOKUP(F141,'Variable priser'!$C$103:$F$105,3))*'Variable priser'!$L$102/F141*(1+Genanskaffelsespriser!$D$203),"Fejl")) -> 345.5865 | L141: =IF(ISBLANK(E141),"",IF(E141=0,"",IF(ISNUMBER(E141),((J141*E141)/$C141)*N139,""))) -> 9503.62875 | M141: =IF(ISBLANK(F141),"",IF(F141=0,"Samlet mængde kan ikke være nul i 2025",IF(ISNUMBER(F141),((K141*F141)/$C141)*O139,""))) -> 9503.62875 | N141: 1 | O141: 1
A142: Beholderanlæg - højdebeholder | B142: m³ | C142: =+Genanskaffelsespriser!$E$178 -> 50 | D142: 0 | E142: 0 | F142: 0 | G142: 0 | H142: 0 | J142: =IF(E142=0,"Variabel pris",IFERROR((HLOOKUP(E142,'Variable priser'!$C$48:$H$50,2)+(E142-HLOOKUP(E142,'Variable priser'!$C$48:$H$50,1))*HLOOKUP(E142,'Variable priser'!$C$48:$H$50,3))/E142*(1+Genanskaffelsespriser!$D$203),"Fejl")) -> Variabel pris | K142: =IF(F142=0,"Variabel pris",IFERROR((HLOOKUP(F142,'Variable priser'!$C$48:$H$50,2)+(F142-HLOOKUP(F142,'Variable priser'!$C$48:$H$50,1))*HLOOKUP(F142,'Variable priser'!$C$48:$H$50,3))/F142*(1+Genanskaffelsespriser!$D$203),"Fejl")) -> Variabel pris | L142: =IF(ISBLANK(E142),"",IF(E142=0,"",IF(ISNUMBER(E142),((J142*E142)/$C142)*N139,""))) ->  | M142: =IF(ISBLANK(F142),"",IF(F142=0,"",IF(ISNUMBER(F142),((K142*F142)/$C142)*O139,""))) ->  | N142: 1 | O142: 1
A143: Beholderanlæg - vandtårn | B143: m³ | C143: =+Genanskaffelsespriser!$E$179 -> 50 | D143: 0 | E143: 0 | F143: 0 | G143: 0 | H143: 0 | J143: =IF(E143=0,"Variabel pris",IFERROR((HLOOKUP(E143,'Variable priser'!$C$55:$H$57,2)+(E143-HLOOKUP(E143,'Variable priser'!$C$55:$H$57,1))*HLOOKUP(E143,'Variable priser'!$C$55:$H$57,3))/E143*(1+Genanskaffelsespriser!$D$203),"Fejl")) -> Variabel pris | K143: =IF(F143=0,"Variabel pris",IFERROR((HLOOKUP(F143,'Variable priser'!$C$55:$H$57,2)+(F143-HLOOKUP(F143,'Variable priser'!$C$55:$H$57,1))*HLOOKUP(F143,'Variable priser'!$C$55:$H$57,3))/F143*(1+Genanskaffelsespriser!$D$203),"Fejl")) -> Variabel pris | L143: =IF(ISBLANK(E143),"",IF(E143=0,"",IF(ISNUMBER(E143),((J143*E143)/$C143)*N139,""))) ->  | M143: =IF(ISBLANK(F143),"",IF(F143=0,"",IF(ISNUMBER(F143),((K143*F143)/$C143)*O139,""))) ->  | N143: 1 | O143: 1
A144: Pumpestationer, bygværker og bassiner 9 | D144: 0
A145: Pumpestation (inkl. evt. hydrofor)/trykforøger, Konstruktioner | B145: m³/h | C145: =+Genanskaffelsespriser!$E$175 -> 50 | D145: 0 | E145: 250 | F145: 250 | G145: Ny data | H145: 0 | I145: Granhøj Trykforøger | J145: =IF(E145=0,"Variabel pris",IFERROR((HLOOKUP(E145,'Variable priser'!$C$103:$F$105,2)+(E145-HLOOKUP(E145,'Variable priser'!$C$103:$F$105,1))*HLOOKUP(E145,'Variable priser'!$C$103:$F$105,3))*'Variable priser'!$I$102/E145*(1+Genanskaffelsespriser!$D$203),"Fejl")) -> 877.68 | K145: =IF(F145=0,"Variabel pris",IFERROR((HLOOKUP(F145,'Variable priser'!$C$103:$F$105,2)+(F145-HLOOKUP(F145,'Variable priser'!$C$103:$F$105,1))*HLOOKUP(F145,'Variable priser'!$C$103:$F$105,3))*'Variable priser'!$I$102/F145*(1+Genanskaffelsespriser!$D$203),"Fejl")) -> 877.68 | L145: =IF(ISBLANK(E145),"",IF(E145=0,"",IF(ISNUMBER(E145),((J145*E145)/$C145)*N145,""))) -> 4388.4 | M145: =IF(ISBLANK(F145),"",IF(F145=0,"",IF(ISNUMBER(F145),((K145*F145)/$C145)*O145,""))) -> 4388.4 | N145: 1 | O145: 1
A146: Pumpestation (inkl. evt. hydrofor)/trykforøger, Mek./EL | B146: m³/h | C146: =+Genanskaffelsespriser!$E$176 -> 25 | D146: 0 | E146: 250 | F146: 250 | G146: Ny data | H146: 0 | J146: =IF(E146=0,"Variabel pris",IFERROR((HLOOKUP(E146,'Variable priser'!$C$103:$F$105,2)+(E146-HLOOKUP(E146,'Variable priser'!$C$103:$F$105,1))*HLOOKUP(E146,'Variable priser'!$C$103:$F$105,3))*'Variable priser'!$J$102/E146*(1+Genanskaffelsespriser!$D$203),"Fejl")) -> 2281.968 | K146: =IF(F146=0,"Variabel pris",IFERROR((HLOOKUP(F146,'Variable priser'!$C$103:$F$105,2)+(F146-HLOOKUP(F146,'Variable priser'!$C$103:$F$105,1))*HLOOKUP(F146,'Variable priser'!$C$103:$F$105,3))*'Variable priser'!$J$102/F146*(1+Genanskaffelsespriser!$D$203),"Fejl")) -> 2281.968 | L146: =IF(ISBLANK(E146),"",IF(E146=0,"",IF(ISNUMBER(E146),((J146*E146)/$C146)*N145,""))) -> 22819.68 | M146: =IF(ISBLANK(F146),"",IF(F146=0,"",IF(ISNUMBER(F146),((K146*F146)/$C146)*O145,""))) -> 22819.68 | N146: 1 | O146: 1
A147: Pumpestation (inkl. evt. hydrofor)/trykforøger, SRO | B147: m³/h | C147: =+Genanskaffelsespriser!$E$177 -> 10 | D147: 0 | E147: 250 | F147: 250 | G147: Ny data | H147: 0 | J147: =IF(E147=0,"Variabel pris",IFERROR((HLOOKUP(E147,'Variable priser'!$C$103:$F$105,2)+(E147-HLOOKUP(E147,'Variable priser'!$C$103:$F$105,1))*HLOOKUP(E147,'Variable priser'!$C$103:$F$105,3))*'Variable priser'!$L$102/E147*(1+Genanskaffelsespriser!$D$203),"Fejl")) -> 351.072 | K147: =IF(F147=0,"Variabel pris",IFERROR((HLOOKUP(F147,'Variable priser'!$C$103:$F$105,2)+(F147-HLOOKUP(F147,'Variable priser'!$C$103:$F$105,1))*HLOOKUP(F147,'Variable priser'!$C$103:$F$105,3))*'Variable priser'!$L$102/F147*(1+Genanskaffelsespriser!$D$203),"Fejl")) -> 351.072 | L147: =IF(ISBLANK(E147),"",IF(E147=0,"",IF(ISNUMBER(E147),((J147*E147)/$C147)*N145,""))) -> 8776.8 | M147: =IF(ISBLANK(F147),"",IF(F147=0,"Samlet mængde kan ikke være nul i 2025",IF(ISNUMBER(F147),((K147*F147)/$C147)*O145,""))) -> 8776.8 | N147: 1 | O147: 1
A148: Beholderanlæg - højdebeholder | B148: m³ | C148: =+Genanskaffelsespriser!$E$178 -> 50 | D148: 0 | E148: 0 | F148: 0 | G148: 0 | H148: 0 | J148: =IF(E148=0,"Variabel pris",IFERROR((HLOOKUP(E148,'Variable priser'!$C$48:$H$50,2)+(E148-HLOOKUP(E148,'Variable priser'!$C$48:$H$50,1))*HLOOKUP(E148,'Variable priser'!$C$48:$H$50,3))/E148*(1+Genanskaffelsespriser!$D$203),"Fejl")) -> Variabel pris | K148: =IF(F148=0,"Variabel pris",IFERROR((HLOOKUP(F148,'Variable priser'!$C$48:$H$50,2)+(F148-HLOOKUP(F148,'Variable priser'!$C$48:$H$50,1))*HLOOKUP(F148,'Variable priser'!$C$48:$H$50,3))/F148*(1+Genanskaffelsespriser!$D$203),"Fejl")) -> Variabel pris | L148: =IF(ISBLANK(E148),"",IF(E148=0,"",IF(ISNUMBER(E148),((J148*E148)/$C148)*N145,""))) ->  | M148: =IF(ISBLANK(F148),"",IF(F148=0,"",IF(ISNUMBER(F148),((K148*F148)/$C148)*O145,""))) ->  | N148: 1 | O148: 1
A149: Beholderanlæg - vandtårn | B149: m³ | C149: =+Genanskaffelsespriser!$E$179 -> 50 | D149: 0 | E149: 0 | F149: 0 | G149: 0 | H149: 0 | J149: =IF(E149=0,"Variabel pris",IFERROR((HLOOKUP(E149,'Variable priser'!$C$55:$H$57,2)+(E149-HLOOKUP(E149,'Variable priser'!$C$55:$H$57,1))*HLOOKUP(E149,'Variable priser'!$C$55:$H$57,3))/E149*(1+Genanskaffelsespriser!$D$203),"Fejl")) -> Variabel pris | K149: =IF(F149=0,"Variabel pris",IFERROR((HLOOKUP(F149,'Variable priser'!$C$55:$H$57,2)+(F149-HLOOKUP(F149,'Variable priser'!$C$55:$H$57,1))*HLOOKUP(F149,'Variable priser'!$C$55:$H$57,3))/F149*(1+Genanskaffelsespriser!$D$203),"Fejl")) -> Variabel pris | L149: =IF(ISBLANK(E149),"",IF(E149=0,"",IF(ISNUMBER(E149),((J149*E149)/$C149)*N145,""))) ->  | M149: =IF(ISBLANK(F149),"",IF(F149=0,"",IF(ISNUMBER(F149),((K149*F149)/$C149)*O145,""))) ->  | N149: 1 | O149: 1
A150: Pumpestationer, bygværker og bassiner 10 | D150: 0
A151: Pumpestation (inkl. evt. hydrofor)/trykforøger, Konstruktioner | B151: m³/h | C151: =+Genanskaffelsespriser!$E$175 -> 50 | D151: 0 | E151: 300 | F151: 300 | G151: Ny data | H151: 0 | I151: Lerumbakken - Beholder + trykforøger | J151: =IF(E151=0,"Variabel pris",IFERROR((HLOOKUP(E151,'Variable priser'!$C$103:$F$105,2)+(E151-HLOOKUP(E151,'Variable priser'!$C$103:$F$105,1))*HLOOKUP(E151,'Variable priser'!$C$103:$F$105,3))*'Variable priser'!$I$102/E151*(1+Genanskaffelsespriser!$D$203),"Fejl")) -> 852.538125 | K151: =IF(F151=0,"Variabel pris",IFERROR((HLOOKUP(F151,'Variable priser'!$C$103:$F$105,2)+(F151-HLOOKUP(F151,'Variable priser'!$C$103:$F$105,1))*HLOOKUP(F151,'Variable priser'!$C$103:$F$105,3))*'Variable priser'!$I$102/F151*(1+Genanskaffelsespriser!$D$203),"Fejl")) -> 852.538125 | L151: =IF(ISBLANK(E151),"",IF(E151=0,"",IF(ISNUMBER(E151),((J151*E151)/$C151)*N151,""))) -> 5115.22875 | M151: =IF(ISBLANK(F151),"",IF(F151=0,"",IF(ISNUMBER(F151),((K151*F151)/$C151)*O151,""))) -> 5115.22875 | N151: 1 | O151: 1
A152: Pumpestation (inkl. evt. hydrofor)/trykforøger, Mek./EL | B152: m³/h | C152: =+Genanskaffelsespriser!$E$176 -> 25 | D152: 0 | E152: 300 | F152: 300 | G152: Ny data | H152: 0 | J152: =IF(E152=0,"Variabel pris",IFERROR((HLOOKUP(E152,'Variable priser'!$C$103:$F$105,2)+(E152-HLOOKUP(E152,'Variable priser'!$C$103:$F$105,1))*HLOOKUP(E152,'Variable priser'!$C$103:$F$105,3))*'Variable priser'!$J$102/E152*(1+Genanskaffelsespriser!$D$203),"Fejl")) -> 2216.599125 | K152: =IF(F152=0,"Variabel pris",IFERROR((HLOOKUP(F152,'Variable priser'!$C$103:$F$105,2)+(F152-HLOOKUP(F152,'Variable priser'!$C$103:$F$105,1))*HLOOKUP(F152,'Variable priser'!$C$103:$F$105,3))*'Variable priser'!$J$102/F152*(1+Genanskaffelsespriser!$D$203),"Fejl")) -> 2216.599125 | L152: =IF(ISBLANK(E152),"",IF(E152=0,"",IF(ISNUMBER(E152),((J152*E152)/$C152)*N151,""))) -> 26599.1895 | M152: =IF(ISBLANK(F152),"",IF(F152=0,"",IF(ISNUMBER(F152),((K152*F152)/$C152)*O151,""))) -> 26599.1895 | N152: 1 | O152: 1
A153: Pumpestation (inkl. evt. hydrofor)/trykforøger, SRO | B153: m³/h | C153: =+Genanskaffelsespriser!$E$177 -> 10 | D153: 0 | E153: 300 | F153: 300 | G153: Ny data | H153: 0 | J153: =IF(E153=0,"Variabel pris",IFERROR((HLOOKUP(E153,'Variable priser'!$C$103:$F$105,2)+(E153-HLOOKUP(E153,'Variable priser'!$C$103:$F$105,1))*HLOOKUP(E153,'Variable priser'!$C$103:$F$105,3))*'Variable priser'!$L$102/E153*(1+Genanskaffelsespriser!$D$203),"Fejl")) -> 341.01525 | K153: =IF(F153=0,"Variabel pris",IFERROR((HLOOKUP(F153,'Variable priser'!$C$103:$F$105,2)+(F153-HLOOKUP(F153,'Variable priser'!$C$103:$F$105,1))*HLOOKUP(F153,'Variable priser'!$C$103:$F$105,3))*'Variable priser'!$L$102/F153*(1+Genanskaffelsespriser!$D$203),"Fejl")) -> 341.01525 | L153: =IF(ISBLANK(E153),"",IF(E153=0,"",IF(ISNUMBER(E153),((J153*E153)/$C153)*N151,""))) -> 10230.4575 | M153: =IF(ISBLANK(F153),"",IF(F153=0,"Samlet mængde kan ikke være nul i 2025",IF(ISNUMBER(F153),((K153*F153)/$C153)*O151,""))) -> 10230.4575 | N153: 1 | O153: 1
A154: Beholderanlæg - højdebeholder | B154: m³ | C154: =+Genanskaffelsespriser!$E$178 -> 50 | D154: 0 | E154: 4000 | F154: 4000 | G154: Ny data | H154: 0 | J154: =IF(E154=0,"Variabel pris",IFERROR((HLOOKUP(E154,'Variable priser'!$C$48:$H$50,2)+(E154-HLOOKUP(E154,'Variable priser'!$C$48:$H$50,1))*HLOOKUP(E154,'Variable priser'!$C$48:$H$50,3))/E154*(1+Genanskaffelsespriser!$D$203),"Fejl")) -> 2285.23374 | K154: =IF(F154=0,"Variabel pris",IFERROR((HLOOKUP(F154,'Variable priser'!$C$48:$H$50,2)+(F154-HLOOKUP(F154,'Variable priser'!$C$48:$H$50,1))*HLOOKUP(F154,'Variable priser'!$C$48:$H$50,3))/F154*(1+Genanskaffelsespriser!$D$203),"Fejl")) -> 2285.23374 | L154: =IF(ISBLANK(E154),"",IF(E154=0,"",IF(ISNUMBER(E154),((J154*E154)/$C154)*N151,""))) -> 182818.6992 | M154: =IF(ISBLANK(F154),"",IF(F154=0,"",IF(ISNUMBER(F154),((K154*F154)/$C154)*O151,""))) -> 182818.6992 | N154: 1 | O154: 1
A155: Beholderanlæg - vandtårn | B155: m³ | C155: =+Genanskaffelsespriser!$E$179 -> 50 | D155: 0 | E155: 0 | F155: 0 | G155: 0 | H155: 0 | J155: =IF(E155=0,"Variabel pris",IFERROR((HLOOKUP(E155,'Variable priser'!$C$55:$H$57,2)+(E155-HLOOKUP(E155,'Variable priser'!$C$55:$H$57,1))*HLOOKUP(E155,'Variable priser'!$C$55:$H$57,3))/E155*(1+Genanskaffelsespriser!$D$203),"Fejl")) -> Variabel pris | K155: =IF(F155=0,"Variabel pris",IFERROR((HLOOKUP(F155,'Variable priser'!$C$55:$H$57,2)+(F155-HLOOKUP(F155,'Variable priser'!$C$55:$H$57,1))*HLOOKUP(F155,'Variable priser'!$C$55:$H$57,3))/F155*(1+Genanskaffelsespriser!$D$203),"Fejl")) -> Variabel pris | L155: =IF(ISBLANK(E155),"",IF(E155=0,"",IF(ISNUMBER(E155),((J155*E155)/$C155)*N151,""))) ->  | M155: =IF(ISBLANK(F155),"",IF(F155=0,"",IF(ISNUMBER(F155),((K155*F155)/$C155)*O151,""))) ->  | N155: 1 | O155: 1
A156: Pumpestationer, bygværker og bassiner 11 | D156: 0
A157: Pumpestation (inkl. evt. hydrofor)/trykforøger, Konstruktioner | B157: m³/h | C157: =+Genanskaffelsespriser!$E$175 -> 50 | D157: 0 | E157: 52 | F157: 52 | G157: Ny data | H157: 0 | I157: Lundby Krat Trykforøger | J157: =IF(E157=0,"Variabel pris",IFERROR((HLOOKUP(E157,'Variable priser'!$C$103:$F$105,2)+(E157-HLOOKUP(E157,'Variable priser'!$C$103:$F$105,1))*HLOOKUP(E157,'Variable priser'!$C$103:$F$105,3))*'Variable priser'!$I$102/E157*(1+Genanskaffelsespriser!$D$203),"Fejl")) -> 1452.075144 | K157: =IF(F157=0,"Variabel pris",IFERROR((HLOOKUP(F157,'Variable priser'!$C$103:$F$105,2)+(F157-HLOOKUP(F157,'Variable priser'!$C$103:$F$105,1))*HLOOKUP(F157,'Variable priser'!$C$103:$F$105,3))*'Variable priser'!$I$102/F157*(1+Genanskaffelsespriser!$D$203),"Fejl")) -> 1452.075144 | L157: =IF(ISBLANK(E157),"",IF(E157=0,"",IF(ISNUMBER(E157),((J157*E157)/$C157)*N157,""))) -> 1510.15815 | M157: =IF(ISBLANK(F157),"",IF(F157=0,"",IF(ISNUMBER(F157),((K157*F157)/$C157)*O157,""))) -> 1510.15815 | N157: 1 | O157: 1
A158: Pumpestation (inkl. evt. hydrofor)/trykforøger, Mek./EL | B158: m³/h | C158: =+Genanskaffelsespriser!$E$176 -> 25 | D158: 0 | E158: 52 | F158: 52 | G158: Ny data | H158: 0 | J158: =IF(E158=0,"Variabel pris",IFERROR((HLOOKUP(E158,'Variable priser'!$C$103:$F$105,2)+(E158-HLOOKUP(E158,'Variable priser'!$C$103:$F$105,1))*HLOOKUP(E158,'Variable priser'!$C$103:$F$105,3))*'Variable priser'!$J$102/E158*(1+Genanskaffelsespriser!$D$203),"Fejl")) -> 3775.395375 | K158: =IF(F158=0,"Variabel pris",IFERROR((HLOOKUP(F158,'Variable priser'!$C$103:$F$105,2)+(F158-HLOOKUP(F158,'Variable priser'!$C$103:$F$105,1))*HLOOKUP(F158,'Variable priser'!$C$103:$F$105,3))*'Variable priser'!$J$102/F158*(1+Genanskaffelsespriser!$D$203),"Fejl")) -> 3775.395375 | L158: =IF(ISBLANK(E158),"",IF(E158=0,"",IF(ISNUMBER(E158),((J158*E158)/$C158)*N157,""))) -> 7852.82238 | M158: =IF(ISBLANK(F158),"",IF(F158=0,"",IF(ISNUMBER(F158),((K158*F158)/$C158)*O157,""))) -> 7852.82238 | N158: 1 | O158: 1
A159: Pumpestation (inkl. evt. hydrofor)/trykforøger, SRO | B159: m³/h | C159: =+Genanskaffelsespriser!$E$177 -> 10 | D159: 0 | E159: 52 | F159: 52 | G159: Ny data | H159: 0 | J159: =IF(E159=0,"Variabel pris",IFERROR((HLOOKUP(E159,'Variable priser'!$C$103:$F$105,2)+(E159-HLOOKUP(E159,'Variable priser'!$C$103:$F$105,1))*HLOOKUP(E159,'Variable priser'!$C$103:$F$105,3))*'Variable priser'!$L$102/E159*(1+Genanskaffelsespriser!$D$203),"Fejl")) -> 580.8300577 | K159: =IF(F159=0,"Variabel pris",IFERROR((HLOOKUP(F159,'Variable priser'!$C$103:$F$105,2)+(F159-HLOOKUP(F159,'Variable priser'!$C$103:$F$105,1))*HLOOKUP(F159,'Variable priser'!$C$103:$F$105,3))*'Variable priser'!$L$102/F159*(1+Genanskaffelsespriser!$D$203),"Fejl")) -> 580.8300577 | L159: =IF(ISBLANK(E159),"",IF(E159=0,"",IF(ISNUMBER(E159),((J159*E159)/$C159)*N157,""))) -> 3020.3163 | M159: =IF(ISBLANK(F159),"",IF(F159=0,"Samlet mængde kan ikke være nul i 2025",IF(ISNUMBER(F159),((K159*F159)/$C159)*O157,""))) -> 3020.3163 | N159: 1 | O159: 1
A160: Beholderanlæg - højdebeholder | B160: m³ | C160: =+Genanskaffelsespriser!$E$178 -> 50 | D160: 0 | E160: 0 | F160: 0 | G160: 0 | H160: 0 | J160: =IF(E160=0,"Variabel pris",IFERROR((HLOOKUP(E160,'Variable priser'!$C$48:$H$50,2)+(E160-HLOOKUP(E160,'Variable priser'!$C$48:$H$50,1))*HLOOKUP(E160,'Variable priser'!$C$48:$H$50,3))/E160*(1+Genanskaffelsespriser!$D$203),"Fejl")) -> Variabel pris | K160: =IF(F160=0,"Variabel pris",IFERROR((HLOOKUP(F160,'Variable priser'!$C$48:$H$50,2)+(F160-HLOOKUP(F160,'Variable priser'!$C$48:$H$50,1))*HLOOKUP(F160,'Variable priser'!$C$48:$H$50,3))/F160*(1+Genanskaffelsespriser!$D$203),"Fejl")) -> Variabel pris | L160: =IF(ISBLANK(E160),"",IF(E160=0,"",IF(ISNUMBER(E160),((J160*E160)/$C160)*N157,""))) ->  | M160: =IF(ISBLANK(F160),"",IF(F160=0,"",IF(ISNUMBER(F160),((K160*F160)/$C160)*O157,""))) ->  | N160: 1 | O160: 1
A161: Beholderanlæg - vandtårn | B161: m³ | C161: =+Genanskaffelsespriser!$E$179 -> 50 | D161: 0 | E161: 0 | F161: 0 | G161: 0 | H161: 0 | J161: =IF(E161=0,"Variabel pris",IFERROR((HLOOKUP(E161,'Variable priser'!$C$55:$H$57,2)+(E161-HLOOKUP(E161,'Variable priser'!$C$55:$H$57,1))*HLOOKUP(E161,'Variable priser'!$C$55:$H$57,3))/E161*(1+Genanskaffelsespriser!$D$203),"Fejl")) -> Variabel pris | K161: =IF(F161=0,"Variabel pris",IFERROR((HLOOKUP(F161,'Variable priser'!$C$55:$H$57,2)+(F161-HLOOKUP(F161,'Variable priser'!$C$55:$H$57,1))*HLOOKUP(F161,'Variable priser'!$C$55:$H$57,3))/F161*(1+Genanskaffelsespriser!$D$203),"Fejl")) -> Variabel pris | L161: =IF(ISBLANK(E161),"",IF(E161=0,"",IF(ISNUMBER(E161),((J161*E161)/$C161)*N157,""))) ->  | M161: =IF(ISBLANK(F161),"",IF(F161=0,"",IF(ISNUMBER(F161),((K161*F161)/$C161)*O157,""))) ->  | N161: 1 | O161: 1
A162: Pumpestationer, bygværker og bassiner 12 | D162: 0
A163: Pumpestation (inkl. evt. hydrofor)/trykforøger, Konstruktioner | B163: m³/h | C163: =+Genanskaffelsespriser!$E$175 -> 50 | D163: 0 | E163: 32 | F163: 32 | G163: Ny data | H163: 0 | I163: Mølleparken - Beholder | J163: =IF(E163=0,"Variabel pris",IFERROR((HLOOKUP(E163,'Variable priser'!$C$103:$F$105,2)+(E163-HLOOKUP(E163,'Variable priser'!$C$103:$F$105,1))*HLOOKUP(E163,'Variable priser'!$C$103:$F$105,3))*'Variable priser'!$I$102/E163*(1+Genanskaffelsespriser!$D$203),"Fejl")) -> 1851.35625 | K163: =IF(F163=0,"Variabel pris",IFERROR((HLOOKUP(F163,'Variable priser'!$C$103:$F$105,2)+(F163-HLOOKUP(F163,'Variable priser'!$C$103:$F$105,1))*HLOOKUP(F163,'Variable priser'!$C$103:$F$105,3))*'Variable priser'!$I$102/F163*(1+Genanskaffelsespriser!$D$203),"Fejl")) -> 1851.35625 | L163: =IF(ISBLANK(E163),"",IF(E163=0,"",IF(ISNUMBER(E163),((J163*E163)/$C163)*N163,""))) -> 1184.868 | M163: =IF(ISBLANK(F163),"",IF(F163=0,"",IF(ISNUMBER(F163),((K163*F163)/$C163)*O163,""))) -> 1184.868 | N163: 1 | O163: 1
A164: Pumpestation (inkl. evt. hydrofor)/trykforøger, Mek./EL | B164: m³/h | C164: =+Genanskaffelsespriser!$E$176 -> 25 | D164: 0 | E164: 32 | F164: 32 | G164: Ny data | H164: 0 | J164: =IF(E164=0,"Variabel pris",IFERROR((HLOOKUP(E164,'Variable priser'!$C$103:$F$105,2)+(E164-HLOOKUP(E164,'Variable priser'!$C$103:$F$105,1))*HLOOKUP(E164,'Variable priser'!$C$103:$F$105,3))*'Variable priser'!$J$102/E164*(1+Genanskaffelsespriser!$D$203),"Fejl")) -> 4813.52625 | K164: =IF(F164=0,"Variabel pris",IFERROR((HLOOKUP(F164,'Variable priser'!$C$103:$F$105,2)+(F164-HLOOKUP(F164,'Variable priser'!$C$103:$F$105,1))*HLOOKUP(F164,'Variable priser'!$C$103:$F$105,3))*'Variable priser'!$J$102/F164*(1+Genanskaffelsespriser!$D$203),"Fejl")) -> 4813.52625 | L164: =IF(ISBLANK(E164),"",IF(E164=0,"",IF(ISNUMBER(E164),((J164*E164)/$C164)*N163,""))) -> 6161.3136 | M164: =IF(ISBLANK(F164),"",IF(F164=0,"",IF(ISNUMBER(F164),((K164*F164)/$C164)*O163,""))) -> 6161.3136 | N164: 1 | O164: 1
A165: Pumpestation (inkl. evt. hydrofor)/trykforøger, SRO | B165: m³/h | C165: =+Genanskaffelsespriser!$E$177 -> 10 | D165: 0 | E165: 32 | F165: 32 | G165: Ny data | H165: 0 | J165: =IF(E165=0,"Variabel pris",IFERROR((HLOOKUP(E165,'Variable priser'!$C$103:$F$105,2)+(E165-HLOOKUP(E165,'Variable priser'!$C$103:$F$105,1))*HLOOKUP(E165,'Variable priser'!$C$103:$F$105,3))*'Variable priser'!$L$102/E165*(1+Genanskaffelsespriser!$D$203),"Fejl")) -> 740.5425 | K165: =IF(F165=0,"Variabel pris",IFERROR((HLOOKUP(F165,'Variable priser'!$C$103:$F$105,2)+(F165-HLOOKUP(F165,'Variable priser'!$C$103:$F$105,1))*HLOOKUP(F165,'Variable priser'!$C$103:$F$105,3))*'Variable priser'!$L$102/F165*(1+Genanskaffelsespriser!$D$203),"Fejl")) -> 740.5425 | L165: =IF(ISBLANK(E165),"",IF(E165=0,"",IF(ISNUMBER(E165),((J165*E165)/$C165)*N163,""))) -> 2369.736 | M165: =IF(ISBLANK(F165),"",IF(F165=0,"Samlet mængde kan ikke være nul i 2025",IF(ISNUMBER(F165),((K165*F165)/$C165)*O163,""))) -> 2369.736 | N165: 1 | O165: 1
A166: Beholderanlæg - højdebeholder | B166: m³ | C166: =+Genanskaffelsespriser!$E$178 -> 50 | D166: 0 | E166: 4000 | F166: 4000 | G166: Ny data | H166: 0 | J166: =IF(E166=0,"Variabel pris",IFERROR((HLOOKUP(E166,'Variable priser'!$C$48:$H$50,2)+(E166-HLOOKUP(E166,'Variable priser'!$C$48:$H$50,1))*HLOOKUP(E166,'Variable priser'!$C$48:$H$50,3))/E166*(1+Genanskaffelsespriser!$D$203),"Fejl")) -> 2285.23374 | K166: =IF(F166=0,"Variabel pris",IFERROR((HLOOKUP(F166,'Variable priser'!$C$48:$H$50,2)+(F166-HLOOKUP(F166,'Variable priser'!$C$48:$H$50,1))*HLOOKUP(F166,'Variable priser'!$C$48:$H$50,3))/F166*(1+Genanskaffelsespriser!$D$203),"Fejl")) -> 2285.23374 | L166: =IF(ISBLANK(E166),"",IF(E166=0,"",IF(ISNUMBER(E166),((J166*E166)/$C166)*N163,""))) -> 182818.6992 | M166: =IF(ISBLANK(F166),"",IF(F166=0,"",IF(ISNUMBER(F166),((K166*F166)/$C166)*O163,""))) -> 182818.6992 | N166: 1 | O166: 1
A167: Beholderanlæg - vandtårn | B167: m³ | C167: =+Genanskaffelsespriser!$E$179 -> 50 | D167: 0 | E167: 0 | F167: 0 | G167: 0 | H167: 0 | J167: =IF(E167=0,"Variabel pris",IFERROR((HLOOKUP(E167,'Variable priser'!$C$55:$H$57,2)+(E167-HLOOKUP(E167,'Variable priser'!$C$55:$H$57,1))*HLOOKUP(E167,'Variable priser'!$C$55:$H$57,3))/E167*(1+Genanskaffelsespriser!$D$203),"Fejl")) -> Variabel pris | K167: =IF(F167=0,"Variabel pris",IFERROR((HLOOKUP(F167,'Variable priser'!$C$55:$H$57,2)+(F167-HLOOKUP(F167,'Variable priser'!$C$55:$H$57,1))*HLOOKUP(F167,'Variable priser'!$C$55:$H$57,3))/F167*(1+Genanskaffelsespriser!$D$203),"Fejl")) -> Variabel pris | L167: =IF(ISBLANK(E167),"",IF(E167=0,"",IF(ISNUMBER(E167),((J167*E167)/$C167)*N163,""))) ->  | M167: =IF(ISBLANK(F167),"",IF(F167=0,"",IF(ISNUMBER(F167),((K167*F167)/$C167)*O163,""))) ->  | N167: 1 | O167: 1
A168: Pumpestationer, bygværker og bassiner 13 | D168: 0
A169: Pumpestation (inkl. evt. hydrofor)/trykforøger, Konstruktioner | B169: m³/h | C169: =+Genanskaffelsespriser!$E$175 -> 50 | D169: 0 | E169: 360 | F169: 360 | G169: Ny data | H169: 0 | I169: Røgildsvej Trykforøger | J169: =IF(E169=0,"Variabel pris",IFERROR((HLOOKUP(E169,'Variable priser'!$C$103:$F$105,2)+(E169-HLOOKUP(E169,'Variable priser'!$C$103:$F$105,1))*HLOOKUP(E169,'Variable priser'!$C$103:$F$105,3))*'Variable priser'!$I$102/E169*(1+Genanskaffelsespriser!$D$203),"Fejl")) -> 831.5865625 | K169: =IF(F169=0,"Variabel pris",IFERROR((HLOOKUP(F169,'Variable priser'!$C$103:$F$105,2)+(F169-HLOOKUP(F169,'Variable priser'!$C$103:$F$105,1))*HLOOKUP(F169,'Variable priser'!$C$103:$F$105,3))*'Variable priser'!$I$102/F169*(1+Genanskaffelsespriser!$D$203),"Fejl")) -> 831.5865625 | L169: =IF(ISBLANK(E169),"",IF(E169=0,"",IF(ISNUMBER(E169),((J169*E169)/$C169)*N169,""))) -> 5987.42325 | M169: =IF(ISBLANK(F169),"",IF(F169=0,"",IF(ISNUMBER(F169),((K169*F169)/$C169)*O169,""))) -> 5987.42325 | N169: 1 | O169: 1
A170: Pumpestation (inkl. evt. hydrofor)/trykforøger, Mek./EL | B170: m³/h | C170: =+Genanskaffelsespriser!$E$176 -> 25 | D170: 0 | E170: 360 | F170: 360 | G170: Ny data | H170: 0 | J170: =IF(E170=0,"Variabel pris",IFERROR((HLOOKUP(E170,'Variable priser'!$C$103:$F$105,2)+(E170-HLOOKUP(E170,'Variable priser'!$C$103:$F$105,1))*HLOOKUP(E170,'Variable priser'!$C$103:$F$105,3))*'Variable priser'!$J$102/E170*(1+Genanskaffelsespriser!$D$203),"Fejl")) -> 2162.125062 | K170: =IF(F170=0,"Variabel pris",IFERROR((HLOOKUP(F170,'Variable priser'!$C$103:$F$105,2)+(F170-HLOOKUP(F170,'Variable priser'!$C$103:$F$105,1))*HLOOKUP(F170,'Variable priser'!$C$103:$F$105,3))*'Variable priser'!$J$102/F170*(1+Genanskaffelsespriser!$D$203),"Fejl")) -> 2162.125062 | L170: =IF(ISBLANK(E170),"",IF(E170=0,"",IF(ISNUMBER(E170),((J170*E170)/$C170)*N169,""))) -> 31134.6009 | M170: =IF(ISBLANK(F170),"",IF(F170=0,"",IF(ISNUMBER(F170),((K170*F170)/$C170)*O169,""))) -> 31134.6009 | N170: 1 | O170: 1
A171: Pumpestation (inkl. evt. hydrofor)/trykforøger, SRO | B171: m³/h | C171: =+Genanskaffelsespriser!$E$177 -> 10 | D171: 0 | E171: 360 | F171: 360 | G171: Ny data | H171: 0 | J171: =IF(E171=0,"Variabel pris",IFERROR((HLOOKUP(E171,'Variable priser'!$C$103:$F$105,2)+(E171-HLOOKUP(E171,'Variable priser'!$C$103:$F$105,1))*HLOOKUP(E171,'Variable priser'!$C$103:$F$105,3))*'Variable priser'!$L$102/E171*(1+Genanskaffelsespriser!$D$203),"Fejl")) -> 332.634625 | K171: =IF(F171=0,"Variabel pris",IFERROR((HLOOKUP(F171,'Variable priser'!$C$103:$F$105,2)+(F171-HLOOKUP(F171,'Variable priser'!$C$103:$F$105,1))*HLOOKUP(F171,'Variable priser'!$C$103:$F$105,3))*'Variable priser'!$L$102/F171*(1+Genanskaffelsespriser!$D$203),"Fejl")) -> 332.634625 | L171: =IF(ISBLANK(E171),"",IF(E171=0,"",IF(ISNUMBER(E171),((J171*E171)/$C171)*N169,""))) -> 11974.8465 | M171: =IF(ISBLANK(F171),"",IF(F171=0,"Samlet mængde kan ikke være nul i 2025",IF(ISNUMBER(F171),((K171*F171)/$C171)*O169,""))) -> 11974.8465 | N171: 1 | O171: 1
A172: Beholderanlæg - højdebeholder | B172: m³ | C172: =+Genanskaffelsespriser!$E$178 -> 50 | D172: 0 | E172: 0 | F172: 0 | G172: 0 | H172: 0 | J172: =IF(E172=0,"Variabel pris",IFERROR((HLOOKUP(E172,'Variable priser'!$C$48:$H$50,2)+(E172-HLOOKUP(E172,'Variable priser'!$C$48:$H$50,1))*HLOOKUP(E172,'Variable priser'!$C$48:$H$50,3))/E172*(1+Genanskaffelsespriser!$D$203),"Fejl")) -> Variabel pris | K172: =IF(F172=0,"Variabel pris",IFERROR((HLOOKUP(F172,'Variable priser'!$C$48:$H$50,2)+(F172-HLOOKUP(F172,'Variable priser'!$C$48:$H$50,1))*HLOOKUP(F172,'Variable priser'!$C$48:$H$50,3))/F172*(1+Genanskaffelsespriser!$D$203),"Fejl")) -> Variabel pris | L172: =IF(ISBLANK(E172),"",IF(E172=0,"",IF(ISNUMBER(E172),((J172*E172)/$C172)*N169,""))) ->  | M172: =IF(ISBLANK(F172),"",IF(F172=0,"",IF(ISNUMBER(F172),((K172*F172)/$C172)*O169,""))) ->  | N172: 1 | O172: 1
A173: Beholderanlæg - vandtårn | B173: m³ | C173: =+Genanskaffelsespriser!$E$179 -> 50 | D173: 0 | E173: 0 | F173: 0 | G173: 0 | H173: 0 | J173: =IF(E173=0,"Variabel pris",IFERROR((HLOOKUP(E173,'Variable priser'!$C$55:$H$57,2)+(E173-HLOOKUP(E173,'Variable priser'!$C$55:$H$57,1))*HLOOKUP(E173,'Variable priser'!$C$55:$H$57,3))/E173*(1+Genanskaffelsespriser!$D$203),"Fejl")) -> Variabel pris | K173: =IF(F173=0,"Variabel pris",IFERROR((HLOOKUP(F173,'Variable priser'!$C$55:$H$57,2)+(F173-HLOOKUP(F173,'Variable priser'!$C$55:$H$57,1))*HLOOKUP(F173,'Variable priser'!$C$55:$H$57,3))/F173*(1+Genanskaffelsespriser!$D$203),"Fejl")) -> Variabel pris | L173: =IF(ISBLANK(E173),"",IF(E173=0,"",IF(ISNUMBER(E173),((J173*E173)/$C173)*N169,""))) ->  | M173: =IF(ISBLANK(F173),"",IF(F173=0,"",IF(ISNUMBER(F173),((K173*F173)/$C173)*O169,""))) ->  | N173: 1 | O173: 1
A174: Pumpestationer, bygværker og bassiner 14 | D174: 0
A175: Pumpestation (inkl. evt. hydrofor)/trykforøger, Konstruktioner | B175: m³/h | C175: =+Genanskaffelsespriser!$E$175 -> 50 | D175: 0 | E175: 200 | F175: 200 | G175: Ny data | H175: 0 | I175: Ø. Uttrup Trykforøger | J175: =IF(E175=0,"Variabel pris",IFERROR((HLOOKUP(E175,'Variable priser'!$C$103:$F$105,2)+(E175-HLOOKUP(E175,'Variable priser'!$C$103:$F$105,1))*HLOOKUP(E175,'Variable priser'!$C$103:$F$105,3))*'Variable priser'!$I$102/E175*(1+Genanskaffelsespriser!$D$203),"Fejl")) -> 915.3928125 | K175: =IF(F175=0,"Variabel pris",IFERROR((HLOOKUP(F175,'Variable priser'!$C$103:$F$105,2)+(F175-HLOOKUP(F175,'Variable priser'!$C$103:$F$105,1))*HLOOKUP(F175,'Variable priser'!$C$103:$F$105,3))*'Variable priser'!$I$102/F175*(1+Genanskaffelsespriser!$D$203),"Fejl")) -> 915.3928125 | L175: =IF(ISBLANK(E175),"",IF(E175=0,"",IF(ISNUMBER(E175),((J175*E175)/$C175)*N175,""))) -> 3661.57125 | M175: =IF(ISBLANK(F175),"",IF(F175=0,"",IF(ISNUMBER(F175),((K175*F175)/$C175)*O175,""))) -> 3661.57125 | N175: 1 | O175: 1
A176: Pumpestation (inkl. evt. hydrofor)/trykforøger, Mek./EL | B176: m³/h | C176: =+Genanskaffelsespriser!$E$176 -> 25 | D176: 0 | E176: 200 | F176: 200 | G176: Ny data | H176: 0 | J176: =IF(E176=0,"Variabel pris",IFERROR((HLOOKUP(E176,'Variable priser'!$C$103:$F$105,2)+(E176-HLOOKUP(E176,'Variable priser'!$C$103:$F$105,1))*HLOOKUP(E176,'Variable priser'!$C$103:$F$105,3))*'Variable priser'!$J$102/E176*(1+Genanskaffelsespriser!$D$203),"Fejl")) -> 2380.021313 | K176: =IF(F176=0,"Variabel pris",IFERROR((HLOOKUP(F176,'Variable priser'!$C$103:$F$105,2)+(F176-HLOOKUP(F176,'Variable priser'!$C$103:$F$105,1))*HLOOKUP(F176,'Variable priser'!$C$103:$F$105,3))*'Variable priser'!$J$102/F176*(1+Genanskaffelsespriser!$D$203),"Fejl")) -> 2380.021313 | L176: =IF(ISBLANK(E176),"",IF(E176=0,"",IF(ISNUMBER(E176),((J176*E176)/$C176)*N175,""))) -> 19040.1705 | M176: =IF(ISBLANK(F176),"",IF(F176=0,"",IF(ISNUMBER(F176),((K176*F176)/$C176)*O175,""))) -> 19040.1705 | N176: 1 | O176: 1
A177: Pumpestation (inkl. evt. hydrofor)/trykforøger, SRO | B177: m³/h | C177: =+Genanskaffelsespriser!$E$177 -> 10 | D177: 0 | E177: 200 | F177: 200 | G177: Ny data | H177: 0 | J177: =IF(E177=0,"Variabel pris",IFERROR((HLOOKUP(E177,'Variable priser'!$C$103:$F$105,2)+(E177-HLOOKUP(E177,'Variable priser'!$C$103:$F$105,1))*HLOOKUP(E177,'Variable priser'!$C$103:$F$105,3))*'Variable priser'!$L$102/E177*(1+Genanskaffelsespriser!$D$203),"Fejl")) -> 366.157125 | K177: =IF(F177=0,"Variabel pris",IFERROR((HLOOKUP(F177,'Variable priser'!$C$103:$F$105,2)+(F177-HLOOKUP(F177,'Variable priser'!$C$103:$F$105,1))*HLOOKUP(F177,'Variable priser'!$C$103:$F$105,3))*'Variable priser'!$L$102/F177*(1+Genanskaffelsespriser!$D$203),"Fejl")) -> 366.157125 | L177: =IF(ISBLANK(E177),"",IF(E177=0,"",IF(ISNUMBER(E177),((J177*E177)/$C177)*N175,""))) -> 7323.1425 | M177: =IF(ISBLANK(F177),"",IF(F177=0,"Samlet mængde kan ikke være nul i 2025",IF(ISNUMBER(F177),((K177*F177)/$C177)*O175,""))) -> 7323.1425 | N177: 1 | O177: 1
A178: Beholderanlæg - højdebeholder | B178: m³ | C178: =+Genanskaffelsespriser!$E$178 -> 50 | D178: 0 | E178: 0 | F178: 0 | G178: 0 | H178: 0 | J178: =IF(E178=0,"Variabel pris",IFERROR((HLOOKUP(E178,'Variable priser'!$C$48:$H$50,2)+(E178-HLOOKUP(E178,'Variable priser'!$C$48:$H$50,1))*HLOOKUP(E178,'Variable priser'!$C$48:$H$50,3))/E178*(1+Genanskaffelsespriser!$D$203),"Fejl")) -> Variabel pris | K178: =IF(F178=0,"Variabel pris",IFERROR((HLOOKUP(F178,'Variable priser'!$C$48:$H$50,2)+(F178-HLOOKUP(F178,'Variable priser'!$C$48:$H$50,1))*HLOOKUP(F178,'Variable priser'!$C$48:$H$50,3))/F178*(1+Genanskaffelsespriser!$D$203),"Fejl")) -> Variabel pris | L178: =IF(ISBLANK(E178),"",IF(E178=0,"",IF(ISNUMBER(E178),((J178*E178)/$C178)*N175,""))) ->  | M178: =IF(ISBLANK(F178),"",IF(F178=0,"",IF(ISNUMBER(F178),((K178*F178)/$C178)*O175,""))) ->  | N178: 1 | O178: 1
A179: Beholderanlæg - vandtårn | B179: m³ | C179: =+Genanskaffelsespriser!$E$179 -> 50 | D179: 0 | E179: 0 | F179: 0 | G179: 0 | H179: 0 | J179: =IF(E179=0,"Variabel pris",IFERROR((HLOOKUP(E179,'Variable priser'!$C$55:$H$57,2)+(E179-HLOOKUP(E179,'Variable priser'!$C$55:$H$57,1))*HLOOKUP(E179,'Variable priser'!$C$55:$H$57,3))/E179*(1+Genanskaffelsespriser!$D$203),"Fejl")) -> Variabel pris | K179: =IF(F179=0,"Variabel pris",IFERROR((HLOOKUP(F179,'Variable priser'!$C$55:$H$57,2)+(F179-HLOOKUP(F179,'Variable priser'!$C$55:$H$57,1))*HLOOKUP(F179,'Variable priser'!$C$55:$H$57,3))/F179*(1+Genanskaffelsespriser!$D$203),"Fejl")) -> Variabel pris | L179: =IF(ISBLANK(E179),"",IF(E179=0,"",IF(ISNUMBER(E179),((J179*E179)/$C179)*N175,""))) ->  | M179: =IF(ISBLANK(F179),"",IF(F179=0,"",IF(ISNUMBER(F179),((K179*F179)/$C179)*O175,""))) ->  | N179: 1 | O179: 1
A180: Pumpestationer, bygværker og bassiner 15 | D180: 0
A181: Pumpestation (inkl. evt. hydrofor)/trykforøger, Konstruktioner | B181: m³/h | C181: =+Genanskaffelsespriser!$E$175 -> 50 | D181: 0 | E181: 15 | F181: 15 | G181: Ny data | H181: 0 | I181: Skovbakken Trykforøger | J181: =IF(E181=0,"Variabel pris",IFERROR((HLOOKUP(E181,'Variable priser'!$C$103:$F$105,2)+(E181-HLOOKUP(E181,'Variable priser'!$C$103:$F$105,1))*HLOOKUP(E181,'Variable priser'!$C$103:$F$105,3))*'Variable priser'!$I$102/E181*(1+Genanskaffelsespriser!$D$203),"Fejl")) -> 1919.925 | K181: =IF(F181=0,"Variabel pris",IFERROR((HLOOKUP(F181,'Variable priser'!$C$103:$F$105,2)+(F181-HLOOKUP(F181,'Variable priser'!$C$103:$F$105,1))*HLOOKUP(F181,'Variable priser'!$C$103:$F$105,3))*'Variable priser'!$I$102/F181*(1+Genanskaffelsespriser!$D$203),"Fejl")) -> 1919.925 | L181: =IF(ISBLANK(E181),"",IF(E181=0,"",IF(ISNUMBER(E181),((J181*E181)/$C181)*N181,""))) -> 575.9775 | M181: =IF(ISBLANK(F181),"",IF(F181=0,"",IF(ISNUMBER(F181),((K181*F181)/$C181)*O181,""))) -> 575.9775 | N181: 1 | O181: 1
A182: Pumpestation (inkl. evt. hydrofor)/trykforøger, Mek./EL | B182: m³/h | C182: =+Genanskaffelsespriser!$E$176 -> 25 | D182: 0 | E182: 15 | F182: 15 | G182: Ny data | H182: 0 | J182: =IF(E182=0,"Variabel pris",IFERROR((HLOOKUP(E182,'Variable priser'!$C$103:$F$105,2)+(E182-HLOOKUP(E182,'Variable priser'!$C$103:$F$105,1))*HLOOKUP(E182,'Variable priser'!$C$103:$F$105,3))*'Variable priser'!$J$102/E182*(1+Genanskaffelsespriser!$D$203),"Fejl")) -> 4991.805 | K182: =IF(F182=0,"Variabel pris",IFERROR((HLOOKUP(F182,'Variable priser'!$C$103:$F$105,2)+(F182-HLOOKUP(F182,'Variable priser'!$C$103:$F$105,1))*HLOOKUP(F182,'Variable priser'!$C$103:$F$105,3))*'Variable priser'!$J$102/F182*(1+Genanskaffelsespriser!$D$203),"Fejl")) -> 4991.805 | L182: =IF(ISBLANK(E182),"",IF(E182=0,"",IF(ISNUMBER(E182),((J182*E182)/$C182)*N181,""))) -> 2995.083 | M182: =IF(ISBLANK(F182),"",IF(F182=0,"",IF(ISNUMBER(F182),((K182*F182)/$C182)*O181,""))) -> 2995.083 | N182: 1 | O182: 1
A183: Pumpestation (inkl. evt. hydrofor)/trykforøger, SRO | B183: m³/h | C183: =+Genanskaffelsespriser!$E$177 -> 10 | D183: 0 | E183: 15 | F183: 15 | G183: Ny data | H183: 0 | J183: =IF(E183=0,"Variabel pris",IFERROR((HLOOKUP(E183,'Variable priser'!$C$103:$F$105,2)+(E183-HLOOKUP(E183,'Variable priser'!$C$103:$F$105,1))*HLOOKUP(E183,'Variable priser'!$C$103:$F$105,3))*'Variable priser'!$L$102/E183*(1+Genanskaffelsespriser!$D$203),"Fejl")) -> 767.97 | K183: =IF(F183=0,"Variabel pris",IFERROR((HLOOKUP(F183,'Variable priser'!$C$103:$F$105,2)+(F183-HLOOKUP(F183,'Variable priser'!$C$103:$F$105,1))*HLOOKUP(F183,'Variable priser'!$C$103:$F$105,3))*'Variable priser'!$L$102/F183*(1+Genanskaffelsespriser!$D$203),"Fejl")) -> 767.97 | L183: =IF(ISBLANK(E183),"",IF(E183=0,"",IF(ISNUMBER(E183),((J183*E183)/$C183)*N181,""))) -> 1151.955 | M183: =IF(ISBLANK(F183),"",IF(F183=0,"Samlet mængde kan ikke være nul i 2025",IF(ISNUMBER(F183),((K183*F183)/$C183)*O181,""))) -> 1151.955 | N183: 1 | O183: 1
A184: Beholderanlæg - højdebeholder | B184: m³ | C184: =+Genanskaffelsespriser!$E$178 -> 50 | D184: 0 | E184: 0 | F184: 0 | G184: 0 | H184: 0 | J184: =IF(E184=0,"Variabel pris",IFERROR((HLOOKUP(E184,'Variable priser'!$C$48:$H$50,2)+(E184-HLOOKUP(E184,'Variable priser'!$C$48:$H$50,1))*HLOOKUP(E184,'Variable priser'!$C$48:$H$50,3))/E184*(1+Genanskaffelsespriser!$D$203),"Fejl")) -> Variabel pris | K184: =IF(F184=0,"Variabel pris",IFERROR((HLOOKUP(F184,'Variable priser'!$C$48:$H$50,2)+(F184-HLOOKUP(F184,'Variable priser'!$C$48:$H$50,1))*HLOOKUP(F184,'Variable priser'!$C$48:$H$50,3))/F184*(1+Genanskaffelsespriser!$D$203),"Fejl")) -> Variabel pris | L184: =IF(ISBLANK(E184),"",IF(E184=0,"",IF(ISNUMBER(E184),((J184*E184)/$C184)*N181,""))) ->  | M184: =IF(ISBLANK(F184),"",IF(F184=0,"",IF(ISNUMBER(F184),((K184*F184)/$C184)*O181,""))) ->  | N184: 1 | O184: 1
A185: Beholderanlæg - vandtårn | B185: m³ | C185: =+Genanskaffelsespriser!$E$179 -> 50 | D185: 0 | E185: 0 | F185: 0 | G185: 0 | H185: 0 | J185: =IF(E185=0,"Variabel pris",IFERROR((HLOOKUP(E185,'Variable priser'!$C$55:$H$57,2)+(E185-HLOOKUP(E185,'Variable priser'!$C$55:$H$57,1))*HLOOKUP(E185,'Variable priser'!$C$55:$H$57,3))/E185*(1+Genanskaffelsespriser!$D$203),"Fejl")) -> Variabel pris | K185: =IF(F185=0,"Variabel pris",IFERROR((HLOOKUP(F185,'Variable priser'!$C$55:$H$57,2)+(F185-HLOOKUP(F185,'Variable priser'!$C$55:$H$57,1))*HLOOKUP(F185,'Variable priser'!$C$55:$H$57,3))/F185*(1+Genanskaffelsespriser!$D$203),"Fejl")) -> Variabel pris | L185: =IF(ISBLANK(E185),"",IF(E185=0,"",IF(ISNUMBER(E185),((J185*E185)/$C185)*N181,""))) ->  | M185: =IF(ISBLANK(F185),"",IF(F185=0,"",IF(ISNUMBER(F185),((K185*F185)/$C185)*O181,""))) ->  | N185: 1 | O185: 1
A186: Pumpestationer, bygværker og bassiner 16 | D186: 0
A187: Pumpestation (inkl. evt. hydrofor)/trykforøger, Konstruktioner | B187: m³/h | C187: =+Genanskaffelsespriser!$E$175 -> 50 | D187: 0 | E187: 10 | F187: 10 | G187: Ny data | H187: 0 | I187: Vokslev - trykforøger | J187: =IF(E187=0,"Variabel pris",IFERROR((HLOOKUP(E187,'Variable priser'!$C$103:$F$105,2)+(E187-HLOOKUP(E187,'Variable priser'!$C$103:$F$105,1))*HLOOKUP(E187,'Variable priser'!$C$103:$F$105,3))*'Variable priser'!$I$102/E187*(1+Genanskaffelsespriser!$D$203),"Fejl")) -> 1919.925 | K187: =IF(F187=0,"Variabel pris",IFERROR((HLOOKUP(F187,'Variable priser'!$C$103:$F$105,2)+(F187-HLOOKUP(F187,'Variable priser'!$C$103:$F$105,1))*HLOOKUP(F187,'Variable priser'!$C$103:$F$105,3))*'Variable priser'!$I$102/F187*(1+Genanskaffelsespriser!$D$203),"Fejl")) -> 1919.925 | L187: =IF(ISBLANK(E187),"",IF(E187=0,"",IF(ISNUMBER(E187),((J187*E187)/$C187)*N187,""))) -> 383.985 | M187: =IF(ISBLANK(F187),"",IF(F187=0,"",IF(ISNUMBER(F187),((K187*F187)/$C187)*O187,""))) -> 383.985 | N187: 1 | O187: 1
A188: Pumpestation (inkl. evt. hydrofor)/trykforøger, Mek./EL | B188: m³/h | C188: =+Genanskaffelsespriser!$E$176 -> 25 | D188: 0 | E188: 10 | F188: 10 | G188: Ny data | H188: 0 | J188: =IF(E188=0,"Variabel pris",IFERROR((HLOOKUP(E188,'Variable priser'!$C$103:$F$105,2)+(E188-HLOOKUP(E188,'Variable priser'!$C$103:$F$105,1))*HLOOKUP(E188,'Variable priser'!$C$103:$F$105,3))*'Variable priser'!$J$102/E188*(1+Genanskaffelsespriser!$D$203),"Fejl")) -> 4991.805 | K188: =IF(F188=0,"Variabel pris",IFERROR((HLOOKUP(F188,'Variable priser'!$C$103:$F$105,2)+(F188-HLOOKUP(F188,'Variable priser'!$C$103:$F$105,1))*HLOOKUP(F188,'Variable priser'!$C$103:$F$105,3))*'Variable priser'!$J$102/F188*(1+Genanskaffelsespriser!$D$203),"Fejl")) -> 4991.805 | L188: =IF(ISBLANK(E188),"",IF(E188=0,"",IF(ISNUMBER(E188),((J188*E188)/$C188)*N187,""))) -> 1996.722 | M188: =IF(ISBLANK(F188),"",IF(F188=0,"",IF(ISNUMBER(F188),((K188*F188)/$C188)*O187,""))) -> 1996.722 | N188: 1 | O188: 1
A189: Pumpestation (inkl. evt. hydrofor)/trykforøger, SRO | B189: m³/h | C189: =+Genanskaffelsespriser!$E$177 -> 10 | D189: 0 | E189: 10 | F189: 10 | G189: Ny data | H189: 0 | J189: =IF(E189=0,"Variabel pris",IFERROR((HLOOKUP(E189,'Variable priser'!$C$103:$F$105,2)+(E189-HLOOKUP(E189,'Variable priser'!$C$103:$F$105,1))*HLOOKUP(E189,'Variable priser'!$C$103:$F$105,3))*'Variable priser'!$L$102/E189*(1+Genanskaffelsespriser!$D$203),"Fejl")) -> 767.97 | K189: =IF(F189=0,"Variabel pris",IFERROR((HLOOKUP(F189,'Variable priser'!$C$103:$F$105,2)+(F189-HLOOKUP(F189,'Variable priser'!$C$103:$F$105,1))*HLOOKUP(F189,'Variable priser'!$C$103:$F$105,3))*'Variable priser'!$L$102/F189*(1+Genanskaffelsespriser!$D$203),"Fejl")) -> 767.97 | L189: =IF(ISBLANK(E189),"",IF(E189=0,"",IF(ISNUMBER(E189),((J189*E189)/$C189)*N187,""))) -> 767.97 | M189: =IF(ISBLANK(F189),"",IF(F189=0,"Samlet mængde kan ikke være nul i 2025",IF(ISNUMBER(F189),((K189*F189)/$C189)*O187,""))) -> 767.97 | N189: 1 | O189: 1
A190: Beholderanlæg - højdebeholder | B190: m³ | C190: =+Genanskaffelsespriser!$E$178 -> 50 | D190: 0 | E190: 0 | F190: 0 | G190: 0 | H190: 0 | J190: =IF(E190=0,"Variabel pris",IFERROR((HLOOKUP(E190,'Variable priser'!$C$48:$H$50,2)+(E190-HLOOKUP(E190,'Variable priser'!$C$48:$H$50,1))*HLOOKUP(E190,'Variable priser'!$C$48:$H$50,3))/E190*(1+Genanskaffelsespriser!$D$203),"Fejl")) -> Variabel pris | K190: =IF(F190=0,"Variabel pris",IFERROR((HLOOKUP(F190,'Variable priser'!$C$48:$H$50,2)+(F190-HLOOKUP(F190,'Variable priser'!$C$48:$H$50,1))*HLOOKUP(F190,'Variable priser'!$C$48:$H$50,3))/F190*(1+Genanskaffelsespriser!$D$203),"Fejl")) -> Variabel pris | L190: =IF(ISBLANK(E190),"",IF(E190=0,"",IF(ISNUMBER(E190),((J190*E190)/$C190)*N187,""))) ->  | M190: =IF(ISBLANK(F190),"",IF(F190=0,"",IF(ISNUMBER(F190),((K190*F190)/$C190)*O187,""))) ->  | N190: 1 | O190: 1
A191: Beholderanlæg - vandtårn | B191: m³ | C191: =+Genanskaffelsespriser!$E$179 -> 50 | D191: 0 | E191: 0 | F191: 0 | G191: 0 | H191: 0 | J191: =IF(E191=0,"Variabel pris",IFERROR((HLOOKUP(E191,'Variable priser'!$C$55:$H$57,2)+(E191-HLOOKUP(E191,'Variable priser'!$C$55:$H$57,1))*HLOOKUP(E191,'Variable priser'!$C$55:$H$57,3))/E191*(1+Genanskaffelsespriser!$D$203),"Fejl")) -> Variabel pris | K191: =IF(F191=0,"Variabel pris",IFERROR((HLOOKUP(F191,'Variable priser'!$C$55:$H$57,2)+(F191-HLOOKUP(F191,'Variable priser'!$C$55:$H$57,1))*HLOOKUP(F191,'Variable priser'!$C$55:$H$57,3))/F191*(1+Genanskaffelsespriser!$D$203),"Fejl")) -> Variabel pris | L191: =IF(ISBLANK(E191),"",IF(E191=0,"",IF(ISNUMBER(E191),((J191*E191)/$C191)*N187,""))) ->  | M191: =IF(ISBLANK(F191),"",IF(F191=0,"",IF(ISNUMBER(F191),((K191*F191)/$C191)*O187,""))) ->  | N191: 1 | O191: 1
A192: Pumpestationer, bygværker og bassiner 17 | D192: 0
A193: Pumpestation (inkl. evt. hydrofor)/trykforøger, Konstruktioner | B193: m³/h | C193: =+Genanskaffelsespriser!$E$175 -> 50 | D193: 0 | E193: 90 | F193: 90 | G193: Ny data | H193: 0 | I193: Sohngaardsh. Trygforøger | J193: =IF(E193=0,"Variabel pris",IFERROR((HLOOKUP(E193,'Variable priser'!$C$103:$F$105,2)+(E193-HLOOKUP(E193,'Variable priser'!$C$103:$F$105,1))*HLOOKUP(E193,'Variable priser'!$C$103:$F$105,3))*'Variable priser'!$I$102/E193*(1+Genanskaffelsespriser!$D$203),"Fejl")) -> 1145.86 | K193: =IF(F193=0,"Variabel pris",IFERROR((HLOOKUP(F193,'Variable priser'!$C$103:$F$105,2)+(F193-HLOOKUP(F193,'Variable priser'!$C$103:$F$105,1))*HLOOKUP(F193,'Variable priser'!$C$103:$F$105,3))*'Variable priser'!$I$102/F193*(1+Genanskaffelsespriser!$D$203),"Fejl")) -> 1145.86 | L193: =IF(ISBLANK(E193),"",IF(E193=0,"",IF(ISNUMBER(E193),((J193*E193)/$C193)*N193,""))) -> 2062.548 | M193: =IF(ISBLANK(F193),"",IF(F193=0,"",IF(ISNUMBER(F193),((K193*F193)/$C193)*O193,""))) -> 2062.548 | N193: 1 | O193: 1
A194: Pumpestation (inkl. evt. hydrofor)/trykforøger, Mek./EL | B194: m³/h | C194: =+Genanskaffelsespriser!$E$176 -> 25 | D194: 0 | E194: 90 | F194: 90 | G194: Ny data | H194: 0 | J194: =IF(E194=0,"Variabel pris",IFERROR((HLOOKUP(E194,'Variable priser'!$C$103:$F$105,2)+(E194-HLOOKUP(E194,'Variable priser'!$C$103:$F$105,1))*HLOOKUP(E194,'Variable priser'!$C$103:$F$105,3))*'Variable priser'!$J$102/E194*(1+Genanskaffelsespriser!$D$203),"Fejl")) -> 2979.236 | K194: =IF(F194=0,"Variabel pris",IFERROR((HLOOKUP(F194,'Variable priser'!$C$103:$F$105,2)+(F194-HLOOKUP(F194,'Variable priser'!$C$103:$F$105,1))*HLOOKUP(F194,'Variable priser'!$C$103:$F$105,3))*'Variable priser'!$J$102/F194*(1+Genanskaffelsespriser!$D$203),"Fejl")) -> 2979.236 | L194: =IF(ISBLANK(E194),"",IF(E194=0,"",IF(ISNUMBER(E194),((J194*E194)/$C194)*N193,""))) -> 10725.2496 | M194: =IF(ISBLANK(F194),"",IF(F194=0,"",IF(ISNUMBER(F194),((K194*F194)/$C194)*O193,""))) -> 10725.2496 | N194: 1 | O194: 1
A195: Pumpestation (inkl. evt. hydrofor)/trykforøger, SRO | B195: m³/h | C195: =+Genanskaffelsespriser!$E$177 -> 10 | D195: 0 | E195: 90 | F195: 90 | G195: Ny data | H195: 0 | J195: =IF(E195=0,"Variabel pris",IFERROR((HLOOKUP(E195,'Variable priser'!$C$103:$F$105,2)+(E195-HLOOKUP(E195,'Variable priser'!$C$103:$F$105,1))*HLOOKUP(E195,'Variable priser'!$C$103:$F$105,3))*'Variable priser'!$L$102/E195*(1+Genanskaffelsespriser!$D$203),"Fejl")) -> 458.344 | K195: =IF(F195=0,"Variabel pris",IFERROR((HLOOKUP(F195,'Variable priser'!$C$103:$F$105,2)+(F195-HLOOKUP(F195,'Variable priser'!$C$103:$F$105,1))*HLOOKUP(F195,'Variable priser'!$C$103:$F$105,3))*'Variable priser'!$L$102/F195*(1+Genanskaffelsespriser!$D$203),"Fejl")) -> 458.344 | L195: =IF(ISBLANK(E195),"",IF(E195=0,"",IF(ISNUMBER(E195),((J195*E195)/$C195)*N193,""))) -> 4125.096 | M195: =IF(ISBLANK(F195),"",IF(F195=0,"Samlet mængde kan ikke være nul i 2025",IF(ISNUMBER(F195),((K195*F195)/$C195)*O193,""))) -> 4125.096 | N195: 1 | O195: 1
A196: Beholderanlæg - højdebeholder | B196: m³ | C196: =+Genanskaffelsespriser!$E$178 -> 50 | D196: 0 | E196: 0 | F196: 0 | G196: 0 | H196: 0 | J196: =IF(E196=0,"Variabel pris",IFERROR((HLOOKUP(E196,'Variable priser'!$C$48:$H$50,2)+(E196-HLOOKUP(E196,'Variable priser'!$C$48:$H$50,1))*HLOOKUP(E196,'Variable priser'!$C$48:$H$50,3))/E196*(1+Genanskaffelsespriser!$D$203),"Fejl")) -> Variabel pris | K196: =IF(F196=0,"Variabel pris",IFERROR((HLOOKUP(F196,'Variable priser'!$C$48:$H$50,2)+(F196-HLOOKUP(F196,'Variable priser'!$C$48:$H$50,1))*HLOOKUP(F196,'Variable priser'!$C$48:$H$50,3))/F196*(1+Genanskaffelsespriser!$D$203),"Fejl")) -> Variabel pris | L196: =IF(ISBLANK(E196),"",IF(E196=0,"",IF(ISNUMBER(E196),((J196*E196)/$C196)*N193,""))) ->  | M196: =IF(ISBLANK(F196),"",IF(F196=0,"",IF(ISNUMBER(F196),((K196*F196)/$C196)*O193,""))) ->  | N196: 1 | O196: 1
A197: Beholderanlæg - vandtårn | B197: m³ | C197: =+Genanskaffelsespriser!$E$179 -> 50 | D197: 0 | E197: 0 | F197: 0 | G197: 0 | H197: 0 | J197: =IF(E197=0,"Variabel pris",IFERROR((HLOOKUP(E197,'Variable priser'!$C$55:$H$57,2)+(E197-HLOOKUP(E197,'Variable priser'!$C$55:$H$57,1))*HLOOKUP(E197,'Variable priser'!$C$55:$H$57,3))/E197*(1+Genanskaffelsespriser!$D$203),"Fejl")) -> Variabel pris | K197: =IF(F197=0,"Variabel pris",IFERROR((HLOOKUP(F197,'Variable priser'!$C$55:$H$57,2)+(F197-HLOOKUP(F197,'Variable priser'!$C$55:$H$57,1))*HLOOKUP(F197,'Variable priser'!$C$55:$H$57,3))/F197*(1+Genanskaffelsespriser!$D$203),"Fejl")) -> Variabel pris | L197: =IF(ISBLANK(E197),"",IF(E197=0,"",IF(ISNUMBER(E197),((J197*E197)/$C197)*N193,""))) ->  | M197: =IF(ISBLANK(F197),"",IF(F197=0,"",IF(ISNUMBER(F197),((K197*F197)/$C197)*O193,""))) ->  | N197: 1 | O197: 1
A198: Pumpestationer, bygværker og bassiner 18 | D198: 0
A199: Pumpestation (inkl. evt. hydrofor)/trykforøger, Konstruktioner | B199: m³/h | C199: =+Genanskaffelsespriser!$E$175 -> 50 | D199: 0 | E199: 90 | F199: 90 | G199: Ny data | H199: 0 | I199: Kong Chr. Allé trykforøger | J199: =IF(E199=0,"Variabel pris",IFERROR((HLOOKUP(E199,'Variable priser'!$C$103:$F$105,2)+(E199-HLOOKUP(E199,'Variable priser'!$C$103:$F$105,1))*HLOOKUP(E199,'Variable priser'!$C$103:$F$105,3))*'Variable priser'!$I$102/E199*(1+Genanskaffelsespriser!$D$203),"Fejl")) -> 1145.86 | K199: =IF(F199=0,"Variabel pris",IFERROR((HLOOKUP(F199,'Variable priser'!$C$103:$F$105,2)+(F199-HLOOKUP(F199,'Variable priser'!$C$103:$F$105,1))*HLOOKUP(F199,'Variable priser'!$C$103:$F$105,3))*'Variable priser'!$I$102/F199*(1+Genanskaffelsespriser!$D$203),"Fejl")) -> 1145.86 | L199: =IF(ISBLANK(E199),"",IF(E199=0,"",IF(ISNUMBER(E199),((J199*E199)/$C199)*N199,""))) -> 2062.548 | M199: =IF(ISBLANK(F199),"",IF(F199=0,"",IF(ISNUMBER(F199),((K199*F199)/$C199)*O199,""))) -> 2062.548 | N199: 1 | O199: 1
A200: Pumpestation (inkl. evt. hydrofor)/trykforøger, Mek./EL | B200: m³/h | C200: =+Genanskaffelsespriser!$E$176 -> 25 | D200: 0 | E200: 90 | F200: 90 | G200: Ny data | H200: 0 | J200: =IF(E200=0,"Variabel pris",IFERROR((HLOOKUP(E200,'Variable priser'!$C$103:$F$105,2)+(E200-HLOOKUP(E200,'Variable priser'!$C$103:$F$105,1))*HLOOKUP(E200,'Variable priser'!$C$103:$F$105,3))*'Variable priser'!$J$102/E200*(1+Genanskaffelsespriser!$D$203),"Fejl")) -> 2979.236 | K200: =IF(F200=0,"Variabel pris",IFERROR((HLOOKUP(F200,'Variable priser'!$C$103:$F$105,2)+(F200-HLOOKUP(F200,'Variable priser'!$C$103:$F$105,1))*HLOOKUP(F200,'Variable priser'!$C$103:$F$105,3))*'Variable priser'!$J$102/F200*(1+Genanskaffelsespriser!$D$203),"Fejl")) -> 2979.236 | L200: =IF(ISBLANK(E200),"",IF(E200=0,"",IF(ISNUMBER(E200),((J200*E200)/$C200)*N199,""))) -> 10725.2496 | M200: =IF(ISBLANK(F200),"",IF(F200=0,"",IF(ISNUMBER(F200),((K200*F200)/$C200)*O199,""))) -> 10725.2496 | N200: 1 | O200: 1
... 18 more rows

Sheet Fællesfunktionsanlæg
A1: Fællesfunktionsanlæg | B1: Enhed | C1: Standard-levetid | D1: Samlet mængde per 31/12-2023 | E1: Samlet mængde per 31/12-2024 | F1: Samlet mængde per 31/12-2025 | G1: Afvigelse 2023-2024 | H1: Afvigelse 2024-2025 | I1: Bemærkninger | J1: Enhedspris 2024 | K1: Enhedspris 2025 | L1: Netvolumenbidrag 2024 | M1: Netvolumenbidrag 2025 | N1: Ejerandel 2024 (%) | O1: Ejerandel 2025 (%)
A2: Andre | G2: =IF($D$2="",IF($E$2>0,"Ny data",IF($E$2="","",0)),IF($D$2=0,IF($E$2=0,0,"Ny data"),($E$2-$D$2)/$D$2)) ->  | H2: =IF($E$2="",IF($F$2>0,"Ny data",IF($F$2="","",0)),IF($E$2=0,IF($F$2=0,0,"Ny data"),($F$2-$E$2)/$E$2)) ->  | N2: 1
A3: Arbejdsplads og kontor | B3: stk. | C3: 5 | D3: 27 | E3: 58 | F3: 58 | G3: =IF($D$3="",IF($E$3>0,"Ny data",IF($E$3="","",0)),IF($D$3=0,IF($E$3=0,0,"Ny data"),($E$3-$D$3)/$D$3)) -> 1.148148148 | H3: =IF($E$3="",IF($F$3>0,"Ny data",IF($F$3="","",0)),IF($E$3=0,IF($F$3=0,0,"Ny data"),($F$3-$E$3)/$E$3)) -> 0 | I3: Gasværksvej - ny adresse med flere pladser | J3: =Genanskaffelsespriser!D193 -> 35000 | K3: =J3 -> 35000 | L3: =IF(ISNUMBER(E3),((J3*E3)/C3)*N3,"") -> 406000 | M3: =IF(ISNUMBER(F3),((K3*F3)/C3)*O3,"") -> 406000 | N3: 1 | O3: 1
A4: Køretøjer, personbil | B4: stk. | C4: 5 | D4: 3 | E4: 2 | F4: 2 | G4: =IF($D$4="",IF($E$4>0,"Ny data",IF($E$4="","",0)),IF($D$4=0,IF($E$4=0,0,"Ny data"),($E$4-$D$4)/$D$4)) -> -0.3333333333 | H4: =IF($E$4="",IF($F$4>0,"Ny data",IF($F$4="","",0)),IF($E$4=0,IF($F$4=0,0,"Ny data"),($F$4-$E$4)/$E$4)) -> 0 | I4: Fejl tidligere år, forkert grupperng | J4: =Genanskaffelsespriser!D194 -> 225000 | K4: =J4 -> 225000 | L4: =IF(ISNUMBER(E4),((J4*E4)/C4)*N4,"") -> 90000 | M4: =IF(ISNUMBER(F4),((K4*F4)/C4)*O4,"") -> 90000 | N4: 1 | O4: 1
A5: Køretøjer, små lastvogne (< 3.500 kg.) | B5: stk. | C5: 5 | D5: 23 | E5: 25 | F5: 25 | G5: =IF($D$5="",IF($E$5>0,"Ny data",IF($E$5="","",0)),IF($D$5=0,IF($E$5=0,0,"Ny data"),($E$5-$D$5)/$D$5)) -> 0.08695652174 | H5: =IF($E$5="",IF($F$5>0,"Ny data",IF($F$5="","",0)),IF($E$5=0,IF($F$5=0,0,"Ny data"),($F$5-$E$5)/$E$5)) -> 0 | J5: =Genanskaffelsespriser!D195 -> 250000 | K5: 250000 | L5: 1250000 | M5: 1250000 | N5: 1 | O5: 1
A6: Køretøjer, store lastvogne (> 3.500 kg.) | B6: stk. | C6: 5 | D6: 0 | E6: 0 | F6: 0 | G6: =IF($D$6="",IF($E$6>0,"Ny data",IF($E$6="","",0)),IF($D$6=0,IF($E$6=0,0,"Ny data"),($E$6-$D$6)/$D$6)) -> 0 | H6: =IF($E$6="",IF($F$6>0,"Ny data",IF($F$6="","",0)),IF($E$6=0,IF($F$6=0,0,"Ny data"),($F$6-$E$6)/$E$6)) -> 0 | J6: =Genanskaffelsespriser!$D196 -> 1300000 | K6: 1300000 | L6: 0 | M6: 0 | N6: 1 | O6: 1
A7: Køretøjer, entreprenørmaskiner | B7: stk. | C7: 5 | D7: 1 | E7: 2 | F7: 2 | G7: =IF($D$7="",IF($E$7>0,"Ny data",IF($E$7="","",0)),IF($D$7=0,IF($E$7=0,0,"Ny data"),($E$7-$D$7)/$D$7)) -> 1 | H7: =IF($E$7="",IF($F$7>0,"Ny data",IF($F$7="","",0)),IF($E$7=0,IF($F$7=0,0,"Ny data"),($F$7-$E$7)/$E$7)) -> 0 | I7: Fejlagtig indberetning i 2022-2023 | J7: =Genanskaffelsespriser!D197 -> 400000 | K7: 400000 | L7: 160000 | M7: 160000 | N7: 1 | O7: 1
A8: Solcelleanlæg ekskl. Inverter | B8: kWp | C8: 25 | D8: 0 | E8: 0 | F8: 0 | G8: =IF($D$8="",IF($E$8>0,"Ny data",IF($E$8="","",0)),IF($D$8=0,IF($E$8=0,0,"Ny data"),($E$8-$D$8)/$D$8)) -> 0 | H8: =IF($E$8="",IF($F$8>0,"Ny data",IF($F$8="","",0)),IF($E$8=0,IF($F$8=0,0,"Ny data"),($F$8-$E$8)/$E$8)) -> 0 | J8: =Genanskaffelsespriser!D199 -> 5400 | K8: 5400 | L8: =IF(OR(ISBLANK(E8),ISBLANK(N8)),"",(((E8*J8)/C8)*N8)*(IF(SUM(E10:E11)<>0,E11/SUM(E10:E11),1))) -> 0 | M8: =IF(OR(ISBLANK(F8),ISBLANK(O8)),"",(((F8*K8)/C8)*O8)*(IF(SUM(F10:F11)<>0,F11/SUM(F10:F11),1))) -> 0 | N8: 1 | O8: 1
A9: Inverter til solcelleanlæg | B9: kWp | C9: 10 | D9: 0 | E9: 0 | F9: 0 | G9: =IF($D$9="",IF($E$9>0,"Ny data",IF($E$9="","",0)),IF($D$9=0,IF($E$9=0,0,"Ny data"),($E$9-$D$9)/$D$9)) -> 0 | H9: =IF($E$9="",IF($F$9>0,"Ny data",IF($F$9="","",0)),IF($E$9=0,IF($F$9=0,0,"Ny data"),($F$9-$E$9)/$E$9)) -> 0 | J9: =Genanskaffelsespriser!D200 -> 600 | K9: 600 | L9: =IF(OR(ISBLANK(E9),ISBLANK(N9)),"",(((E9*J9)/C9)*N9)*(IF(SUM(E10:E11)<>0,E11/SUM(E10:E11),1))) -> 0 | M9: =IF(OR(ISBLANK(F9),ISBLANK(O9)),"",(((F9*K9)/C9)*O9)*(IF(SUM(F10:F11)<>0,F11/SUM(F10:F11),1))) -> 0 | N9: 1 | O9: 1
A10: Internt brug af produceret solcellestrøm 2024 | B10: MWh | D10: 0 | E10: 0 | F10: 0 | G10: =IF($D10="",IF($E10>0,"Ny data",IF($E10="","",0)),IF($D10=0,IF($E10=0,0,"Ny data"),($E10-$D10)/$D10)) -> 0 | H10: =IF($E$10="",IF($F$10>0,"Ny data",IF($F$10="","",0)),IF($E$10=0,IF($F$10=0,0,"Ny data"),($F$10-$E$10)/$E$10)) -> 0 | N10: 1 | O10: 1
A11: Eksternt afsat produceret solcellestrøm 2024 | B11: MWh | D11: 0 | E11: 0 | F11: 0 | G11: =IF($D11="",IF($E11>0,"Ny data",IF($E11="","",0)),IF($D11=0,IF($E11=0,0,"Ny data"),($E11-$D11)/$D11)) -> 0 | H11: =IF($E$11="",IF($F$11>0,"Ny data",IF($F$11="","",0)),IF($E$11=0,IF($F$11=0,0,"Ny data"),($F$11-$E$11)/$E$11)) -> 0 | N11: 1 | O11: 1

Sheet Genanskaffelsespriser
B1: Genanskaffelsespriser | C1: Måleenhed | D1: Vægtet enhedspris | E1: Teknisk levetid
B3: Produktionsanlæg:
B4: Boringer
B5: Boring (inkl. etablering, forerør, filter og prøvepumpning) | C5: kr./m. | D5: 2538 | E5: 30
B6: Råvandsstationer
B7: Råvandsstation komplet montering og boringshus/tørbrønd | C7: kr./stk. | D7: =57810*(1+D203) -> 57810 | E7: 30
B8: Instrumenter (flowmåler+tryk transducer+alarmer) | C8: kr./stk. | D8: =65241*(1+D203) -> 65241 | E8: 10
B9: Pumpe inkl. stigrør og forerørsforsejlinger mv. | C9: kr/m³/h | D9: Variabel | E9: 15
B10: Erstatninger (OBS ingen øst-tillæg eller øvrige tillæg) | C10: kr/stk | D10: 44911 | E10: 30
B11: Hegn | C11: kr./stk. | D11: =85428*(1+D203) -> 85428 | E11: 15
B12: Elanlæg | C12: kr./boring | D12: =108657*(1+D203) -> 108657 | E12: 20
B13: SRO anlæg | C13: kr./boring | D13: =29256*(1+D203) -> 29256 | E13: 10
B14: Råvandsledninger - Land
B15: Ø 50mm < Ledningsnet ≤ Ø110 mm | C15: kr./m. | D15: =354*(1+D203) -> 354 | E15: 75
B16: Ø110 mm < Ledningsnet ≤ Ø 250 mm | C16: kr./m. | D16: =1018*(1+D203) -> 1018 | E16: 75
B17: Ø 250 mm < Ledningsnet ≤ Ø 500mm | C17: kr./m. | D17: =2335*(1+D203) -> 2335 | E17: 75
B18: Ledningsnet > Ø 500 mm | C18: kr./m. | D18: =5029*(1+D203) -> 5029 | E18: 75
B19: Råvandsledninger - By
B20: Ø 50mm < Ledningsnet ≤ Ø110 mm | C20: kr./m. | D20: =958*(1+D203) -> 958 | E20: 75
B21: Ø110 mm < Ledningsnet ≤ Ø 250 mm | C21: kr./m. | D21: =1684*(1+D203) -> 1684 | E21: 75
B22: Ø 250 mm < Ledningsnet ≤ Ø 500mm | C22: kr./m. | D22: =3153*(1+D203) -> 3153 | E22: 75
B23: Ledningsnet > Ø 500 mm | C23: kr./m. | D23: =5998*(1+D203) -> 5998 | E23: 75
B24: Råvandsledninger - City
B25: Ø 50mm < Ledningsnet ≤ Ø110 mm | C25: kr./m. | D25: =1495*(1+D203) -> 1495 | E25: 75
B26: Ø110 mm < Ledningsnet ≤ Ø 250 mm | C26: kr./m. | D26: =2192*(1+D203) -> 2192 | E26: 75
B27: Ø 250 mm < Ledningsnet ≤ Ø 500mm | C27: kr./m. | D27: =3773*(1+D203) -> 3773 | E27: 75
B28: Ledningsnet > Ø 500 mm | C28: kr./m. | D28: =6732*(1+D203) -> 6732 | E28: 75
B29: Vandværker: Behandling og Udpumpning
B30: Beluftningsanlæg, iltningstrappe, Konstruktioner | C30: kr/m³/h | D30: Variabel | E30: 50
B31: Beluftningsanlæg, iltningstrappe, Mek./EL | C31: kr/m³/h | D31: Variabel | E31: 25
B32: Beluftningsanlæg, ika-beluftning, Konstruktioner | C32: kr/m³/h | D32: Variabel | E32: 50
B33: Beluftningsanlæg, ika-beluftning, Mek./EL | C33: kr/m³/h | D33: Variabel | E33: 25
B34: Beluftningsanlæg, bundbeluftbning, Konstruktioner | C34: kr/m³/h | D34: Variabel | E34: 50
B35: Beluftningsanlæg, bundbeluftbning, Mek./EL | C35: kr/m³/h | D35: Variabel | E35: 25
B36: Beluftningsanlæg, rislebakke, Konstruktioner | C36: kr/m³/h | D36: Variabel | E36: 50
B37: Beluftningsanlæg, rislebakke, Mek./EL | C37: kr/m³/h | D37: Variabel | E37: 25
B38: Beluftningsanlæg, kompressorbeluftning | C38: kr/m³/h | D38: Variabel | E38: 25
B39: Beluftningsanlæg, ren ilt | C39: kr/m³/h | D39: Variabel | E39: 25
B40: Behandlingsanlæg, kalk anlæg | C40: kr/m³/h | D40: Variabel | E40: 25
B41: Behandlingsanlæg, luddosering | C41: kr/m³/h | D41: Variabel | E41: 25
B42: Filteranlæg, åbne filtre, enkelt filtrering, Konstruktioner | C42: kr/m³/h | D42: Variabel | E42: 50
B43: Filteranlæg, åbne filtre, enkelt filtrering, Mek./EL | C43: kr/m³/h | D43: Variabel | E43: 25
B44: Filteranlæg, åbne filtre, dobbelt filtrering, Konstruktioner | C44: kr/m³/h | D44: Variabel | E44: 50
B45: Filteranlæg, åbne filtre, dobbelt filtrering, Mek./EL | C45: kr/m³/h | D45: Variabel | E45: 25
B46: Filteranlæg, trykfiltre, enkelt filtrering | C46: kr/m³/h | D46: Variabel | E46: 25
B47: Filteranlæg, trykfiltre, dobbelt filtrering | C47: kr/m³/h | D47: Variabel | E47: 25
B48: Rentvandsbeholder insitu støbt | C48: kr/m³ | D48: Variabel | E48: 50
B49: Rentvandsbeholder element | C49: kr/m³ | D49: Variabel | E49: 50
B50: Udpumpningsanlæg, rentvandspumper på vandværk | C50: kr/m³/h | D50: Variabel | E50: 25
B51: Udpumpningsanlæg, Frekvensomformer | C51: kr/kW | D51: Variabel | E51: 25
B52: Udpumpningsanlæg, Hydrofor | C52: kr/lilter | D52: Variabel | E52: 25
B53: Skyllevand-/slamhåndteringsanlæg - lukkede betonbeholdere | C53: kr/m³ | D53: Variabel | E53: 50
B54: Skyllevand-/slamhåndteringsanl. - åbne med faste sider/bund | C54: kr/m³ | D54: Variabel | E54: 50
B55: Skyllevand-/slamhåndteringsanlæg - jordbassiner | C55: kr/m³ | D55: Variabel | E55: 50
B56: Skyllevandsbehandling, inkl. UV-filter mv., Mek./EL | C56: kr/m³/h | D56: Variabel | E56: 25
B57: Skyllevandsbehandling, inkl. UV-filter mv., SRO | C57: kr/m³/h | D57: Variabel | E57: 10
B58: Nødstrømsanlæg på vandværk | C58: kr/kW | D58: Variabel | E58: 25
B59: Elanlæg og SRO-anlæg - vandværk, Elanlæg | C59: kr./m³/h | D59: Variabel | E59: 25
B60: Elanlæg og SRO-anlæg - vandværk, SRO | C60: kr./m³/h | D60: Variabel | E60: 10
B61: Bygninger
B62: Etageareal vandbehandlingsbygning | C62: kr/m² | D62: =18108*(1+D203) -> 18108 | E62: 75
B63: Etageareal kontor og mandskabsfaciliteter | C63: kr/m² | D63: =19309*(1+D203) -> 19309 | E63: 75
B64: Værksted | C64: kr/m² | D64: =14921*(1+D203) -> 14921 | E64: 75
B65: Lager | C65: kr/m² | D65: =14921*(1+D203) -> 14921 | E65: 75
B66: Garage og rørlager | C66: kr/m² | D66: =10444*(1+D203) -> 10444 | E66: 75
B67: Bygning for trykforøgere | C67: kr/m² | D67: =20318*(1+D203) -> 20318 | E67: 75
B68: Laboratorium (bygning, inkl. inventar+udstyr), Konstruktioner | C68: kr/m² | D68: =20362*(1+D203) -> 20362 | E68: 75
B69: Laboratorium (bygning, inkl. inventar+udstyr), Mek./EL | C69: kr/m² | D69: =13575*(1+D203) -> 13575 | E69: 10
B70: Andre
B71: Sikring (terror, hærværk), Mek./EL | C71: kr./stk. | D71: =6372*(1+D203) -> 6372 | E71: 25
B72: Sikring (terror, hærværk), SRO | C72: kr./stk. | D72: =14868*(1+D203) -> 14868 | E72: 10
B73: Sikring, mindre avanceret (hegn, porte), Mek./EL | C73: kr./stk. | D73: =26067*(1+D203) -> 26067 | E73: 25
B74: Sikring, mindre avanceret (hegn, porte), SRO | C74: kr./stk. | D74: =60823*(1+D203) -> 60823 | E74: 10
B75: Sikring, avanceret (hegn, porte og overvågningssystemer), Mek./EL | C75: kr./stk. | D75: =56318*(1+D203) -> 56318 | E75: 25
B76: Sikring, avanceret (hegn, porte og overvågningssystemer), SRO | C76: kr./stk. | D76: =225271*(1+D203) -> 225271 | E76: 10
B79: Distributionsanlæg:
B80: Ledningsnet - Land
B81: Ledningsnet ≤ Ø50 mm | C81: kr./m. | D81: =529*(1+D203) -> 529 | E81: 75
B82: Ø 50mm < Ledningsnet ≤ Ø110 mm | C82: kr./m. | D82: =808*(1+D203) -> 808 | E82: 75
B83: Ø110 mm < Ledningsnet ≤ Ø 250 mm | C83: kr./m. | D83: =1513*(1+D203) -> 1513 | E83: 75
B84: Ø 250 mm < Ledningsnet ≤ Ø 500mm | C84: kr./m. | D84: =2944*(1+D203) -> 2944 | E84: 75
B85: Ledningsnet > Ø 500 mm | C85: kr./m. | D85: =5751*(1+D203) -> 5751 | E85: 75
B86: Støbejernsledninger ≤ Ø50 mm | C86: kr./m. | D86: =899*(1+D203) -> 899 | E86: 100
B87: Støbejernsledninger Ø 50mm < Ledningsnet ≤ Ø110 mm | C87: kr./m. | D87: =1053*(1+D203) -> 1053 | E87: 100
B88: Støbejernsledninger Ø110 mm < Ledningsnet ≤ Ø 250 mm | C88: kr./m. | D88: =1490*(1+D203) -> 1490 | E88: 100
B89: Støbejernsledninger Ø 250 mm < Ledningsnet ≤ Ø 500mm | C89: kr./m. | D89: =2762*(1+D203) -> 2762 | E89: 100
B90: Støbejernsledninger Ledningsnet > Ø 500 mm | C90: kr./m. | D90: =5484*(1+D203) -> 5484 | E90: 100
B91: Eternitledninger ≤ Ø50 mm | C91: kr./m. | D91: =655*(1+D203) -> 655 | E91: 75
B92: Eternitledninger Ø 50mm < Ledningsnet ≤ Ø110 mm | C92: kr./m. | D92: =885*(1+D203) -> 885 | E92: 75
B93: Eternitledninger Ø110 mm < Ledningsnet ≤ Ø 250 mm | C93: kr./m. | D93: =1287*(1+D203) -> 1287 | E93: 75
B94: Eternitledninger Ø 250 mm < Ledningsnet ≤ Ø 500mm | C94: kr./m. | D94: =3056*(1+D203) -> 3056 | E94: 75
B95: Eternitledninger Ledningsnet > Ø 500 mm | C95: kr./m. | D95: =8477*(1+D203) -> 8477 | E95: 75
B96: Skelbrønd, Konstruktioner | C96: kr./stk. | D96: =10415*(1+D203) -> 10415 | E96: 50
B97: Skelbrønd, Mek./EL | C97: kr./stk. | D97: =15623*(1+D203) -> 15623 | E97: 15
B98: Inspektionsbrønd, Konstruktioner | C98: kr./stk. | D98: =10415*(1+D203) -> 10415 | E98: 50
B99: Inspektionsbrønd, Mek./EL | C99: kr./stk. | D99: =13019*(1+D203) -> 13019 | E99: 15
B100: Stik på ledningsnet, Konstruktioner | C100: kr./stk. | D100: =4722*(1+D203) -> 4722 | E100: 75
B101: Stik på ledningsnet, Mek./EL | C101: kr./stk. | D101: =4722*(1+D203) -> 4722 | E101: 75
B102: Ledningsnet - By
B103: Ledningsnet ≤ Ø50 mm | C103: kr./m. | D103: =650*(1+D203) -> 650 | E103: 75
B104: Ø 50mm < Ledningsnet ≤ Ø110 mm | C104: kr./m. | D104: =958*(1+D203) -> 958 | E104: 75
B105: Ø110 mm < Ledningsnet ≤ Ø 250 mm | C105: kr./m. | D105: =1684*(1+D203) -> 1684 | E105: 75
B106: Ø 250 mm < Ledningsnet ≤ Ø 500mm | C106: kr./m. | D106: =3153*(1+D203) -> 3153 | E106: 75
B107: Ledningsnet > Ø 500 mm | C107: kr./m. | D107: =5998*(1+D203) -> 5998 | E107: 75
B108: Støbejernsledninger ≤ Ø50 mm | C108: kr./m. | D108: =1020*(1+D203) -> 1020 | E108: 100
B109: Støbejernsledninger Ø 50mm < Ledningsnet ≤ Ø110 mm | C109: kr./m. | D109: =1203*(1+D203) -> 1203 | E109: 100
B110: Støbejernsledninger Ø110 mm < Ledningsnet ≤ Ø 250 mm | C110: kr./m. | D110: =1661*(1+D203) -> 1661 | E110: 100
B111: Støbejernsledninger Ø 250 mm < Ledningsnet ≤ Ø 500mm | C111: kr./m. | D111: =2971*(1+D203) -> 2971 | E111: 100
B112: Støbejernsledninger Ledningsnet > Ø 500 mm | C112: kr./m. | D112: =5731*(1+D203) -> 5731 | E112: 100
B113: Eternitledninger ≤ Ø50 mm | C113: kr./m. | D113: =776*(1+D203) -> 776 | E113: 75
B114: Eternitledninger Ø 50mm < Ledningsnet ≤ Ø110 mm | C114: kr./m. | D114: =1035*(1+D203) -> 1035 | E114: 75
B115: Eternitledninger Ø110 mm < Ledningsnet ≤ Ø 250 mm | C115: kr./m. | D115: =1456*(1+D203) -> 1456 | E115: 75
B116: Eternitledninger Ø 250 mm < Ledningsnet ≤ Ø 500mm | C116: kr./m. | D116: =3265*(1+D203) -> 3265 | E116: 75
B117: Eternitledninger Ledningsnet > Ø 500 mm | C117: kr./m. | D117: =8724*(1+D203) -> 8724 | E117: 75
B118: Skelbrønd, Konstruktioner | C118: kr./stk. | D118: =11457*(1+D203) -> 11457 | E118: 50
B119: Skelbrønd, Mek./EL | C119: kr./stk. | D119: =17185*(1+D203) -> 17185 | E119: 15
B120: Inspektionsbrønd, Konstruktioner | C120: kr./stk. | D120: =11457*(1+D203) -> 11457 | E120: 50
B121: Inspektionsbrønd, Mek./EL | C121: kr./stk. | D121: =14321*(1+D203) -> 14321 | E121: 15
B122: Stik på ledningsnet, Konstruktioner | C122: kr./stk. | D122: =5666*(1+D203) -> 5666 | E122: 75
B123: Stik på ledningsnet, Mek./EL | C123: kr./stk. | D123: =5666*(1+D203) -> 5666 | E123: 75
B124: Ledningsnet - City
B125: Ledningsnet ≤ Ø50 mm | C125: kr./m. | D125: =1078*(1+D203) -> 1078 | E125: 75
B126: Ø 50mm < Ledningsnet ≤ Ø110 mm | C126: kr./m. | D126: =1495*(1+D203) -> 1495 | E126: 75
B127: Ø110 mm < Ledningsnet ≤ Ø 250 mm | C127: kr./m. | D127: =2192*(1+D203) -> 2192 | E127: 75
B128: Ø 250 mm < Ledningsnet ≤ Ø 500mm | C128: kr./m. | D128: =3773*(1+D203) -> 3773 | E128: 75
B129: Ledningsnet > Ø 500 mm | C129: kr./m. | D129: =6732*(1+D203) -> 6732 | E129: 75
B130: Støbejernsledninger ≤ Ø50 mm | C130: kr./m. | D130: =1448*(1+D203) -> 1448 | E130: 100
B131: Støbejernsledninger Ø 50mm < Ledningsnet ≤ Ø110 mm | C131: kr./m. | D131: =1740*(1+D203) -> 1740 | E131: 100
B132: Støbejernsledninger Ø110 mm < Ledningsnet ≤ Ø 250 mm | C132: kr./m. | D132: =2169*(1+D203) -> 2169 | E132: 100
B133: Støbejernsledninger Ø 250 mm < Ledningsnet ≤ Ø 500mm | C133: kr./m. | D133: =3591*(1+D203) -> 3591 | E133: 100
B134: Støbejernsledninger Ledningsnet > Ø 500 mm | C134: kr./m. | D134: =6465*(1+D203) -> 6465 | E134: 100
B135: Eternitledninger ≤ Ø50 mm | C135: kr./m. | D135: =1204*(1+D203) -> 1204 | E135: 75
B136: Eternitledninger Ø 50mm < Ledningsnet ≤ Ø110 mm | C136: kr./m. | D136: =1572*(1+D203) -> 1572 | E136: 75
B137: Eternitledninger Ø110 mm < Ledningsnet ≤ Ø 250 mm | C137: kr./m. | D137: =1966*(1+D203) -> 1966 | E137: 75
B138: Eternitledninger Ø 250 mm < Ledningsnet ≤ Ø 500mm | C138: kr./m. | D138: =3885*(1+D203) -> 3885 | E138: 75
B139: Eternitledninger Ledningsnet > Ø 500 mm | C139: kr./m. | D139: =9458*(1+D203) -> 9458 | E139: 75
B140: Skelbrønd, Konstruktioner | C140: kr./stk. | D140: =12498*(1+D203) -> 12498 | E140: 50
B141: Skelbrønd, Mek./EL | C141: kr./stk. | D141: =18747*(1+D203) -> 18747 | E141: 15
B142: Inspektionsbrønd, Konstruktioner | C142: kr./stk. | D142: =12498*(1+D203) -> 12498 | E142: 50
B143: Inspektionsbrønd, Mek./EL | C143: kr./stk. | D143: =15623*(1+D203) -> 15623 | E143: 15
B144: Stik på ledningsnet, Konstruktioner | C144: kr./stk. | D144: =6139*(1+D203) -> 6139 | E144: 75
B145: Stik på ledningsnet, Mek./EL | C145: kr./stk. | D145: =6139*(1+D203) -> 6139 | E145: 75
B146: Ledningsnet - Indre city
B147: Ledningsnet ≤ Ø50 mm | C147: kr./m. | D147: =1697*(1+D203) -> 1697 | E147: 75
B148: Ø 50mm < Ledningsnet ≤ Ø110 mm | C148: kr./m. | D148: =2268*(1+D203) -> 2268 | E148: 75
B149: Ø110 mm < Ledningsnet ≤ Ø 250 mm | C149: kr./m. | D149: =3009*(1+D203) -> 3009 | E149: 75
B150: Ø 250 mm < Ledningsnet ≤ Ø 500mm | C150: kr./m. | D150: =4773*(1+D203) -> 4773 | E150: 75
B151: Ledningsnet > Ø 500 mm | C151: kr./m. | D151: =7915*(1+D203) -> 7915 | E151: 75
B152: Støbejernsledninger ≤ Ø50 mm | C152: kr./m. | D152: =2067*(1+D203) -> 2067 | E152: 100
B153: Støbejernsledninger Ø 50mm < Ledningsnet ≤ Ø110 mm | C153: kr./m. | D153: =2513*(1+D203) -> 2513 | E153: 100
B154: Støbejernsledninger Ø110 mm < Ledningsnet ≤ Ø 250 mm | C154: kr./m. | D154: =2986*(1+D203) -> 2986 | E154: 100
B155: Støbejernsledninger Ø 250 mm < Ledningsnet ≤ Ø 500mm | C155: kr./m. | D155: =4591*(1+D203) -> 4591 | E155: 100
B156: Støbejernsledninger Ledningsnet > Ø 500 mm | C156: kr./m. | D156: =7648*(1+D203) -> 7648 | E156: 100
B157: Eternitledninger ≤ Ø50 mm | C157: kr./m. | D157: =1823*(1+D203) -> 1823 | E157: 75
B158: Eternitledninger Ø 50mm < Ledningsnet ≤ Ø110 mm | C158: kr./m. | D158: =2345*(1+D203) -> 2345 | E158: 75
B159: Eternitledninger Ø110 mm < Ledningsnet ≤ Ø 250 mm | C159: kr./m. | D159: =2783*(1+D203) -> 2783 | E159: 75
B160: Eternitledninger Ø 250 mm < Ledningsnet ≤ Ø 500mm | C160: kr./m. | D160: =4885*(1+D203) -> 4885 | E160: 75
B161: Eternitledninger Ledningsnet > Ø 500 mm | C161: kr./m. | D161: =10641*(1+D203) -> 10641 | E161: 75
B162: Skelbrønd, Konstruktioner | C162: kr./stk. | D162: =13540*(1+D203) -> 13540 | E162: 50
B163: Skelbrønd, Mek./EL | C163: kr./stk. | D163: =20310*(1+D203) -> 20310 | E163: 15
B164: Inspektionsbrønd, Konstruktioner | C164: kr./stk. | D164: =13540*(1+D203) -> 13540 | E164: 50
B165: Inspektionsbrønd, Mek./EL | C165: kr./stk. | D165: =16925*(1+D203) -> 16925 | E165: 15
B166: Stik på ledningsnet, Konstruktioner | C166: kr./stk. | D166: =7555*(1+D203) -> 7555 | E166: 75
B167: Stik på ledningsnet, Mek./EL | C167: kr./stk. | D167: =7555*(1+D203) -> 7555 | E167: 75
B168: Ventiler
B169: Ventiler på ledningsnet ≤ Ø50 mm | C169: kr./stk. | D169: =7732*(1+D203) -> 7732 | E169: 75
B170: Ventiler på Ø 50mm < Ledningsnet ≤ Ø110 mm | C170: kr./stk. | D170: =8980*(1+D203) -> 8980 | E170: 75
B171: Ventiler på Ø110 mm < Ledningsnet ≤ Ø 250 mm | C171: kr./stk. | D171: =21736*(1+D203) -> 21736 | E171: 75
B172: Ventiler på Ø 250 mm < Ledningsnet ≤ Ø 500mm | C172: kr./stk. | D172: =78299*(1+D203) -> 78299 | E172: 75
B173: Ventiler på ledningsnet > Ø 500 mm | C173: kr./stk. | D173: =223733*(1+D203) -> 223733 | E173: 75
B174: Pumpestationer, bygværker og bassiner
B175: Pumpestation (inkl. evt. hydrofor)/trykforøger, Konstruktioner | C175: kr/m³/h | D175: Variabel | E175: 50
B176: Pumpestation (inkl. evt. hydrofor)/trykforøger, Mek./EL | C176: kr/m³/h | D176: Variabel | E176: 25
B177: Pumpestation (inkl. evt. hydrofor)/trykforøger, SRO | C177: kr/m³/h | D177: Variabel | E177: 10
B178: Beholderanlæg - højdebeholder | C178: kr/m³/h | D178: Variabel | E178: 50
B179: Beholderanlæg - vandtårn | C179: kr/m³/h | D179: Variabel | E179: 50
B180: Andre:
B181: Afregningsmålere, mekaniske, | C181: kr./stk. | D181: =1300*(1+D203) -> 1300 | E181: 8
B182: Afregningsmålere, elektroniske med maksimal gennemstrømning ≤ 4 m3/t | C182: kr./stk. | D182: =1450*(1+D203) -> 1450 | E182: 10
B183: Afregningsmålere, elektroniske med maksimal gennemstrømning > 4 m3/t ≤ 15 m3/t | C183: kr./stk. | D183: =2076*(1+D203) -> 2076 | E183: 10
B184: Afregningsmålere, elektroniske med maksimal gennemstrømning > 15 m3/t ≤ 300 m3/t | C184: kr./stk. | D184: =20000*(1+D203) -> 20000 | E184: 10
B185: Afregningsmålere, elektroniske med maksimal gennemstrømning > 300 m3/t | C185: kr./stk. | D185: =26000*(1+D203) -> 26000 | E185: 10
B186: SRO-brønd/kvarterbrønd/sektionsbrønd, Konstruktioner | C186: kr./stk. | D186: =78845*(1+D203) -> 78845 | E186: 50
B187: SRO-brønd/kvarterbrønd/sektionsbrønd, Mek./EL | C187: kr./stk. | D187: =90108*(1+D203) -> 90108 | E187: 15
B188: SRO-brønd/kvarterbrønd/sektionsbrønd, SRO | C188: kr./stk. | D188: =56318*(1+D203) -> 56318 | E188: 10
B191: Fællesfunktionsanlæg:
B192: Andre
B193: Arbejdsplads og kontor | C193: kr./stk. | D193: =35000*(1+D203) -> 35000 | E193: 5
B194: Køretøjer, personbil | C194: kr./stk. | D194: 225000 | E194: 5
B195: Køretøjer, små lastvogne (< 3.500 kg.) | C195: kr./stk. | D195: 250000 | E195: 5
B196: Køretøjer, store lastvogne (> 3.500 kg.) | C196: kr./stk. | D196: 1300000 | E196: 5
B197: Køretøjer, entreprenørmaskiner | C197: kr./stk. | D197: 400000 | E197: 5
B198: Øvrige
B199: Solcelleanlæg ekskl. Inverter | C199: kWp | D199: 5400 | E199: 25
B200: Inverter til solcelleanlæg | C200: kWp | D200: 600 | E200: 10
B203: Regionstillæg | D203: =IF(Produktionsanlæg!Q2=3700, 0%, IF(Produktionsanlæg!Q2<4720, 0.037%, 0%)) -> 0

Sheet Variable priser
A1: Til bestemmelse af diverse variable priser
A2: Udpumpningsanlæg | C2: 0 | D2: 10 | E2: 20 | F2: 30 | G2: 45 | H2: 300 | I2: m³/time
C3: 0 | D3: 44147.304 | E3: 62958.912 | F3: 77148.072 | G3: 90254.76 | H3: 292560 | I3: kr
C4: 4414.7304 | D4: 1881.1608 | E4: 1418.916 | F4: 873.7792 | G4: 793.3538824 | H4: 793.3538824 | I4: kr/m³
A6: Beluftningsanlæg | C6: 0 | D6: 10 | E6: 50 | F6: 100 | G6: 200 | H6: 500 | K6: Anlæg | L6: Mekn/El
A7: Iltningstrappe | C7: 0 | D7: 58570.512 | E7: 266229.6 | F7: 439278.84 | G7: 718819.92 | H7: 1331148 | I7: kr | K7: 0.8 | L7: 0.2
C8: 5857.0512 | D8: 5191.4772 | E8: 3460.9848 | F8: 2795.4108 | G8: 2041.0936 | H8: 2041.0936 | I8: kr/m³/t
A9: Ikabelufter | C9: 0 | D9: 87855.768 | E9: 399344.4 | F9: 658918.26 | G9: 1078229.88 | H9: 1996722 | I9: kr | K9: 0.5 | L9: 0.5
C10: 8785.5768 | D10: 7787.2158 | E10: 5191.4772 | F10: 4193.1162 | G10: 3061.6404 | H10: 3061.6404 | I10: kr/m³/t
A11: Bundbeluftning | C11: 0 | D11: 52713.4608 | E11: 239606.64 | F11: 395350.956 | G11: 646937.928 | H11: 1198033.2 | I11: kr
C12: 5271.34608 | D12: 4672.32948 | E12: 3114.88632 | F12: 2515.86972 | G12: 1836.98424 | H12: 1836.98424 | I12: kr/m³/t
A13: Kompressorbeluftning | C13: 0 | D13: 11714.1024 | E13: 53245.92 | F13: 87855.768 | G13: 143763.984 | H13: 266229.6 | I13: kr
C14: 1171.41024 | D14: 1038.29544 | E14: 692.19696 | F14: 559.08216 | G14: 408.21872 | H14: 408.21872 | I14: kr/m³/t
A15: Rent ilt | C15: 0 | D15: 11714.1024 | E15: 53245.92 | F15: 87855.768 | G15: 143763.984 | H15: 266229.6 | I15: kr
C16: 1171.41024 | D16: 1038.29544 | E16: 692.19696 | F16: 559.08216 | G16: 408.21872 | H16: 408.21872 | I16: kr/m³/t
A17: Rislebakke | C17: 0 | D17: 35142.3072 | E17: 159737.76 | F17: 263567.304 | G17: 431291.952 | H17: 798688.8 | I17: kr | K17: 0.7 | L17: 0.3
C18: 3514.23072 | D18: 3114.88632 | E18: 2076.59088 | F18: 1677.24648 | G18: 1224.65616 | H18: 1224.65616 | I18: kr/m³/t
A20: pH Justering | C20: 0 | D20: 50 | E20: 100 | F20: 200 | G20: 500 | H20: m³/time
A21: Kalkdoseringsanlæg | C21: 0 | D21: 78552.36 | E21: 133539.012 | F21: 213662.4192 | G21: 427324.8384 | H21: kr
C22: 0 | D22: 235657.08 | E22: 400617.036 | F22: 640987.2576 | G22: 1281974.515 | H22: kr
A23: Luddoseringsanlæg | C23: 4713.1416 | D23: 3299.19912 | E23: 2403.702216 | F23: 2136.624192 | G23: 2136.624192 | H23: kr/m³/time
C24: 0 | D24: 39276.18 | E24: 66769.506 | F24: 106831.2096 | G24: 213662.4192 | H24: kr
C25: 785.5236 | D25: 549.86652 | E25: 400.617036 | F25: 356.104032 | G25: 356.104032 | H25: kr/m³/time
A27: Behandlingsanlæg
A28: Åbne filtre | C28: 0 | D28: 50 | E28: 100 | F28: 200 | G28: 500 | H28: m³/time
A29: 07-41,01 inkl. tillæg | D29: 544161.6
A30: Skønnet inkl. tillæg | D30: 292560 | H30: kr/m³/t | K30: Anlæg | L30: Mekn/El
A31: Returskylning inkl. tillæg | K31: 0.4 | L31: 0.6
A32: 07-61.01 | D32: 714577.8
C33: 0 | D33: 1551299.4 | E33: 2637208.98 | F33: 4219534.368 | G33: 8439068.736 | H33: kr
A34: Dobbelt filtrering | C34: 31025.988 | D34: 21718.1916 | E34: 15823.25388 | F34: 14065.11456 | G34: 14065.11456 | H34: kr/m³/time
C36: 0 | D36: 1085909.58 | E36: 1846046.286 | F36: 2953674.058 | G36: 5907348.115 | H36: kr
A37: Enkelt filtrering | C37: 21718.1916 | D37: 15202.73412 | E37: 11076.27772 | F37: 9845.580192 | G37: 9845.580192 | H37: kr/m³/time
A39: Behandlingsanlæg
A40: Lukkede filtre | C40: 0 | D40: 30 | E40: 100 | F40: 200 | G40: 500 | H40: m³/t
A41: Enkelt filtrering inkl..rør mv. | C41: 0 | D41: 516368.4 | E41: 1290921 | F41: 2323657.8 | G41: 4647315.6 | H41: kr
C42: 17212.28 | D42: 11065.03714 | E42: 10327.368 | F42: 7745.526 | G42: 7745.526 | H42: kr/m³/time
C44: 0 | D44: 30 | E44: 100 | F44: 200 | G44: 500 | H44: m³/t
A45: Dobbeltfiltrering ekskl. rør | C45: 0 | D45: 722915.76 | E45: 1807289.4 | F45: 3253120.92 | G45: 6506241.84 | H45: kr
C46: 24097.192 | D46: 15491.052 | E46: 14458.3152 | F46: 10843.7364 | G46: 10843.7364 | H46: kr/m³/time
A48: Rentvandsbeholdere | C48: 0 | D48: 100 | E48: 500 | F48: 1000 | G48: 3000 | H48: m³
A49: In-situ støbt rentvandsbeholder | C49: 0 | D49: 520756.8 | E49: 2343405.6 | F49: 4218130.08 | G49: 7500000 | H49: kr
C50: 5207.568 | D50: 4556.622 | E50: 3749.44896 | F50: 1640.93496 | G50: 1640.93496 | H50: kr/m³
C52: 0 | D52: 120 | E52: 500 | F52: 1000 | G52: 3000 | H52: m³
A53: Element beholder | C53: 0 | D53: 509054.4 | E53: 1883501.28 | F53: 3390302.304 | G53: 6600000 | H53: kr
C54: 4242.12 | D54: 3616.965474 | E54: 3013.602048 | F54: 1604.848848 | G54: 1604.848848 | H54: kr/m³
A55: Vandtårne | C55: 0 | D55: 100 | E55: 500 | F55: 1000 | G55: 3000 | H55: m³/time
A56: Skønnet inkl. tillæg | C56: 0 | D56: 781135.2 | E56: 3515108.4 | F56: 6327195.12 | G56: 11250000 | H56: kr
C57: 7811.352 | D57: 6834.933 | E57: 5624.17344 | F57: 2461.40244 | G57: 2461.40244 | H57: kr/m³
A59: Skyllevandsbeholdere | C59: 0 | D59: 100 | E59: 200 | F59: 500 | G59: 1000 | H59: m³
A60: Lukket skyllevandsbeholder 30 - 80 m³ | C60: 0 | D60: 520756.8 | E60: 833210.88 | F60: 1833063.936 | G60: 3299515.085 | H60: kr
C61: 5207.568 | D61: 3124.5408 | E61: 3332.84352 | F61: 2932.902298 | G61: 2932.902298 | H61: kr/m³
A63: Åbne beholder med faste side / bund | C63: 0 | D63: 251601.6 | E63: 402562.56 | F63: 885637.632 | G63: 1594147.738 | H63: kr
C64: 2516.016 | D64: 1509.6096 | E64: 1610.25024 | F64: 1417.020211 | G64: 1417.020211 | H64: kr/m³
A66: Jordbassin | C66: 0 | D66: 37740.24 | E66: 60384.384 | F66: 132845.6448 | G66: 239122.1606 | H66: kr
C67: 377.4024 | D67: 226.44144 | E67: 241.537536 | F67: 212.5530317 | G67: 212.5530317 | H67: kr/m³
A69: Udpumpningsanlæg
A71: Udpumpningsanlæg | C71: 0 | D71: 10 | E71: 20 | F71: 30 | G71: 100 | H71: 1000 | I71: m³/time
C72: 0 | D72: 39349.32 | E72: 51051.72 | F72: 59974.8 | G72: 149937 | H72: 899622 | I72: kr
C73: 3934.932 | D73: 1170.24 | E73: 892.308 | F73: 1285.174286 | G73: 832.9833333 | H73: 832.9833333 | I73: kr/m³
A75: Frekvensomformere inkl. elinstallationer
C76: 0 | D76: 2.2 | E76: 4 | F76: 5.5 | G76: m³/time
C77: 0 | D77: 68605.32 | E77: 74456.52 | F77: 77089.56 | G77: kr
C78: 31184.23636 | D78: 3250.666667 | E78: 1755.36 | F78: 1755.36 | G78: kr/m³
A80: Hydrofor
C81: 0 | D81: 2500 | E81: 5000 | F81: m³/time
A82: Hydrofor inkl. styring | C82: 0 | D82: 200842.44 | E82: 270032.88 | F82: kr
C83: 80.336976 | D83: 27.676176 | E83: 27.676176 | F83: kr/m³
A85: Nødstrømsaggregat
C86: 0 | D86: 11.5 | E86: 16 | F86: 22 | G86: 50 | H86: kW
C87: 0 | D87: 134577.6 | E87: 155495.64 | F87: 174073.2 | G87: 295924.44 | H87: kr
C88: 11702.4 | D88: 4648.453333 | E88: 3096.26 | F88: 4351.83 | G88: 4351.83 | H88: kr/m³
A90: El + SRO Vandværk
C91: 0 | D91: 50 | E91: 200 | F91: 1000 | G91: m³/time
A92: Eltavle + install inkl. tillæg | C92: 0 | D92: 380328 | E92: 665574 | F92: 1663935 | G92: Kr
A94: Sum | D94: 380328 | E94: 665574 | F94: 1663935 | G94: Kr
C95: 7606.56 | D95: 1901.64 | E95: 1247.95125 | F95: 1247.95125 | G95: kr/m³
A97: SRO inkl. tillæg | C97: 0 | D97: 292560 | E97: 351072 | F97: 596822.4 | G97: Kr
C98: 5851.2 | D98: 390.08 | E98: 307.188 | F98: 307.188 | G98: kr/m³
A100: Pumpestation / Trykforøgerstation
I101: Anlæg | J101: Mekn/El | L101: SRO
A102: Maskinanlæg pumpestation / trykforøger | I102: 0.25 | J102: 0.65 | L102: 0.1
C103: 0 | D103: 30 | E103: 50 | F103: 250 | G103: m³/time
C104: 0 | D104: 230391 | E104: 296217 | F104: 877680 | G104: Kr | H104: Inkl. El og styring
C105: 7679.7 | D105: 3291.3 | E105: 2907.315 | F105: 2907.315 | G105: Kr/m³/time
A107: Skyllevandsbehandling
C108: 0 | D108: 20 | E108: 40 | F108: m³/t | H108: Mekn/El | I108: SRO
C109: 0 | D109: 515637 | E109: 773455.5 | F109: kr | H109: 0.85 | I109: 0.15
C110: 25781.85 | D110: 12890.925 | E110: 12890.925 | F110: kr/m³/time
